{"text_format":"1","workbook":"xlsx","n_sheets":3,"sheets":["BdD","Virement","Autres"],"not_rendered":{"charts":0,"images":0,"macros":1,"external_links":0,"defined_names":4,"comments":0,"pivot_tables":0},"unopened":[],"bounds":{"document_bytes":16777216,"sheet_cells":100000,"rows_first":2000,"rows_last":500,"rows_between":2000,"halvings":0,"cell_chars":16384,"cell_head_chars":4096},"cells_cut":0,"cells_raw":0,"read":"whole","date_system":"1900"}

{"sheet":"BdD","index":0,"n_rows":1093,"n_cols":24,"rows_kept":1093,"cut":false,"hidden":false,"merged":[]}
[]
[{"$f":"COUNTIF(B:B,\"Lucas\")","v":7}]
[null,null,null,null,null,null,null,null,null,null,null,null,null,null,null,null,null,null,null,null,null,null,"liste évolutive nommée VIR","liste évolutive nommée AUT"]
[]
[]
[]
[null,null,null,null,null,null,null,null,null,null,null,null,null,null,null,null,null,null,null,null,null,"CODE","Liste Virement","Listes autres"]
["2015-12-03","Virement__AA66","Rejeté",null,null,null,null,null,null,null,null,null,null,null,null,null,null,null,null,null,null,{"$f":"IF(AND(C8=\"Terminé\",COUNTIF(B8,\"*Virement*\")),\"VIR\"&COUNTIF($V$7:V7,\"VIR*\"),IF(COUNTIF(B8,\"*Virement*\"),\"\",IF(COUNTIF($B$8:B8,B8)=1,\"_\"&\"AUTO\"&COUNTIF($V$7:V7,\"*AUTO*\"),\"\")))","v":""},{"$f":"IFERROR(INDEX($B:$B,MATCH(\"VIR\"&ROW()-8,$V:$V,0)),\"\")","v":"Virement__AA78"},{"$f":"IFERROR(INDEX($B:$B,MATCH(\"*AUTO*\"&ROW()-8,$V:$V,0)),\"\")","v":"Lucas"}]
["2015-12-10","Virement__AA39","En cours",null,null,null,null,null,null,null,null,null,null,null,null,null,null,null,null,null,null,{"$f":"IF(AND(C9=\"Terminé\",COUNTIF(B9,\"*Virement*\")),\"VIR\"&COUNTIF($V$7:V8,\"VIR*\"),IF(COUNTIF(B9,\"*Virement*\"),\"\",IF(COUNTIF($B$8:B9,B9)=1,\"_\"&\"AUTO\"&COUNTIF($V$7:V8,\"*AUTO*\"),\"\")))","v":""},{"$f":"IFERROR(INDEX(B:B,MATCH(\"VIR\"&ROW()-8,V:V,0)),\"\")","v":"Virement__AA14"},{"$f":"IFERROR(INDEX($B:$B,MATCH(\"*AUTO*\"&ROW()-8,$V:$V,0)),\"\")","v":"Pierrette"}]
["2015-08-18","Lucas",null,null,null,null,null,null,null,null,null,null,null,null,null,null,null,null,null,null,null,{"$f":"IF(AND(C10=\"Terminé\",COUNTIF(B10,\"*Virement*\")),\"VIR\"&COUNTIF($V$7:V9,\"VIR*\"),IF(COUNTIF(B10,\"*Virement*\"),\"\",IF(COUNTIF($B$8:B10,B10)=1,\"_\"&\"AUTO\"&COUNTIF($V$7:V9,\"*AUTO*\"),\"\")))","v":"_AUTO0"},"Virement__AA63","Eric"]
["2015-09-15","Pierrette",null,null,null,null,null,null,null,null,null,null,null,null,null,null,null,null,null,null,null,{"$f":"IF(AND(C11=\"Terminé\",COUNTIF(B11,\"*Virement*\")),\"VIR\"&COUNTIF($V$7:V10,\"VIR*\"),IF(COUNTIF(B11,\"*Virement*\"),\"\",IF(COUNTIF($B$8:B11,B11)=1,\"_\"&\"AUTO\"&COUNTIF($V$7:V10,\"*AUTO*\"),\"\")))","v":"_AUTO1"},"Virement__AA48","Léa"]
["2015-06-06","Virement__AA78","Terminé",null,null,null,null,null,null,null,null,null,null,null,null,null,null,null,null,null,null,{"$f":"IF(AND(C12=\"Terminé\",COUNTIF(B12,\"*Virement*\")),\"VIR\"&COUNTIF($V$7:V11,\"VIR*\"),IF(COUNTIF(B12,\"*Virement*\"),\"\",IF(COUNTIF($B$8:B12,B12)=1,\"_\"&\"AUTO\"&COUNTIF($V$7:V11,\"*AUTO*\"),\"\")))","v":"VIR0"},"Virement__AA51","Monique"]
["2015-06-29","Eric",null,null,null,null,null,null,null,null,null,null,null,null,null,null,null,null,null,null,null,{"$f":"IF(AND(C13=\"Terminé\",COUNTIF(B13,\"*Virement*\")),\"VIR\"&COUNTIF($V$7:V12,\"VIR*\"),IF(COUNTIF(B13,\"*Virement*\"),\"\",IF(COUNTIF($B$8:B13,B13)=1,\"_\"&\"AUTO\"&COUNTIF($V$7:V12,\"*AUTO*\"),\"\")))","v":"_AUTO2"},"Virement__AA19","Patrick"]
["2015-12-11","Léa",null,null,null,null,null,null,null,null,null,null,null,null,null,null,null,null,null,null,null,{"$f":"IF(AND(C14=\"Terminé\",COUNTIF(B14,\"*Virement*\")),\"VIR\"&COUNTIF($V$7:V13,\"VIR*\"),IF(COUNTIF(B14,\"*Virement*\"),\"\",IF(COUNTIF($B$8:B14,B14)=1,\"_\"&\"AUTO\"&COUNTIF($V$7:V13,\"*AUTO*\"),\"\")))","v":"_AUTO3"},"Virement__AA40","Chrystel"]
["2016-01-19","Monique",null,null,null,null,null,null,null,null,null,null,null,null,null,null,null,null,null,null,null,{"$f":"IF(AND(C15=\"Terminé\",COUNTIF(B15,\"*Virement*\")),\"VIR\"&COUNTIF($V$7:V14,\"VIR*\"),IF(COUNTIF(B15,\"*Virement*\"),\"\",IF(COUNTIF($B$8:B15,B15)=1,\"_\"&\"AUTO\"&COUNTIF($V$7:V14,\"*AUTO*\"),\"\")))","v":"_AUTO4"},"Virement__AA61","Philippe"]
["2015-11-24","Patrick",null,null,null,null,null,null,null,null,null,null,null,null,null,null,null,null,null,null,null,{"$f":"IF(AND(C16=\"Terminé\",COUNTIF(B16,\"*Virement*\")),\"VIR\"&COUNTIF($V$7:V15,\"VIR*\"),IF(COUNTIF(B16,\"*Virement*\"),\"\",IF(COUNTIF($B$8:B16,B16)=1,\"_\"&\"AUTO\"&COUNTIF($V$7:V15,\"*AUTO*\"),\"\")))","v":"_AUTO5"},"Virement__AA32","Eloide"]
["2016-01-26","Pierrette",null,null,null,null,null,null,null,null,null,null,null,null,null,null,null,null,null,null,null,{"$f":"IF(AND(C17=\"Terminé\",COUNTIF(B17,\"*Virement*\")),\"VIR\"&COUNTIF($V$7:V16,\"VIR*\"),IF(COUNTIF(B17,\"*Virement*\"),\"\",IF(COUNTIF($B$8:B17,B17)=1,\"_\"&\"AUTO\"&COUNTIF($V$7:V16,\"*AUTO*\"),\"\")))","v":""},"Virement__AA77","Simone"]
["2015-12-31","Léa",null,null,null,null,null,null,null,null,null,null,null,null,null,null,null,null,null,null,null,{"$f":"IF(AND(C18=\"Terminé\",COUNTIF(B18,\"*Virement*\")),\"VIR\"&COUNTIF($V$7:V17,\"VIR*\"),IF(COUNTIF(B18,\"*Virement*\"),\"\",IF(COUNTIF($B$8:B18,B18)=1,\"_\"&\"AUTO\"&COUNTIF($V$7:V17,\"*AUTO*\"),\"\")))","v":""},"Virement__AA28","André"]
["2015-10-11","Virement__AA43","Rejeté",null,null,null,null,null,null,null,null,null,null,null,null,null,null,null,null,null,null,{"$f":"IF(AND(C19=\"Terminé\",COUNTIF(B19,\"*Virement*\")),\"VIR\"&COUNTIF($V$7:V18,\"VIR*\"),IF(COUNTIF(B19,\"*Virement*\"),\"\",IF(COUNTIF($B$8:B19,B19)=1,\"_\"&\"AUTO\"&COUNTIF($V$7:V18,\"*AUTO*\"),\"\")))","v":""},"Virement__AA70","Francette"]
["2015-11-19","Eric",null,null,null,null,null,null,null,null,null,null,null,null,null,null,null,null,null,null,null,{"$f":"IF(AND(C20=\"Terminé\",COUNTIF(B20,\"*Virement*\")),\"VIR\"&COUNTIF($V$7:V19,\"VIR*\"),IF(COUNTIF(B20,\"*Virement*\"),\"\",IF(COUNTIF($B$8:B20,B20)=1,\"_\"&\"AUTO\"&COUNTIF($V$7:V19,\"*AUTO*\"),\"\")))","v":""},"Virement__AA24","Jean-pierre"]
["2015-07-28","Pierrette",null,null,null,null,null,null,null,null,null,null,null,null,null,null,null,null,null,null,null,{"$f":"IF(AND(C21=\"Terminé\",COUNTIF(B21,\"*Virement*\")),\"VIR\"&COUNTIF($V$7:V20,\"VIR*\"),IF(COUNTIF(B21,\"*Virement*\"),\"\",IF(COUNTIF($B$8:B21,B21)=1,\"_\"&\"AUTO\"&COUNTIF($V$7:V20,\"*AUTO*\"),\"\")))","v":""},"Virement__AA22","Corinne"]
["2016-01-09","Chrystel",null,null,null,null,null,null,null,null,null,null,null,null,null,null,null,null,null,null,null,{"$f":"IF(AND(C22=\"Terminé\",COUNTIF(B22,\"*Virement*\")),\"VIR\"&COUNTIF($V$7:V21,\"VIR*\"),IF(COUNTIF(B22,\"*Virement*\"),\"\",IF(COUNTIF($B$8:B22,B22)=1,\"_\"&\"AUTO\"&COUNTIF($V$7:V21,\"*AUTO*\"),\"\")))","v":"_AUTO6"},"Virement__AA27","Ewan"]
["2015-11-26","Philippe",null,null,null,null,null,null,null,null,null,null,null,null,null,null,null,null,null,null,null,{"$f":"IF(AND(C23=\"Terminé\",COUNTIF(B23,\"*Virement*\")),\"VIR\"&COUNTIF($V$7:V22,\"VIR*\"),IF(COUNTIF(B23,\"*Virement*\"),\"\",IF(COUNTIF($B$8:B23,B23)=1,\"_\"&\"AUTO\"&COUNTIF($V$7:V22,\"*AUTO*\"),\"\")))","v":"_AUTO7"},"Virement__AA20","Renè"]
["2015-09-30","Virement__AA42","Rejeté",null,null,null,null,null,null,null,null,null,null,null,null,null,null,null,null,null,null,{"$f":"IF(AND(C24=\"Terminé\",COUNTIF(B24,\"*Virement*\")),\"VIR\"&COUNTIF($V$7:V23,\"VIR*\"),IF(COUNTIF(B24,\"*Virement*\"),\"\",IF(COUNTIF($B$8:B24,B24)=1,\"_\"&\"AUTO\"&COUNTIF($V$7:V23,\"*AUTO*\"),\"\")))","v":""},"Virement__AA50","Madeleine"]
["2015-12-13","Virement__AA14","Terminé",null,null,null,null,null,null,null,null,null,null,null,null,null,null,null,null,null,null,{"$f":"IF(AND(C25=\"Terminé\",COUNTIF(B25,\"*Virement*\")),\"VIR\"&COUNTIF($V$7:V24,\"VIR*\"),IF(COUNTIF(B25,\"*Virement*\"),\"\",IF(COUNTIF($B$8:B25,B25)=1,\"_\"&\"AUTO\"&COUNTIF($V$7:V24,\"*AUTO*\"),\"\")))","v":"VIR1"},"Virement__AA21","Michel"]
["2015-09-03","Eloide",null,null,null,null,null,null,null,null,null,null,null,null,null,null,null,null,null,null,null,{"$f":"IF(AND(C26=\"Terminé\",COUNTIF(B26,\"*Virement*\")),\"VIR\"&COUNTIF($V$7:V25,\"VIR*\"),IF(COUNTIF(B26,\"*Virement*\"),\"\",IF(COUNTIF($B$8:B26,B26)=1,\"_\"&\"AUTO\"&COUNTIF($V$7:V25,\"*AUTO*\"),\"\")))","v":"_AUTO8"},"Virement__AA31","Jaqueline"]
["2016-01-23","Monique",null,null,null,null,null,null,null,null,null,null,null,null,null,null,null,null,null,null,null,{"$f":"IF(AND(C27=\"Terminé\",COUNTIF(B27,\"*Virement*\")),\"VIR\"&COUNTIF($V$7:V26,\"VIR*\"),IF(COUNTIF(B27,\"*Virement*\"),\"\",IF(COUNTIF($B$8:B27,B27)=1,\"_\"&\"AUTO\"&COUNTIF($V$7:V26,\"*AUTO*\"),\"\")))","v":""},"Virement__AA67","Carla"]
["2015-09-26","Simone",null,null,null,null,null,null,null,null,null,null,null,null,null,null,null,null,null,null,null,{"$f":"IF(AND(C28=\"Terminé\",COUNTIF(B28,\"*Virement*\")),\"VIR\"&COUNTIF($V$7:V27,\"VIR*\"),IF(COUNTIF(B28,\"*Virement*\"),\"\",IF(COUNTIF($B$8:B28,B28)=1,\"_\"&\"AUTO\"&COUNTIF($V$7:V27,\"*AUTO*\"),\"\")))","v":"_AUTO9"},"Virement__AA60","Paul"]
["2015-10-28","André",null,null,null,null,null,null,null,null,null,null,null,null,null,null,null,null,null,null,null,{"$f":"IF(AND(C29=\"Terminé\",COUNTIF(B29,\"*Virement*\")),\"VIR\"&COUNTIF($V$7:V28,\"VIR*\"),IF(COUNTIF(B29,\"*Virement*\"),\"\",IF(COUNTIF($B$8:B29,B29)=1,\"_\"&\"AUTO\"&COUNTIF($V$7:V28,\"*AUTO*\"),\"\")))","v":"_AUTO10"},"Virement__AA55","Rémi"]
["2015-09-02","Virement__AA63","Terminé",null,null,null,null,null,null,null,null,null,null,null,null,null,null,null,null,null,null,{"$f":"IF(AND(C30=\"Terminé\",COUNTIF(B30,\"*Virement*\")),\"VIR\"&COUNTIF($V$7:V29,\"VIR*\"),IF(COUNTIF(B30,\"*Virement*\"),\"\",IF(COUNTIF($B$8:B30,B30)=1,\"_\"&\"AUTO\"&COUNTIF($V$7:V29,\"*AUTO*\"),\"\")))","v":"VIR2"},"Virement__AA23","Anne-Marie"]
["2015-08-22","Virement__AA12","Rejeté",null,null,null,null,null,null,null,null,null,null,null,null,null,null,null,null,null,null,{"$f":"IF(AND(C31=\"Terminé\",COUNTIF(B31,\"*Virement*\")),\"VIR\"&COUNTIF($V$7:V30,\"VIR*\"),IF(COUNTIF(B31,\"*Virement*\"),\"\",IF(COUNTIF($B$8:B31,B31)=1,\"_\"&\"AUTO\"&COUNTIF($V$7:V30,\"*AUTO*\"),\"\")))","v":""},"Virement__AA26","Marcel"]
["2015-11-18","Francette",null,null,null,null,null,null,null,null,null,null,null,null,null,null,null,null,null,null,null,{"$f":"IF(AND(C32=\"Terminé\",COUNTIF(B32,\"*Virement*\")),\"VIR\"&COUNTIF($V$7:V31,\"VIR*\"),IF(COUNTIF(B32,\"*Virement*\"),\"\",IF(COUNTIF($B$8:B32,B32)=1,\"_\"&\"AUTO\"&COUNTIF($V$7:V31,\"*AUTO*\"),\"\")))","v":"_AUTO11"},"Virement__AA36",""]
["2015-07-12","Simone",null,null,null,null,null,null,null,null,null,null,null,null,null,null,null,null,null,null,null,{"$f":"IF(AND(C33=\"Terminé\",COUNTIF(B33,\"*Virement*\")),\"VIR\"&COUNTIF($V$7:V32,\"VIR*\"),IF(COUNTIF(B33,\"*Virement*\"),\"\",IF(COUNTIF($B$8:B33,B33)=1,\"_\"&\"AUTO\"&COUNTIF($V$7:V32,\"*AUTO*\"),\"\")))","v":""},"Virement__AA54",""]
["2016-01-29","Pierrette",null,null,null,null,null,null,null,null,null,null,null,null,null,null,null,null,null,null,null,{"$f":"IF(AND(C34=\"Terminé\",COUNTIF(B34,\"*Virement*\")),\"VIR\"&COUNTIF($V$7:V33,\"VIR*\"),IF(COUNTIF(B34,\"*Virement*\"),\"\",IF(COUNTIF($B$8:B34,B34)=1,\"_\"&\"AUTO\"&COUNTIF($V$7:V33,\"*AUTO*\"),\"\")))","v":""},"Virement__AA08",""]
["2015-07-05","Patrick",null,null,null,null,null,null,null,null,null,null,null,null,null,null,null,null,null,null,null,{"$f":"IF(AND(C35=\"Terminé\",COUNTIF(B35,\"*Virement*\")),\"VIR\"&COUNTIF($V$7:V34,\"VIR*\"),IF(COUNTIF(B35,\"*Virement*\"),\"\",IF(COUNTIF($B$8:B35,B35)=1,\"_\"&\"AUTO\"&COUNTIF($V$7:V34,\"*AUTO*\"),\"\")))","v":""},"Virement__AA65",""]
["2015-05-24","Chrystel",null,null,null,null,null,null,null,null,null,null,null,null,null,null,null,null,null,null,null,{"$f":"IF(AND(C36=\"Terminé\",COUNTIF(B36,\"*Virement*\")),\"VIR\"&COUNTIF($V$7:V35,\"VIR*\"),IF(COUNTIF(B36,\"*Virement*\"),\"\",IF(COUNTIF($B$8:B36,B36)=1,\"_\"&\"AUTO\"&COUNTIF($V$7:V35,\"*AUTO*\"),\"\")))","v":""},"Virement__AA53",""]
["2015-05-23","Virement__AA48","Terminé",null,null,null,null,null,null,null,null,null,null,null,null,null,null,null,null,null,null,{"$f":"IF(AND(C37=\"Terminé\",COUNTIF(B37,\"*Virement*\")),\"VIR\"&COUNTIF($V$7:V36,\"VIR*\"),IF(COUNTIF(B37,\"*Virement*\"),\"\",IF(COUNTIF($B$8:B37,B37)=1,\"_\"&\"AUTO\"&COUNTIF($V$7:V36,\"*AUTO*\"),\"\")))","v":"VIR3"},"Virement__AA59",""]
["2015-09-06","Virement__AA51","Terminé",null,null,null,null,null,null,null,null,null,null,null,null,null,null,null,null,null,null,{"$f":"IF(AND(C38=\"Terminé\",COUNTIF(B38,\"*Virement*\")),\"VIR\"&COUNTIF($V$7:V37,\"VIR*\"),IF(COUNTIF(B38,\"*Virement*\"),\"\",IF(COUNTIF($B$8:B38,B38)=1,\"_\"&\"AUTO\"&COUNTIF($V$7:V37,\"*AUTO*\"),\"\")))","v":"VIR4"},"Virement__AA72",""]
["2015-09-08","Chrystel",null,null,null,null,null,null,null,null,null,null,null,null,null,null,null,null,null,null,null,{"$f":"IF(AND(C39=\"Terminé\",COUNTIF(B39,\"*Virement*\")),\"VIR\"&COUNTIF($V$7:V38,\"VIR*\"),IF(COUNTIF(B39,\"*Virement*\"),\"\",IF(COUNTIF($B$8:B39,B39)=1,\"_\"&\"AUTO\"&COUNTIF($V$7:V38,\"*AUTO*\"),\"\")))","v":""},"Virement__AA35",""]
["2015-08-13","André",null,null,null,null,null,null,null,null,null,null,null,null,null,null,null,null,null,null,null,{"$f":"IF(AND(C40=\"Terminé\",COUNTIF(B40,\"*Virement*\")),\"VIR\"&COUNTIF($V$7:V39,\"VIR*\"),IF(COUNTIF(B40,\"*Virement*\"),\"\",IF(COUNTIF($B$8:B40,B40)=1,\"_\"&\"AUTO\"&COUNTIF($V$7:V39,\"*AUTO*\"),\"\")))","v":""},"Virement__AA30",""]
["2015-06-08","Jean-pierre",null,null,null,null,null,null,null,null,null,null,null,null,null,null,null,null,null,null,null,{"$f":"IF(AND(C41=\"Terminé\",COUNTIF(B41,\"*Virement*\")),\"VIR\"&COUNTIF($V$7:V40,\"VIR*\"),IF(COUNTIF(B41,\"*Virement*\"),\"\",IF(COUNTIF($B$8:B41,B41)=1,\"_\"&\"AUTO\"&COUNTIF($V$7:V40,\"*AUTO*\"),\"\")))","v":"_AUTO12"},"Virement__AA09",""]
["2015-10-12","Virement__AA64","Rejeté",null,null,null,null,null,null,null,null,null,null,null,null,null,null,null,null,null,null,{"$f":"IF(AND(C42=\"Terminé\",COUNTIF(B42,\"*Virement*\")),\"VIR\"&COUNTIF($V$7:V41,\"VIR*\"),IF(COUNTIF(B42,\"*Virement*\"),\"\",IF(COUNTIF($B$8:B42,B42)=1,\"_\"&\"AUTO\"&COUNTIF($V$7:V41,\"*AUTO*\"),\"\")))","v":""},"Virement__AA49",""]
["2015-08-29","Eloide",null,null,null,null,null,null,null,null,null,null,null,null,null,null,null,null,null,null,null,{"$f":"IF(AND(C43=\"Terminé\",COUNTIF(B43,\"*Virement*\")),\"VIR\"&COUNTIF($V$7:V42,\"VIR*\"),IF(COUNTIF(B43,\"*Virement*\"),\"\",IF(COUNTIF($B$8:B43,B43)=1,\"_\"&\"AUTO\"&COUNTIF($V$7:V42,\"*AUTO*\"),\"\")))","v":""},"Virement__AA18",""]
["2015-05-26","Corinne",null,null,null,null,null,null,null,null,null,null,null,null,null,null,null,null,null,null,null,{"$f":"IF(AND(C44=\"Terminé\",COUNTIF(B44,\"*Virement*\")),\"VIR\"&COUNTIF($V$7:V43,\"VIR*\"),IF(COUNTIF(B44,\"*Virement*\"),\"\",IF(COUNTIF($B$8:B44,B44)=1,\"_\"&\"AUTO\"&COUNTIF($V$7:V43,\"*AUTO*\"),\"\")))","v":"_AUTO13"},"Virement__AA03",""]
["2015-07-02","Ewan",null,null,null,null,null,null,null,null,null,null,null,null,null,null,null,null,null,null,null,{"$f":"IF(AND(C45=\"Terminé\",COUNTIF(B45,\"*Virement*\")),\"VIR\"&COUNTIF($V$7:V44,\"VIR*\"),IF(COUNTIF(B45,\"*Virement*\"),\"\",IF(COUNTIF($B$8:B45,B45)=1,\"_\"&\"AUTO\"&COUNTIF($V$7:V44,\"*AUTO*\"),\"\")))","v":"_AUTO14"},"Virement__AA15",""]
["2015-11-17","Pierrette",null,null,null,null,null,null,null,null,null,null,null,null,null,null,null,null,null,null,null,{"$f":"IF(AND(C46=\"Terminé\",COUNTIF(B46,\"*Virement*\")),\"VIR\"&COUNTIF($V$7:V45,\"VIR*\"),IF(COUNTIF(B46,\"*Virement*\"),\"\",IF(COUNTIF($B$8:B46,B46)=1,\"_\"&\"AUTO\"&COUNTIF($V$7:V45,\"*AUTO*\"),\"\")))","v":""},"Virement__AA07",""]
["2015-08-05","Virement__AA71","Rejeté",null,null,null,null,null,null,null,null,null,null,null,null,null,null,null,null,null,null,{"$f":"IF(AND(C47=\"Terminé\",COUNTIF(B47,\"*Virement*\")),\"VIR\"&COUNTIF($V$7:V46,\"VIR*\"),IF(COUNTIF(B47,\"*Virement*\"),\"\",IF(COUNTIF($B$8:B47,B47)=1,\"_\"&\"AUTO\"&COUNTIF($V$7:V46,\"*AUTO*\"),\"\")))","v":""},"",""]
["2015-12-20","Chrystel",null,null,null,null,null,null,null,null,null,null,null,null,null,null,null,null,null,null,null,{"$f":"IF(AND(C48=\"Terminé\",COUNTIF(B48,\"*Virement*\")),\"VIR\"&COUNTIF($V$7:V47,\"VIR*\"),IF(COUNTIF(B48,\"*Virement*\"),\"\",IF(COUNTIF($B$8:B48,B48)=1,\"_\"&\"AUTO\"&COUNTIF($V$7:V47,\"*AUTO*\"),\"\")))","v":""},"",""]
["2015-08-04","Virement__AA19","Terminé",null,null,null,null,null,null,null,null,null,null,null,null,null,null,null,null,null,null,{"$f":"IF(AND(C49=\"Terminé\",COUNTIF(B49,\"*Virement*\")),\"VIR\"&COUNTIF($V$7:V48,\"VIR*\"),IF(COUNTIF(B49,\"*Virement*\"),\"\",IF(COUNTIF($B$8:B49,B49)=1,\"_\"&\"AUTO\"&COUNTIF($V$7:V48,\"*AUTO*\"),\"\")))","v":"VIR5"},"",""]
["2015-10-29","Léa",null,null,null,null,null,null,null,null,null,null,null,null,null,null,null,null,null,null,null,{"$f":"IF(AND(C50=\"Terminé\",COUNTIF(B50,\"*Virement*\")),\"VIR\"&COUNTIF($V$7:V49,\"VIR*\"),IF(COUNTIF(B50,\"*Virement*\"),\"\",IF(COUNTIF($B$8:B50,B50)=1,\"_\"&\"AUTO\"&COUNTIF($V$7:V49,\"*AUTO*\"),\"\")))","v":""},"",""]
["2015-06-25","Virement__AA40","Terminé",null,null,null,null,null,null,null,null,null,null,null,null,null,null,null,null,null,null,{"$f":"IF(AND(C51=\"Terminé\",COUNTIF(B51,\"*Virement*\")),\"VIR\"&COUNTIF($V$7:V50,\"VIR*\"),IF(COUNTIF(B51,\"*Virement*\"),\"\",IF(COUNTIF($B$8:B51,B51)=1,\"_\"&\"AUTO\"&COUNTIF($V$7:V50,\"*AUTO*\"),\"\")))","v":"VIR6"},"",""]
["2015-06-17","Virement__AA61","Terminé",null,null,null,null,null,null,null,null,null,null,null,null,null,null,null,null,null,null,{"$f":"IF(AND(C52=\"Terminé\",COUNTIF(B52,\"*Virement*\")),\"VIR\"&COUNTIF($V$7:V51,\"VIR*\"),IF(COUNTIF(B52,\"*Virement*\"),\"\",IF(COUNTIF($B$8:B52,B52)=1,\"_\"&\"AUTO\"&COUNTIF($V$7:V51,\"*AUTO*\"),\"\")))","v":"VIR7"},"",""]
["2015-07-16","Virement__AA45","En cours",null,null,null,null,null,null,null,null,null,null,null,null,null,null,null,null,null,null,{"$f":"IF(AND(C53=\"Terminé\",COUNTIF(B53,\"*Virement*\")),\"VIR\"&COUNTIF($V$7:V52,\"VIR*\"),IF(COUNTIF(B53,\"*Virement*\"),\"\",IF(COUNTIF($B$8:B53,B53)=1,\"_\"&\"AUTO\"&COUNTIF($V$7:V52,\"*AUTO*\"),\"\")))","v":""},"",""]
["2015-11-03","Renè",null,null,null,null,null,null,null,null,null,null,null,null,null,null,null,null,null,null,null,{"$f":"IF(AND(C54=\"Terminé\",COUNTIF(B54,\"*Virement*\")),\"VIR\"&COUNTIF($V$7:V53,\"VIR*\"),IF(COUNTIF(B54,\"*Virement*\"),\"\",IF(COUNTIF($B$8:B54,B54)=1,\"_\"&\"AUTO\"&COUNTIF($V$7:V53,\"*AUTO*\"),\"\")))","v":"_AUTO15"},"",""]
["2015-06-23","Virement__AA32","Terminé",null,null,null,null,null,null,null,null,null,null,null,null,null,null,null,null,null,null,{"$f":"IF(AND(C55=\"Terminé\",COUNTIF(B55,\"*Virement*\")),\"VIR\"&COUNTIF($V$7:V54,\"VIR*\"),IF(COUNTIF(B55,\"*Virement*\"),\"\",IF(COUNTIF($B$8:B55,B55)=1,\"_\"&\"AUTO\"&COUNTIF($V$7:V54,\"*AUTO*\"),\"\")))","v":"VIR8"},"",""]
["2015-07-25","Virement__AA77","Terminé",null,null,null,null,null,null,null,null,null,null,null,null,null,null,null,null,null,null,{"$f":"IF(AND(C56=\"Terminé\",COUNTIF(B56,\"*Virement*\")),\"VIR\"&COUNTIF($V$7:V55,\"VIR*\"),IF(COUNTIF(B56,\"*Virement*\"),\"\",IF(COUNTIF($B$8:B56,B56)=1,\"_\"&\"AUTO\"&COUNTIF($V$7:V55,\"*AUTO*\"),\"\")))","v":"VIR9"},"",""]
["2015-10-26","Virement__AA38","Rejeté",null,null,null,null,null,null,null,null,null,null,null,null,null,null,null,null,null,null,{"$f":"IF(AND(C57=\"Terminé\",COUNTIF(B57,\"*Virement*\")),\"VIR\"&COUNTIF($V$7:V56,\"VIR*\"),IF(COUNTIF(B57,\"*Virement*\"),\"\",IF(COUNTIF($B$8:B57,B57)=1,\"_\"&\"AUTO\"&COUNTIF($V$7:V56,\"*AUTO*\"),\"\")))","v":""},"",""]
["2015-11-20","Madeleine",null,null,null,null,null,null,null,null,null,null,null,null,null,null,null,null,null,null,null,{"$f":"IF(AND(C58=\"Terminé\",COUNTIF(B58,\"*Virement*\")),\"VIR\"&COUNTIF($V$7:V57,\"VIR*\"),IF(COUNTIF(B58,\"*Virement*\"),\"\",IF(COUNTIF($B$8:B58,B58)=1,\"_\"&\"AUTO\"&COUNTIF($V$7:V57,\"*AUTO*\"),\"\")))","v":"_AUTO16"},"",""]
["2015-11-25","Pierrette",null,null,null,null,null,null,null,null,null,null,null,null,null,null,null,null,null,null,null,{"$f":"IF(AND(C59=\"Terminé\",COUNTIF(B59,\"*Virement*\")),\"VIR\"&COUNTIF($V$7:V58,\"VIR*\"),IF(COUNTIF(B59,\"*Virement*\"),\"\",IF(COUNTIF($B$8:B59,B59)=1,\"_\"&\"AUTO\"&COUNTIF($V$7:V58,\"*AUTO*\"),\"\")))","v":""},"",""]
["2015-07-22","Michel",null,null,null,null,null,null,null,null,null,null,null,null,null,null,null,null,null,null,null,{"$f":"IF(AND(C60=\"Terminé\",COUNTIF(B60,\"*Virement*\")),\"VIR\"&COUNTIF($V$7:V59,\"VIR*\"),IF(COUNTIF(B60,\"*Virement*\"),\"\",IF(COUNTIF($B$8:B60,B60)=1,\"_\"&\"AUTO\"&COUNTIF($V$7:V59,\"*AUTO*\"),\"\")))","v":"_AUTO17"},"",""]
["2015-10-18","Jaqueline",null,null,null,null,null,null,null,null,null,null,null,null,null,null,null,null,null,null,null,{"$f":"IF(AND(C61=\"Terminé\",COUNTIF(B61,\"*Virement*\")),\"VIR\"&COUNTIF($V$7:V60,\"VIR*\"),IF(COUNTIF(B61,\"*Virement*\"),\"\",IF(COUNTIF($B$8:B61,B61)=1,\"_\"&\"AUTO\"&COUNTIF($V$7:V60,\"*AUTO*\"),\"\")))","v":"_AUTO18"},"",""]
["2015-10-22","Philippe",null,null,null,null,null,null,null,null,null,null,null,null,null,null,null,null,null,null,null,{"$f":"IF(AND(C62=\"Terminé\",COUNTIF(B62,\"*Virement*\")),\"VIR\"&COUNTIF($V$7:V61,\"VIR*\"),IF(COUNTIF(B62,\"*Virement*\"),\"\",IF(COUNTIF($B$8:B62,B62)=1,\"_\"&\"AUTO\"&COUNTIF($V$7:V61,\"*AUTO*\"),\"\")))","v":""},"",""]
["2016-01-18","Carla",null,null,null,null,null,null,null,null,null,null,null,null,null,null,null,null,null,null,null,{"$f":"IF(AND(C63=\"Terminé\",COUNTIF(B63,\"*Virement*\")),\"VIR\"&COUNTIF($V$7:V62,\"VIR*\"),IF(COUNTIF(B63,\"*Virement*\"),\"\",IF(COUNTIF($B$8:B63,B63)=1,\"_\"&\"AUTO\"&COUNTIF($V$7:V62,\"*AUTO*\"),\"\")))","v":"_AUTO19"},"",""]
["2015-07-07","Madeleine",null,null,null,null,null,null,null,null,null,null,null,null,null,null,null,null,null,null,null,{"$f":"IF(AND(C64=\"Terminé\",COUNTIF(B64,\"*Virement*\")),\"VIR\"&COUNTIF($V$7:V63,\"VIR*\"),IF(COUNTIF(B64,\"*Virement*\"),\"\",IF(COUNTIF($B$8:B64,B64)=1,\"_\"&\"AUTO\"&COUNTIF($V$7:V63,\"*AUTO*\"),\"\")))","v":""},"",""]
["2015-09-19","Jean-pierre",null,null,null,null,null,null,null,null,null,null,null,null,null,null,null,null,null,null,null,{"$f":"IF(AND(C65=\"Terminé\",COUNTIF(B65,\"*Virement*\")),\"VIR\"&COUNTIF($V$7:V64,\"VIR*\"),IF(COUNTIF(B65,\"*Virement*\"),\"\",IF(COUNTIF($B$8:B65,B65)=1,\"_\"&\"AUTO\"&COUNTIF($V$7:V64,\"*AUTO*\"),\"\")))","v":""},"",""]
["2016-01-14","Jean-pierre",null,null,null,null,null,null,null,null,null,null,null,null,null,null,null,null,null,null,null,{"$f":"IF(AND(C66=\"Terminé\",COUNTIF(B66,\"*Virement*\")),\"VIR\"&COUNTIF($V$7:V65,\"VIR*\"),IF(COUNTIF(B66,\"*Virement*\"),\"\",IF(COUNTIF($B$8:B66,B66)=1,\"_\"&\"AUTO\"&COUNTIF($V$7:V65,\"*AUTO*\"),\"\")))","v":""},"",""]
["2015-06-10","Jean-pierre",null,null,null,null,null,null,null,null,null,null,null,null,null,null,null,null,null,null,null,{"$f":"IF(AND(C67=\"Terminé\",COUNTIF(B67,\"*Virement*\")),\"VIR\"&COUNTIF($V$7:V66,\"VIR*\"),IF(COUNTIF(B67,\"*Virement*\"),\"\",IF(COUNTIF($B$8:B67,B67)=1,\"_\"&\"AUTO\"&COUNTIF($V$7:V66,\"*AUTO*\"),\"\")))","v":""},"",""]
["2015-11-13","Virement__AA28","Terminé",null,null,null,null,null,null,null,null,null,null,null,null,null,null,null,null,null,null,{"$f":"IF(AND(C68=\"Terminé\",COUNTIF(B68,\"*Virement*\")),\"VIR\"&COUNTIF($V$7:V67,\"VIR*\"),IF(COUNTIF(B68,\"*Virement*\"),\"\",IF(COUNTIF($B$8:B68,B68)=1,\"_\"&\"AUTO\"&COUNTIF($V$7:V67,\"*AUTO*\"),\"\")))","v":"VIR10"},"",""]
["2015-11-07","Paul",null,null,null,null,null,null,null,null,null,null,null,null,null,null,null,null,null,null,null,{"$f":"IF(AND(C69=\"Terminé\",COUNTIF(B69,\"*Virement*\")),\"VIR\"&COUNTIF($V$7:V68,\"VIR*\"),IF(COUNTIF(B69,\"*Virement*\"),\"\",IF(COUNTIF($B$8:B69,B69)=1,\"_\"&\"AUTO\"&COUNTIF($V$7:V68,\"*AUTO*\"),\"\")))","v":"_AUTO20"},"",""]
["2016-01-16","Virement__AA04","Rejeté",null,null,null,null,null,null,null,null,null,null,null,null,null,null,null,null,null,null,{"$f":"IF(AND(C70=\"Terminé\",COUNTIF(B70,\"*Virement*\")),\"VIR\"&COUNTIF($V$7:V69,\"VIR*\"),IF(COUNTIF(B70,\"*Virement*\"),\"\",IF(COUNTIF($B$8:B70,B70)=1,\"_\"&\"AUTO\"&COUNTIF($V$7:V69,\"*AUTO*\"),\"\")))","v":""},"",""]
["2015-06-26","Virement__AA34","Rejeté",null,null,null,null,null,null,null,null,null,null,null,null,null,null,null,null,null,null,{"$f":"IF(AND(C71=\"Terminé\",COUNTIF(B71,\"*Virement*\")),\"VIR\"&COUNTIF($V$7:V70,\"VIR*\"),IF(COUNTIF(B71,\"*Virement*\"),\"\",IF(COUNTIF($B$8:B71,B71)=1,\"_\"&\"AUTO\"&COUNTIF($V$7:V70,\"*AUTO*\"),\"\")))","v":""},"",""]
["2015-10-04","Chrystel",null,null,null,null,null,null,null,null,null,null,null,null,null,null,null,null,null,null,null,{"$f":"IF(AND(C72=\"Terminé\",COUNTIF(B72,\"*Virement*\")),\"VIR\"&COUNTIF($V$7:V71,\"VIR*\"),IF(COUNTIF(B72,\"*Virement*\"),\"\",IF(COUNTIF($B$8:B72,B72)=1,\"_\"&\"AUTO\"&COUNTIF($V$7:V71,\"*AUTO*\"),\"\")))","v":""},"",""]
["2015-11-11","Virement__AA70","Terminé",null,null,null,null,null,null,null,null,null,null,null,null,null,null,null,null,null,null,{"$f":"IF(AND(C73=\"Terminé\",COUNTIF(B73,\"*Virement*\")),\"VIR\"&COUNTIF($V$7:V72,\"VIR*\"),IF(COUNTIF(B73,\"*Virement*\"),\"\",IF(COUNTIF($B$8:B73,B73)=1,\"_\"&\"AUTO\"&COUNTIF($V$7:V72,\"*AUTO*\"),\"\")))","v":"VIR11"},{"$f":"IFERROR(INDEX(B:B,MATCH(\"VIR\"&ROW()-8,V:V,0)),\"\")","v":""},{"$f":"IFERROR(INDEX($B:$B,MATCH(\"*AUTO*\"&ROW()-8,$V:$V,0)),\"\")","v":""}]
["2015-07-04","Monique",null,null,null,null,null,null,null,null,null,null,null,null,null,null,null,null,null,null,null,{"$f":"IF(AND(C74=\"Terminé\",COUNTIF(B74,\"*Virement*\")),\"VIR\"&COUNTIF($V$7:V73,\"VIR*\"),IF(COUNTIF(B74,\"*Virement*\"),\"\",IF(COUNTIF($B$8:B74,B74)=1,\"_\"&\"AUTO\"&COUNTIF($V$7:V73,\"*AUTO*\"),\"\")))","v":""},"",""]
["2015-11-09","Virement__AA24","Terminé",null,null,null,null,null,null,null,null,null,null,null,null,null,null,null,null,null,null,{"$f":"IF(AND(C75=\"Terminé\",COUNTIF(B75,\"*Virement*\")),\"VIR\"&COUNTIF($V$7:V74,\"VIR*\"),IF(COUNTIF(B75,\"*Virement*\"),\"\",IF(COUNTIF($B$8:B75,B75)=1,\"_\"&\"AUTO\"&COUNTIF($V$7:V74,\"*AUTO*\"),\"\")))","v":"VIR12"},"",""]
["2015-12-05","Virement__AA47","En cours",null,null,null,null,null,null,null,null,null,null,null,null,null,null,null,null,null,null,{"$f":"IF(AND(C76=\"Terminé\",COUNTIF(B76,\"*Virement*\")),\"VIR\"&COUNTIF($V$7:V75,\"VIR*\"),IF(COUNTIF(B76,\"*Virement*\"),\"\",IF(COUNTIF($B$8:B76,B76)=1,\"_\"&\"AUTO\"&COUNTIF($V$7:V75,\"*AUTO*\"),\"\")))","v":""},"",""]
["2015-12-17","Carla",null,null,null,null,null,null,null,null,null,null,null,null,null,null,null,null,null,null,null,{"$f":"IF(AND(C77=\"Terminé\",COUNTIF(B77,\"*Virement*\")),\"VIR\"&COUNTIF($V$7:V76,\"VIR*\"),IF(COUNTIF(B77,\"*Virement*\"),\"\",IF(COUNTIF($B$8:B77,B77)=1,\"_\"&\"AUTO\"&COUNTIF($V$7:V76,\"*AUTO*\"),\"\")))","v":""},"",""]
["2015-12-18","Corinne",null,null,null,null,null,null,null,null,null,null,null,null,null,null,null,null,null,null,null,{"$f":"IF(AND(C78=\"Terminé\",COUNTIF(B78,\"*Virement*\")),\"VIR\"&COUNTIF($V$7:V77,\"VIR*\"),IF(COUNTIF(B78,\"*Virement*\"),\"\",IF(COUNTIF($B$8:B78,B78)=1,\"_\"&\"AUTO\"&COUNTIF($V$7:V77,\"*AUTO*\"),\"\")))","v":""},"",""]
["2015-11-05","Virement__AA22","Terminé",null,null,null,null,null,null,null,null,null,null,null,null,null,null,null,null,null,null,{"$f":"IF(AND(C79=\"Terminé\",COUNTIF(B79,\"*Virement*\")),\"VIR\"&COUNTIF($V$7:V78,\"VIR*\"),IF(COUNTIF(B79,\"*Virement*\"),\"\",IF(COUNTIF($B$8:B79,B79)=1,\"_\"&\"AUTO\"&COUNTIF($V$7:V78,\"*AUTO*\"),\"\")))","v":"VIR13"},"",""]
["2016-01-08","André",null,null,null,null,null,null,null,null,null,null,null,null,null,null,null,null,null,null,null,{"$f":"IF(AND(C80=\"Terminé\",COUNTIF(B80,\"*Virement*\")),\"VIR\"&COUNTIF($V$7:V79,\"VIR*\"),IF(COUNTIF(B80,\"*Virement*\"),\"\",IF(COUNTIF($B$8:B80,B80)=1,\"_\"&\"AUTO\"&COUNTIF($V$7:V79,\"*AUTO*\"),\"\")))","v":""},"",""]
["2016-01-03","Michel",null,null,null,null,null,null,null,null,null,null,null,null,null,null,null,null,null,null,null,{"$f":"IF(AND(C81=\"Terminé\",COUNTIF(B81,\"*Virement*\")),\"VIR\"&COUNTIF($V$7:V80,\"VIR*\"),IF(COUNTIF(B81,\"*Virement*\"),\"\",IF(COUNTIF($B$8:B81,B81)=1,\"_\"&\"AUTO\"&COUNTIF($V$7:V80,\"*AUTO*\"),\"\")))","v":""},"",""]
["2015-05-31","Renè",null,null,null,null,null,null,null,null,null,null,null,null,null,null,null,null,null,null,null,{"$f":"IF(AND(C82=\"Terminé\",COUNTIF(B82,\"*Virement*\")),\"VIR\"&COUNTIF($V$7:V81,\"VIR*\"),IF(COUNTIF(B82,\"*Virement*\"),\"\",IF(COUNTIF($B$8:B82,B82)=1,\"_\"&\"AUTO\"&COUNTIF($V$7:V81,\"*AUTO*\"),\"\")))","v":""},"",""]
["2015-08-11","Michel",null,null,null,null,null,null,null,null,null,null,null,null,null,null,null,null,null,null,null,{"$f":"IF(AND(C83=\"Terminé\",COUNTIF(B83,\"*Virement*\")),\"VIR\"&COUNTIF($V$7:V82,\"VIR*\"),IF(COUNTIF(B83,\"*Virement*\"),\"\",IF(COUNTIF($B$8:B83,B83)=1,\"_\"&\"AUTO\"&COUNTIF($V$7:V82,\"*AUTO*\"),\"\")))","v":""},"",""]
["2016-01-10","Paul",null,null,null,null,null,null,null,null,null,null,null,null,null,null,null,null,null,null,null,{"$f":"IF(AND(C84=\"Terminé\",COUNTIF(B84,\"*Virement*\")),\"VIR\"&COUNTIF($V$7:V83,\"VIR*\"),IF(COUNTIF(B84,\"*Virement*\"),\"\",IF(COUNTIF($B$8:B84,B84)=1,\"_\"&\"AUTO\"&COUNTIF($V$7:V83,\"*AUTO*\"),\"\")))","v":""},"",""]
["2015-06-03","Madeleine",null,null,null,null,null,null,null,null,null,null,null,null,null,null,null,null,null,null,null,{"$f":"IF(AND(C85=\"Terminé\",COUNTIF(B85,\"*Virement*\")),\"VIR\"&COUNTIF($V$7:V84,\"VIR*\"),IF(COUNTIF(B85,\"*Virement*\"),\"\",IF(COUNTIF($B$8:B85,B85)=1,\"_\"&\"AUTO\"&COUNTIF($V$7:V84,\"*AUTO*\"),\"\")))","v":""},"",""]
["2015-08-25","Rémi",null,null,null,null,null,null,null,null,null,null,null,null,null,null,null,null,null,null,null,{"$f":"IF(AND(C86=\"Terminé\",COUNTIF(B86,\"*Virement*\")),\"VIR\"&COUNTIF($V$7:V85,\"VIR*\"),IF(COUNTIF(B86,\"*Virement*\"),\"\",IF(COUNTIF($B$8:B86,B86)=1,\"_\"&\"AUTO\"&COUNTIF($V$7:V85,\"*AUTO*\"),\"\")))","v":"_AUTO21"},"",""]
["2015-12-04","Jean-pierre",null,null,null,null,null,null,null,null,null,null,null,null,null,null,null,null,null,null,null,{"$f":"IF(AND(C87=\"Terminé\",COUNTIF(B87,\"*Virement*\")),\"VIR\"&COUNTIF($V$7:V86,\"VIR*\"),IF(COUNTIF(B87,\"*Virement*\"),\"\",IF(COUNTIF($B$8:B87,B87)=1,\"_\"&\"AUTO\"&COUNTIF($V$7:V86,\"*AUTO*\"),\"\")))","v":""},"",""]
["2015-11-16","Patrick",null,null,null,null,null,null,null,null,null,null,null,null,null,null,null,null,null,null,null,{"$f":"IF(AND(C88=\"Terminé\",COUNTIF(B88,\"*Virement*\")),\"VIR\"&COUNTIF($V$7:V87,\"VIR*\"),IF(COUNTIF(B88,\"*Virement*\"),\"\",IF(COUNTIF($B$8:B88,B88)=1,\"_\"&\"AUTO\"&COUNTIF($V$7:V87,\"*AUTO*\"),\"\")))","v":""},"",""]
["2015-06-24","Virement__AA06","Rejeté",null,null,null,null,null,null,null,null,null,null,null,null,null,null,null,null,null,null,{"$f":"IF(AND(C89=\"Terminé\",COUNTIF(B89,\"*Virement*\")),\"VIR\"&COUNTIF($V$7:V88,\"VIR*\"),IF(COUNTIF(B89,\"*Virement*\"),\"\",IF(COUNTIF($B$8:B89,B89)=1,\"_\"&\"AUTO\"&COUNTIF($V$7:V88,\"*AUTO*\"),\"\")))","v":""},"",""]
["2015-11-10","Virement__AA16","En cours",null,null,null,null,null,null,null,null,null,null,null,null,null,null,null,null,null,null,{"$f":"IF(AND(C90=\"Terminé\",COUNTIF(B90,\"*Virement*\")),\"VIR\"&COUNTIF($V$7:V89,\"VIR*\"),IF(COUNTIF(B90,\"*Virement*\"),\"\",IF(COUNTIF($B$8:B90,B90)=1,\"_\"&\"AUTO\"&COUNTIF($V$7:V89,\"*AUTO*\"),\"\")))","v":""},"",""]
["2015-09-11","André",null,null,null,null,null,null,null,null,null,null,null,null,null,null,null,null,null,null,null,{"$f":"IF(AND(C91=\"Terminé\",COUNTIF(B91,\"*Virement*\")),\"VIR\"&COUNTIF($V$7:V90,\"VIR*\"),IF(COUNTIF(B91,\"*Virement*\"),\"\",IF(COUNTIF($B$8:B91,B91)=1,\"_\"&\"AUTO\"&COUNTIF($V$7:V90,\"*AUTO*\"),\"\")))","v":""},"",""]
["2015-11-23","Eric",null,null,null,null,null,null,null,null,null,null,null,null,null,null,null,null,null,null,null,{"$f":"IF(AND(C92=\"Terminé\",COUNTIF(B92,\"*Virement*\")),\"VIR\"&COUNTIF($V$7:V91,\"VIR*\"),IF(COUNTIF(B92,\"*Virement*\"),\"\",IF(COUNTIF($B$8:B92,B92)=1,\"_\"&\"AUTO\"&COUNTIF($V$7:V91,\"*AUTO*\"),\"\")))","v":""},"",""]
["2015-12-02","Virement__AA52","En cours",null,null,null,null,null,null,null,null,null,null,null,null,null,null,null,null,null,null,{"$f":"IF(AND(C93=\"Terminé\",COUNTIF(B93,\"*Virement*\")),\"VIR\"&COUNTIF($V$7:V92,\"VIR*\"),IF(COUNTIF(B93,\"*Virement*\"),\"\",IF(COUNTIF($B$8:B93,B93)=1,\"_\"&\"AUTO\"&COUNTIF($V$7:V92,\"*AUTO*\"),\"\")))","v":""},"",""]
["2015-07-18","Eric",null,null,null,null,null,null,null,null,null,null,null,null,null,null,null,null,null,null,null,{"$f":"IF(AND(C94=\"Terminé\",COUNTIF(B94,\"*Virement*\")),\"VIR\"&COUNTIF($V$7:V93,\"VIR*\"),IF(COUNTIF(B94,\"*Virement*\"),\"\",IF(COUNTIF($B$8:B94,B94)=1,\"_\"&\"AUTO\"&COUNTIF($V$7:V93,\"*AUTO*\"),\"\")))","v":""},"",""]
["2015-06-01","Jean-pierre",null,null,null,null,null,null,null,null,null,null,null,null,null,null,null,null,null,null,null,{"$f":"IF(AND(C95=\"Terminé\",COUNTIF(B95,\"*Virement*\")),\"VIR\"&COUNTIF($V$7:V94,\"VIR*\"),IF(COUNTIF(B95,\"*Virement*\"),\"\",IF(COUNTIF($B$8:B95,B95)=1,\"_\"&\"AUTO\"&COUNTIF($V$7:V94,\"*AUTO*\"),\"\")))","v":""},"",""]
["2015-11-29","Michel",null,null,null,null,null,null,null,null,null,null,null,null,null,null,null,null,null,null,null,{"$f":"IF(AND(C96=\"Terminé\",COUNTIF(B96,\"*Virement*\")),\"VIR\"&COUNTIF($V$7:V95,\"VIR*\"),IF(COUNTIF(B96,\"*Virement*\"),\"\",IF(COUNTIF($B$8:B96,B96)=1,\"_\"&\"AUTO\"&COUNTIF($V$7:V95,\"*AUTO*\"),\"\")))","v":""},"",""]
["2015-11-04","Eric",null,null,null,null,null,null,null,null,null,null,null,null,null,null,null,null,null,null,null,{"$f":"IF(AND(C97=\"Terminé\",COUNTIF(B97,\"*Virement*\")),\"VIR\"&COUNTIF($V$7:V96,\"VIR*\"),IF(COUNTIF(B97,\"*Virement*\"),\"\",IF(COUNTIF($B$8:B97,B97)=1,\"_\"&\"AUTO\"&COUNTIF($V$7:V96,\"*AUTO*\"),\"\")))","v":""},"",""]
["2015-09-10","Jean-pierre",null,null,null,null,null,null,null,null,null,null,null,null,null,null,null,null,null,null,null,{"$f":"IF(AND(C98=\"Terminé\",COUNTIF(B98,\"*Virement*\")),\"VIR\"&COUNTIF($V$7:V97,\"VIR*\"),IF(COUNTIF(B98,\"*Virement*\"),\"\",IF(COUNTIF($B$8:B98,B98)=1,\"_\"&\"AUTO\"&COUNTIF($V$7:V97,\"*AUTO*\"),\"\")))","v":""},"",""]
["2015-08-12","Monique",null,null,null,null,null,null,null,null,null,null,null,null,null,null,null,null,null,null,null,{"$f":"IF(AND(C99=\"Terminé\",COUNTIF(B99,\"*Virement*\")),\"VIR\"&COUNTIF($V$7:V98,\"VIR*\"),IF(COUNTIF(B99,\"*Virement*\"),\"\",IF(COUNTIF($B$8:B99,B99)=1,\"_\"&\"AUTO\"&COUNTIF($V$7:V98,\"*AUTO*\"),\"\")))","v":""},"",""]
["2015-08-06","Rémi",null,null,null,null,null,null,null,null,null,null,null,null,null,null,null,null,null,null,null,{"$f":"IF(AND(C100=\"Terminé\",COUNTIF(B100,\"*Virement*\")),\"VIR\"&COUNTIF($V$7:V99,\"VIR*\"),IF(COUNTIF(B100,\"*Virement*\"),\"\",IF(COUNTIF($B$8:B100,B100)=1,\"_\"&\"AUTO\"&COUNTIF($V$7:V99,\"*AUTO*\"),\"\")))","v":""},"",""]
["2015-11-12","Francette",null,null,null,null,null,null,null,null,null,null,null,null,null,null,null,null,null,null,null,{"$f":"IF(AND(C101=\"Terminé\",COUNTIF(B101,\"*Virement*\")),\"VIR\"&COUNTIF($V$7:V100,\"VIR*\"),IF(COUNTIF(B101,\"*Virement*\"),\"\",IF(COUNTIF($B$8:B101,B101)=1,\"_\"&\"AUTO\"&COUNTIF($V$7:V100,\"*AUTO*\"),\"\")))","v":""},"",""]
["2015-09-23","André",null,null,null,null,null,null,null,null,null,null,null,null,null,null,null,null,null,null,null,{"$f":"IF(AND(C102=\"Terminé\",COUNTIF(B102,\"*Virement*\")),\"VIR\"&COUNTIF($V$7:V101,\"VIR*\"),IF(COUNTIF(B102,\"*Virement*\"),\"\",IF(COUNTIF($B$8:B102,B102)=1,\"_\"&\"AUTO\"&COUNTIF($V$7:V101,\"*AUTO*\"),\"\")))","v":""},"",""]
["2015-09-27","Virement__AA27","Terminé",null,null,null,null,null,null,null,null,null,null,null,null,null,null,null,null,null,null,{"$f":"IF(AND(C103=\"Terminé\",COUNTIF(B103,\"*Virement*\")),\"VIR\"&COUNTIF($V$7:V102,\"VIR*\"),IF(COUNTIF(B103,\"*Virement*\"),\"\",IF(COUNTIF($B$8:B103,B103)=1,\"_\"&\"AUTO\"&COUNTIF($V$7:V102,\"*AUTO*\"),\"\")))","v":"VIR14"},"",""]
["2015-09-05","André",null,null,null,null,null,null,null,null,null,null,null,null,null,null,null,null,null,null,null,{"$f":"IF(AND(C104=\"Terminé\",COUNTIF(B104,\"*Virement*\")),\"VIR\"&COUNTIF($V$7:V103,\"VIR*\"),IF(COUNTIF(B104,\"*Virement*\"),\"\",IF(COUNTIF($B$8:B104,B104)=1,\"_\"&\"AUTO\"&COUNTIF($V$7:V103,\"*AUTO*\"),\"\")))","v":""},"",""]
["2015-10-13","Eloide",null,null,null,null,null,null,null,null,null,null,null,null,null,null,null,null,null,null,null,{"$f":"IF(AND(C105=\"Terminé\",COUNTIF(B105,\"*Virement*\")),\"VIR\"&COUNTIF($V$7:V104,\"VIR*\"),IF(COUNTIF(B105,\"*Virement*\"),\"\",IF(COUNTIF($B$8:B105,B105)=1,\"_\"&\"AUTO\"&COUNTIF($V$7:V104,\"*AUTO*\"),\"\")))","v":""},"",""]
["2015-11-21","Ewan",null,null,null,null,null,null,null,null,null,null,null,null,null,null,null,null,null,null,null,{"$f":"IF(AND(C106=\"Terminé\",COUNTIF(B106,\"*Virement*\")),\"VIR\"&COUNTIF($V$7:V105,\"VIR*\"),IF(COUNTIF(B106,\"*Virement*\"),\"\",IF(COUNTIF($B$8:B106,B106)=1,\"_\"&\"AUTO\"&COUNTIF($V$7:V105,\"*AUTO*\"),\"\")))","v":""},"",""]
["2015-08-20","Ewan",null,null,null,null,null,null,null,null,null,null,null,null,null,null,null,null,null,null,null,{"$f":"IF(AND(C107=\"Terminé\",COUNTIF(B107,\"*Virement*\")),\"VIR\"&COUNTIF($V$7:V106,\"VIR*\"),IF(COUNTIF(B107,\"*Virement*\"),\"\",IF(COUNTIF($B$8:B107,B107)=1,\"_\"&\"AUTO\"&COUNTIF($V$7:V106,\"*AUTO*\"),\"\")))","v":""},"",""]
["2015-12-07","Philippe",null,null,null,null,null,null,null,null,null,null,null,null,null,null,null,null,null,null,null,{"$f":"IF(AND(C108=\"Terminé\",COUNTIF(B108,\"*Virement*\")),\"VIR\"&COUNTIF($V$7:V107,\"VIR*\"),IF(COUNTIF(B108,\"*Virement*\"),\"\",IF(COUNTIF($B$8:B108,B108)=1,\"_\"&\"AUTO\"&COUNTIF($V$7:V107,\"*AUTO*\"),\"\")))","v":""},"",""]
["2015-09-18","Patrick",null,null,null,null,null,null,null,null,null,null,null,null,null,null,null,null,null,null,null,{"$f":"IF(AND(C109=\"Terminé\",COUNTIF(B109,\"*Virement*\")),\"VIR\"&COUNTIF($V$7:V108,\"VIR*\"),IF(COUNTIF(B109,\"*Virement*\"),\"\",IF(COUNTIF($B$8:B109,B109)=1,\"_\"&\"AUTO\"&COUNTIF($V$7:V108,\"*AUTO*\"),\"\")))","v":""},"",""]
["2015-07-09","Renè",null,null,null,null,null,null,null,null,null,null,null,null,null,null,null,null,null,null,null,{"$f":"IF(AND(C110=\"Terminé\",COUNTIF(B110,\"*Virement*\")),\"VIR\"&COUNTIF($V$7:V109,\"VIR*\"),IF(COUNTIF(B110,\"*Virement*\"),\"\",IF(COUNTIF($B$8:B110,B110)=1,\"_\"&\"AUTO\"&COUNTIF($V$7:V109,\"*AUTO*\"),\"\")))","v":""},"",""]
["2015-08-01","Corinne",null,null,null,null,null,null,null,null,null,null,null,null,null,null,null,null,null,null,null,{"$f":"IF(AND(C111=\"Terminé\",COUNTIF(B111,\"*Virement*\")),\"VIR\"&COUNTIF($V$7:V110,\"VIR*\"),IF(COUNTIF(B111,\"*Virement*\"),\"\",IF(COUNTIF($B$8:B111,B111)=1,\"_\"&\"AUTO\"&COUNTIF($V$7:V110,\"*AUTO*\"),\"\")))","v":""},"",""]
["2015-07-17","Corinne",null,null,null,null,null,null,null,null,null,null,null,null,null,null,null,null,null,null,null,{"$f":"IF(AND(C112=\"Terminé\",COUNTIF(B112,\"*Virement*\")),\"VIR\"&COUNTIF($V$7:V111,\"VIR*\"),IF(COUNTIF(B112,\"*Virement*\"),\"\",IF(COUNTIF($B$8:B112,B112)=1,\"_\"&\"AUTO\"&COUNTIF($V$7:V111,\"*AUTO*\"),\"\")))","v":""},"",""]
["2015-10-27","Virement__AA20","Terminé",null,null,null,null,null,null,null,null,null,null,null,null,null,null,null,null,null,null,{"$f":"IF(AND(C113=\"Terminé\",COUNTIF(B113,\"*Virement*\")),\"VIR\"&COUNTIF($V$7:V112,\"VIR*\"),IF(COUNTIF(B113,\"*Virement*\"),\"\",IF(COUNTIF($B$8:B113,B113)=1,\"_\"&\"AUTO\"&COUNTIF($V$7:V112,\"*AUTO*\"),\"\")))","v":"VIR15"},"",""]
["2015-08-15","Virement__AA74","En cours",null,null,null,null,null,null,null,null,null,null,null,null,null,null,null,null,null,null,{"$f":"IF(AND(C114=\"Terminé\",COUNTIF(B114,\"*Virement*\")),\"VIR\"&COUNTIF($V$7:V113,\"VIR*\"),IF(COUNTIF(B114,\"*Virement*\"),\"\",IF(COUNTIF($B$8:B114,B114)=1,\"_\"&\"AUTO\"&COUNTIF($V$7:V113,\"*AUTO*\"),\"\")))","v":""},"",""]
["2015-11-14","Virement__AA11","Rejeté",null,null,null,null,null,null,null,null,null,null,null,null,null,null,null,null,null,null,{"$f":"IF(AND(C115=\"Terminé\",COUNTIF(B115,\"*Virement*\")),\"VIR\"&COUNTIF($V$7:V114,\"VIR*\"),IF(COUNTIF(B115,\"*Virement*\"),\"\",IF(COUNTIF($B$8:B115,B115)=1,\"_\"&\"AUTO\"&COUNTIF($V$7:V114,\"*AUTO*\"),\"\")))","v":""},"",""]
["2015-08-21","Léa",null,null,null,null,null,null,null,null,null,null,null,null,null,null,null,null,null,null,null,{"$f":"IF(AND(C116=\"Terminé\",COUNTIF(B116,\"*Virement*\")),\"VIR\"&COUNTIF($V$7:V115,\"VIR*\"),IF(COUNTIF(B116,\"*Virement*\"),\"\",IF(COUNTIF($B$8:B116,B116)=1,\"_\"&\"AUTO\"&COUNTIF($V$7:V115,\"*AUTO*\"),\"\")))","v":""},"",""]
["2015-06-30","Virement__AA46","En cours",null,null,null,null,null,null,null,null,null,null,null,null,null,null,null,null,null,null,{"$f":"IF(AND(C117=\"Terminé\",COUNTIF(B117,\"*Virement*\")),\"VIR\"&COUNTIF($V$7:V116,\"VIR*\"),IF(COUNTIF(B117,\"*Virement*\"),\"\",IF(COUNTIF($B$8:B117,B117)=1,\"_\"&\"AUTO\"&COUNTIF($V$7:V116,\"*AUTO*\"),\"\")))","v":""},"",""]
["2015-12-14","Jean-pierre",null,null,null,null,null,null,null,null,null,null,null,null,null,null,null,null,null,null,null,{"$f":"IF(AND(C118=\"Terminé\",COUNTIF(B118,\"*Virement*\")),\"VIR\"&COUNTIF($V$7:V117,\"VIR*\"),IF(COUNTIF(B118,\"*Virement*\"),\"\",IF(COUNTIF($B$8:B118,B118)=1,\"_\"&\"AUTO\"&COUNTIF($V$7:V117,\"*AUTO*\"),\"\")))","v":""},"",""]
["2016-01-25","Virement__AA68","Rejeté",null,null,null,null,null,null,null,null,null,null,null,null,null,null,null,null,null,null,{"$f":"IF(AND(C119=\"Terminé\",COUNTIF(B119,\"*Virement*\")),\"VIR\"&COUNTIF($V$7:V118,\"VIR*\"),IF(COUNTIF(B119,\"*Virement*\"),\"\",IF(COUNTIF($B$8:B119,B119)=1,\"_\"&\"AUTO\"&COUNTIF($V$7:V118,\"*AUTO*\"),\"\")))","v":""},"",""]
["2015-12-19","Ewan",null,null,null,null,null,null,null,null,null,null,null,null,null,null,null,null,null,null,null,{"$f":"IF(AND(C120=\"Terminé\",COUNTIF(B120,\"*Virement*\")),\"VIR\"&COUNTIF($V$7:V119,\"VIR*\"),IF(COUNTIF(B120,\"*Virement*\"),\"\",IF(COUNTIF($B$8:B120,B120)=1,\"_\"&\"AUTO\"&COUNTIF($V$7:V119,\"*AUTO*\"),\"\")))","v":""},"",""]
["2015-06-28","Rémi",null,null,null,null,null,null,null,null,null,null,null,null,null,null,null,null,null,null,null,{"$f":"IF(AND(C121=\"Terminé\",COUNTIF(B121,\"*Virement*\")),\"VIR\"&COUNTIF($V$7:V120,\"VIR*\"),IF(COUNTIF(B121,\"*Virement*\"),\"\",IF(COUNTIF($B$8:B121,B121)=1,\"_\"&\"AUTO\"&COUNTIF($V$7:V120,\"*AUTO*\"),\"\")))","v":""},"",""]
["2015-12-01","Madeleine","Rejeté",null,null,null,null,null,null,null,null,null,null,null,null,null,null,null,null,null,null,{"$f":"IF(AND(C122=\"Terminé\",COUNTIF(B122,\"*Virement*\")),\"VIR\"&COUNTIF($V$7:V121,\"VIR*\"),IF(COUNTIF(B122,\"*Virement*\"),\"\",IF(COUNTIF($B$8:B122,B122)=1,\"_\"&\"AUTO\"&COUNTIF($V$7:V121,\"*AUTO*\"),\"\")))","v":""},"",""]
["2015-06-11","Virement__AA29","Rejeté",null,null,null,null,null,null,null,null,null,null,null,null,null,null,null,null,null,null,{"$f":"IF(AND(C123=\"Terminé\",COUNTIF(B123,\"*Virement*\")),\"VIR\"&COUNTIF($V$7:V122,\"VIR*\"),IF(COUNTIF(B123,\"*Virement*\"),\"\",IF(COUNTIF($B$8:B123,B123)=1,\"_\"&\"AUTO\"&COUNTIF($V$7:V122,\"*AUTO*\"),\"\")))","v":""},"",""]
["2015-11-28","Anne-Marie",null,null,null,null,null,null,null,null,null,null,null,null,null,null,null,null,null,null,null,{"$f":"IF(AND(C124=\"Terminé\",COUNTIF(B124,\"*Virement*\")),\"VIR\"&COUNTIF($V$7:V123,\"VIR*\"),IF(COUNTIF(B124,\"*Virement*\"),\"\",IF(COUNTIF($B$8:B124,B124)=1,\"_\"&\"AUTO\"&COUNTIF($V$7:V123,\"*AUTO*\"),\"\")))","v":"_AUTO22"},"",""]
["2015-07-08","Virement__AA50","Terminé",null,null,null,null,null,null,null,null,null,null,null,null,null,null,null,null,null,null,{"$f":"IF(AND(C125=\"Terminé\",COUNTIF(B125,\"*Virement*\")),\"VIR\"&COUNTIF($V$7:V124,\"VIR*\"),IF(COUNTIF(B125,\"*Virement*\"),\"\",IF(COUNTIF($B$8:B125,B125)=1,\"_\"&\"AUTO\"&COUNTIF($V$7:V124,\"*AUTO*\"),\"\")))","v":"VIR16"},"",""]
["2015-07-11","Jean-pierre",null,null,null,null,null,null,null,null,null,null,null,null,null,null,null,null,null,null,null,{"$f":"IF(AND(C126=\"Terminé\",COUNTIF(B126,\"*Virement*\")),\"VIR\"&COUNTIF($V$7:V125,\"VIR*\"),IF(COUNTIF(B126,\"*Virement*\"),\"\",IF(COUNTIF($B$8:B126,B126)=1,\"_\"&\"AUTO\"&COUNTIF($V$7:V125,\"*AUTO*\"),\"\")))","v":""},"",""]
["2015-07-23","Léa",null,null,null,null,null,null,null,null,null,null,null,null,null,null,null,null,null,null,null,{"$f":"IF(AND(C127=\"Terminé\",COUNTIF(B127,\"*Virement*\")),\"VIR\"&COUNTIF($V$7:V126,\"VIR*\"),IF(COUNTIF(B127,\"*Virement*\"),\"\",IF(COUNTIF($B$8:B127,B127)=1,\"_\"&\"AUTO\"&COUNTIF($V$7:V126,\"*AUTO*\"),\"\")))","v":""},"",""]
["2015-06-14","Virement__AA21","Terminé",null,null,null,null,null,null,null,null,null,null,null,null,null,null,null,null,null,null,{"$f":"IF(AND(C128=\"Terminé\",COUNTIF(B128,\"*Virement*\")),\"VIR\"&COUNTIF($V$7:V127,\"VIR*\"),IF(COUNTIF(B128,\"*Virement*\"),\"\",IF(COUNTIF($B$8:B128,B128)=1,\"_\"&\"AUTO\"&COUNTIF($V$7:V127,\"*AUTO*\"),\"\")))","v":"VIR17"},"",""]
["2015-07-06","Lucas",null,null,null,null,null,null,null,null,null,null,null,null,null,null,null,null,null,null,null,{"$f":"IF(AND(C129=\"Terminé\",COUNTIF(B129,\"*Virement*\")),\"VIR\"&COUNTIF($V$7:V128,\"VIR*\"),IF(COUNTIF(B129,\"*Virement*\"),\"\",IF(COUNTIF($B$8:B129,B129)=1,\"_\"&\"AUTO\"&COUNTIF($V$7:V128,\"*AUTO*\"),\"\")))","v":""},"",""]
["2015-12-23","Carla",null,null,null,null,null,null,null,null,null,null,null,null,null,null,null,null,null,null,null,{"$f":"IF(AND(C130=\"Terminé\",COUNTIF(B130,\"*Virement*\")),\"VIR\"&COUNTIF($V$7:V129,\"VIR*\"),IF(COUNTIF(B130,\"*Virement*\"),\"\",IF(COUNTIF($B$8:B130,B130)=1,\"_\"&\"AUTO\"&COUNTIF($V$7:V129,\"*AUTO*\"),\"\")))","v":""},"",""]
["2015-10-06","Patrick",null,null,null,null,null,null,null,null,null,null,null,null,null,null,null,null,null,null,null,{"$f":"IF(AND(C131=\"Terminé\",COUNTIF(B131,\"*Virement*\")),\"VIR\"&COUNTIF($V$7:V130,\"VIR*\"),IF(COUNTIF(B131,\"*Virement*\"),\"\",IF(COUNTIF($B$8:B131,B131)=1,\"_\"&\"AUTO\"&COUNTIF($V$7:V130,\"*AUTO*\"),\"\")))","v":""},"",""]
["2015-06-22","Virement__AA31","Terminé",null,null,null,null,null,null,null,null,null,null,null,null,null,null,null,null,null,null,{"$f":"IF(AND(C132=\"Terminé\",COUNTIF(B132,\"*Virement*\")),\"VIR\"&COUNTIF($V$7:V131,\"VIR*\"),IF(COUNTIF(B132,\"*Virement*\"),\"\",IF(COUNTIF($B$8:B132,B132)=1,\"_\"&\"AUTO\"&COUNTIF($V$7:V131,\"*AUTO*\"),\"\")))","v":"VIR18"},"",""]
["2016-01-28","Monique",null,null,null,null,null,null,null,null,null,null,null,null,null,null,null,null,null,null,null,{"$f":"IF(AND(C133=\"Terminé\",COUNTIF(B133,\"*Virement*\")),\"VIR\"&COUNTIF($V$7:V132,\"VIR*\"),IF(COUNTIF(B133,\"*Virement*\"),\"\",IF(COUNTIF($B$8:B133,B133)=1,\"_\"&\"AUTO\"&COUNTIF($V$7:V132,\"*AUTO*\"),\"\")))","v":""},"",""]
["2015-09-24","Michel",null,null,null,null,null,null,null,null,null,null,null,null,null,null,null,null,null,null,null,{"$f":"IF(AND(C134=\"Terminé\",COUNTIF(B134,\"*Virement*\")),\"VIR\"&COUNTIF($V$7:V133,\"VIR*\"),IF(COUNTIF(B134,\"*Virement*\"),\"\",IF(COUNTIF($B$8:B134,B134)=1,\"_\"&\"AUTO\"&COUNTIF($V$7:V133,\"*AUTO*\"),\"\")))","v":""},"",""]
["2015-08-24","Virement__AA75","En cours",null,null,null,null,null,null,null,null,null,null,null,null,null,null,null,null,null,null,{"$f":"IF(AND(C135=\"Terminé\",COUNTIF(B135,\"*Virement*\")),\"VIR\"&COUNTIF($V$7:V134,\"VIR*\"),IF(COUNTIF(B135,\"*Virement*\"),\"\",IF(COUNTIF($B$8:B135,B135)=1,\"_\"&\"AUTO\"&COUNTIF($V$7:V134,\"*AUTO*\"),\"\")))","v":""},"",""]
["2015-06-04","Ewan",null,null,null,null,null,null,null,null,null,null,null,null,null,null,null,null,null,null,null,{"$f":"IF(AND(C136=\"Terminé\",COUNTIF(B136,\"*Virement*\")),\"VIR\"&COUNTIF($V$7:V135,\"VIR*\"),IF(COUNTIF(B136,\"*Virement*\"),\"\",IF(COUNTIF($B$8:B136,B136)=1,\"_\"&\"AUTO\"&COUNTIF($V$7:V135,\"*AUTO*\"),\"\")))","v":""},"",""]
["2016-01-04","Anne-Marie",null,null,null,null,null,null,null,null,null,null,null,null,null,null,null,null,null,null,null,{"$f":"IF(AND(C137=\"Terminé\",COUNTIF(B137,\"*Virement*\")),\"VIR\"&COUNTIF($V$7:V136,\"VIR*\"),IF(COUNTIF(B137,\"*Virement*\"),\"\",IF(COUNTIF($B$8:B137,B137)=1,\"_\"&\"AUTO\"&COUNTIF($V$7:V136,\"*AUTO*\"),\"\")))","v":""},{"$f":"IFERROR(INDEX(B:B,MATCH(\"VIR\"&ROW()-8,V:V,0)),\"\")","v":""},{"$f":"IFERROR(INDEX($B:$B,MATCH(\"*AUTO*\"&ROW()-8,$V:$V,0)),\"\")","v":""}]
["2015-06-07","Virement__AA67","Terminé",null,null,null,null,null,null,null,null,null,null,null,null,null,null,null,null,null,null,{"$f":"IF(AND(C138=\"Terminé\",COUNTIF(B138,\"*Virement*\")),\"VIR\"&COUNTIF($V$7:V137,\"VIR*\"),IF(COUNTIF(B138,\"*Virement*\"),\"\",IF(COUNTIF($B$8:B138,B138)=1,\"_\"&\"AUTO\"&COUNTIF($V$7:V137,\"*AUTO*\"),\"\")))","v":"VIR19"},"",""]
["2015-05-30","Lucas",null,null,null,null,null,null,null,null,null,null,null,null,null,null,null,null,null,null,null,{"$f":"IF(AND(C139=\"Terminé\",COUNTIF(B139,\"*Virement*\")),\"VIR\"&COUNTIF($V$7:V138,\"VIR*\"),IF(COUNTIF(B139,\"*Virement*\"),\"\",IF(COUNTIF($B$8:B139,B139)=1,\"_\"&\"AUTO\"&COUNTIF($V$7:V138,\"*AUTO*\"),\"\")))","v":""},"",""]
["2015-12-30","Eloide",null,null,null,null,null,null,null,null,null,null,null,null,null,null,null,null,null,null,null,{"$f":"IF(AND(C140=\"Terminé\",COUNTIF(B140,\"*Virement*\")),\"VIR\"&COUNTIF($V$7:V139,\"VIR*\"),IF(COUNTIF(B140,\"*Virement*\"),\"\",IF(COUNTIF($B$8:B140,B140)=1,\"_\"&\"AUTO\"&COUNTIF($V$7:V139,\"*AUTO*\"),\"\")))","v":""},"",""]
["2015-08-07","Virement__AA60","Terminé",null,null,null,null,null,null,null,null,null,null,null,null,null,null,null,null,null,null,{"$f":"IF(AND(C141=\"Terminé\",COUNTIF(B141,\"*Virement*\")),\"VIR\"&COUNTIF($V$7:V140,\"VIR*\"),IF(COUNTIF(B141,\"*Virement*\"),\"\",IF(COUNTIF($B$8:B141,B141)=1,\"_\"&\"AUTO\"&COUNTIF($V$7:V140,\"*AUTO*\"),\"\")))","v":"VIR20"},"",""]
["2015-08-31","Marcel",null,null,null,null,null,null,null,null,null,null,null,null,null,null,null,null,null,null,null,{"$f":"IF(AND(C142=\"Terminé\",COUNTIF(B142,\"*Virement*\")),\"VIR\"&COUNTIF($V$7:V141,\"VIR*\"),IF(COUNTIF(B142,\"*Virement*\"),\"\",IF(COUNTIF($B$8:B142,B142)=1,\"_\"&\"AUTO\"&COUNTIF($V$7:V141,\"*AUTO*\"),\"\")))","v":"_AUTO23"},"",""]
["2015-06-13","Simone",null,null,null,null,null,null,null,null,null,null,null,null,null,null,null,null,null,null,null,{"$f":"IF(AND(C143=\"Terminé\",COUNTIF(B143,\"*Virement*\")),\"VIR\"&COUNTIF($V$7:V142,\"VIR*\"),IF(COUNTIF(B143,\"*Virement*\"),\"\",IF(COUNTIF($B$8:B143,B143)=1,\"_\"&\"AUTO\"&COUNTIF($V$7:V142,\"*AUTO*\"),\"\")))","v":""},"",""]
["2015-11-30","Virement__AA55","Terminé",null,null,null,null,null,null,null,null,null,null,null,null,null,null,null,null,null,null,{"$f":"IF(AND(C144=\"Terminé\",COUNTIF(B144,\"*Virement*\")),\"VIR\"&COUNTIF($V$7:V143,\"VIR*\"),IF(COUNTIF(B144,\"*Virement*\"),\"\",IF(COUNTIF($B$8:B144,B144)=1,\"_\"&\"AUTO\"&COUNTIF($V$7:V143,\"*AUTO*\"),\"\")))","v":"VIR21"},"",""]
["2016-01-07","Marcel",null,null,null,null,null,null,null,null,null,null,null,null,null,null,null,null,null,null,null,{"$f":"IF(AND(C145=\"Terminé\",COUNTIF(B145,\"*Virement*\")),\"VIR\"&COUNTIF($V$7:V144,\"VIR*\"),IF(COUNTIF(B145,\"*Virement*\"),\"\",IF(COUNTIF($B$8:B145,B145)=1,\"_\"&\"AUTO\"&COUNTIF($V$7:V144,\"*AUTO*\"),\"\")))","v":""},"",""]
["2016-01-27","Carla",null,null,null,null,null,null,null,null,null,null,null,null,null,null,null,null,null,null,null,{"$f":"IF(AND(C146=\"Terminé\",COUNTIF(B146,\"*Virement*\")),\"VIR\"&COUNTIF($V$7:V145,\"VIR*\"),IF(COUNTIF(B146,\"*Virement*\"),\"\",IF(COUNTIF($B$8:B146,B146)=1,\"_\"&\"AUTO\"&COUNTIF($V$7:V145,\"*AUTO*\"),\"\")))","v":""},"",""]
["2015-09-09","Léa",null,null,null,null,null,null,null,null,null,null,null,null,null,null,null,null,null,null,null,{"$f":"IF(AND(C147=\"Terminé\",COUNTIF(B147,\"*Virement*\")),\"VIR\"&COUNTIF($V$7:V146,\"VIR*\"),IF(COUNTIF(B147,\"*Virement*\"),\"\",IF(COUNTIF($B$8:B147,B147)=1,\"_\"&\"AUTO\"&COUNTIF($V$7:V146,\"*AUTO*\"),\"\")))","v":""},"",""]
["2015-07-24","Marcel",null,null,null,null,null,null,null,null,null,null,null,null,null,null,null,null,null,null,null,{"$f":"IF(AND(C148=\"Terminé\",COUNTIF(B148,\"*Virement*\")),\"VIR\"&COUNTIF($V$7:V147,\"VIR*\"),IF(COUNTIF(B148,\"*Virement*\"),\"\",IF(COUNTIF($B$8:B148,B148)=1,\"_\"&\"AUTO\"&COUNTIF($V$7:V147,\"*AUTO*\"),\"\")))","v":""},"",""]
["2015-09-25","Simone",null,null,null,null,null,null,null,null,null,null,null,null,null,null,null,null,null,null,null,{"$f":"IF(AND(C149=\"Terminé\",COUNTIF(B149,\"*Virement*\")),\"VIR\"&COUNTIF($V$7:V148,\"VIR*\"),IF(COUNTIF(B149,\"*Virement*\"),\"\",IF(COUNTIF($B$8:B149,B149)=1,\"_\"&\"AUTO\"&COUNTIF($V$7:V148,\"*AUTO*\"),\"\")))","v":""},"",""]
["2015-07-03","Jean-pierre",null,null,null,null,null,null,null,null,null,null,null,null,null,null,null,null,null,null,null,{"$f":"IF(AND(C150=\"Terminé\",COUNTIF(B150,\"*Virement*\")),\"VIR\"&COUNTIF($V$7:V149,\"VIR*\"),IF(COUNTIF(B150,\"*Virement*\"),\"\",IF(COUNTIF($B$8:B150,B150)=1,\"_\"&\"AUTO\"&COUNTIF($V$7:V149,\"*AUTO*\"),\"\")))","v":""},"",""]
["2015-11-27","Virement__AA23","Terminé",null,null,null,null,null,null,null,null,null,null,null,null,null,null,null,null,null,null,{"$f":"IF(AND(C151=\"Terminé\",COUNTIF(B151,\"*Virement*\")),\"VIR\"&COUNTIF($V$7:V150,\"VIR*\"),IF(COUNTIF(B151,\"*Virement*\"),\"\",IF(COUNTIF($B$8:B151,B151)=1,\"_\"&\"AUTO\"&COUNTIF($V$7:V150,\"*AUTO*\"),\"\")))","v":"VIR22"},"",""]
["2015-10-01","Chrystel",null,null,null,null,null,null,null,null,null,null,null,null,null,null,null,null,null,null,null,{"$f":"IF(AND(C152=\"Terminé\",COUNTIF(B152,\"*Virement*\")),\"VIR\"&COUNTIF($V$7:V151,\"VIR*\"),IF(COUNTIF(B152,\"*Virement*\"),\"\",IF(COUNTIF($B$8:B152,B152)=1,\"_\"&\"AUTO\"&COUNTIF($V$7:V151,\"*AUTO*\"),\"\")))","v":""},"",""]
["2015-10-09","Virement__AA26","Terminé",null,null,null,null,null,null,null,null,null,null,null,null,null,null,null,null,null,null,{"$f":"IF(AND(C153=\"Terminé\",COUNTIF(B153,\"*Virement*\")),\"VIR\"&COUNTIF($V$7:V152,\"VIR*\"),IF(COUNTIF(B153,\"*Virement*\"),\"\",IF(COUNTIF($B$8:B153,B153)=1,\"_\"&\"AUTO\"&COUNTIF($V$7:V152,\"*AUTO*\"),\"\")))","v":"VIR23"},"",""]
["2015-11-01","Renè",null,null,null,null,null,null,null,null,null,null,null,null,null,null,null,null,null,null,null,{"$f":"IF(AND(C154=\"Terminé\",COUNTIF(B154,\"*Virement*\")),\"VIR\"&COUNTIF($V$7:V153,\"VIR*\"),IF(COUNTIF(B154,\"*Virement*\"),\"\",IF(COUNTIF($B$8:B154,B154)=1,\"_\"&\"AUTO\"&COUNTIF($V$7:V153,\"*AUTO*\"),\"\")))","v":""},"",""]
["2015-12-25","André",null,null,null,null,null,null,null,null,null,null,null,null,null,null,null,null,null,null,null,{"$f":"IF(AND(C155=\"Terminé\",COUNTIF(B155,\"*Virement*\")),\"VIR\"&COUNTIF($V$7:V154,\"VIR*\"),IF(COUNTIF(B155,\"*Virement*\"),\"\",IF(COUNTIF($B$8:B155,B155)=1,\"_\"&\"AUTO\"&COUNTIF($V$7:V154,\"*AUTO*\"),\"\")))","v":""},"",""]
["2015-08-17","Anne-Marie",null,null,null,null,null,null,null,null,null,null,null,null,null,null,null,null,null,null,null,{"$f":"IF(AND(C156=\"Terminé\",COUNTIF(B156,\"*Virement*\")),\"VIR\"&COUNTIF($V$7:V155,\"VIR*\"),IF(COUNTIF(B156,\"*Virement*\"),\"\",IF(COUNTIF($B$8:B156,B156)=1,\"_\"&\"AUTO\"&COUNTIF($V$7:V155,\"*AUTO*\"),\"\")))","v":""},"",""]
["2015-07-26","Pierrette",null,null,null,null,null,null,null,null,null,null,null,null,null,null,null,null,null,null,null,{"$f":"IF(AND(C157=\"Terminé\",COUNTIF(B157,\"*Virement*\")),\"VIR\"&COUNTIF($V$7:V156,\"VIR*\"),IF(COUNTIF(B157,\"*Virement*\"),\"\",IF(COUNTIF($B$8:B157,B157)=1,\"_\"&\"AUTO\"&COUNTIF($V$7:V156,\"*AUTO*\"),\"\")))","v":""},"",""]
["2015-12-24","Virement__AA69","Rejeté",null,null,null,null,null,null,null,null,null,null,null,null,null,null,null,null,null,null,{"$f":"IF(AND(C158=\"Terminé\",COUNTIF(B158,\"*Virement*\")),\"VIR\"&COUNTIF($V$7:V157,\"VIR*\"),IF(COUNTIF(B158,\"*Virement*\"),\"\",IF(COUNTIF($B$8:B158,B158)=1,\"_\"&\"AUTO\"&COUNTIF($V$7:V157,\"*AUTO*\"),\"\")))","v":""},"",""]
["2015-08-10","Virement__AA05","En cours",null,null,null,null,null,null,null,null,null,null,null,null,null,null,null,null,null,null,{"$f":"IF(AND(C159=\"Terminé\",COUNTIF(B159,\"*Virement*\")),\"VIR\"&COUNTIF($V$7:V158,\"VIR*\"),IF(COUNTIF(B159,\"*Virement*\"),\"\",IF(COUNTIF($B$8:B159,B159)=1,\"_\"&\"AUTO\"&COUNTIF($V$7:V158,\"*AUTO*\"),\"\")))","v":""},"",""]
["2015-08-30","Paul",null,null,null,null,null,null,null,null,null,null,null,null,null,null,null,null,null,null,null,{"$f":"IF(AND(C160=\"Terminé\",COUNTIF(B160,\"*Virement*\")),\"VIR\"&COUNTIF($V$7:V159,\"VIR*\"),IF(COUNTIF(B160,\"*Virement*\"),\"\",IF(COUNTIF($B$8:B160,B160)=1,\"_\"&\"AUTO\"&COUNTIF($V$7:V159,\"*AUTO*\"),\"\")))","v":""},"",""]
["2015-09-04","Marcel",null,null,null,null,null,null,null,null,null,null,null,null,null,null,null,null,null,null,null,{"$f":"IF(AND(C161=\"Terminé\",COUNTIF(B161,\"*Virement*\")),\"VIR\"&COUNTIF($V$7:V160,\"VIR*\"),IF(COUNTIF(B161,\"*Virement*\"),\"\",IF(COUNTIF($B$8:B161,B161)=1,\"_\"&\"AUTO\"&COUNTIF($V$7:V160,\"*AUTO*\"),\"\")))","v":""},"",""]
["2015-09-28","Virement__AA36","Terminé",null,null,null,null,null,null,null,null,null,null,null,null,null,null,null,null,null,null,{"$f":"IF(AND(C162=\"Terminé\",COUNTIF(B162,\"*Virement*\")),\"VIR\"&COUNTIF($V$7:V161,\"VIR*\"),IF(COUNTIF(B162,\"*Virement*\"),\"\",IF(COUNTIF($B$8:B162,B162)=1,\"_\"&\"AUTO\"&COUNTIF($V$7:V161,\"*AUTO*\"),\"\")))","v":"VIR24"},"",""]
["2015-12-28","Virement__AA00","Rejeté",null,null,null,null,null,null,null,null,null,null,null,null,null,null,null,null,null,null,{"$f":"IF(AND(C163=\"Terminé\",COUNTIF(B163,\"*Virement*\")),\"VIR\"&COUNTIF($V$7:V162,\"VIR*\"),IF(COUNTIF(B163,\"*Virement*\"),\"\",IF(COUNTIF($B$8:B163,B163)=1,\"_\"&\"AUTO\"&COUNTIF($V$7:V162,\"*AUTO*\"),\"\")))","v":""},"",""]
["2015-10-31","André",null,null,null,null,null,null,null,null,null,null,null,null,null,null,null,null,null,null,null,{"$f":"IF(AND(C164=\"Terminé\",COUNTIF(B164,\"*Virement*\")),\"VIR\"&COUNTIF($V$7:V163,\"VIR*\"),IF(COUNTIF(B164,\"*Virement*\"),\"\",IF(COUNTIF($B$8:B164,B164)=1,\"_\"&\"AUTO\"&COUNTIF($V$7:V163,\"*AUTO*\"),\"\")))","v":""},"",""]
["2015-12-08","Monique",null,null,null,null,null,null,null,null,null,null,null,null,null,null,null,null,null,null,null,{"$f":"IF(AND(C165=\"Terminé\",COUNTIF(B165,\"*Virement*\")),\"VIR\"&COUNTIF($V$7:V164,\"VIR*\"),IF(COUNTIF(B165,\"*Virement*\"),\"\",IF(COUNTIF($B$8:B165,B165)=1,\"_\"&\"AUTO\"&COUNTIF($V$7:V164,\"*AUTO*\"),\"\")))","v":""},"",""]
["2016-01-20","Virement__AA54","Terminé",null,null,null,null,null,null,null,null,null,null,null,null,null,null,null,null,null,null,{"$f":"IF(AND(C166=\"Terminé\",COUNTIF(B166,\"*Virement*\")),\"VIR\"&COUNTIF($V$7:V165,\"VIR*\"),IF(COUNTIF(B166,\"*Virement*\"),\"\",IF(COUNTIF($B$8:B166,B166)=1,\"_\"&\"AUTO\"&COUNTIF($V$7:V165,\"*AUTO*\"),\"\")))","v":"VIR25"},"",""]
["2015-08-26","Rémi",null,null,null,null,null,null,null,null,null,null,null,null,null,null,null,null,null,null,null,{"$f":"IF(AND(C167=\"Terminé\",COUNTIF(B167,\"*Virement*\")),\"VIR\"&COUNTIF($V$7:V166,\"VIR*\"),IF(COUNTIF(B167,\"*Virement*\"),\"\",IF(COUNTIF($B$8:B167,B167)=1,\"_\"&\"AUTO\"&COUNTIF($V$7:V166,\"*AUTO*\"),\"\")))","v":""},"",""]
["2015-10-16","André",null,null,null,null,null,null,null,null,null,null,null,null,null,null,null,null,null,null,null,{"$f":"IF(AND(C168=\"Terminé\",COUNTIF(B168,\"*Virement*\")),\"VIR\"&COUNTIF($V$7:V167,\"VIR*\"),IF(COUNTIF(B168,\"*Virement*\"),\"\",IF(COUNTIF($B$8:B168,B168)=1,\"_\"&\"AUTO\"&COUNTIF($V$7:V167,\"*AUTO*\"),\"\")))","v":""},"",""]
["2015-10-17","Anne-Marie",null,null,null,null,null,null,null,null,null,null,null,null,null,null,null,null,null,null,null,{"$f":"IF(AND(C169=\"Terminé\",COUNTIF(B169,\"*Virement*\")),\"VIR\"&COUNTIF($V$7:V168,\"VIR*\"),IF(COUNTIF(B169,\"*Virement*\"),\"\",IF(COUNTIF($B$8:B169,B169)=1,\"_\"&\"AUTO\"&COUNTIF($V$7:V168,\"*AUTO*\"),\"\")))","v":""},"",""]
["2015-07-01","Michel",null,null,null,null,null,null,null,null,null,null,null,null,null,null,null,null,null,null,null,{"$f":"IF(AND(C170=\"Terminé\",COUNTIF(B170,\"*Virement*\")),\"VIR\"&COUNTIF($V$7:V169,\"VIR*\"),IF(COUNTIF(B170,\"*Virement*\"),\"\",IF(COUNTIF($B$8:B170,B170)=1,\"_\"&\"AUTO\"&COUNTIF($V$7:V169,\"*AUTO*\"),\"\")))","v":""},"",""]
["2015-06-16","André",null,null,null,null,null,null,null,null,null,null,null,null,null,null,null,null,null,null,null,{"$f":"IF(AND(C171=\"Terminé\",COUNTIF(B171,\"*Virement*\")),\"VIR\"&COUNTIF($V$7:V170,\"VIR*\"),IF(COUNTIF(B171,\"*Virement*\"),\"\",IF(COUNTIF($B$8:B171,B171)=1,\"_\"&\"AUTO\"&COUNTIF($V$7:V170,\"*AUTO*\"),\"\")))","v":""},"",""]
["2015-11-08","Rémi",null,null,null,null,null,null,null,null,null,null,null,null,null,null,null,null,null,null,null,{"$f":"IF(AND(C172=\"Terminé\",COUNTIF(B172,\"*Virement*\")),\"VIR\"&COUNTIF($V$7:V171,\"VIR*\"),IF(COUNTIF(B172,\"*Virement*\"),\"\",IF(COUNTIF($B$8:B172,B172)=1,\"_\"&\"AUTO\"&COUNTIF($V$7:V171,\"*AUTO*\"),\"\")))","v":""},"",""]
["2016-01-12","Virement__AA58","En cours",null,null,null,null,null,null,null,null,null,null,null,null,null,null,null,null,null,null,{"$f":"IF(AND(C173=\"Terminé\",COUNTIF(B173,\"*Virement*\")),\"VIR\"&COUNTIF($V$7:V172,\"VIR*\"),IF(COUNTIF(B173,\"*Virement*\"),\"\",IF(COUNTIF($B$8:B173,B173)=1,\"_\"&\"AUTO\"&COUNTIF($V$7:V172,\"*AUTO*\"),\"\")))","v":""},"",""]
["2015-09-01","Virement__AA08","Terminé",null,null,null,null,null,null,null,null,null,null,null,null,null,null,null,null,null,null,{"$f":"IF(AND(C174=\"Terminé\",COUNTIF(B174,\"*Virement*\")),\"VIR\"&COUNTIF($V$7:V173,\"VIR*\"),IF(COUNTIF(B174,\"*Virement*\"),\"\",IF(COUNTIF($B$8:B174,B174)=1,\"_\"&\"AUTO\"&COUNTIF($V$7:V173,\"*AUTO*\"),\"\")))","v":"VIR26"},"",""]
["2015-07-14","Ewan",null,null,null,null,null,null,null,null,null,null,null,null,null,null,null,null,null,null,null,{"$f":"IF(AND(C175=\"Terminé\",COUNTIF(B175,\"*Virement*\")),\"VIR\"&COUNTIF($V$7:V174,\"VIR*\"),IF(COUNTIF(B175,\"*Virement*\"),\"\",IF(COUNTIF($B$8:B175,B175)=1,\"_\"&\"AUTO\"&COUNTIF($V$7:V174,\"*AUTO*\"),\"\")))","v":""},"",""]
["2015-12-29","Simone",null,null,null,null,null,null,null,null,null,null,null,null,null,null,null,null,null,null,null,{"$f":"IF(AND(C176=\"Terminé\",COUNTIF(B176,\"*Virement*\")),\"VIR\"&COUNTIF($V$7:V175,\"VIR*\"),IF(COUNTIF(B176,\"*Virement*\"),\"\",IF(COUNTIF($B$8:B176,B176)=1,\"_\"&\"AUTO\"&COUNTIF($V$7:V175,\"*AUTO*\"),\"\")))","v":""},"",""]
["2015-12-22","Virement__AA73","En cours",null,null,null,null,null,null,null,null,null,null,null,null,null,null,null,null,null,null,{"$f":"IF(AND(C177=\"Terminé\",COUNTIF(B177,\"*Virement*\")),\"VIR\"&COUNTIF($V$7:V176,\"VIR*\"),IF(COUNTIF(B177,\"*Virement*\"),\"\",IF(COUNTIF($B$8:B177,B177)=1,\"_\"&\"AUTO\"&COUNTIF($V$7:V176,\"*AUTO*\"),\"\")))","v":""},"",""]
["2015-09-29","Jaqueline",null,null,null,null,null,null,null,null,null,null,null,null,null,null,null,null,null,null,null,{"$f":"IF(AND(C178=\"Terminé\",COUNTIF(B178,\"*Virement*\")),\"VIR\"&COUNTIF($V$7:V177,\"VIR*\"),IF(COUNTIF(B178,\"*Virement*\"),\"\",IF(COUNTIF($B$8:B178,B178)=1,\"_\"&\"AUTO\"&COUNTIF($V$7:V177,\"*AUTO*\"),\"\")))","v":""},"",""]
["2016-01-24","Virement__AA02","En cours",null,null,null,null,null,null,null,null,null,null,null,null,null,null,null,null,null,null,{"$f":"IF(AND(C179=\"Terminé\",COUNTIF(B179,\"*Virement*\")),\"VIR\"&COUNTIF($V$7:V178,\"VIR*\"),IF(COUNTIF(B179,\"*Virement*\"),\"\",IF(COUNTIF($B$8:B179,B179)=1,\"_\"&\"AUTO\"&COUNTIF($V$7:V178,\"*AUTO*\"),\"\")))","v":""},"",""]
["2015-12-09","Virement__AA41","En cours",null,null,null,null,null,null,null,null,null,null,null,null,null,null,null,null,null,null,{"$f":"IF(AND(C180=\"Terminé\",COUNTIF(B180,\"*Virement*\")),\"VIR\"&COUNTIF($V$7:V179,\"VIR*\"),IF(COUNTIF(B180,\"*Virement*\"),\"\",IF(COUNTIF($B$8:B180,B180)=1,\"_\"&\"AUTO\"&COUNTIF($V$7:V179,\"*AUTO*\"),\"\")))","v":""},"",""]
["2016-01-13","Marcel",null,null,null,null,null,null,null,null,null,null,null,null,null,null,null,null,null,null,null,{"$f":"IF(AND(C181=\"Terminé\",COUNTIF(B181,\"*Virement*\")),\"VIR\"&COUNTIF($V$7:V180,\"VIR*\"),IF(COUNTIF(B181,\"*Virement*\"),\"\",IF(COUNTIF($B$8:B181,B181)=1,\"_\"&\"AUTO\"&COUNTIF($V$7:V180,\"*AUTO*\"),\"\")))","v":""},"",""]
["2015-08-02","Lucas",null,null,null,null,null,null,null,null,null,null,null,null,null,null,null,null,null,null,null,{"$f":"IF(AND(C182=\"Terminé\",COUNTIF(B182,\"*Virement*\")),\"VIR\"&COUNTIF($V$7:V181,\"VIR*\"),IF(COUNTIF(B182,\"*Virement*\"),\"\",IF(COUNTIF($B$8:B182,B182)=1,\"_\"&\"AUTO\"&COUNTIF($V$7:V181,\"*AUTO*\"),\"\")))","v":""},"",""]
["2015-10-14","Léa",null,null,null,null,null,null,null,null,null,null,null,null,null,null,null,null,null,null,null,{"$f":"IF(AND(C183=\"Terminé\",COUNTIF(B183,\"*Virement*\")),\"VIR\"&COUNTIF($V$7:V182,\"VIR*\"),IF(COUNTIF(B183,\"*Virement*\"),\"\",IF(COUNTIF($B$8:B183,B183)=1,\"_\"&\"AUTO\"&COUNTIF($V$7:V182,\"*AUTO*\"),\"\")))","v":""},"",""]
["2015-06-15","Virement__AA76","En cours",null,null,null,null,null,null,null,null,null,null,null,null,null,null,null,null,null,null,{"$f":"IF(AND(C184=\"Terminé\",COUNTIF(B184,\"*Virement*\")),\"VIR\"&COUNTIF($V$7:V183,\"VIR*\"),IF(COUNTIF(B184,\"*Virement*\"),\"\",IF(COUNTIF($B$8:B184,B184)=1,\"_\"&\"AUTO\"&COUNTIF($V$7:V183,\"*AUTO*\"),\"\")))","v":""},"",""]
["2016-01-15","André",null,null,null,null,null,null,null,null,null,null,null,null,null,null,null,null,null,null,null,{"$f":"IF(AND(C185=\"Terminé\",COUNTIF(B185,\"*Virement*\")),\"VIR\"&COUNTIF($V$7:V184,\"VIR*\"),IF(COUNTIF(B185,\"*Virement*\"),\"\",IF(COUNTIF($B$8:B185,B185)=1,\"_\"&\"AUTO\"&COUNTIF($V$7:V184,\"*AUTO*\"),\"\")))","v":""},"",""]
["2016-01-11","Marcel",null,null,null,null,null,null,null,null,null,null,null,null,null,null,null,null,null,null,null,{"$f":"IF(AND(C186=\"Terminé\",COUNTIF(B186,\"*Virement*\")),\"VIR\"&COUNTIF($V$7:V185,\"VIR*\"),IF(COUNTIF(B186,\"*Virement*\"),\"\",IF(COUNTIF($B$8:B186,B186)=1,\"_\"&\"AUTO\"&COUNTIF($V$7:V185,\"*AUTO*\"),\"\")))","v":""},"",""]
["2015-06-05","Virement__AA17","Rejeté",null,null,null,null,null,null,null,null,null,null,null,null,null,null,null,null,null,null,{"$f":"IF(AND(C187=\"Terminé\",COUNTIF(B187,\"*Virement*\")),\"VIR\"&COUNTIF($V$7:V186,\"VIR*\"),IF(COUNTIF(B187,\"*Virement*\"),\"\",IF(COUNTIF($B$8:B187,B187)=1,\"_\"&\"AUTO\"&COUNTIF($V$7:V186,\"*AUTO*\"),\"\")))","v":""},"",""]
["2015-12-21","Anne-Marie",null,null,null,null,null,null,null,null,null,null,null,null,null,null,null,null,null,null,null,{"$f":"IF(AND(C188=\"Terminé\",COUNTIF(B188,\"*Virement*\")),\"VIR\"&COUNTIF($V$7:V187,\"VIR*\"),IF(COUNTIF(B188,\"*Virement*\"),\"\",IF(COUNTIF($B$8:B188,B188)=1,\"_\"&\"AUTO\"&COUNTIF($V$7:V187,\"*AUTO*\"),\"\")))","v":""},"",""]
["2015-09-07","Virement__AA65","Terminé",null,null,null,null,null,null,null,null,null,null,null,null,null,null,null,null,null,null,{"$f":"IF(AND(C189=\"Terminé\",COUNTIF(B189,\"*Virement*\")),\"VIR\"&COUNTIF($V$7:V188,\"VIR*\"),IF(COUNTIF(B189,\"*Virement*\"),\"\",IF(COUNTIF($B$8:B189,B189)=1,\"_\"&\"AUTO\"&COUNTIF($V$7:V188,\"*AUTO*\"),\"\")))","v":"VIR27"},"",""]
["2015-12-06","André",null,null,null,null,null,null,null,null,null,null,null,null,null,null,null,null,null,null,null,{"$f":"IF(AND(C190=\"Terminé\",COUNTIF(B190,\"*Virement*\")),\"VIR\"&COUNTIF($V$7:V189,\"VIR*\"),IF(COUNTIF(B190,\"*Virement*\"),\"\",IF(COUNTIF($B$8:B190,B190)=1,\"_\"&\"AUTO\"&COUNTIF($V$7:V189,\"*AUTO*\"),\"\")))","v":""},"",""]
["2015-09-12","Virement__AA53","Terminé",null,null,null,null,null,null,null,null,null,null,null,null,null,null,null,null,null,null,{"$f":"IF(AND(C191=\"Terminé\",COUNTIF(B191,\"*Virement*\")),\"VIR\"&COUNTIF($V$7:V190,\"VIR*\"),IF(COUNTIF(B191,\"*Virement*\"),\"\",IF(COUNTIF($B$8:B191,B191)=1,\"_\"&\"AUTO\"&COUNTIF($V$7:V190,\"*AUTO*\"),\"\")))","v":"VIR28"},"",""]
["2015-07-13","Virement__AA13","En cours",null,null,null,null,null,null,null,null,null,null,null,null,null,null,null,null,null,null,{"$f":"IF(AND(C192=\"Terminé\",COUNTIF(B192,\"*Virement*\")),\"VIR\"&COUNTIF($V$7:V191,\"VIR*\"),IF(COUNTIF(B192,\"*Virement*\"),\"\",IF(COUNTIF($B$8:B192,B192)=1,\"_\"&\"AUTO\"&COUNTIF($V$7:V191,\"*AUTO*\"),\"\")))","v":""},"",""]
["2015-10-21","Virement__AA37","Rejeté",null,null,null,null,null,null,null,null,null,null,null,null,null,null,null,null,null,null,{"$f":"IF(AND(C193=\"Terminé\",COUNTIF(B193,\"*Virement*\")),\"VIR\"&COUNTIF($V$7:V192,\"VIR*\"),IF(COUNTIF(B193,\"*Virement*\"),\"\",IF(COUNTIF($B$8:B193,B193)=1,\"_\"&\"AUTO\"&COUNTIF($V$7:V192,\"*AUTO*\"),\"\")))","v":""},"",""]
["2015-09-13","Virement__AA59","Terminé",null,null,null,null,null,null,null,null,null,null,null,null,null,null,null,null,null,null,{"$f":"IF(AND(C194=\"Terminé\",COUNTIF(B194,\"*Virement*\")),\"VIR\"&COUNTIF($V$7:V193,\"VIR*\"),IF(COUNTIF(B194,\"*Virement*\"),\"\",IF(COUNTIF($B$8:B194,B194)=1,\"_\"&\"AUTO\"&COUNTIF($V$7:V193,\"*AUTO*\"),\"\")))","v":"VIR29"},"",""]
["2015-10-25","Madeleine",null,null,null,null,null,null,null,null,null,null,null,null,null,null,null,null,null,null,null,{"$f":"IF(AND(C195=\"Terminé\",COUNTIF(B195,\"*Virement*\")),\"VIR\"&COUNTIF($V$7:V194,\"VIR*\"),IF(COUNTIF(B195,\"*Virement*\"),\"\",IF(COUNTIF($B$8:B195,B195)=1,\"_\"&\"AUTO\"&COUNTIF($V$7:V194,\"*AUTO*\"),\"\")))","v":""},"",""]
["2015-11-06","Virement__AA25","Rejeté",null,null,null,null,null,null,null,null,null,null,null,null,null,null,null,null,null,null,{"$f":"IF(AND(C196=\"Terminé\",COUNTIF(B196,\"*Virement*\")),\"VIR\"&COUNTIF($V$7:V195,\"VIR*\"),IF(COUNTIF(B196,\"*Virement*\"),\"\",IF(COUNTIF($B$8:B196,B196)=1,\"_\"&\"AUTO\"&COUNTIF($V$7:V195,\"*AUTO*\"),\"\")))","v":""},"",""]
["2015-12-26","Monique",null,null,null,null,null,null,null,null,null,null,null,null,null,null,null,null,null,null,null,{"$f":"IF(AND(C197=\"Terminé\",COUNTIF(B197,\"*Virement*\")),\"VIR\"&COUNTIF($V$7:V196,\"VIR*\"),IF(COUNTIF(B197,\"*Virement*\"),\"\",IF(COUNTIF($B$8:B197,B197)=1,\"_\"&\"AUTO\"&COUNTIF($V$7:V196,\"*AUTO*\"),\"\")))","v":""},"",""]
["2015-08-27","Eric",null,null,null,null,null,null,null,null,null,null,null,null,null,null,null,null,null,null,null,{"$f":"IF(AND(C198=\"Terminé\",COUNTIF(B198,\"*Virement*\")),\"VIR\"&COUNTIF($V$7:V197,\"VIR*\"),IF(COUNTIF(B198,\"*Virement*\"),\"\",IF(COUNTIF($B$8:B198,B198)=1,\"_\"&\"AUTO\"&COUNTIF($V$7:V197,\"*AUTO*\"),\"\")))","v":""},"",""]
["2015-12-27","Chrystel",null,null,null,null,null,null,null,null,null,null,null,null,null,null,null,null,null,null,null,{"$f":"IF(AND(C199=\"Terminé\",COUNTIF(B199,\"*Virement*\")),\"VIR\"&COUNTIF($V$7:V198,\"VIR*\"),IF(COUNTIF(B199,\"*Virement*\"),\"\",IF(COUNTIF($B$8:B199,B199)=1,\"_\"&\"AUTO\"&COUNTIF($V$7:V198,\"*AUTO*\"),\"\")))","v":""},"",""]
["2015-08-03","Virement__AA01","En cours",null,null,null,null,null,null,null,null,null,null,null,null,null,null,null,null,null,null,{"$f":"IF(AND(C200=\"Terminé\",COUNTIF(B200,\"*Virement*\")),\"VIR\"&COUNTIF($V$7:V199,\"VIR*\"),IF(COUNTIF(B200,\"*Virement*\"),\"\",IF(COUNTIF($B$8:B200,B200)=1,\"_\"&\"AUTO\"&COUNTIF($V$7:V199,\"*AUTO*\"),\"\")))","v":""},"",""]
["2015-10-24","Virement__AA44","En cours",null,null,null,null,null,null,null,null,null,null,null,null,null,null,null,null,null,null,{"$f":"IF(AND(C201=\"Terminé\",COUNTIF(B201,\"*Virement*\")),\"VIR\"&COUNTIF($V$7:V200,\"VIR*\"),IF(COUNTIF(B201,\"*Virement*\"),\"\",IF(COUNTIF($B$8:B201,B201)=1,\"_\"&\"AUTO\"&COUNTIF($V$7:V200,\"*AUTO*\"),\"\")))","v":""},{"$f":"IFERROR(INDEX(B:B,MATCH(\"VIR\"&ROW()-8,V:V,0)),\"\")","v":""},{"$f":"IFERROR(INDEX($B:$B,MATCH(\"*AUTO*\"&ROW()-8,$V:$V,0)),\"\")","v":""}]
["2015-06-02","André",null,null,null,null,null,null,null,null,null,null,null,null,null,null,null,null,null,null,null,{"$f":"IF(AND(C202=\"Terminé\",COUNTIF(B202,\"*Virement*\")),\"VIR\"&COUNTIF($V$7:V201,\"VIR*\"),IF(COUNTIF(B202,\"*Virement*\"),\"\",IF(COUNTIF($B$8:B202,B202)=1,\"_\"&\"AUTO\"&COUNTIF($V$7:V201,\"*AUTO*\"),\"\")))","v":""},"",""]
["2016-01-21","Anne-Marie",null,null,null,null,null,null,null,null,null,null,null,null,null,null,null,null,null,null,null,{"$f":"IF(AND(C203=\"Terminé\",COUNTIF(B203,\"*Virement*\")),\"VIR\"&COUNTIF($V$7:V202,\"VIR*\"),IF(COUNTIF(B203,\"*Virement*\"),\"\",IF(COUNTIF($B$8:B203,B203)=1,\"_\"&\"AUTO\"&COUNTIF($V$7:V202,\"*AUTO*\"),\"\")))","v":""},"",""]
["2015-07-29","Ewan",null,null,null,null,null,null,null,null,null,null,null,null,null,null,null,null,null,null,null,{"$f":"IF(AND(C204=\"Terminé\",COUNTIF(B204,\"*Virement*\")),\"VIR\"&COUNTIF($V$7:V203,\"VIR*\"),IF(COUNTIF(B204,\"*Virement*\"),\"\",IF(COUNTIF($B$8:B204,B204)=1,\"_\"&\"AUTO\"&COUNTIF($V$7:V203,\"*AUTO*\"),\"\")))","v":""},"",""]
["2015-10-10","Madeleine",null,null,null,null,null,null,null,null,null,null,null,null,null,null,null,null,null,null,null,{"$f":"IF(AND(C205=\"Terminé\",COUNTIF(B205,\"*Virement*\")),\"VIR\"&COUNTIF($V$7:V204,\"VIR*\"),IF(COUNTIF(B205,\"*Virement*\"),\"\",IF(COUNTIF($B$8:B205,B205)=1,\"_\"&\"AUTO\"&COUNTIF($V$7:V204,\"*AUTO*\"),\"\")))","v":""},"",""]
["2016-01-06","Virement__AA72","Terminé",null,null,null,null,null,null,null,null,null,null,null,null,null,null,null,null,null,null,{"$f":"IF(AND(C206=\"Terminé\",COUNTIF(B206,\"*Virement*\")),\"VIR\"&COUNTIF($V$7:V205,\"VIR*\"),IF(COUNTIF(B206,\"*Virement*\"),\"\",IF(COUNTIF($B$8:B206,B206)=1,\"_\"&\"AUTO\"&COUNTIF($V$7:V205,\"*AUTO*\"),\"\")))","v":"VIR30"},"",""]
["2015-07-30","Virement__AA57","En cours",null,null,null,null,null,null,null,null,null,null,null,null,null,null,null,null,null,null,{"$f":"IF(AND(C207=\"Terminé\",COUNTIF(B207,\"*Virement*\")),\"VIR\"&COUNTIF($V$7:V206,\"VIR*\"),IF(COUNTIF(B207,\"*Virement*\"),\"\",IF(COUNTIF($B$8:B207,B207)=1,\"_\"&\"AUTO\"&COUNTIF($V$7:V206,\"*AUTO*\"),\"\")))","v":""},"",""]
["2015-08-23","Jaqueline",null,null,null,null,null,null,null,null,null,null,null,null,null,null,null,null,null,null,null,{"$f":"IF(AND(C208=\"Terminé\",COUNTIF(B208,\"*Virement*\")),\"VIR\"&COUNTIF($V$7:V207,\"VIR*\"),IF(COUNTIF(B208,\"*Virement*\"),\"\",IF(COUNTIF($B$8:B208,B208)=1,\"_\"&\"AUTO\"&COUNTIF($V$7:V207,\"*AUTO*\"),\"\")))","v":""},"",""]
["2015-10-30","Marcel",null,null,null,null,null,null,null,null,null,null,null,null,null,null,null,null,null,null,null,{"$f":"IF(AND(C209=\"Terminé\",COUNTIF(B209,\"*Virement*\")),\"VIR\"&COUNTIF($V$7:V208,\"VIR*\"),IF(COUNTIF(B209,\"*Virement*\"),\"\",IF(COUNTIF($B$8:B209,B209)=1,\"_\"&\"AUTO\"&COUNTIF($V$7:V208,\"*AUTO*\"),\"\")))","v":""},"",""]
["2015-11-02","Corinne",null,null,null,null,null,null,null,null,null,null,null,null,null,null,null,null,null,null,null,{"$f":"IF(AND(C210=\"Terminé\",COUNTIF(B210,\"*Virement*\")),\"VIR\"&COUNTIF($V$7:V209,\"VIR*\"),IF(COUNTIF(B210,\"*Virement*\"),\"\",IF(COUNTIF($B$8:B210,B210)=1,\"_\"&\"AUTO\"&COUNTIF($V$7:V209,\"*AUTO*\"),\"\")))","v":""},"",""]
["2015-09-20","Madeleine",null,null,null,null,null,null,null,null,null,null,null,null,null,null,null,null,null,null,null,{"$f":"IF(AND(C211=\"Terminé\",COUNTIF(B211,\"*Virement*\")),\"VIR\"&COUNTIF($V$7:V210,\"VIR*\"),IF(COUNTIF(B211,\"*Virement*\"),\"\",IF(COUNTIF($B$8:B211,B211)=1,\"_\"&\"AUTO\"&COUNTIF($V$7:V210,\"*AUTO*\"),\"\")))","v":""},"",""]
["2016-01-22","Lucas",null,null,null,null,null,null,null,null,null,null,null,null,null,null,null,null,null,null,null,{"$f":"IF(AND(C212=\"Terminé\",COUNTIF(B212,\"*Virement*\")),\"VIR\"&COUNTIF($V$7:V211,\"VIR*\"),IF(COUNTIF(B212,\"*Virement*\"),\"\",IF(COUNTIF($B$8:B212,B212)=1,\"_\"&\"AUTO\"&COUNTIF($V$7:V211,\"*AUTO*\"),\"\")))","v":""},"",""]
["2015-10-07","Renè",null,null,null,null,null,null,null,null,null,null,null,null,null,null,null,null,null,null,null,{"$f":"IF(AND(C213=\"Terminé\",COUNTIF(B213,\"*Virement*\")),\"VIR\"&COUNTIF($V$7:V212,\"VIR*\"),IF(COUNTIF(B213,\"*Virement*\"),\"\",IF(COUNTIF($B$8:B213,B213)=1,\"_\"&\"AUTO\"&COUNTIF($V$7:V212,\"*AUTO*\"),\"\")))","v":""},"",""]
["2015-05-28","Anne-Marie",null,null,null,null,null,null,null,null,null,null,null,null,null,null,null,null,null,null,null,{"$f":"IF(AND(C214=\"Terminé\",COUNTIF(B214,\"*Virement*\")),\"VIR\"&COUNTIF($V$7:V213,\"VIR*\"),IF(COUNTIF(B214,\"*Virement*\"),\"\",IF(COUNTIF($B$8:B214,B214)=1,\"_\"&\"AUTO\"&COUNTIF($V$7:V213,\"*AUTO*\"),\"\")))","v":""},"",""]
["2015-10-19","Corinne",null,null,null,null,null,null,null,null,null,null,null,null,null,null,null,null,null,null,null,{"$f":"IF(AND(C215=\"Terminé\",COUNTIF(B215,\"*Virement*\")),\"VIR\"&COUNTIF($V$7:V214,\"VIR*\"),IF(COUNTIF(B215,\"*Virement*\"),\"\",IF(COUNTIF($B$8:B215,B215)=1,\"_\"&\"AUTO\"&COUNTIF($V$7:V214,\"*AUTO*\"),\"\")))","v":""},"",""]
["2015-08-14","Paul",null,null,null,null,null,null,null,null,null,null,null,null,null,null,null,null,null,null,null,{"$f":"IF(AND(C216=\"Terminé\",COUNTIF(B216,\"*Virement*\")),\"VIR\"&COUNTIF($V$7:V215,\"VIR*\"),IF(COUNTIF(B216,\"*Virement*\"),\"\",IF(COUNTIF($B$8:B216,B216)=1,\"_\"&\"AUTO\"&COUNTIF($V$7:V215,\"*AUTO*\"),\"\")))","v":""},"",""]
["2015-10-20","Rémi",null,null,null,null,null,null,null,null,null,null,null,null,null,null,null,null,null,null,null,{"$f":"IF(AND(C217=\"Terminé\",COUNTIF(B217,\"*Virement*\")),\"VIR\"&COUNTIF($V$7:V216,\"VIR*\"),IF(COUNTIF(B217,\"*Virement*\"),\"\",IF(COUNTIF($B$8:B217,B217)=1,\"_\"&\"AUTO\"&COUNTIF($V$7:V216,\"*AUTO*\"),\"\")))","v":""},"",""]
["2015-08-19","Virement__AA35","Terminé",null,null,null,null,null,null,null,null,null,null,null,null,null,null,null,null,null,null,{"$f":"IF(AND(C218=\"Terminé\",COUNTIF(B218,\"*Virement*\")),\"VIR\"&COUNTIF($V$7:V217,\"VIR*\"),IF(COUNTIF(B218,\"*Virement*\"),\"\",IF(COUNTIF($B$8:B218,B218)=1,\"_\"&\"AUTO\"&COUNTIF($V$7:V217,\"*AUTO*\"),\"\")))","v":"VIR31"},"",""]
["2015-09-14","Virement__AA30","Terminé",null,null,null,null,null,null,null,null,null,null,null,null,null,null,null,null,null,null,{"$f":"IF(AND(C219=\"Terminé\",COUNTIF(B219,\"*Virement*\")),\"VIR\"&COUNTIF($V$7:V218,\"VIR*\"),IF(COUNTIF(B219,\"*Virement*\"),\"\",IF(COUNTIF($B$8:B219,B219)=1,\"_\"&\"AUTO\"&COUNTIF($V$7:V218,\"*AUTO*\"),\"\")))","v":"VIR32"},"",""]
["2015-10-02","Eric",null,null,null,null,null,null,null,null,null,null,null,null,null,null,null,null,null,null,null,{"$f":"IF(AND(C220=\"Terminé\",COUNTIF(B220,\"*Virement*\")),\"VIR\"&COUNTIF($V$7:V219,\"VIR*\"),IF(COUNTIF(B220,\"*Virement*\"),\"\",IF(COUNTIF($B$8:B220,B220)=1,\"_\"&\"AUTO\"&COUNTIF($V$7:V219,\"*AUTO*\"),\"\")))","v":""},"",""]
["2015-07-15","Jaqueline",null,null,null,null,null,null,null,null,null,null,null,null,null,null,null,null,null,null,null,{"$f":"IF(AND(C221=\"Terminé\",COUNTIF(B221,\"*Virement*\")),\"VIR\"&COUNTIF($V$7:V220,\"VIR*\"),IF(COUNTIF(B221,\"*Virement*\"),\"\",IF(COUNTIF($B$8:B221,B221)=1,\"_\"&\"AUTO\"&COUNTIF($V$7:V220,\"*AUTO*\"),\"\")))","v":""},"",""]
["2015-07-27","Virement__AA09","Terminé",null,null,null,null,null,null,null,null,null,null,null,null,null,null,null,null,null,null,{"$f":"IF(AND(C222=\"Terminé\",COUNTIF(B222,\"*Virement*\")),\"VIR\"&COUNTIF($V$7:V221,\"VIR*\"),IF(COUNTIF(B222,\"*Virement*\"),\"\",IF(COUNTIF($B$8:B222,B222)=1,\"_\"&\"AUTO\"&COUNTIF($V$7:V221,\"*AUTO*\"),\"\")))","v":"VIR33"},"",""]
["2015-09-16","Jaqueline",null,null,null,null,null,null,null,null,null,null,null,null,null,null,null,null,null,null,null,{"$f":"IF(AND(C223=\"Terminé\",COUNTIF(B223,\"*Virement*\")),\"VIR\"&COUNTIF($V$7:V222,\"VIR*\"),IF(COUNTIF(B223,\"*Virement*\"),\"\",IF(COUNTIF($B$8:B223,B223)=1,\"_\"&\"AUTO\"&COUNTIF($V$7:V222,\"*AUTO*\"),\"\")))","v":""},"",""]
["2015-08-28","Virement__AA49","Terminé",null,null,null,null,null,null,null,null,null,null,null,null,null,null,null,null,null,null,{"$f":"IF(AND(C224=\"Terminé\",COUNTIF(B224,\"*Virement*\")),\"VIR\"&COUNTIF($V$7:V223,\"VIR*\"),IF(COUNTIF(B224,\"*Virement*\"),\"\",IF(COUNTIF($B$8:B224,B224)=1,\"_\"&\"AUTO\"&COUNTIF($V$7:V223,\"*AUTO*\"),\"\")))","v":"VIR34"},"",""]
["2015-05-25","Virement__AA18","Terminé",null,null,null,null,null,null,null,null,null,null,null,null,null,null,null,null,null,null,{"$f":"IF(AND(C225=\"Terminé\",COUNTIF(B225,\"*Virement*\")),\"VIR\"&COUNTIF($V$7:V224,\"VIR*\"),IF(COUNTIF(B225,\"*Virement*\"),\"\",IF(COUNTIF($B$8:B225,B225)=1,\"_\"&\"AUTO\"&COUNTIF($V$7:V224,\"*AUTO*\"),\"\")))","v":"VIR35"},"",""]
["2015-06-18","Eloide",null,null,null,null,null,null,null,null,null,null,null,null,null,null,null,null,null,null,null,{"$f":"IF(AND(C226=\"Terminé\",COUNTIF(B226,\"*Virement*\")),\"VIR\"&COUNTIF($V$7:V225,\"VIR*\"),IF(COUNTIF(B226,\"*Virement*\"),\"\",IF(COUNTIF($B$8:B226,B226)=1,\"_\"&\"AUTO\"&COUNTIF($V$7:V225,\"*AUTO*\"),\"\")))","v":""},"",""]
["2015-05-29","Patrick",null,null,null,null,null,null,null,null,null,null,null,null,null,null,null,null,null,null,null,{"$f":"IF(AND(C227=\"Terminé\",COUNTIF(B227,\"*Virement*\")),\"VIR\"&COUNTIF($V$7:V226,\"VIR*\"),IF(COUNTIF(B227,\"*Virement*\"),\"\",IF(COUNTIF($B$8:B227,B227)=1,\"_\"&\"AUTO\"&COUNTIF($V$7:V226,\"*AUTO*\"),\"\")))","v":""},"",""]
["2015-08-16","Virement__AA33","Rejeté",null,null,null,null,null,null,null,null,null,null,null,null,null,null,null,null,null,null,{"$f":"IF(AND(C228=\"Terminé\",COUNTIF(B228,\"*Virement*\")),\"VIR\"&COUNTIF($V$7:V227,\"VIR*\"),IF(COUNTIF(B228,\"*Virement*\"),\"\",IF(COUNTIF($B$8:B228,B228)=1,\"_\"&\"AUTO\"&COUNTIF($V$7:V227,\"*AUTO*\"),\"\")))","v":""},"",""]
["2015-06-27","Francette",null,null,null,null,null,null,null,null,null,null,null,null,null,null,null,null,null,null,null,{"$f":"IF(AND(C229=\"Terminé\",COUNTIF(B229,\"*Virement*\")),\"VIR\"&COUNTIF($V$7:V228,\"VIR*\"),IF(COUNTIF(B229,\"*Virement*\"),\"\",IF(COUNTIF($B$8:B229,B229)=1,\"_\"&\"AUTO\"&COUNTIF($V$7:V228,\"*AUTO*\"),\"\")))","v":""},"",""]
["2015-10-03","Virement__AA56","Rejeté",null,null,null,null,null,null,null,null,null,null,null,null,null,null,null,null,null,null,{"$f":"IF(AND(C230=\"Terminé\",COUNTIF(B230,\"*Virement*\")),\"VIR\"&COUNTIF($V$7:V229,\"VIR*\"),IF(COUNTIF(B230,\"*Virement*\"),\"\",IF(COUNTIF($B$8:B230,B230)=1,\"_\"&\"AUTO\"&COUNTIF($V$7:V229,\"*AUTO*\"),\"\")))","v":""},"",""]
["2015-09-17","André",null,null,null,null,null,null,null,null,null,null,null,null,null,null,null,null,null,null,null,{"$f":"IF(AND(C231=\"Terminé\",COUNTIF(B231,\"*Virement*\")),\"VIR\"&COUNTIF($V$7:V230,\"VIR*\"),IF(COUNTIF(B231,\"*Virement*\"),\"\",IF(COUNTIF($B$8:B231,B231)=1,\"_\"&\"AUTO\"&COUNTIF($V$7:V230,\"*AUTO*\"),\"\")))","v":""},"",""]
["2015-07-31","Carla",null,null,null,null,null,null,null,null,null,null,null,null,null,null,null,null,null,null,null,{"$f":"IF(AND(C232=\"Terminé\",COUNTIF(B232,\"*Virement*\")),\"VIR\"&COUNTIF($V$7:V231,\"VIR*\"),IF(COUNTIF(B232,\"*Virement*\"),\"\",IF(COUNTIF($B$8:B232,B232)=1,\"_\"&\"AUTO\"&COUNTIF($V$7:V231,\"*AUTO*\"),\"\")))","v":""},"",""]
["2015-11-15","Jaqueline",null,null,null,null,null,null,null,null,null,null,null,null,null,null,null,null,null,null,null,{"$f":"IF(AND(C233=\"Terminé\",COUNTIF(B233,\"*Virement*\")),\"VIR\"&COUNTIF($V$7:V232,\"VIR*\"),IF(COUNTIF(B233,\"*Virement*\"),\"\",IF(COUNTIF($B$8:B233,B233)=1,\"_\"&\"AUTO\"&COUNTIF($V$7:V232,\"*AUTO*\"),\"\")))","v":""},"",""]
["2015-07-21","Virement__AA03","Terminé",null,null,null,null,null,null,null,null,null,null,null,null,null,null,null,null,null,null,{"$f":"IF(AND(C234=\"Terminé\",COUNTIF(B234,\"*Virement*\")),\"VIR\"&COUNTIF($V$7:V233,\"VIR*\"),IF(COUNTIF(B234,\"*Virement*\"),\"\",IF(COUNTIF($B$8:B234,B234)=1,\"_\"&\"AUTO\"&COUNTIF($V$7:V233,\"*AUTO*\"),\"\")))","v":"VIR36"},"",""]
["2015-09-22","Lucas",null,null,null,null,null,null,null,null,null,null,null,null,null,null,null,null,null,null,null,{"$f":"IF(AND(C235=\"Terminé\",COUNTIF(B235,\"*Virement*\")),\"VIR\"&COUNTIF($V$7:V234,\"VIR*\"),IF(COUNTIF(B235,\"*Virement*\"),\"\",IF(COUNTIF($B$8:B235,B235)=1,\"_\"&\"AUTO\"&COUNTIF($V$7:V234,\"*AUTO*\"),\"\")))","v":""},"",""]
["2016-01-17","Francette",null,null,null,null,null,null,null,null,null,null,null,null,null,null,null,null,null,null,null,{"$f":"IF(AND(C236=\"Terminé\",COUNTIF(B236,\"*Virement*\")),\"VIR\"&COUNTIF($V$7:V235,\"VIR*\"),IF(COUNTIF(B236,\"*Virement*\"),\"\",IF(COUNTIF($B$8:B236,B236)=1,\"_\"&\"AUTO\"&COUNTIF($V$7:V235,\"*AUTO*\"),\"\")))","v":""},"",""]
["2015-07-19","Philippe",null,null,null,null,null,null,null,null,null,null,null,null,null,null,null,null,null,null,null,{"$f":"IF(AND(C237=\"Terminé\",COUNTIF(B237,\"*Virement*\")),\"VIR\"&COUNTIF($V$7:V236,\"VIR*\"),IF(COUNTIF(B237,\"*Virement*\"),\"\",IF(COUNTIF($B$8:B237,B237)=1,\"_\"&\"AUTO\"&COUNTIF($V$7:V236,\"*AUTO*\"),\"\")))","v":""},"",""]
["2015-08-08","Francette",null,null,null,null,null,null,null,null,null,null,null,null,null,null,null,null,null,null,null,{"$f":"IF(AND(C238=\"Terminé\",COUNTIF(B238,\"*Virement*\")),\"VIR\"&COUNTIF($V$7:V237,\"VIR*\"),IF(COUNTIF(B238,\"*Virement*\"),\"\",IF(COUNTIF($B$8:B238,B238)=1,\"_\"&\"AUTO\"&COUNTIF($V$7:V237,\"*AUTO*\"),\"\")))","v":""},"",""]
["2015-07-10","Francette",null,null,null,null,null,null,null,null,null,null,null,null,null,null,null,null,null,null,null,{"$f":"IF(AND(C239=\"Terminé\",COUNTIF(B239,\"*Virement*\")),\"VIR\"&COUNTIF($V$7:V238,\"VIR*\"),IF(COUNTIF(B239,\"*Virement*\"),\"\",IF(COUNTIF($B$8:B239,B239)=1,\"_\"&\"AUTO\"&COUNTIF($V$7:V238,\"*AUTO*\"),\"\")))","v":""},"",""]
["2016-01-02","Jean-pierre",null,null,null,null,null,null,null,null,null,null,null,null,null,null,null,null,null,null,null,{"$f":"IF(AND(C240=\"Terminé\",COUNTIF(B240,\"*Virement*\")),\"VIR\"&COUNTIF($V$7:V239,\"VIR*\"),IF(COUNTIF(B240,\"*Virement*\"),\"\",IF(COUNTIF($B$8:B240,B240)=1,\"_\"&\"AUTO\"&COUNTIF($V$7:V239,\"*AUTO*\"),\"\")))","v":""},"",""]
["2015-06-20","Jean-pierre",null,null,null,null,null,null,null,null,null,null,null,null,null,null,null,null,null,null,null,{"$f":"IF(AND(C241=\"Terminé\",COUNTIF(B241,\"*Virement*\")),\"VIR\"&COUNTIF($V$7:V240,\"VIR*\"),IF(COUNTIF(B241,\"*Virement*\"),\"\",IF(COUNTIF($B$8:B241,B241)=1,\"_\"&\"AUTO\"&COUNTIF($V$7:V240,\"*AUTO*\"),\"\")))","v":""},"",""]
["2015-10-05","Virement__AA15","Terminé",null,null,null,null,null,null,null,null,null,null,null,null,null,null,null,null,null,null,{"$f":"IF(AND(C242=\"Terminé\",COUNTIF(B242,\"*Virement*\")),\"VIR\"&COUNTIF($V$7:V241,\"VIR*\"),IF(COUNTIF(B242,\"*Virement*\"),\"\",IF(COUNTIF($B$8:B242,B242)=1,\"_\"&\"AUTO\"&COUNTIF($V$7:V241,\"*AUTO*\"),\"\")))","v":"VIR37"},"",""]
["2015-10-15","Virement__AA07","Terminé",null,null,null,null,null,null,null,null,null,null,null,null,null,null,null,null,null,null,{"$f":"IF(AND(C243=\"Terminé\",COUNTIF(B243,\"*Virement*\")),\"VIR\"&COUNTIF($V$7:V242,\"VIR*\"),IF(COUNTIF(B243,\"*Virement*\"),\"\",IF(COUNTIF($B$8:B243,B243)=1,\"_\"&\"AUTO\"&COUNTIF($V$7:V242,\"*AUTO*\"),\"\")))","v":"VIR38"},"",""]
["2015-08-09","Jean-pierre",null,null,null,null,null,null,null,null,null,null,null,null,null,null,null,null,null,null,null,{"$f":"IF(AND(C244=\"Terminé\",COUNTIF(B244,\"*Virement*\")),\"VIR\"&COUNTIF($V$7:V243,\"VIR*\"),IF(COUNTIF(B244,\"*Virement*\"),\"\",IF(COUNTIF($B$8:B244,B244)=1,\"_\"&\"AUTO\"&COUNTIF($V$7:V243,\"*AUTO*\"),\"\")))","v":""},"",""]
["2015-10-08","Virement__AA62","Rejeté",null,null,null,null,null,null,null,null,null,null,null,null,null,null,null,null,null,null,{"$f":"IF(AND(C245=\"Terminé\",COUNTIF(B245,\"*Virement*\")),\"VIR\"&COUNTIF($V$7:V244,\"VIR*\"),IF(COUNTIF(B245,\"*Virement*\"),\"\",IF(COUNTIF($B$8:B245,B245)=1,\"_\"&\"AUTO\"&COUNTIF($V$7:V244,\"*AUTO*\"),\"\")))","v":""},"",""]
["2016-01-05","Carla","Terminé",null,null,null,null,null,null,null,null,null,null,null,null,null,null,null,null,null,null,{"$f":"IF(AND(C246=\"Terminé\",COUNTIF(B246,\"*Virement*\")),\"VIR\"&COUNTIF($V$7:V245,\"VIR*\"),IF(COUNTIF(B246,\"*Virement*\"),\"\",IF(COUNTIF($B$8:B246,B246)=1,\"_\"&\"AUTO\"&COUNTIF($V$7:V245,\"*AUTO*\"),\"\")))","v":""},"",""]
["2015-11-22","Paul","En cours",null,null,null,null,null,null,null,null,null,null,null,null,null,null,null,null,null,null,{"$f":"IF(AND(C247=\"Terminé\",COUNTIF(B247,\"*Virement*\")),\"VIR\"&COUNTIF($V$7:V246,\"VIR*\"),IF(COUNTIF(B247,\"*Virement*\"),\"\",IF(COUNTIF($B$8:B247,B247)=1,\"_\"&\"AUTO\"&COUNTIF($V$7:V246,\"*AUTO*\"),\"\")))","v":""},"",""]
["2015-12-15","Eloide",null,null,null,null,null,null,null,null,null,null,null,null,null,null,null,null,null,null,null,{"$f":"IF(AND(C248=\"Terminé\",COUNTIF(B248,\"*Virement*\")),\"VIR\"&COUNTIF($V$7:V247,\"VIR*\"),IF(COUNTIF(B248,\"*Virement*\"),\"\",IF(COUNTIF($B$8:B248,B248)=1,\"_\"&\"AUTO\"&COUNTIF($V$7:V247,\"*AUTO*\"),\"\")))","v":""},"",""]
["2015-06-09","Simone",null,null,null,null,null,null,null,null,null,null,null,null,null,null,null,null,null,null,null,{"$f":"IF(AND(C249=\"Terminé\",COUNTIF(B249,\"*Virement*\")),\"VIR\"&COUNTIF($V$7:V248,\"VIR*\"),IF(COUNTIF(B249,\"*Virement*\"),\"\",IF(COUNTIF($B$8:B249,B249)=1,\"_\"&\"AUTO\"&COUNTIF($V$7:V248,\"*AUTO*\"),\"\")))","v":""},"",""]
["2015-10-23","Renè",null,null,null,null,null,null,null,null,null,null,null,null,null,null,null,null,null,null,null,{"$f":"IF(AND(C250=\"Terminé\",COUNTIF(B250,\"*Virement*\")),\"VIR\"&COUNTIF($V$7:V249,\"VIR*\"),IF(COUNTIF(B250,\"*Virement*\"),\"\",IF(COUNTIF($B$8:B250,B250)=1,\"_\"&\"AUTO\"&COUNTIF($V$7:V249,\"*AUTO*\"),\"\")))","v":""},"",""]
["2016-01-01","Virement__AA10","Rejeté",null,null,null,null,null,null,null,null,null,null,null,null,null,null,null,null,null,null,{"$f":"IF(AND(C251=\"Terminé\",COUNTIF(B251,\"*Virement*\")),\"VIR\"&COUNTIF($V$7:V250,\"VIR*\"),IF(COUNTIF(B251,\"*Virement*\"),\"\",IF(COUNTIF($B$8:B251,B251)=1,\"_\"&\"AUTO\"&COUNTIF($V$7:V250,\"*AUTO*\"),\"\")))","v":""},"",""]
["2015-07-20","Philippe",null,null,null,null,null,null,null,null,null,null,null,null,null,null,null,null,null,null,null,{"$f":"IF(AND(C252=\"Terminé\",COUNTIF(B252,\"*Virement*\")),\"VIR\"&COUNTIF($V$7:V251,\"VIR*\"),IF(COUNTIF(B252,\"*Virement*\"),\"\",IF(COUNTIF($B$8:B252,B252)=1,\"_\"&\"AUTO\"&COUNTIF($V$7:V251,\"*AUTO*\"),\"\")))","v":""},"",""]
["2015-06-19","Paul",null,null,null,null,null,null,null,null,null,null,null,null,null,null,null,null,null,null,null,{"$f":"IF(AND(C253=\"Terminé\",COUNTIF(B253,\"*Virement*\")),\"VIR\"&COUNTIF($V$7:V252,\"VIR*\"),IF(COUNTIF(B253,\"*Virement*\"),\"\",IF(COUNTIF($B$8:B253,B253)=1,\"_\"&\"AUTO\"&COUNTIF($V$7:V252,\"*AUTO*\"),\"\")))","v":""},"",""]
["2015-09-21","Patrick",null,null,null,null,null,null,null,null,null,null,null,null,null,null,null,null,null,null,null,{"$f":"IF(AND(C254=\"Terminé\",COUNTIF(B254,\"*Virement*\")),\"VIR\"&COUNTIF($V$7:V253,\"VIR*\"),IF(COUNTIF(B254,\"*Virement*\"),\"\",IF(COUNTIF($B$8:B254,B254)=1,\"_\"&\"AUTO\"&COUNTIF($V$7:V253,\"*AUTO*\"),\"\")))","v":""},"",""]
["2015-12-12","Paul",null,null,null,null,null,null,null,null,null,null,null,null,null,null,null,null,null,null,null,{"$f":"IF(AND(C255=\"Terminé\",COUNTIF(B255,\"*Virement*\")),\"VIR\"&COUNTIF($V$7:V254,\"VIR*\"),IF(COUNTIF(B255,\"*Virement*\"),\"\",IF(COUNTIF($B$8:B255,B255)=1,\"_\"&\"AUTO\"&COUNTIF($V$7:V254,\"*AUTO*\"),\"\")))","v":""},"",""]
["2015-12-16","Renè",null,null,null,null,null,null,null,null,null,null,null,null,null,null,null,null,null,null,null,{"$f":"IF(AND(C256=\"Terminé\",COUNTIF(B256,\"*Virement*\")),\"VIR\"&COUNTIF($V$7:V255,\"VIR*\"),IF(COUNTIF(B256,\"*Virement*\"),\"\",IF(COUNTIF($B$8:B256,B256)=1,\"_\"&\"AUTO\"&COUNTIF($V$7:V255,\"*AUTO*\"),\"\")))","v":""},"",""]
["2015-06-12","Philippe",null,null,null,null,null,null,null,null,null,null,null,null,null,null,null,null,null,null,null,{"$f":"IF(AND(C257=\"Terminé\",COUNTIF(B257,\"*Virement*\")),\"VIR\"&COUNTIF($V$7:V256,\"VIR*\"),IF(COUNTIF(B257,\"*Virement*\"),\"\",IF(COUNTIF($B$8:B257,B257)=1,\"_\"&\"AUTO\"&COUNTIF($V$7:V256,\"*AUTO*\"),\"\")))","v":""},"",""]
["2015-06-21","Lucas",null,null,null,null,null,null,null,null,null,null,null,null,null,null,null,null,null,null,null,{"$f":"IF(AND(C258=\"Terminé\",COUNTIF(B258,\"*Virement*\")),\"VIR\"&COUNTIF($V$7:V257,\"VIR*\"),IF(COUNTIF(B258,\"*Virement*\"),\"\",IF(COUNTIF($B$8:B258,B258)=1,\"_\"&\"AUTO\"&COUNTIF($V$7:V257,\"*AUTO*\"),\"\")))","v":""},"",""]
["2015-05-27","Corinne",null,null,null,null,null,null,null,null,null,null,null,null,null,null,null,null,null,null,null,{"$f":"IF(AND(C259=\"Terminé\",COUNTIF(B259,\"*Virement*\")),\"VIR\"&COUNTIF($V$7:V258,\"VIR*\"),IF(COUNTIF(B259,\"*Virement*\"),\"\",IF(COUNTIF($B$8:B259,B259)=1,\"_\"&\"AUTO\"&COUNTIF($V$7:V258,\"*AUTO*\"),\"\")))","v":""},"",""]
[null,null,null,null,null,null,null,null,null,null,null,null,null,null,null,null,null,null,null,null,null,{"$f":"IF(AND(C260=\"Terminé\",COUNTIF(B260,\"*Virement*\")),\"VIR\"&COUNTIF($V$7:V259,\"VIR*\"),IF(COUNTIF(B260,\"*Virement*\"),\"\",IF(COUNTIF($B$8:B260,B260)=1,\"_\"&\"AUTO\"&COUNTIF($V$7:V259,\"*AUTO*\"),\"\")))","v":""},null,""]
[null,null,null,null,null,null,null,null,null,null,null,null,null,null,null,null,null,null,null,null,null,{"$f":"IF(AND(C261=\"Terminé\",COUNTIF(B261,\"*Virement*\")),\"VIR\"&COUNTIF($V$7:V260,\"VIR*\"),IF(COUNTIF(B261,\"*Virement*\"),\"\",IF(COUNTIF($B$8:B261,B261)=1,\"_\"&\"AUTO\"&COUNTIF($V$7:V260,\"*AUTO*\"),\"\")))","v":""},null,""]
[null,null,null,null,null,null,null,null,null,null,null,null,null,null,null,null,null,null,null,null,null,{"$f":"IF(AND(C262=\"Terminé\",COUNTIF(B262,\"*Virement*\")),\"VIR\"&COUNTIF($V$7:V261,\"VIR*\"),IF(COUNTIF(B262,\"*Virement*\"),\"\",IF(COUNTIF($B$8:B262,B262)=1,\"_\"&\"AUTO\"&COUNTIF($V$7:V261,\"*AUTO*\"),\"\")))","v":""},null,""]
[null,null,null,null,null,null,null,null,null,null,null,null,null,null,null,null,null,null,null,null,null,{"$f":"IF(AND(C263=\"Terminé\",COUNTIF(B263,\"*Virement*\")),\"VIR\"&COUNTIF($V$7:V262,\"VIR*\"),IF(COUNTIF(B263,\"*Virement*\"),\"\",IF(COUNTIF($B$8:B263,B263)=1,\"_\"&\"AUTO\"&COUNTIF($V$7:V262,\"*AUTO*\"),\"\")))","v":""},"",""]
[null,null,null,null,null,null,null,null,null,null,null,null,null,null,null,null,null,null,null,null,null,{"$f":"IF(AND(C264=\"Terminé\",COUNTIF(B264,\"*Virement*\")),\"VIR\"&COUNTIF($V$7:V263,\"VIR*\"),IF(COUNTIF(B264,\"*Virement*\"),\"\",IF(COUNTIF($B$8:B264,B264)=1,\"_\"&\"AUTO\"&COUNTIF($V$7:V263,\"*AUTO*\"),\"\")))","v":""},"",""]
[null,null,null,null,null,null,null,null,null,null,null,null,null,null,null,null,null,null,null,null,null,{"$f":"IF(AND(C265=\"Terminé\",COUNTIF(B265,\"*Virement*\")),\"VIR\"&COUNTIF($V$7:V264,\"VIR*\"),IF(COUNTIF(B265,\"*Virement*\"),\"\",IF(COUNTIF($B$8:B265,B265)=1,\"_\"&\"AUTO\"&COUNTIF($V$7:V264,\"*AUTO*\"),\"\")))","v":""},{"$f":"IFERROR(INDEX(B:B,MATCH(\"VIR\"&ROW()-8,V:V,0)),\"\")","v":""},{"$f":"IFERROR(INDEX($B:$B,MATCH(\"*AUTO*\"&ROW()-8,$V:$V,0)),\"\")","v":""}]
[null,null,null,null,null,null,null,null,null,null,null,null,null,null,null,null,null,null,null,null,null,{"$f":"IF(AND(C266=\"Terminé\",COUNTIF(B266,\"*Virement*\")),\"VIR\"&COUNTIF($V$7:V265,\"VIR*\"),IF(COUNTIF(B266,\"*Virement*\"),\"\",IF(COUNTIF($B$8:B266,B266)=1,\"_\"&\"AUTO\"&COUNTIF($V$7:V265,\"*AUTO*\"),\"\")))","v":""},"",""]
[null,null,null,null,null,null,null,null,null,null,null,null,null,null,null,null,null,null,null,null,null,{"$f":"IF(AND(C267=\"Terminé\",COUNTIF(B267,\"*Virement*\")),\"VIR\"&COUNTIF($V$7:V266,\"VIR*\"),IF(COUNTIF(B267,\"*Virement*\"),\"\",IF(COUNTIF($B$8:B267,B267)=1,\"_\"&\"AUTO\"&COUNTIF($V$7:V266,\"*AUTO*\"),\"\")))","v":""},"",""]
[null,null,null,null,null,null,null,null,null,null,null,null,null,null,null,null,null,null,null,null,null,{"$f":"IF(AND(C268=\"Terminé\",COUNTIF(B268,\"*Virement*\")),\"VIR\"&COUNTIF($V$7:V267,\"VIR*\"),IF(COUNTIF(B268,\"*Virement*\"),\"\",IF(COUNTIF($B$8:B268,B268)=1,\"_\"&\"AUTO\"&COUNTIF($V$7:V267,\"*AUTO*\"),\"\")))","v":""},"",""]
[null,null,null,null,null,null,null,null,null,null,null,null,null,null,null,null,null,null,null,null,null,{"$f":"IF(AND(C269=\"Terminé\",COUNTIF(B269,\"*Virement*\")),\"VIR\"&COUNTIF($V$7:V268,\"VIR*\"),IF(COUNTIF(B269,\"*Virement*\"),\"\",IF(COUNTIF($B$8:B269,B269)=1,\"_\"&\"AUTO\"&COUNTIF($V$7:V268,\"*AUTO*\"),\"\")))","v":""},"",""]
[null,null,null,null,null,null,null,null,null,null,null,null,null,null,null,null,null,null,null,null,null,{"$f":"IF(AND(C270=\"Terminé\",COUNTIF(B270,\"*Virement*\")),\"VIR\"&COUNTIF($V$7:V269,\"VIR*\"),IF(COUNTIF(B270,\"*Virement*\"),\"\",IF(COUNTIF($B$8:B270,B270)=1,\"_\"&\"AUTO\"&COUNTIF($V$7:V269,\"*AUTO*\"),\"\")))","v":""},"",""]
[null,null,null,null,null,null,null,null,null,null,null,null,null,null,null,null,null,null,null,null,null,{"$f":"IF(AND(C271=\"Terminé\",COUNTIF(B271,\"*Virement*\")),\"VIR\"&COUNTIF($V$7:V270,\"VIR*\"),IF(COUNTIF(B271,\"*Virement*\"),\"\",IF(COUNTIF($B$8:B271,B271)=1,\"_\"&\"AUTO\"&COUNTIF($V$7:V270,\"*AUTO*\"),\"\")))","v":""},"",""]
[null,null,null,null,null,null,null,null,null,null,null,null,null,null,null,null,null,null,null,null,null,{"$f":"IF(AND(C272=\"Terminé\",COUNTIF(B272,\"*Virement*\")),\"VIR\"&COUNTIF($V$7:V271,\"VIR*\"),IF(COUNTIF(B272,\"*Virement*\"),\"\",IF(COUNTIF($B$8:B272,B272)=1,\"_\"&\"AUTO\"&COUNTIF($V$7:V271,\"*AUTO*\"),\"\")))","v":""},"",""]
[null,null,null,null,null,null,null,null,null,null,null,null,null,null,null,null,null,null,null,null,null,{"$f":"IF(AND(C273=\"Terminé\",COUNTIF(B273,\"*Virement*\")),\"VIR\"&COUNTIF($V$7:V272,\"VIR*\"),IF(COUNTIF(B273,\"*Virement*\"),\"\",IF(COUNTIF($B$8:B273,B273)=1,\"_\"&\"AUTO\"&COUNTIF($V$7:V272,\"*AUTO*\"),\"\")))","v":""},"",""]
[null,null,null,null,null,null,null,null,null,null,null,null,null,null,null,null,null,null,null,null,null,{"$f":"IF(AND(C274=\"Terminé\",COUNTIF(B274,\"*Virement*\")),\"VIR\"&COUNTIF($V$7:V273,\"VIR*\"),IF(COUNTIF(B274,\"*Virement*\"),\"\",IF(COUNTIF($B$8:B274,B274)=1,\"_\"&\"AUTO\"&COUNTIF($V$7:V273,\"*AUTO*\"),\"\")))","v":""},"",""]
[null,null,null,null,null,null,null,null,null,null,null,null,null,null,null,null,null,null,null,null,null,{"$f":"IF(AND(C275=\"Terminé\",COUNTIF(B275,\"*Virement*\")),\"VIR\"&COUNTIF($V$7:V274,\"VIR*\"),IF(COUNTIF(B275,\"*Virement*\"),\"\",IF(COUNTIF($B$8:B275,B275)=1,\"_\"&\"AUTO\"&COUNTIF($V$7:V274,\"*AUTO*\"),\"\")))","v":""},"",""]
[null,null,null,null,null,null,null,null,null,null,null,null,null,null,null,null,null,null,null,null,null,{"$f":"IF(AND(C276=\"Terminé\",COUNTIF(B276,\"*Virement*\")),\"VIR\"&COUNTIF($V$7:V275,\"VIR*\"),IF(COUNTIF(B276,\"*Virement*\"),\"\",IF(COUNTIF($B$8:B276,B276)=1,\"_\"&\"AUTO\"&COUNTIF($V$7:V275,\"*AUTO*\"),\"\")))","v":""},"",""]
[null,null,null,null,null,null,null,null,null,null,null,null,null,null,null,null,null,null,null,null,null,{"$f":"IF(AND(C277=\"Terminé\",COUNTIF(B277,\"*Virement*\")),\"VIR\"&COUNTIF($V$7:V276,\"VIR*\"),IF(COUNTIF(B277,\"*Virement*\"),\"\",IF(COUNTIF($B$8:B277,B277)=1,\"_\"&\"AUTO\"&COUNTIF($V$7:V276,\"*AUTO*\"),\"\")))","v":""},"",""]
[null,null,null,null,null,null,null,null,null,null,null,null,null,null,null,null,null,null,null,null,null,{"$f":"IF(AND(C278=\"Terminé\",COUNTIF(B278,\"*Virement*\")),\"VIR\"&COUNTIF($V$7:V277,\"VIR*\"),IF(COUNTIF(B278,\"*Virement*\"),\"\",IF(COUNTIF($B$8:B278,B278)=1,\"_\"&\"AUTO\"&COUNTIF($V$7:V277,\"*AUTO*\"),\"\")))","v":""},"",""]
[null,null,null,null,null,null,null,null,null,null,null,null,null,null,null,null,null,null,null,null,null,{"$f":"IF(AND(C279=\"Terminé\",COUNTIF(B279,\"*Virement*\")),\"VIR\"&COUNTIF($V$7:V278,\"VIR*\"),IF(COUNTIF(B279,\"*Virement*\"),\"\",IF(COUNTIF($B$8:B279,B279)=1,\"_\"&\"AUTO\"&COUNTIF($V$7:V278,\"*AUTO*\"),\"\")))","v":""},"",""]
[null,null,null,null,null,null,null,null,null,null,null,null,null,null,null,null,null,null,null,null,null,{"$f":"IF(AND(C280=\"Terminé\",COUNTIF(B280,\"*Virement*\")),\"VIR\"&COUNTIF($V$7:V279,\"VIR*\"),IF(COUNTIF(B280,\"*Virement*\"),\"\",IF(COUNTIF($B$8:B280,B280)=1,\"_\"&\"AUTO\"&COUNTIF($V$7:V279,\"*AUTO*\"),\"\")))","v":""},"",""]
[null,null,null,null,null,null,null,null,null,null,null,null,null,null,null,null,null,null,null,null,null,{"$f":"IF(AND(C281=\"Terminé\",COUNTIF(B281,\"*Virement*\")),\"VIR\"&COUNTIF($V$7:V280,\"VIR*\"),IF(COUNTIF(B281,\"*Virement*\"),\"\",IF(COUNTIF($B$8:B281,B281)=1,\"_\"&\"AUTO\"&COUNTIF($V$7:V280,\"*AUTO*\"),\"\")))","v":""},"",""]
[null,null,null,null,null,null,null,null,null,null,null,null,null,null,null,null,null,null,null,null,null,{"$f":"IF(AND(C282=\"Terminé\",COUNTIF(B282,\"*Virement*\")),\"VIR\"&COUNTIF($V$7:V281,\"VIR*\"),IF(COUNTIF(B282,\"*Virement*\"),\"\",IF(COUNTIF($B$8:B282,B282)=1,\"_\"&\"AUTO\"&COUNTIF($V$7:V281,\"*AUTO*\"),\"\")))","v":""},"",""]
[null,null,null,null,null,null,null,null,null,null,null,null,null,null,null,null,null,null,null,null,null,{"$f":"IF(AND(C283=\"Terminé\",COUNTIF(B283,\"*Virement*\")),\"VIR\"&COUNTIF($V$7:V282,\"VIR*\"),IF(COUNTIF(B283,\"*Virement*\"),\"\",IF(COUNTIF($B$8:B283,B283)=1,\"_\"&\"AUTO\"&COUNTIF($V$7:V282,\"*AUTO*\"),\"\")))","v":""},"",""]
[null,null,null,null,null,null,null,null,null,null,null,null,null,null,null,null,null,null,null,null,null,{"$f":"IF(AND(C284=\"Terminé\",COUNTIF(B284,\"*Virement*\")),\"VIR\"&COUNTIF($V$7:V283,\"VIR*\"),IF(COUNTIF(B284,\"*Virement*\"),\"\",IF(COUNTIF($B$8:B284,B284)=1,\"_\"&\"AUTO\"&COUNTIF($V$7:V283,\"*AUTO*\"),\"\")))","v":""},"",""]
[null,null,null,null,null,null,null,null,null,null,null,null,null,null,null,null,null,null,null,null,null,{"$f":"IF(AND(C285=\"Terminé\",COUNTIF(B285,\"*Virement*\")),\"VIR\"&COUNTIF($V$7:V284,\"VIR*\"),IF(COUNTIF(B285,\"*Virement*\"),\"\",IF(COUNTIF($B$8:B285,B285)=1,\"_\"&\"AUTO\"&COUNTIF($V$7:V284,\"*AUTO*\"),\"\")))","v":""},"",""]
[null,null,null,null,null,null,null,null,null,null,null,null,null,null,null,null,null,null,null,null,null,{"$f":"IF(AND(C286=\"Terminé\",COUNTIF(B286,\"*Virement*\")),\"VIR\"&COUNTIF($V$7:V285,\"VIR*\"),IF(COUNTIF(B286,\"*Virement*\"),\"\",IF(COUNTIF($B$8:B286,B286)=1,\"_\"&\"AUTO\"&COUNTIF($V$7:V285,\"*AUTO*\"),\"\")))","v":""},"",""]
[null,null,null,null,null,null,null,null,null,null,null,null,null,null,null,null,null,null,null,null,null,{"$f":"IF(AND(C287=\"Terminé\",COUNTIF(B287,\"*Virement*\")),\"VIR\"&COUNTIF($V$7:V286,\"VIR*\"),IF(COUNTIF(B287,\"*Virement*\"),\"\",IF(COUNTIF($B$8:B287,B287)=1,\"_\"&\"AUTO\"&COUNTIF($V$7:V286,\"*AUTO*\"),\"\")))","v":""},"",""]
[null,null,null,null,null,null,null,null,null,null,null,null,null,null,null,null,null,null,null,null,null,{"$f":"IF(AND(C288=\"Terminé\",COUNTIF(B288,\"*Virement*\")),\"VIR\"&COUNTIF($V$7:V287,\"VIR*\"),IF(COUNTIF(B288,\"*Virement*\"),\"\",IF(COUNTIF($B$8:B288,B288)=1,\"_\"&\"AUTO\"&COUNTIF($V$7:V287,\"*AUTO*\"),\"\")))","v":""},"",""]
[null,null,null,null,null,null,null,null,null,null,null,null,null,null,null,null,null,null,null,null,null,{"$f":"IF(AND(C289=\"Terminé\",COUNTIF(B289,\"*Virement*\")),\"VIR\"&COUNTIF($V$7:V288,\"VIR*\"),IF(COUNTIF(B289,\"*Virement*\"),\"\",IF(COUNTIF($B$8:B289,B289)=1,\"_\"&\"AUTO\"&COUNTIF($V$7:V288,\"*AUTO*\"),\"\")))","v":""},"",""]
[null,null,null,null,null,null,null,null,null,null,null,null,null,null,null,null,null,null,null,null,null,{"$f":"IF(AND(C290=\"Terminé\",COUNTIF(B290,\"*Virement*\")),\"VIR\"&COUNTIF($V$7:V289,\"VIR*\"),IF(COUNTIF(B290,\"*Virement*\"),\"\",IF(COUNTIF($B$8:B290,B290)=1,\"_\"&\"AUTO\"&COUNTIF($V$7:V289,\"*AUTO*\"),\"\")))","v":""},"",""]
[null,null,null,null,null,null,null,null,null,null,null,null,null,null,null,null,null,null,null,null,null,{"$f":"IF(AND(C291=\"Terminé\",COUNTIF(B291,\"*Virement*\")),\"VIR\"&COUNTIF($V$7:V290,\"VIR*\"),IF(COUNTIF(B291,\"*Virement*\"),\"\",IF(COUNTIF($B$8:B291,B291)=1,\"_\"&\"AUTO\"&COUNTIF($V$7:V290,\"*AUTO*\"),\"\")))","v":""},"",""]
[null,null,null,null,null,null,null,null,null,null,null,null,null,null,null,null,null,null,null,null,null,{"$f":"IF(AND(C292=\"Terminé\",COUNTIF(B292,\"*Virement*\")),\"VIR\"&COUNTIF($V$7:V291,\"VIR*\"),IF(COUNTIF(B292,\"*Virement*\"),\"\",IF(COUNTIF($B$8:B292,B292)=1,\"_\"&\"AUTO\"&COUNTIF($V$7:V291,\"*AUTO*\"),\"\")))","v":""},"",""]
[null,null,null,null,null,null,null,null,null,null,null,null,null,null,null,null,null,null,null,null,null,{"$f":"IF(AND(C293=\"Terminé\",COUNTIF(B293,\"*Virement*\")),\"VIR\"&COUNTIF($V$7:V292,\"VIR*\"),IF(COUNTIF(B293,\"*Virement*\"),\"\",IF(COUNTIF($B$8:B293,B293)=1,\"_\"&\"AUTO\"&COUNTIF($V$7:V292,\"*AUTO*\"),\"\")))","v":""},"",""]
[null,null,null,null,null,null,null,null,null,null,null,null,null,null,null,null,null,null,null,null,null,{"$f":"IF(AND(C294=\"Terminé\",COUNTIF(B294,\"*Virement*\")),\"VIR\"&COUNTIF($V$7:V293,\"VIR*\"),IF(COUNTIF(B294,\"*Virement*\"),\"\",IF(COUNTIF($B$8:B294,B294)=1,\"_\"&\"AUTO\"&COUNTIF($V$7:V293,\"*AUTO*\"),\"\")))","v":""},"",""]
[null,null,null,null,null,null,null,null,null,null,null,null,null,null,null,null,null,null,null,null,null,{"$f":"IF(AND(C295=\"Terminé\",COUNTIF(B295,\"*Virement*\")),\"VIR\"&COUNTIF($V$7:V294,\"VIR*\"),IF(COUNTIF(B295,\"*Virement*\"),\"\",IF(COUNTIF($B$8:B295,B295)=1,\"_\"&\"AUTO\"&COUNTIF($V$7:V294,\"*AUTO*\"),\"\")))","v":""},"",""]
[null,null,null,null,null,null,null,null,null,null,null,null,null,null,null,null,null,null,null,null,null,{"$f":"IF(AND(C296=\"Terminé\",COUNTIF(B296,\"*Virement*\")),\"VIR\"&COUNTIF($V$7:V295,\"VIR*\"),IF(COUNTIF(B296,\"*Virement*\"),\"\",IF(COUNTIF($B$8:B296,B296)=1,\"_\"&\"AUTO\"&COUNTIF($V$7:V295,\"*AUTO*\"),\"\")))","v":""},"",""]
[null,null,null,null,null,null,null,null,null,null,null,null,null,null,null,null,null,null,null,null,null,{"$f":"IF(AND(C297=\"Terminé\",COUNTIF(B297,\"*Virement*\")),\"VIR\"&COUNTIF($V$7:V296,\"VIR*\"),IF(COUNTIF(B297,\"*Virement*\"),\"\",IF(COUNTIF($B$8:B297,B297)=1,\"_\"&\"AUTO\"&COUNTIF($V$7:V296,\"*AUTO*\"),\"\")))","v":""},"",""]
[null,null,null,null,null,null,null,null,null,null,null,null,null,null,null,null,null,null,null,null,null,{"$f":"IF(AND(C298=\"Terminé\",COUNTIF(B298,\"*Virement*\")),\"VIR\"&COUNTIF($V$7:V297,\"VIR*\"),IF(COUNTIF(B298,\"*Virement*\"),\"\",IF(COUNTIF($B$8:B298,B298)=1,\"_\"&\"AUTO\"&COUNTIF($V$7:V297,\"*AUTO*\"),\"\")))","v":""},"",""]
[null,null,null,null,null,null,null,null,null,null,null,null,null,null,null,null,null,null,null,null,null,{"$f":"IF(AND(C299=\"Terminé\",COUNTIF(B299,\"*Virement*\")),\"VIR\"&COUNTIF($V$7:V298,\"VIR*\"),IF(COUNTIF(B299,\"*Virement*\"),\"\",IF(COUNTIF($B$8:B299,B299)=1,\"_\"&\"AUTO\"&COUNTIF($V$7:V298,\"*AUTO*\"),\"\")))","v":""},"",""]
[null,null,null,null,null,null,null,null,null,null,null,null,null,null,null,null,null,null,null,null,null,{"$f":"IF(AND(C300=\"Terminé\",COUNTIF(B300,\"*Virement*\")),\"VIR\"&COUNTIF($V$7:V299,\"VIR*\"),IF(COUNTIF(B300,\"*Virement*\"),\"\",IF(COUNTIF($B$8:B300,B300)=1,\"_\"&\"AUTO\"&COUNTIF($V$7:V299,\"*AUTO*\"),\"\")))","v":""},"",""]
[null,null,null,null,null,null,null,null,null,null,null,null,null,null,null,null,null,null,null,null,null,{"$f":"IF(AND(C301=\"Terminé\",COUNTIF(B301,\"*Virement*\")),\"VIR\"&COUNTIF($V$7:V300,\"VIR*\"),IF(COUNTIF(B301,\"*Virement*\"),\"\",IF(COUNTIF($B$8:B301,B301)=1,\"_\"&\"AUTO\"&COUNTIF($V$7:V300,\"*AUTO*\"),\"\")))","v":""},"",""]
[null,null,null,null,null,null,null,null,null,null,null,null,null,null,null,null,null,null,null,null,null,{"$f":"IF(AND(C302=\"Terminé\",COUNTIF(B302,\"*Virement*\")),\"VIR\"&COUNTIF($V$7:V301,\"VIR*\"),IF(COUNTIF(B302,\"*Virement*\"),\"\",IF(COUNTIF($B$8:B302,B302)=1,\"_\"&\"AUTO\"&COUNTIF($V$7:V301,\"*AUTO*\"),\"\")))","v":""},"",""]
[null,null,null,null,null,null,null,null,null,null,null,null,null,null,null,null,null,null,null,null,null,{"$f":"IF(AND(C303=\"Terminé\",COUNTIF(B303,\"*Virement*\")),\"VIR\"&COUNTIF($V$7:V302,\"VIR*\"),IF(COUNTIF(B303,\"*Virement*\"),\"\",IF(COUNTIF($B$8:B303,B303)=1,\"_\"&\"AUTO\"&COUNTIF($V$7:V302,\"*AUTO*\"),\"\")))","v":""},"",""]
[null,null,null,null,null,null,null,null,null,null,null,null,null,null,null,null,null,null,null,null,null,{"$f":"IF(AND(C304=\"Terminé\",COUNTIF(B304,\"*Virement*\")),\"VIR\"&COUNTIF($V$7:V303,\"VIR*\"),IF(COUNTIF(B304,\"*Virement*\"),\"\",IF(COUNTIF($B$8:B304,B304)=1,\"_\"&\"AUTO\"&COUNTIF($V$7:V303,\"*AUTO*\"),\"\")))","v":""},"",""]
[null,null,null,null,null,null,null,null,null,null,null,null,null,null,null,null,null,null,null,null,null,{"$f":"IF(AND(C305=\"Terminé\",COUNTIF(B305,\"*Virement*\")),\"VIR\"&COUNTIF($V$7:V304,\"VIR*\"),IF(COUNTIF(B305,\"*Virement*\"),\"\",IF(COUNTIF($B$8:B305,B305)=1,\"_\"&\"AUTO\"&COUNTIF($V$7:V304,\"*AUTO*\"),\"\")))","v":""},"",""]
[null,null,null,null,null,null,null,null,null,null,null,null,null,null,null,null,null,null,null,null,null,{"$f":"IF(AND(C306=\"Terminé\",COUNTIF(B306,\"*Virement*\")),\"VIR\"&COUNTIF($V$7:V305,\"VIR*\"),IF(COUNTIF(B306,\"*Virement*\"),\"\",IF(COUNTIF($B$8:B306,B306)=1,\"_\"&\"AUTO\"&COUNTIF($V$7:V305,\"*AUTO*\"),\"\")))","v":""},"",""]
[null,null,null,null,null,null,null,null,null,null,null,null,null,null,null,null,null,null,null,null,null,{"$f":"IF(AND(C307=\"Terminé\",COUNTIF(B307,\"*Virement*\")),\"VIR\"&COUNTIF($V$7:V306,\"VIR*\"),IF(COUNTIF(B307,\"*Virement*\"),\"\",IF(COUNTIF($B$8:B307,B307)=1,\"_\"&\"AUTO\"&COUNTIF($V$7:V306,\"*AUTO*\"),\"\")))","v":""},"",""]
[null,null,null,null,null,null,null,null,null,null,null,null,null,null,null,null,null,null,null,null,null,{"$f":"IF(AND(C308=\"Terminé\",COUNTIF(B308,\"*Virement*\")),\"VIR\"&COUNTIF($V$7:V307,\"VIR*\"),IF(COUNTIF(B308,\"*Virement*\"),\"\",IF(COUNTIF($B$8:B308,B308)=1,\"_\"&\"AUTO\"&COUNTIF($V$7:V307,\"*AUTO*\"),\"\")))","v":""},"",""]
[null,null,null,null,null,null,null,null,null,null,null,null,null,null,null,null,null,null,null,null,null,{"$f":"IF(AND(C309=\"Terminé\",COUNTIF(B309,\"*Virement*\")),\"VIR\"&COUNTIF($V$7:V308,\"VIR*\"),IF(COUNTIF(B309,\"*Virement*\"),\"\",IF(COUNTIF($B$8:B309,B309)=1,\"_\"&\"AUTO\"&COUNTIF($V$7:V308,\"*AUTO*\"),\"\")))","v":""},"",""]
[null,null,null,null,null,null,null,null,null,null,null,null,null,null,null,null,null,null,null,null,null,{"$f":"IF(AND(C310=\"Terminé\",COUNTIF(B310,\"*Virement*\")),\"VIR\"&COUNTIF($V$7:V309,\"VIR*\"),IF(COUNTIF(B310,\"*Virement*\"),\"\",IF(COUNTIF($B$8:B310,B310)=1,\"_\"&\"AUTO\"&COUNTIF($V$7:V309,\"*AUTO*\"),\"\")))","v":""},"",""]
[null,null,null,null,null,null,null,null,null,null,null,null,null,null,null,null,null,null,null,null,null,{"$f":"IF(AND(C311=\"Terminé\",COUNTIF(B311,\"*Virement*\")),\"VIR\"&COUNTIF($V$7:V310,\"VIR*\"),IF(COUNTIF(B311,\"*Virement*\"),\"\",IF(COUNTIF($B$8:B311,B311)=1,\"_\"&\"AUTO\"&COUNTIF($V$7:V310,\"*AUTO*\"),\"\")))","v":""},"",""]
[null,null,null,null,null,null,null,null,null,null,null,null,null,null,null,null,null,null,null,null,null,{"$f":"IF(AND(C312=\"Terminé\",COUNTIF(B312,\"*Virement*\")),\"VIR\"&COUNTIF($V$7:V311,\"VIR*\"),IF(COUNTIF(B312,\"*Virement*\"),\"\",IF(COUNTIF($B$8:B312,B312)=1,\"_\"&\"AUTO\"&COUNTIF($V$7:V311,\"*AUTO*\"),\"\")))","v":""},"",""]
[null,null,null,null,null,null,null,null,null,null,null,null,null,null,null,null,null,null,null,null,null,{"$f":"IF(AND(C313=\"Terminé\",COUNTIF(B313,\"*Virement*\")),\"VIR\"&COUNTIF($V$7:V312,\"VIR*\"),IF(COUNTIF(B313,\"*Virement*\"),\"\",IF(COUNTIF($B$8:B313,B313)=1,\"_\"&\"AUTO\"&COUNTIF($V$7:V312,\"*AUTO*\"),\"\")))","v":""},"",""]
[null,null,null,null,null,null,null,null,null,null,null,null,null,null,null,null,null,null,null,null,null,{"$f":"IF(AND(C314=\"Terminé\",COUNTIF(B314,\"*Virement*\")),\"VIR\"&COUNTIF($V$7:V313,\"VIR*\"),IF(COUNTIF(B314,\"*Virement*\"),\"\",IF(COUNTIF($B$8:B314,B314)=1,\"_\"&\"AUTO\"&COUNTIF($V$7:V313,\"*AUTO*\"),\"\")))","v":""},"",""]
[null,null,null,null,null,null,null,null,null,null,null,null,null,null,null,null,null,null,null,null,null,{"$f":"IF(AND(C315=\"Terminé\",COUNTIF(B315,\"*Virement*\")),\"VIR\"&COUNTIF($V$7:V314,\"VIR*\"),IF(COUNTIF(B315,\"*Virement*\"),\"\",IF(COUNTIF($B$8:B315,B315)=1,\"_\"&\"AUTO\"&COUNTIF($V$7:V314,\"*AUTO*\"),\"\")))","v":""},"",""]
[null,null,null,null,null,null,null,null,null,null,null,null,null,null,null,null,null,null,null,null,null,{"$f":"IF(AND(C316=\"Terminé\",COUNTIF(B316,\"*Virement*\")),\"VIR\"&COUNTIF($V$7:V315,\"VIR*\"),IF(COUNTIF(B316,\"*Virement*\"),\"\",IF(COUNTIF($B$8:B316,B316)=1,\"_\"&\"AUTO\"&COUNTIF($V$7:V315,\"*AUTO*\"),\"\")))","v":""},"",""]
[null,null,null,null,null,null,null,null,null,null,null,null,null,null,null,null,null,null,null,null,null,{"$f":"IF(AND(C317=\"Terminé\",COUNTIF(B317,\"*Virement*\")),\"VIR\"&COUNTIF($V$7:V316,\"VIR*\"),IF(COUNTIF(B317,\"*Virement*\"),\"\",IF(COUNTIF($B$8:B317,B317)=1,\"_\"&\"AUTO\"&COUNTIF($V$7:V316,\"*AUTO*\"),\"\")))","v":""},"",""]
[null,null,null,null,null,null,null,null,null,null,null,null,null,null,null,null,null,null,null,null,null,{"$f":"IF(AND(C318=\"Terminé\",COUNTIF(B318,\"*Virement*\")),\"VIR\"&COUNTIF($V$7:V317,\"VIR*\"),IF(COUNTIF(B318,\"*Virement*\"),\"\",IF(COUNTIF($B$8:B318,B318)=1,\"_\"&\"AUTO\"&COUNTIF($V$7:V317,\"*AUTO*\"),\"\")))","v":""},"",""]
[null,null,null,null,null,null,null,null,null,null,null,null,null,null,null,null,null,null,null,null,null,{"$f":"IF(AND(C319=\"Terminé\",COUNTIF(B319,\"*Virement*\")),\"VIR\"&COUNTIF($V$7:V318,\"VIR*\"),IF(COUNTIF(B319,\"*Virement*\"),\"\",IF(COUNTIF($B$8:B319,B319)=1,\"_\"&\"AUTO\"&COUNTIF($V$7:V318,\"*AUTO*\"),\"\")))","v":""},"",""]
[null,null,null,null,null,null,null,null,null,null,null,null,null,null,null,null,null,null,null,null,null,{"$f":"IF(AND(C320=\"Terminé\",COUNTIF(B320,\"*Virement*\")),\"VIR\"&COUNTIF($V$7:V319,\"VIR*\"),IF(COUNTIF(B320,\"*Virement*\"),\"\",IF(COUNTIF($B$8:B320,B320)=1,\"_\"&\"AUTO\"&COUNTIF($V$7:V319,\"*AUTO*\"),\"\")))","v":""},"",""]
[null,null,null,null,null,null,null,null,null,null,null,null,null,null,null,null,null,null,null,null,null,{"$f":"IF(AND(C321=\"Terminé\",COUNTIF(B321,\"*Virement*\")),\"VIR\"&COUNTIF($V$7:V320,\"VIR*\"),IF(COUNTIF(B321,\"*Virement*\"),\"\",IF(COUNTIF($B$8:B321,B321)=1,\"_\"&\"AUTO\"&COUNTIF($V$7:V320,\"*AUTO*\"),\"\")))","v":""},"",""]
[null,null,null,null,null,null,null,null,null,null,null,null,null,null,null,null,null,null,null,null,null,{"$f":"IF(AND(C322=\"Terminé\",COUNTIF(B322,\"*Virement*\")),\"VIR\"&COUNTIF($V$7:V321,\"VIR*\"),IF(COUNTIF(B322,\"*Virement*\"),\"\",IF(COUNTIF($B$8:B322,B322)=1,\"_\"&\"AUTO\"&COUNTIF($V$7:V321,\"*AUTO*\"),\"\")))","v":""},"",""]
[null,null,null,null,null,null,null,null,null,null,null,null,null,null,null,null,null,null,null,null,null,{"$f":"IF(AND(C323=\"Terminé\",COUNTIF(B323,\"*Virement*\")),\"VIR\"&COUNTIF($V$7:V322,\"VIR*\"),IF(COUNTIF(B323,\"*Virement*\"),\"\",IF(COUNTIF($B$8:B323,B323)=1,\"_\"&\"AUTO\"&COUNTIF($V$7:V322,\"*AUTO*\"),\"\")))","v":""},"",""]
[null,null,null,null,null,null,null,null,null,null,null,null,null,null,null,null,null,null,null,null,null,{"$f":"IF(AND(C324=\"Terminé\",COUNTIF(B324,\"*Virement*\")),\"VIR\"&COUNTIF($V$7:V323,\"VIR*\"),IF(COUNTIF(B324,\"*Virement*\"),\"\",IF(COUNTIF($B$8:B324,B324)=1,\"_\"&\"AUTO\"&COUNTIF($V$7:V323,\"*AUTO*\"),\"\")))","v":""},"",""]
[null,null,null,null,null,null,null,null,null,null,null,null,null,null,null,null,null,null,null,null,null,{"$f":"IF(AND(C325=\"Terminé\",COUNTIF(B325,\"*Virement*\")),\"VIR\"&COUNTIF($V$7:V324,\"VIR*\"),IF(COUNTIF(B325,\"*Virement*\"),\"\",IF(COUNTIF($B$8:B325,B325)=1,\"_\"&\"AUTO\"&COUNTIF($V$7:V324,\"*AUTO*\"),\"\")))","v":""},"",""]
[null,null,null,null,null,null,null,null,null,null,null,null,null,null,null,null,null,null,null,null,null,{"$f":"IF(AND(C326=\"Terminé\",COUNTIF(B326,\"*Virement*\")),\"VIR\"&COUNTIF($V$7:V325,\"VIR*\"),IF(COUNTIF(B326,\"*Virement*\"),\"\",IF(COUNTIF($B$8:B326,B326)=1,\"_\"&\"AUTO\"&COUNTIF($V$7:V325,\"*AUTO*\"),\"\")))","v":""},"",""]
[null,null,null,null,null,null,null,null,null,null,null,null,null,null,null,null,null,null,null,null,null,{"$f":"IF(AND(C327=\"Terminé\",COUNTIF(B327,\"*Virement*\")),\"VIR\"&COUNTIF($V$7:V326,\"VIR*\"),IF(COUNTIF(B327,\"*Virement*\"),\"\",IF(COUNTIF($B$8:B327,B327)=1,\"_\"&\"AUTO\"&COUNTIF($V$7:V326,\"*AUTO*\"),\"\")))","v":""},"",""]
[null,null,null,null,null,null,null,null,null,null,null,null,null,null,null,null,null,null,null,null,null,{"$f":"IF(AND(C328=\"Terminé\",COUNTIF(B328,\"*Virement*\")),\"VIR\"&COUNTIF($V$7:V327,\"VIR*\"),IF(COUNTIF(B328,\"*Virement*\"),\"\",IF(COUNTIF($B$8:B328,B328)=1,\"_\"&\"AUTO\"&COUNTIF($V$7:V327,\"*AUTO*\"),\"\")))","v":""},"",""]
[null,null,null,null,null,null,null,null,null,null,null,null,null,null,null,null,null,null,null,null,null,{"$f":"IF(AND(C329=\"Terminé\",COUNTIF(B329,\"*Virement*\")),\"VIR\"&COUNTIF($V$7:V328,\"VIR*\"),IF(COUNTIF(B329,\"*Virement*\"),\"\",IF(COUNTIF($B$8:B329,B329)=1,\"_\"&\"AUTO\"&COUNTIF($V$7:V328,\"*AUTO*\"),\"\")))","v":""},{"$f":"IFERROR(INDEX(B:B,MATCH(\"VIR\"&ROW()-8,V:V,0)),\"\")","v":""},{"$f":"IFERROR(INDEX($B:$B,MATCH(\"*AUTO*\"&ROW()-8,$V:$V,0)),\"\")","v":""}]
[null,null,null,null,null,null,null,null,null,null,null,null,null,null,null,null,null,null,null,null,null,{"$f":"IF(AND(C330=\"Terminé\",COUNTIF(B330,\"*Virement*\")),\"VIR\"&COUNTIF($V$7:V329,\"VIR*\"),IF(COUNTIF(B330,\"*Virement*\"),\"\",IF(COUNTIF($B$8:B330,B330)=1,\"_\"&\"AUTO\"&COUNTIF($V$7:V329,\"*AUTO*\"),\"\")))","v":""},"",""]
[null,null,null,null,null,null,null,null,null,null,null,null,null,null,null,null,null,null,null,null,null,{"$f":"IF(AND(C331=\"Terminé\",COUNTIF(B331,\"*Virement*\")),\"VIR\"&COUNTIF($V$7:V330,\"VIR*\"),IF(COUNTIF(B331,\"*Virement*\"),\"\",IF(COUNTIF($B$8:B331,B331)=1,\"_\"&\"AUTO\"&COUNTIF($V$7:V330,\"*AUTO*\"),\"\")))","v":""},"",""]
[null,null,null,null,null,null,null,null,null,null,null,null,null,null,null,null,null,null,null,null,null,{"$f":"IF(AND(C332=\"Terminé\",COUNTIF(B332,\"*Virement*\")),\"VIR\"&COUNTIF($V$7:V331,\"VIR*\"),IF(COUNTIF(B332,\"*Virement*\"),\"\",IF(COUNTIF($B$8:B332,B332)=1,\"_\"&\"AUTO\"&COUNTIF($V$7:V331,\"*AUTO*\"),\"\")))","v":""},"",""]
[null,null,null,null,null,null,null,null,null,null,null,null,null,null,null,null,null,null,null,null,null,{"$f":"IF(AND(C333=\"Terminé\",COUNTIF(B333,\"*Virement*\")),\"VIR\"&COUNTIF($V$7:V332,\"VIR*\"),IF(COUNTIF(B333,\"*Virement*\"),\"\",IF(COUNTIF($B$8:B333,B333)=1,\"_\"&\"AUTO\"&COUNTIF($V$7:V332,\"*AUTO*\"),\"\")))","v":""},"",""]
[null,null,null,null,null,null,null,null,null,null,null,null,null,null,null,null,null,null,null,null,null,{"$f":"IF(AND(C334=\"Terminé\",COUNTIF(B334,\"*Virement*\")),\"VIR\"&COUNTIF($V$7:V333,\"VIR*\"),IF(COUNTIF(B334,\"*Virement*\"),\"\",IF(COUNTIF($B$8:B334,B334)=1,\"_\"&\"AUTO\"&COUNTIF($V$7:V333,\"*AUTO*\"),\"\")))","v":""},"",""]
[null,null,null,null,null,null,null,null,null,null,null,null,null,null,null,null,null,null,null,null,null,{"$f":"IF(AND(C335=\"Terminé\",COUNTIF(B335,\"*Virement*\")),\"VIR\"&COUNTIF($V$7:V334,\"VIR*\"),IF(COUNTIF(B335,\"*Virement*\"),\"\",IF(COUNTIF($B$8:B335,B335)=1,\"_\"&\"AUTO\"&COUNTIF($V$7:V334,\"*AUTO*\"),\"\")))","v":""},"",""]
[null,null,null,null,null,null,null,null,null,null,null,null,null,null,null,null,null,null,null,null,null,{"$f":"IF(AND(C336=\"Terminé\",COUNTIF(B336,\"*Virement*\")),\"VIR\"&COUNTIF($V$7:V335,\"VIR*\"),IF(COUNTIF(B336,\"*Virement*\"),\"\",IF(COUNTIF($B$8:B336,B336)=1,\"_\"&\"AUTO\"&COUNTIF($V$7:V335,\"*AUTO*\"),\"\")))","v":""},"",""]
[null,null,null,null,null,null,null,null,null,null,null,null,null,null,null,null,null,null,null,null,null,{"$f":"IF(AND(C337=\"Terminé\",COUNTIF(B337,\"*Virement*\")),\"VIR\"&COUNTIF($V$7:V336,\"VIR*\"),IF(COUNTIF(B337,\"*Virement*\"),\"\",IF(COUNTIF($B$8:B337,B337)=1,\"_\"&\"AUTO\"&COUNTIF($V$7:V336,\"*AUTO*\"),\"\")))","v":""},"",""]
[null,null,null,null,null,null,null,null,null,null,null,null,null,null,null,null,null,null,null,null,null,{"$f":"IF(AND(C338=\"Terminé\",COUNTIF(B338,\"*Virement*\")),\"VIR\"&COUNTIF($V$7:V337,\"VIR*\"),IF(COUNTIF(B338,\"*Virement*\"),\"\",IF(COUNTIF($B$8:B338,B338)=1,\"_\"&\"AUTO\"&COUNTIF($V$7:V337,\"*AUTO*\"),\"\")))","v":""},"",""]
[null,null,null,null,null,null,null,null,null,null,null,null,null,null,null,null,null,null,null,null,null,{"$f":"IF(AND(C339=\"Terminé\",COUNTIF(B339,\"*Virement*\")),\"VIR\"&COUNTIF($V$7:V338,\"VIR*\"),IF(COUNTIF(B339,\"*Virement*\"),\"\",IF(COUNTIF($B$8:B339,B339)=1,\"_\"&\"AUTO\"&COUNTIF($V$7:V338,\"*AUTO*\"),\"\")))","v":""},"",""]
[null,null,null,null,null,null,null,null,null,null,null,null,null,null,null,null,null,null,null,null,null,{"$f":"IF(AND(C340=\"Terminé\",COUNTIF(B340,\"*Virement*\")),\"VIR\"&COUNTIF($V$7:V339,\"VIR*\"),IF(COUNTIF(B340,\"*Virement*\"),\"\",IF(COUNTIF($B$8:B340,B340)=1,\"_\"&\"AUTO\"&COUNTIF($V$7:V339,\"*AUTO*\"),\"\")))","v":""},"",""]
[null,null,null,null,null,null,null,null,null,null,null,null,null,null,null,null,null,null,null,null,null,{"$f":"IF(AND(C341=\"Terminé\",COUNTIF(B341,\"*Virement*\")),\"VIR\"&COUNTIF($V$7:V340,\"VIR*\"),IF(COUNTIF(B341,\"*Virement*\"),\"\",IF(COUNTIF($B$8:B341,B341)=1,\"_\"&\"AUTO\"&COUNTIF($V$7:V340,\"*AUTO*\"),\"\")))","v":""},"",""]
[null,null,null,null,null,null,null,null,null,null,null,null,null,null,null,null,null,null,null,null,null,{"$f":"IF(AND(C342=\"Terminé\",COUNTIF(B342,\"*Virement*\")),\"VIR\"&COUNTIF($V$7:V341,\"VIR*\"),IF(COUNTIF(B342,\"*Virement*\"),\"\",IF(COUNTIF($B$8:B342,B342)=1,\"_\"&\"AUTO\"&COUNTIF($V$7:V341,\"*AUTO*\"),\"\")))","v":""},"",""]
[null,null,null,null,null,null,null,null,null,null,null,null,null,null,null,null,null,null,null,null,null,{"$f":"IF(AND(C343=\"Terminé\",COUNTIF(B343,\"*Virement*\")),\"VIR\"&COUNTIF($V$7:V342,\"VIR*\"),IF(COUNTIF(B343,\"*Virement*\"),\"\",IF(COUNTIF($B$8:B343,B343)=1,\"_\"&\"AUTO\"&COUNTIF($V$7:V342,\"*AUTO*\"),\"\")))","v":""},"",""]
[null,null,null,null,null,null,null,null,null,null,null,null,null,null,null,null,null,null,null,null,null,{"$f":"IF(AND(C344=\"Terminé\",COUNTIF(B344,\"*Virement*\")),\"VIR\"&COUNTIF($V$7:V343,\"VIR*\"),IF(COUNTIF(B344,\"*Virement*\"),\"\",IF(COUNTIF($B$8:B344,B344)=1,\"_\"&\"AUTO\"&COUNTIF($V$7:V343,\"*AUTO*\"),\"\")))","v":""},"",""]
[null,null,null,null,null,null,null,null,null,null,null,null,null,null,null,null,null,null,null,null,null,{"$f":"IF(AND(C345=\"Terminé\",COUNTIF(B345,\"*Virement*\")),\"VIR\"&COUNTIF($V$7:V344,\"VIR*\"),IF(COUNTIF(B345,\"*Virement*\"),\"\",IF(COUNTIF($B$8:B345,B345)=1,\"_\"&\"AUTO\"&COUNTIF($V$7:V344,\"*AUTO*\"),\"\")))","v":""},"",""]
[null,null,null,null,null,null,null,null,null,null,null,null,null,null,null,null,null,null,null,null,null,{"$f":"IF(AND(C346=\"Terminé\",COUNTIF(B346,\"*Virement*\")),\"VIR\"&COUNTIF($V$7:V345,\"VIR*\"),IF(COUNTIF(B346,\"*Virement*\"),\"\",IF(COUNTIF($B$8:B346,B346)=1,\"_\"&\"AUTO\"&COUNTIF($V$7:V345,\"*AUTO*\"),\"\")))","v":""},"",""]
[null,null,null,null,null,null,null,null,null,null,null,null,null,null,null,null,null,null,null,null,null,{"$f":"IF(AND(C347=\"Terminé\",COUNTIF(B347,\"*Virement*\")),\"VIR\"&COUNTIF($V$7:V346,\"VIR*\"),IF(COUNTIF(B347,\"*Virement*\"),\"\",IF(COUNTIF($B$8:B347,B347)=1,\"_\"&\"AUTO\"&COUNTIF($V$7:V346,\"*AUTO*\"),\"\")))","v":""},"",""]
[null,null,null,null,null,null,null,null,null,null,null,null,null,null,null,null,null,null,null,null,null,{"$f":"IF(AND(C348=\"Terminé\",COUNTIF(B348,\"*Virement*\")),\"VIR\"&COUNTIF($V$7:V347,\"VIR*\"),IF(COUNTIF(B348,\"*Virement*\"),\"\",IF(COUNTIF($B$8:B348,B348)=1,\"_\"&\"AUTO\"&COUNTIF($V$7:V347,\"*AUTO*\"),\"\")))","v":""},"",""]
[null,null,null,null,null,null,null,null,null,null,null,null,null,null,null,null,null,null,null,null,null,{"$f":"IF(AND(C349=\"Terminé\",COUNTIF(B349,\"*Virement*\")),\"VIR\"&COUNTIF($V$7:V348,\"VIR*\"),IF(COUNTIF(B349,\"*Virement*\"),\"\",IF(COUNTIF($B$8:B349,B349)=1,\"_\"&\"AUTO\"&COUNTIF($V$7:V348,\"*AUTO*\"),\"\")))","v":""},"",""]
[null,null,null,null,null,null,null,null,null,null,null,null,null,null,null,null,null,null,null,null,null,{"$f":"IF(AND(C350=\"Terminé\",COUNTIF(B350,\"*Virement*\")),\"VIR\"&COUNTIF($V$7:V349,\"VIR*\"),IF(COUNTIF(B350,\"*Virement*\"),\"\",IF(COUNTIF($B$8:B350,B350)=1,\"_\"&\"AUTO\"&COUNTIF($V$7:V349,\"*AUTO*\"),\"\")))","v":""},"",""]
[null,null,null,null,null,null,null,null,null,null,null,null,null,null,null,null,null,null,null,null,null,{"$f":"IF(AND(C351=\"Terminé\",COUNTIF(B351,\"*Virement*\")),\"VIR\"&COUNTIF($V$7:V350,\"VIR*\"),IF(COUNTIF(B351,\"*Virement*\"),\"\",IF(COUNTIF($B$8:B351,B351)=1,\"_\"&\"AUTO\"&COUNTIF($V$7:V350,\"*AUTO*\"),\"\")))","v":""},"",""]
[null,null,null,null,null,null,null,null,null,null,null,null,null,null,null,null,null,null,null,null,null,{"$f":"IF(AND(C352=\"Terminé\",COUNTIF(B352,\"*Virement*\")),\"VIR\"&COUNTIF($V$7:V351,\"VIR*\"),IF(COUNTIF(B352,\"*Virement*\"),\"\",IF(COUNTIF($B$8:B352,B352)=1,\"_\"&\"AUTO\"&COUNTIF($V$7:V351,\"*AUTO*\"),\"\")))","v":""},"",""]
[null,null,null,null,null,null,null,null,null,null,null,null,null,null,null,null,null,null,null,null,null,{"$f":"IF(AND(C353=\"Terminé\",COUNTIF(B353,\"*Virement*\")),\"VIR\"&COUNTIF($V$7:V352,\"VIR*\"),IF(COUNTIF(B353,\"*Virement*\"),\"\",IF(COUNTIF($B$8:B353,B353)=1,\"_\"&\"AUTO\"&COUNTIF($V$7:V352,\"*AUTO*\"),\"\")))","v":""},"",""]
[null,null,null,null,null,null,null,null,null,null,null,null,null,null,null,null,null,null,null,null,null,{"$f":"IF(AND(C354=\"Terminé\",COUNTIF(B354,\"*Virement*\")),\"VIR\"&COUNTIF($V$7:V353,\"VIR*\"),IF(COUNTIF(B354,\"*Virement*\"),\"\",IF(COUNTIF($B$8:B354,B354)=1,\"_\"&\"AUTO\"&COUNTIF($V$7:V353,\"*AUTO*\"),\"\")))","v":""},"",""]
[null,null,null,null,null,null,null,null,null,null,null,null,null,null,null,null,null,null,null,null,null,{"$f":"IF(AND(C355=\"Terminé\",COUNTIF(B355,\"*Virement*\")),\"VIR\"&COUNTIF($V$7:V354,\"VIR*\"),IF(COUNTIF(B355,\"*Virement*\"),\"\",IF(COUNTIF($B$8:B355,B355)=1,\"_\"&\"AUTO\"&COUNTIF($V$7:V354,\"*AUTO*\"),\"\")))","v":""},"",""]
[null,null,null,null,null,null,null,null,null,null,null,null,null,null,null,null,null,null,null,null,null,{"$f":"IF(AND(C356=\"Terminé\",COUNTIF(B356,\"*Virement*\")),\"VIR\"&COUNTIF($V$7:V355,\"VIR*\"),IF(COUNTIF(B356,\"*Virement*\"),\"\",IF(COUNTIF($B$8:B356,B356)=1,\"_\"&\"AUTO\"&COUNTIF($V$7:V355,\"*AUTO*\"),\"\")))","v":""},"",""]
[null,null,null,null,null,null,null,null,null,null,null,null,null,null,null,null,null,null,null,null,null,{"$f":"IF(AND(C357=\"Terminé\",COUNTIF(B357,\"*Virement*\")),\"VIR\"&COUNTIF($V$7:V356,\"VIR*\"),IF(COUNTIF(B357,\"*Virement*\"),\"\",IF(COUNTIF($B$8:B357,B357)=1,\"_\"&\"AUTO\"&COUNTIF($V$7:V356,\"*AUTO*\"),\"\")))","v":""},"",""]
[null,null,null,null,null,null,null,null,null,null,null,null,null,null,null,null,null,null,null,null,null,{"$f":"IF(AND(C358=\"Terminé\",COUNTIF(B358,\"*Virement*\")),\"VIR\"&COUNTIF($V$7:V357,\"VIR*\"),IF(COUNTIF(B358,\"*Virement*\"),\"\",IF(COUNTIF($B$8:B358,B358)=1,\"_\"&\"AUTO\"&COUNTIF($V$7:V357,\"*AUTO*\"),\"\")))","v":""},"",""]
[null,null,null,null,null,null,null,null,null,null,null,null,null,null,null,null,null,null,null,null,null,{"$f":"IF(AND(C359=\"Terminé\",COUNTIF(B359,\"*Virement*\")),\"VIR\"&COUNTIF($V$7:V358,\"VIR*\"),IF(COUNTIF(B359,\"*Virement*\"),\"\",IF(COUNTIF($B$8:B359,B359)=1,\"_\"&\"AUTO\"&COUNTIF($V$7:V358,\"*AUTO*\"),\"\")))","v":""},"",""]
[null,null,null,null,null,null,null,null,null,null,null,null,null,null,null,null,null,null,null,null,null,{"$f":"IF(AND(C360=\"Terminé\",COUNTIF(B360,\"*Virement*\")),\"VIR\"&COUNTIF($V$7:V359,\"VIR*\"),IF(COUNTIF(B360,\"*Virement*\"),\"\",IF(COUNTIF($B$8:B360,B360)=1,\"_\"&\"AUTO\"&COUNTIF($V$7:V359,\"*AUTO*\"),\"\")))","v":""},"",""]
[null,null,null,null,null,null,null,null,null,null,null,null,null,null,null,null,null,null,null,null,null,{"$f":"IF(AND(C361=\"Terminé\",COUNTIF(B361,\"*Virement*\")),\"VIR\"&COUNTIF($V$7:V360,\"VIR*\"),IF(COUNTIF(B361,\"*Virement*\"),\"\",IF(COUNTIF($B$8:B361,B361)=1,\"_\"&\"AUTO\"&COUNTIF($V$7:V360,\"*AUTO*\"),\"\")))","v":""},"",""]
[null,null,null,null,null,null,null,null,null,null,null,null,null,null,null,null,null,null,null,null,null,{"$f":"IF(AND(C362=\"Terminé\",COUNTIF(B362,\"*Virement*\")),\"VIR\"&COUNTIF($V$7:V361,\"VIR*\"),IF(COUNTIF(B362,\"*Virement*\"),\"\",IF(COUNTIF($B$8:B362,B362)=1,\"_\"&\"AUTO\"&COUNTIF($V$7:V361,\"*AUTO*\"),\"\")))","v":""},"",""]
[null,null,null,null,null,null,null,null,null,null,null,null,null,null,null,null,null,null,null,null,null,{"$f":"IF(AND(C363=\"Terminé\",COUNTIF(B363,\"*Virement*\")),\"VIR\"&COUNTIF($V$7:V362,\"VIR*\"),IF(COUNTIF(B363,\"*Virement*\"),\"\",IF(COUNTIF($B$8:B363,B363)=1,\"_\"&\"AUTO\"&COUNTIF($V$7:V362,\"*AUTO*\"),\"\")))","v":""},"",""]
[null,null,null,null,null,null,null,null,null,null,null,null,null,null,null,null,null,null,null,null,null,{"$f":"IF(AND(C364=\"Terminé\",COUNTIF(B364,\"*Virement*\")),\"VIR\"&COUNTIF($V$7:V363,\"VIR*\"),IF(COUNTIF(B364,\"*Virement*\"),\"\",IF(COUNTIF($B$8:B364,B364)=1,\"_\"&\"AUTO\"&COUNTIF($V$7:V363,\"*AUTO*\"),\"\")))","v":""},"",""]
[null,null,null,null,null,null,null,null,null,null,null,null,null,null,null,null,null,null,null,null,null,{"$f":"IF(AND(C365=\"Terminé\",COUNTIF(B365,\"*Virement*\")),\"VIR\"&COUNTIF($V$7:V364,\"VIR*\"),IF(COUNTIF(B365,\"*Virement*\"),\"\",IF(COUNTIF($B$8:B365,B365)=1,\"_\"&\"AUTO\"&COUNTIF($V$7:V364,\"*AUTO*\"),\"\")))","v":""},"",""]
[null,null,null,null,null,null,null,null,null,null,null,null,null,null,null,null,null,null,null,null,null,{"$f":"IF(AND(C366=\"Terminé\",COUNTIF(B366,\"*Virement*\")),\"VIR\"&COUNTIF($V$7:V365,\"VIR*\"),IF(COUNTIF(B366,\"*Virement*\"),\"\",IF(COUNTIF($B$8:B366,B366)=1,\"_\"&\"AUTO\"&COUNTIF($V$7:V365,\"*AUTO*\"),\"\")))","v":""},"",""]
[null,null,null,null,null,null,null,null,null,null,null,null,null,null,null,null,null,null,null,null,null,{"$f":"IF(AND(C367=\"Terminé\",COUNTIF(B367,\"*Virement*\")),\"VIR\"&COUNTIF($V$7:V366,\"VIR*\"),IF(COUNTIF(B367,\"*Virement*\"),\"\",IF(COUNTIF($B$8:B367,B367)=1,\"_\"&\"AUTO\"&COUNTIF($V$7:V366,\"*AUTO*\"),\"\")))","v":""},"",""]
[null,null,null,null,null,null,null,null,null,null,null,null,null,null,null,null,null,null,null,null,null,{"$f":"IF(AND(C368=\"Terminé\",COUNTIF(B368,\"*Virement*\")),\"VIR\"&COUNTIF($V$7:V367,\"VIR*\"),IF(COUNTIF(B368,\"*Virement*\"),\"\",IF(COUNTIF($B$8:B368,B368)=1,\"_\"&\"AUTO\"&COUNTIF($V$7:V367,\"*AUTO*\"),\"\")))","v":""},"",""]
[null,null,null,null,null,null,null,null,null,null,null,null,null,null,null,null,null,null,null,null,null,{"$f":"IF(AND(C369=\"Terminé\",COUNTIF(B369,\"*Virement*\")),\"VIR\"&COUNTIF($V$7:V368,\"VIR*\"),IF(COUNTIF(B369,\"*Virement*\"),\"\",IF(COUNTIF($B$8:B369,B369)=1,\"_\"&\"AUTO\"&COUNTIF($V$7:V368,\"*AUTO*\"),\"\")))","v":""},"",""]
[null,null,null,null,null,null,null,null,null,null,null,null,null,null,null,null,null,null,null,null,null,{"$f":"IF(AND(C370=\"Terminé\",COUNTIF(B370,\"*Virement*\")),\"VIR\"&COUNTIF($V$7:V369,\"VIR*\"),IF(COUNTIF(B370,\"*Virement*\"),\"\",IF(COUNTIF($B$8:B370,B370)=1,\"_\"&\"AUTO\"&COUNTIF($V$7:V369,\"*AUTO*\"),\"\")))","v":""},"",""]
[null,null,null,null,null,null,null,null,null,null,null,null,null,null,null,null,null,null,null,null,null,{"$f":"IF(AND(C371=\"Terminé\",COUNTIF(B371,\"*Virement*\")),\"VIR\"&COUNTIF($V$7:V370,\"VIR*\"),IF(COUNTIF(B371,\"*Virement*\"),\"\",IF(COUNTIF($B$8:B371,B371)=1,\"_\"&\"AUTO\"&COUNTIF($V$7:V370,\"*AUTO*\"),\"\")))","v":""},"",""]
[null,null,null,null,null,null,null,null,null,null,null,null,null,null,null,null,null,null,null,null,null,{"$f":"IF(AND(C372=\"Terminé\",COUNTIF(B372,\"*Virement*\")),\"VIR\"&COUNTIF($V$7:V371,\"VIR*\"),IF(COUNTIF(B372,\"*Virement*\"),\"\",IF(COUNTIF($B$8:B372,B372)=1,\"_\"&\"AUTO\"&COUNTIF($V$7:V371,\"*AUTO*\"),\"\")))","v":""},"",""]
[null,null,null,null,null,null,null,null,null,null,null,null,null,null,null,null,null,null,null,null,null,{"$f":"IF(AND(C373=\"Terminé\",COUNTIF(B373,\"*Virement*\")),\"VIR\"&COUNTIF($V$7:V372,\"VIR*\"),IF(COUNTIF(B373,\"*Virement*\"),\"\",IF(COUNTIF($B$8:B373,B373)=1,\"_\"&\"AUTO\"&COUNTIF($V$7:V372,\"*AUTO*\"),\"\")))","v":""},"",""]
[null,null,null,null,null,null,null,null,null,null,null,null,null,null,null,null,null,null,null,null,null,{"$f":"IF(AND(C374=\"Terminé\",COUNTIF(B374,\"*Virement*\")),\"VIR\"&COUNTIF($V$7:V373,\"VIR*\"),IF(COUNTIF(B374,\"*Virement*\"),\"\",IF(COUNTIF($B$8:B374,B374)=1,\"_\"&\"AUTO\"&COUNTIF($V$7:V373,\"*AUTO*\"),\"\")))","v":""},"",""]
[null,null,null,null,null,null,null,null,null,null,null,null,null,null,null,null,null,null,null,null,null,{"$f":"IF(AND(C375=\"Terminé\",COUNTIF(B375,\"*Virement*\")),\"VIR\"&COUNTIF($V$7:V374,\"VIR*\"),IF(COUNTIF(B375,\"*Virement*\"),\"\",IF(COUNTIF($B$8:B375,B375)=1,\"_\"&\"AUTO\"&COUNTIF($V$7:V374,\"*AUTO*\"),\"\")))","v":""},"",""]
[null,null,null,null,null,null,null,null,null,null,null,null,null,null,null,null,null,null,null,null,null,{"$f":"IF(AND(C376=\"Terminé\",COUNTIF(B376,\"*Virement*\")),\"VIR\"&COUNTIF($V$7:V375,\"VIR*\"),IF(COUNTIF(B376,\"*Virement*\"),\"\",IF(COUNTIF($B$8:B376,B376)=1,\"_\"&\"AUTO\"&COUNTIF($V$7:V375,\"*AUTO*\"),\"\")))","v":""},"",""]
[null,null,null,null,null,null,null,null,null,null,null,null,null,null,null,null,null,null,null,null,null,{"$f":"IF(AND(C377=\"Terminé\",COUNTIF(B377,\"*Virement*\")),\"VIR\"&COUNTIF($V$7:V376,\"VIR*\"),IF(COUNTIF(B377,\"*Virement*\"),\"\",IF(COUNTIF($B$8:B377,B377)=1,\"_\"&\"AUTO\"&COUNTIF($V$7:V376,\"*AUTO*\"),\"\")))","v":""},"",""]
[null,null,null,null,null,null,null,null,null,null,null,null,null,null,null,null,null,null,null,null,null,{"$f":"IF(AND(C378=\"Terminé\",COUNTIF(B378,\"*Virement*\")),\"VIR\"&COUNTIF($V$7:V377,\"VIR*\"),IF(COUNTIF(B378,\"*Virement*\"),\"\",IF(COUNTIF($B$8:B378,B378)=1,\"_\"&\"AUTO\"&COUNTIF($V$7:V377,\"*AUTO*\"),\"\")))","v":""},"",""]
[null,null,null,null,null,null,null,null,null,null,null,null,null,null,null,null,null,null,null,null,null,{"$f":"IF(AND(C379=\"Terminé\",COUNTIF(B379,\"*Virement*\")),\"VIR\"&COUNTIF($V$7:V378,\"VIR*\"),IF(COUNTIF(B379,\"*Virement*\"),\"\",IF(COUNTIF($B$8:B379,B379)=1,\"_\"&\"AUTO\"&COUNTIF($V$7:V378,\"*AUTO*\"),\"\")))","v":""},"",""]
[null,null,null,null,null,null,null,null,null,null,null,null,null,null,null,null,null,null,null,null,null,{"$f":"IF(AND(C380=\"Terminé\",COUNTIF(B380,\"*Virement*\")),\"VIR\"&COUNTIF($V$7:V379,\"VIR*\"),IF(COUNTIF(B380,\"*Virement*\"),\"\",IF(COUNTIF($B$8:B380,B380)=1,\"_\"&\"AUTO\"&COUNTIF($V$7:V379,\"*AUTO*\"),\"\")))","v":""},"",""]
[null,null,null,null,null,null,null,null,null,null,null,null,null,null,null,null,null,null,null,null,null,{"$f":"IF(AND(C381=\"Terminé\",COUNTIF(B381,\"*Virement*\")),\"VIR\"&COUNTIF($V$7:V380,\"VIR*\"),IF(COUNTIF(B381,\"*Virement*\"),\"\",IF(COUNTIF($B$8:B381,B381)=1,\"_\"&\"AUTO\"&COUNTIF($V$7:V380,\"*AUTO*\"),\"\")))","v":""},"",""]
[null,null,null,null,null,null,null,null,null,null,null,null,null,null,null,null,null,null,null,null,null,{"$f":"IF(AND(C382=\"Terminé\",COUNTIF(B382,\"*Virement*\")),\"VIR\"&COUNTIF($V$7:V381,\"VIR*\"),IF(COUNTIF(B382,\"*Virement*\"),\"\",IF(COUNTIF($B$8:B382,B382)=1,\"_\"&\"AUTO\"&COUNTIF($V$7:V381,\"*AUTO*\"),\"\")))","v":""},"",""]
[null,null,null,null,null,null,null,null,null,null,null,null,null,null,null,null,null,null,null,null,null,{"$f":"IF(AND(C383=\"Terminé\",COUNTIF(B383,\"*Virement*\")),\"VIR\"&COUNTIF($V$7:V382,\"VIR*\"),IF(COUNTIF(B383,\"*Virement*\"),\"\",IF(COUNTIF($B$8:B383,B383)=1,\"_\"&\"AUTO\"&COUNTIF($V$7:V382,\"*AUTO*\"),\"\")))","v":""},"",""]
[null,null,null,null,null,null,null,null,null,null,null,null,null,null,null,null,null,null,null,null,null,{"$f":"IF(AND(C384=\"Terminé\",COUNTIF(B384,\"*Virement*\")),\"VIR\"&COUNTIF($V$7:V383,\"VIR*\"),IF(COUNTIF(B384,\"*Virement*\"),\"\",IF(COUNTIF($B$8:B384,B384)=1,\"_\"&\"AUTO\"&COUNTIF($V$7:V383,\"*AUTO*\"),\"\")))","v":""},"",""]
[null,null,null,null,null,null,null,null,null,null,null,null,null,null,null,null,null,null,null,null,null,{"$f":"IF(AND(C385=\"Terminé\",COUNTIF(B385,\"*Virement*\")),\"VIR\"&COUNTIF($V$7:V384,\"VIR*\"),IF(COUNTIF(B385,\"*Virement*\"),\"\",IF(COUNTIF($B$8:B385,B385)=1,\"_\"&\"AUTO\"&COUNTIF($V$7:V384,\"*AUTO*\"),\"\")))","v":""},"",""]
[null,null,null,null,null,null,null,null,null,null,null,null,null,null,null,null,null,null,null,null,null,{"$f":"IF(AND(C386=\"Terminé\",COUNTIF(B386,\"*Virement*\")),\"VIR\"&COUNTIF($V$7:V385,\"VIR*\"),IF(COUNTIF(B386,\"*Virement*\"),\"\",IF(COUNTIF($B$8:B386,B386)=1,\"_\"&\"AUTO\"&COUNTIF($V$7:V385,\"*AUTO*\"),\"\")))","v":""},"",""]
[null,null,null,null,null,null,null,null,null,null,null,null,null,null,null,null,null,null,null,null,null,{"$f":"IF(AND(C387=\"Terminé\",COUNTIF(B387,\"*Virement*\")),\"VIR\"&COUNTIF($V$7:V386,\"VIR*\"),IF(COUNTIF(B387,\"*Virement*\"),\"\",IF(COUNTIF($B$8:B387,B387)=1,\"_\"&\"AUTO\"&COUNTIF($V$7:V386,\"*AUTO*\"),\"\")))","v":""},"",""]
[null,null,null,null,null,null,null,null,null,null,null,null,null,null,null,null,null,null,null,null,null,{"$f":"IF(AND(C388=\"Terminé\",COUNTIF(B388,\"*Virement*\")),\"VIR\"&COUNTIF($V$7:V387,\"VIR*\"),IF(COUNTIF(B388,\"*Virement*\"),\"\",IF(COUNTIF($B$8:B388,B388)=1,\"_\"&\"AUTO\"&COUNTIF($V$7:V387,\"*AUTO*\"),\"\")))","v":""},"",""]
[null,null,null,null,null,null,null,null,null,null,null,null,null,null,null,null,null,null,null,null,null,{"$f":"IF(AND(C389=\"Terminé\",COUNTIF(B389,\"*Virement*\")),\"VIR\"&COUNTIF($V$7:V388,\"VIR*\"),IF(COUNTIF(B389,\"*Virement*\"),\"\",IF(COUNTIF($B$8:B389,B389)=1,\"_\"&\"AUTO\"&COUNTIF($V$7:V388,\"*AUTO*\"),\"\")))","v":""},"",""]
[null,null,null,null,null,null,null,null,null,null,null,null,null,null,null,null,null,null,null,null,null,{"$f":"IF(AND(C390=\"Terminé\",COUNTIF(B390,\"*Virement*\")),\"VIR\"&COUNTIF($V$7:V389,\"VIR*\"),IF(COUNTIF(B390,\"*Virement*\"),\"\",IF(COUNTIF($B$8:B390,B390)=1,\"_\"&\"AUTO\"&COUNTIF($V$7:V389,\"*AUTO*\"),\"\")))","v":""},"",""]
[null,null,null,null,null,null,null,null,null,null,null,null,null,null,null,null,null,null,null,null,null,{"$f":"IF(AND(C391=\"Terminé\",COUNTIF(B391,\"*Virement*\")),\"VIR\"&COUNTIF($V$7:V390,\"VIR*\"),IF(COUNTIF(B391,\"*Virement*\"),\"\",IF(COUNTIF($B$8:B391,B391)=1,\"_\"&\"AUTO\"&COUNTIF($V$7:V390,\"*AUTO*\"),\"\")))","v":""},"",""]
[null,null,null,null,null,null,null,null,null,null,null,null,null,null,null,null,null,null,null,null,null,{"$f":"IF(AND(C392=\"Terminé\",COUNTIF(B392,\"*Virement*\")),\"VIR\"&COUNTIF($V$7:V391,\"VIR*\"),IF(COUNTIF(B392,\"*Virement*\"),\"\",IF(COUNTIF($B$8:B392,B392)=1,\"_\"&\"AUTO\"&COUNTIF($V$7:V391,\"*AUTO*\"),\"\")))","v":""},"",""]
[null,null,null,null,null,null,null,null,null,null,null,null,null,null,null,null,null,null,null,null,null,{"$f":"IF(AND(C393=\"Terminé\",COUNTIF(B393,\"*Virement*\")),\"VIR\"&COUNTIF($V$7:V392,\"VIR*\"),IF(COUNTIF(B393,\"*Virement*\"),\"\",IF(COUNTIF($B$8:B393,B393)=1,\"_\"&\"AUTO\"&COUNTIF($V$7:V392,\"*AUTO*\"),\"\")))","v":""},{"$f":"IFERROR(INDEX(B:B,MATCH(\"VIR\"&ROW()-8,V:V,0)),\"\")","v":""},{"$f":"IFERROR(INDEX($B:$B,MATCH(\"*AUTO*\"&ROW()-8,$V:$V,0)),\"\")","v":""}]
[null,null,null,null,null,null,null,null,null,null,null,null,null,null,null,null,null,null,null,null,null,{"$f":"IF(AND(C394=\"Terminé\",COUNTIF(B394,\"*Virement*\")),\"VIR\"&COUNTIF($V$7:V393,\"VIR*\"),IF(COUNTIF(B394,\"*Virement*\"),\"\",IF(COUNTIF($B$8:B394,B394)=1,\"_\"&\"AUTO\"&COUNTIF($V$7:V393,\"*AUTO*\"),\"\")))","v":""},"",""]
[null,null,null,null,null,null,null,null,null,null,null,null,null,null,null,null,null,null,null,null,null,{"$f":"IF(AND(C395=\"Terminé\",COUNTIF(B395,\"*Virement*\")),\"VIR\"&COUNTIF($V$7:V394,\"VIR*\"),IF(COUNTIF(B395,\"*Virement*\"),\"\",IF(COUNTIF($B$8:B395,B395)=1,\"_\"&\"AUTO\"&COUNTIF($V$7:V394,\"*AUTO*\"),\"\")))","v":""},"",""]
[null,null,null,null,null,null,null,null,null,null,null,null,null,null,null,null,null,null,null,null,null,{"$f":"IF(AND(C396=\"Terminé\",COUNTIF(B396,\"*Virement*\")),\"VIR\"&COUNTIF($V$7:V395,\"VIR*\"),IF(COUNTIF(B396,\"*Virement*\"),\"\",IF(COUNTIF($B$8:B396,B396)=1,\"_\"&\"AUTO\"&COUNTIF($V$7:V395,\"*AUTO*\"),\"\")))","v":""},"",""]
[null,null,null,null,null,null,null,null,null,null,null,null,null,null,null,null,null,null,null,null,null,{"$f":"IF(AND(C397=\"Terminé\",COUNTIF(B397,\"*Virement*\")),\"VIR\"&COUNTIF($V$7:V396,\"VIR*\"),IF(COUNTIF(B397,\"*Virement*\"),\"\",IF(COUNTIF($B$8:B397,B397)=1,\"_\"&\"AUTO\"&COUNTIF($V$7:V396,\"*AUTO*\"),\"\")))","v":""},"",""]
[null,null,null,null,null,null,null,null,null,null,null,null,null,null,null,null,null,null,null,null,null,{"$f":"IF(AND(C398=\"Terminé\",COUNTIF(B398,\"*Virement*\")),\"VIR\"&COUNTIF($V$7:V397,\"VIR*\"),IF(COUNTIF(B398,\"*Virement*\"),\"\",IF(COUNTIF($B$8:B398,B398)=1,\"_\"&\"AUTO\"&COUNTIF($V$7:V397,\"*AUTO*\"),\"\")))","v":""},"",""]
[null,null,null,null,null,null,null,null,null,null,null,null,null,null,null,null,null,null,null,null,null,{"$f":"IF(AND(C399=\"Terminé\",COUNTIF(B399,\"*Virement*\")),\"VIR\"&COUNTIF($V$7:V398,\"VIR*\"),IF(COUNTIF(B399,\"*Virement*\"),\"\",IF(COUNTIF($B$8:B399,B399)=1,\"_\"&\"AUTO\"&COUNTIF($V$7:V398,\"*AUTO*\"),\"\")))","v":""},"",""]
[null,null,null,null,null,null,null,null,null,null,null,null,null,null,null,null,null,null,null,null,null,{"$f":"IF(AND(C400=\"Terminé\",COUNTIF(B400,\"*Virement*\")),\"VIR\"&COUNTIF($V$7:V399,\"VIR*\"),IF(COUNTIF(B400,\"*Virement*\"),\"\",IF(COUNTIF($B$8:B400,B400)=1,\"_\"&\"AUTO\"&COUNTIF($V$7:V399,\"*AUTO*\"),\"\")))","v":""},"",""]
[null,null,null,null,null,null,null,null,null,null,null,null,null,null,null,null,null,null,null,null,null,{"$f":"IF(AND(C401=\"Terminé\",COUNTIF(B401,\"*Virement*\")),\"VIR\"&COUNTIF($V$7:V400,\"VIR*\"),IF(COUNTIF(B401,\"*Virement*\"),\"\",IF(COUNTIF($B$8:B401,B401)=1,\"_\"&\"AUTO\"&COUNTIF($V$7:V400,\"*AUTO*\"),\"\")))","v":""},"",""]
[null,null,null,null,null,null,null,null,null,null,null,null,null,null,null,null,null,null,null,null,null,{"$f":"IF(AND(C402=\"Terminé\",COUNTIF(B402,\"*Virement*\")),\"VIR\"&COUNTIF($V$7:V401,\"VIR*\"),IF(COUNTIF(B402,\"*Virement*\"),\"\",IF(COUNTIF($B$8:B402,B402)=1,\"_\"&\"AUTO\"&COUNTIF($V$7:V401,\"*AUTO*\"),\"\")))","v":""},"",""]
[null,null,null,null,null,null,null,null,null,null,null,null,null,null,null,null,null,null,null,null,null,{"$f":"IF(AND(C403=\"Terminé\",COUNTIF(B403,\"*Virement*\")),\"VIR\"&COUNTIF($V$7:V402,\"VIR*\"),IF(COUNTIF(B403,\"*Virement*\"),\"\",IF(COUNTIF($B$8:B403,B403)=1,\"_\"&\"AUTO\"&COUNTIF($V$7:V402,\"*AUTO*\"),\"\")))","v":""},"",""]
[null,null,null,null,null,null,null,null,null,null,null,null,null,null,null,null,null,null,null,null,null,{"$f":"IF(AND(C404=\"Terminé\",COUNTIF(B404,\"*Virement*\")),\"VIR\"&COUNTIF($V$7:V403,\"VIR*\"),IF(COUNTIF(B404,\"*Virement*\"),\"\",IF(COUNTIF($B$8:B404,B404)=1,\"_\"&\"AUTO\"&COUNTIF($V$7:V403,\"*AUTO*\"),\"\")))","v":""},"",""]
[null,null,null,null,null,null,null,null,null,null,null,null,null,null,null,null,null,null,null,null,null,{"$f":"IF(AND(C405=\"Terminé\",COUNTIF(B405,\"*Virement*\")),\"VIR\"&COUNTIF($V$7:V404,\"VIR*\"),IF(COUNTIF(B405,\"*Virement*\"),\"\",IF(COUNTIF($B$8:B405,B405)=1,\"_\"&\"AUTO\"&COUNTIF($V$7:V404,\"*AUTO*\"),\"\")))","v":""},"",""]
[null,null,null,null,null,null,null,null,null,null,null,null,null,null,null,null,null,null,null,null,null,{"$f":"IF(AND(C406=\"Terminé\",COUNTIF(B406,\"*Virement*\")),\"VIR\"&COUNTIF($V$7:V405,\"VIR*\"),IF(COUNTIF(B406,\"*Virement*\"),\"\",IF(COUNTIF($B$8:B406,B406)=1,\"_\"&\"AUTO\"&COUNTIF($V$7:V405,\"*AUTO*\"),\"\")))","v":""},"",""]
[null,null,null,null,null,null,null,null,null,null,null,null,null,null,null,null,null,null,null,null,null,{"$f":"IF(AND(C407=\"Terminé\",COUNTIF(B407,\"*Virement*\")),\"VIR\"&COUNTIF($V$7:V406,\"VIR*\"),IF(COUNTIF(B407,\"*Virement*\"),\"\",IF(COUNTIF($B$8:B407,B407)=1,\"_\"&\"AUTO\"&COUNTIF($V$7:V406,\"*AUTO*\"),\"\")))","v":""},"",""]
[null,null,null,null,null,null,null,null,null,null,null,null,null,null,null,null,null,null,null,null,null,{"$f":"IF(AND(C408=\"Terminé\",COUNTIF(B408,\"*Virement*\")),\"VIR\"&COUNTIF($V$7:V407,\"VIR*\"),IF(COUNTIF(B408,\"*Virement*\"),\"\",IF(COUNTIF($B$8:B408,B408)=1,\"_\"&\"AUTO\"&COUNTIF($V$7:V407,\"*AUTO*\"),\"\")))","v":""},"",""]
[null,null,null,null,null,null,null,null,null,null,null,null,null,null,null,null,null,null,null,null,null,{"$f":"IF(AND(C409=\"Terminé\",COUNTIF(B409,\"*Virement*\")),\"VIR\"&COUNTIF($V$7:V408,\"VIR*\"),IF(COUNTIF(B409,\"*Virement*\"),\"\",IF(COUNTIF($B$8:B409,B409)=1,\"_\"&\"AUTO\"&COUNTIF($V$7:V408,\"*AUTO*\"),\"\")))","v":""},"",""]
[null,null,null,null,null,null,null,null,null,null,null,null,null,null,null,null,null,null,null,null,null,{"$f":"IF(AND(C410=\"Terminé\",COUNTIF(B410,\"*Virement*\")),\"VIR\"&COUNTIF($V$7:V409,\"VIR*\"),IF(COUNTIF(B410,\"*Virement*\"),\"\",IF(COUNTIF($B$8:B410,B410)=1,\"_\"&\"AUTO\"&COUNTIF($V$7:V409,\"*AUTO*\"),\"\")))","v":""},"",""]
[null,null,null,null,null,null,null,null,null,null,null,null,null,null,null,null,null,null,null,null,null,{"$f":"IF(AND(C411=\"Terminé\",COUNTIF(B411,\"*Virement*\")),\"VIR\"&COUNTIF($V$7:V410,\"VIR*\"),IF(COUNTIF(B411,\"*Virement*\"),\"\",IF(COUNTIF($B$8:B411,B411)=1,\"_\"&\"AUTO\"&COUNTIF($V$7:V410,\"*AUTO*\"),\"\")))","v":""},"",""]
[null,null,null,null,null,null,null,null,null,null,null,null,null,null,null,null,null,null,null,null,null,{"$f":"IF(AND(C412=\"Terminé\",COUNTIF(B412,\"*Virement*\")),\"VIR\"&COUNTIF($V$7:V411,\"VIR*\"),IF(COUNTIF(B412,\"*Virement*\"),\"\",IF(COUNTIF($B$8:B412,B412)=1,\"_\"&\"AUTO\"&COUNTIF($V$7:V411,\"*AUTO*\"),\"\")))","v":""},"",""]
[null,null,null,null,null,null,null,null,null,null,null,null,null,null,null,null,null,null,null,null,null,{"$f":"IF(AND(C413=\"Terminé\",COUNTIF(B413,\"*Virement*\")),\"VIR\"&COUNTIF($V$7:V412,\"VIR*\"),IF(COUNTIF(B413,\"*Virement*\"),\"\",IF(COUNTIF($B$8:B413,B413)=1,\"_\"&\"AUTO\"&COUNTIF($V$7:V412,\"*AUTO*\"),\"\")))","v":""},"",""]
[null,null,null,null,null,null,null,null,null,null,null,null,null,null,null,null,null,null,null,null,null,{"$f":"IF(AND(C414=\"Terminé\",COUNTIF(B414,\"*Virement*\")),\"VIR\"&COUNTIF($V$7:V413,\"VIR*\"),IF(COUNTIF(B414,\"*Virement*\"),\"\",IF(COUNTIF($B$8:B414,B414)=1,\"_\"&\"AUTO\"&COUNTIF($V$7:V413,\"*AUTO*\"),\"\")))","v":""},"",""]
[null,null,null,null,null,null,null,null,null,null,null,null,null,null,null,null,null,null,null,null,null,{"$f":"IF(AND(C415=\"Terminé\",COUNTIF(B415,\"*Virement*\")),\"VIR\"&COUNTIF($V$7:V414,\"VIR*\"),IF(COUNTIF(B415,\"*Virement*\"),\"\",IF(COUNTIF($B$8:B415,B415)=1,\"_\"&\"AUTO\"&COUNTIF($V$7:V414,\"*AUTO*\"),\"\")))","v":""},"",""]
[null,null,null,null,null,null,null,null,null,null,null,null,null,null,null,null,null,null,null,null,null,{"$f":"IF(AND(C416=\"Terminé\",COUNTIF(B416,\"*Virement*\")),\"VIR\"&COUNTIF($V$7:V415,\"VIR*\"),IF(COUNTIF(B416,\"*Virement*\"),\"\",IF(COUNTIF($B$8:B416,B416)=1,\"_\"&\"AUTO\"&COUNTIF($V$7:V415,\"*AUTO*\"),\"\")))","v":""},"",""]
[null,null,null,null,null,null,null,null,null,null,null,null,null,null,null,null,null,null,null,null,null,{"$f":"IF(AND(C417=\"Terminé\",COUNTIF(B417,\"*Virement*\")),\"VIR\"&COUNTIF($V$7:V416,\"VIR*\"),IF(COUNTIF(B417,\"*Virement*\"),\"\",IF(COUNTIF($B$8:B417,B417)=1,\"_\"&\"AUTO\"&COUNTIF($V$7:V416,\"*AUTO*\"),\"\")))","v":""},"",""]
[null,null,null,null,null,null,null,null,null,null,null,null,null,null,null,null,null,null,null,null,null,{"$f":"IF(AND(C418=\"Terminé\",COUNTIF(B418,\"*Virement*\")),\"VIR\"&COUNTIF($V$7:V417,\"VIR*\"),IF(COUNTIF(B418,\"*Virement*\"),\"\",IF(COUNTIF($B$8:B418,B418)=1,\"_\"&\"AUTO\"&COUNTIF($V$7:V417,\"*AUTO*\"),\"\")))","v":""},"",""]
[null,null,null,null,null,null,null,null,null,null,null,null,null,null,null,null,null,null,null,null,null,{"$f":"IF(AND(C419=\"Terminé\",COUNTIF(B419,\"*Virement*\")),\"VIR\"&COUNTIF($V$7:V418,\"VIR*\"),IF(COUNTIF(B419,\"*Virement*\"),\"\",IF(COUNTIF($B$8:B419,B419)=1,\"_\"&\"AUTO\"&COUNTIF($V$7:V418,\"*AUTO*\"),\"\")))","v":""},"",""]
[null,null,null,null,null,null,null,null,null,null,null,null,null,null,null,null,null,null,null,null,null,{"$f":"IF(AND(C420=\"Terminé\",COUNTIF(B420,\"*Virement*\")),\"VIR\"&COUNTIF($V$7:V419,\"VIR*\"),IF(COUNTIF(B420,\"*Virement*\"),\"\",IF(COUNTIF($B$8:B420,B420)=1,\"_\"&\"AUTO\"&COUNTIF($V$7:V419,\"*AUTO*\"),\"\")))","v":""},"",""]
[null,null,null,null,null,null,null,null,null,null,null,null,null,null,null,null,null,null,null,null,null,{"$f":"IF(AND(C421=\"Terminé\",COUNTIF(B421,\"*Virement*\")),\"VIR\"&COUNTIF($V$7:V420,\"VIR*\"),IF(COUNTIF(B421,\"*Virement*\"),\"\",IF(COUNTIF($B$8:B421,B421)=1,\"_\"&\"AUTO\"&COUNTIF($V$7:V420,\"*AUTO*\"),\"\")))","v":""},"",""]
[null,null,null,null,null,null,null,null,null,null,null,null,null,null,null,null,null,null,null,null,null,{"$f":"IF(AND(C422=\"Terminé\",COUNTIF(B422,\"*Virement*\")),\"VIR\"&COUNTIF($V$7:V421,\"VIR*\"),IF(COUNTIF(B422,\"*Virement*\"),\"\",IF(COUNTIF($B$8:B422,B422)=1,\"_\"&\"AUTO\"&COUNTIF($V$7:V421,\"*AUTO*\"),\"\")))","v":""},"",""]
[null,null,null,null,null,null,null,null,null,null,null,null,null,null,null,null,null,null,null,null,null,{"$f":"IF(AND(C423=\"Terminé\",COUNTIF(B423,\"*Virement*\")),\"VIR\"&COUNTIF($V$7:V422,\"VIR*\"),IF(COUNTIF(B423,\"*Virement*\"),\"\",IF(COUNTIF($B$8:B423,B423)=1,\"_\"&\"AUTO\"&COUNTIF($V$7:V422,\"*AUTO*\"),\"\")))","v":""},"",""]
[null,null,null,null,null,null,null,null,null,null,null,null,null,null,null,null,null,null,null,null,null,{"$f":"IF(AND(C424=\"Terminé\",COUNTIF(B424,\"*Virement*\")),\"VIR\"&COUNTIF($V$7:V423,\"VIR*\"),IF(COUNTIF(B424,\"*Virement*\"),\"\",IF(COUNTIF($B$8:B424,B424)=1,\"_\"&\"AUTO\"&COUNTIF($V$7:V423,\"*AUTO*\"),\"\")))","v":""},"",""]
[null,null,null,null,null,null,null,null,null,null,null,null,null,null,null,null,null,null,null,null,null,{"$f":"IF(AND(C425=\"Terminé\",COUNTIF(B425,\"*Virement*\")),\"VIR\"&COUNTIF($V$7:V424,\"VIR*\"),IF(COUNTIF(B425,\"*Virement*\"),\"\",IF(COUNTIF($B$8:B425,B425)=1,\"_\"&\"AUTO\"&COUNTIF($V$7:V424,\"*AUTO*\"),\"\")))","v":""},"",""]
[null,null,null,null,null,null,null,null,null,null,null,null,null,null,null,null,null,null,null,null,null,{"$f":"IF(AND(C426=\"Terminé\",COUNTIF(B426,\"*Virement*\")),\"VIR\"&COUNTIF($V$7:V425,\"VIR*\"),IF(COUNTIF(B426,\"*Virement*\"),\"\",IF(COUNTIF($B$8:B426,B426)=1,\"_\"&\"AUTO\"&COUNTIF($V$7:V425,\"*AUTO*\"),\"\")))","v":""},"",""]
[null,null,null,null,null,null,null,null,null,null,null,null,null,null,null,null,null,null,null,null,null,{"$f":"IF(AND(C427=\"Terminé\",COUNTIF(B427,\"*Virement*\")),\"VIR\"&COUNTIF($V$7:V426,\"VIR*\"),IF(COUNTIF(B427,\"*Virement*\"),\"\",IF(COUNTIF($B$8:B427,B427)=1,\"_\"&\"AUTO\"&COUNTIF($V$7:V426,\"*AUTO*\"),\"\")))","v":""},"",""]
[null,null,null,null,null,null,null,null,null,null,null,null,null,null,null,null,null,null,null,null,null,{"$f":"IF(AND(C428=\"Terminé\",COUNTIF(B428,\"*Virement*\")),\"VIR\"&COUNTIF($V$7:V427,\"VIR*\"),IF(COUNTIF(B428,\"*Virement*\"),\"\",IF(COUNTIF($B$8:B428,B428)=1,\"_\"&\"AUTO\"&COUNTIF($V$7:V427,\"*AUTO*\"),\"\")))","v":""},"",""]
[null,null,null,null,null,null,null,null,null,null,null,null,null,null,null,null,null,null,null,null,null,{"$f":"IF(AND(C429=\"Terminé\",COUNTIF(B429,\"*Virement*\")),\"VIR\"&COUNTIF($V$7:V428,\"VIR*\"),IF(COUNTIF(B429,\"*Virement*\"),\"\",IF(COUNTIF($B$8:B429,B429)=1,\"_\"&\"AUTO\"&COUNTIF($V$7:V428,\"*AUTO*\"),\"\")))","v":""},"",""]
[null,null,null,null,null,null,null,null,null,null,null,null,null,null,null,null,null,null,null,null,null,{"$f":"IF(AND(C430=\"Terminé\",COUNTIF(B430,\"*Virement*\")),\"VIR\"&COUNTIF($V$7:V429,\"VIR*\"),IF(COUNTIF(B430,\"*Virement*\"),\"\",IF(COUNTIF($B$8:B430,B430)=1,\"_\"&\"AUTO\"&COUNTIF($V$7:V429,\"*AUTO*\"),\"\")))","v":""},"",""]
[null,null,null,null,null,null,null,null,null,null,null,null,null,null,null,null,null,null,null,null,null,{"$f":"IF(AND(C431=\"Terminé\",COUNTIF(B431,\"*Virement*\")),\"VIR\"&COUNTIF($V$7:V430,\"VIR*\"),IF(COUNTIF(B431,\"*Virement*\"),\"\",IF(COUNTIF($B$8:B431,B431)=1,\"_\"&\"AUTO\"&COUNTIF($V$7:V430,\"*AUTO*\"),\"\")))","v":""},"",""]
[null,null,null,null,null,null,null,null,null,null,null,null,null,null,null,null,null,null,null,null,null,{"$f":"IF(AND(C432=\"Terminé\",COUNTIF(B432,\"*Virement*\")),\"VIR\"&COUNTIF($V$7:V431,\"VIR*\"),IF(COUNTIF(B432,\"*Virement*\"),\"\",IF(COUNTIF($B$8:B432,B432)=1,\"_\"&\"AUTO\"&COUNTIF($V$7:V431,\"*AUTO*\"),\"\")))","v":""},"",""]
[null,null,null,null,null,null,null,null,null,null,null,null,null,null,null,null,null,null,null,null,null,{"$f":"IF(AND(C433=\"Terminé\",COUNTIF(B433,\"*Virement*\")),\"VIR\"&COUNTIF($V$7:V432,\"VIR*\"),IF(COUNTIF(B433,\"*Virement*\"),\"\",IF(COUNTIF($B$8:B433,B433)=1,\"_\"&\"AUTO\"&COUNTIF($V$7:V432,\"*AUTO*\"),\"\")))","v":""},"",""]
[null,null,null,null,null,null,null,null,null,null,null,null,null,null,null,null,null,null,null,null,null,{"$f":"IF(AND(C434=\"Terminé\",COUNTIF(B434,\"*Virement*\")),\"VIR\"&COUNTIF($V$7:V433,\"VIR*\"),IF(COUNTIF(B434,\"*Virement*\"),\"\",IF(COUNTIF($B$8:B434,B434)=1,\"_\"&\"AUTO\"&COUNTIF($V$7:V433,\"*AUTO*\"),\"\")))","v":""},"",""]
[null,null,null,null,null,null,null,null,null,null,null,null,null,null,null,null,null,null,null,null,null,{"$f":"IF(AND(C435=\"Terminé\",COUNTIF(B435,\"*Virement*\")),\"VIR\"&COUNTIF($V$7:V434,\"VIR*\"),IF(COUNTIF(B435,\"*Virement*\"),\"\",IF(COUNTIF($B$8:B435,B435)=1,\"_\"&\"AUTO\"&COUNTIF($V$7:V434,\"*AUTO*\"),\"\")))","v":""},"",""]
[null,null,null,null,null,null,null,null,null,null,null,null,null,null,null,null,null,null,null,null,null,{"$f":"IF(AND(C436=\"Terminé\",COUNTIF(B436,\"*Virement*\")),\"VIR\"&COUNTIF($V$7:V435,\"VIR*\"),IF(COUNTIF(B436,\"*Virement*\"),\"\",IF(COUNTIF($B$8:B436,B436)=1,\"_\"&\"AUTO\"&COUNTIF($V$7:V435,\"*AUTO*\"),\"\")))","v":""},"",""]
[null,null,null,null,null,null,null,null,null,null,null,null,null,null,null,null,null,null,null,null,null,{"$f":"IF(AND(C437=\"Terminé\",COUNTIF(B437,\"*Virement*\")),\"VIR\"&COUNTIF($V$7:V436,\"VIR*\"),IF(COUNTIF(B437,\"*Virement*\"),\"\",IF(COUNTIF($B$8:B437,B437)=1,\"_\"&\"AUTO\"&COUNTIF($V$7:V436,\"*AUTO*\"),\"\")))","v":""},"",""]
[null,null,null,null,null,null,null,null,null,null,null,null,null,null,null,null,null,null,null,null,null,{"$f":"IF(AND(C438=\"Terminé\",COUNTIF(B438,\"*Virement*\")),\"VIR\"&COUNTIF($V$7:V437,\"VIR*\"),IF(COUNTIF(B438,\"*Virement*\"),\"\",IF(COUNTIF($B$8:B438,B438)=1,\"_\"&\"AUTO\"&COUNTIF($V$7:V437,\"*AUTO*\"),\"\")))","v":""},"",""]
[null,null,null,null,null,null,null,null,null,null,null,null,null,null,null,null,null,null,null,null,null,{"$f":"IF(AND(C439=\"Terminé\",COUNTIF(B439,\"*Virement*\")),\"VIR\"&COUNTIF($V$7:V438,\"VIR*\"),IF(COUNTIF(B439,\"*Virement*\"),\"\",IF(COUNTIF($B$8:B439,B439)=1,\"_\"&\"AUTO\"&COUNTIF($V$7:V438,\"*AUTO*\"),\"\")))","v":""},"",""]
[null,null,null,null,null,null,null,null,null,null,null,null,null,null,null,null,null,null,null,null,null,{"$f":"IF(AND(C440=\"Terminé\",COUNTIF(B440,\"*Virement*\")),\"VIR\"&COUNTIF($V$7:V439,\"VIR*\"),IF(COUNTIF(B440,\"*Virement*\"),\"\",IF(COUNTIF($B$8:B440,B440)=1,\"_\"&\"AUTO\"&COUNTIF($V$7:V439,\"*AUTO*\"),\"\")))","v":""},"",""]
[null,null,null,null,null,null,null,null,null,null,null,null,null,null,null,null,null,null,null,null,null,{"$f":"IF(AND(C441=\"Terminé\",COUNTIF(B441,\"*Virement*\")),\"VIR\"&COUNTIF($V$7:V440,\"VIR*\"),IF(COUNTIF(B441,\"*Virement*\"),\"\",IF(COUNTIF($B$8:B441,B441)=1,\"_\"&\"AUTO\"&COUNTIF($V$7:V440,\"*AUTO*\"),\"\")))","v":""},"",""]
[null,null,null,null,null,null,null,null,null,null,null,null,null,null,null,null,null,null,null,null,null,{"$f":"IF(AND(C442=\"Terminé\",COUNTIF(B442,\"*Virement*\")),\"VIR\"&COUNTIF($V$7:V441,\"VIR*\"),IF(COUNTIF(B442,\"*Virement*\"),\"\",IF(COUNTIF($B$8:B442,B442)=1,\"_\"&\"AUTO\"&COUNTIF($V$7:V441,\"*AUTO*\"),\"\")))","v":""},"",""]
[null,null,null,null,null,null,null,null,null,null,null,null,null,null,null,null,null,null,null,null,null,{"$f":"IF(AND(C443=\"Terminé\",COUNTIF(B443,\"*Virement*\")),\"VIR\"&COUNTIF($V$7:V442,\"VIR*\"),IF(COUNTIF(B443,\"*Virement*\"),\"\",IF(COUNTIF($B$8:B443,B443)=1,\"_\"&\"AUTO\"&COUNTIF($V$7:V442,\"*AUTO*\"),\"\")))","v":""},"",""]
[null,null,null,null,null,null,null,null,null,null,null,null,null,null,null,null,null,null,null,null,null,{"$f":"IF(AND(C444=\"Terminé\",COUNTIF(B444,\"*Virement*\")),\"VIR\"&COUNTIF($V$7:V443,\"VIR*\"),IF(COUNTIF(B444,\"*Virement*\"),\"\",IF(COUNTIF($B$8:B444,B444)=1,\"_\"&\"AUTO\"&COUNTIF($V$7:V443,\"*AUTO*\"),\"\")))","v":""},"",""]
[null,null,null,null,null,null,null,null,null,null,null,null,null,null,null,null,null,null,null,null,null,{"$f":"IF(AND(C445=\"Terminé\",COUNTIF(B445,\"*Virement*\")),\"VIR\"&COUNTIF($V$7:V444,\"VIR*\"),IF(COUNTIF(B445,\"*Virement*\"),\"\",IF(COUNTIF($B$8:B445,B445)=1,\"_\"&\"AUTO\"&COUNTIF($V$7:V444,\"*AUTO*\"),\"\")))","v":""},"",""]
[null,null,null,null,null,null,null,null,null,null,null,null,null,null,null,null,null,null,null,null,null,{"$f":"IF(AND(C446=\"Terminé\",COUNTIF(B446,\"*Virement*\")),\"VIR\"&COUNTIF($V$7:V445,\"VIR*\"),IF(COUNTIF(B446,\"*Virement*\"),\"\",IF(COUNTIF($B$8:B446,B446)=1,\"_\"&\"AUTO\"&COUNTIF($V$7:V445,\"*AUTO*\"),\"\")))","v":""},"",""]
[null,null,null,null,null,null,null,null,null,null,null,null,null,null,null,null,null,null,null,null,null,{"$f":"IF(AND(C447=\"Terminé\",COUNTIF(B447,\"*Virement*\")),\"VIR\"&COUNTIF($V$7:V446,\"VIR*\"),IF(COUNTIF(B447,\"*Virement*\"),\"\",IF(COUNTIF($B$8:B447,B447)=1,\"_\"&\"AUTO\"&COUNTIF($V$7:V446,\"*AUTO*\"),\"\")))","v":""},"",""]
[null,null,null,null,null,null,null,null,null,null,null,null,null,null,null,null,null,null,null,null,null,{"$f":"IF(AND(C448=\"Terminé\",COUNTIF(B448,\"*Virement*\")),\"VIR\"&COUNTIF($V$7:V447,\"VIR*\"),IF(COUNTIF(B448,\"*Virement*\"),\"\",IF(COUNTIF($B$8:B448,B448)=1,\"_\"&\"AUTO\"&COUNTIF($V$7:V447,\"*AUTO*\"),\"\")))","v":""},"",""]
[null,null,null,null,null,null,null,null,null,null,null,null,null,null,null,null,null,null,null,null,null,{"$f":"IF(AND(C449=\"Terminé\",COUNTIF(B449,\"*Virement*\")),\"VIR\"&COUNTIF($V$7:V448,\"VIR*\"),IF(COUNTIF(B449,\"*Virement*\"),\"\",IF(COUNTIF($B$8:B449,B449)=1,\"_\"&\"AUTO\"&COUNTIF($V$7:V448,\"*AUTO*\"),\"\")))","v":""},"",""]
[null,null,null,null,null,null,null,null,null,null,null,null,null,null,null,null,null,null,null,null,null,{"$f":"IF(AND(C450=\"Terminé\",COUNTIF(B450,\"*Virement*\")),\"VIR\"&COUNTIF($V$7:V449,\"VIR*\"),IF(COUNTIF(B450,\"*Virement*\"),\"\",IF(COUNTIF($B$8:B450,B450)=1,\"_\"&\"AUTO\"&COUNTIF($V$7:V449,\"*AUTO*\"),\"\")))","v":""},"",""]
[null,null,null,null,null,null,null,null,null,null,null,null,null,null,null,null,null,null,null,null,null,{"$f":"IF(AND(C451=\"Terminé\",COUNTIF(B451,\"*Virement*\")),\"VIR\"&COUNTIF($V$7:V450,\"VIR*\"),IF(COUNTIF(B451,\"*Virement*\"),\"\",IF(COUNTIF($B$8:B451,B451)=1,\"_\"&\"AUTO\"&COUNTIF($V$7:V450,\"*AUTO*\"),\"\")))","v":""},"",""]
[null,null,null,null,null,null,null,null,null,null,null,null,null,null,null,null,null,null,null,null,null,{"$f":"IF(AND(C452=\"Terminé\",COUNTIF(B452,\"*Virement*\")),\"VIR\"&COUNTIF($V$7:V451,\"VIR*\"),IF(COUNTIF(B452,\"*Virement*\"),\"\",IF(COUNTIF($B$8:B452,B452)=1,\"_\"&\"AUTO\"&COUNTIF($V$7:V451,\"*AUTO*\"),\"\")))","v":""},"",""]
[null,null,null,null,null,null,null,null,null,null,null,null,null,null,null,null,null,null,null,null,null,{"$f":"IF(AND(C453=\"Terminé\",COUNTIF(B453,\"*Virement*\")),\"VIR\"&COUNTIF($V$7:V452,\"VIR*\"),IF(COUNTIF(B453,\"*Virement*\"),\"\",IF(COUNTIF($B$8:B453,B453)=1,\"_\"&\"AUTO\"&COUNTIF($V$7:V452,\"*AUTO*\"),\"\")))","v":""},"",""]
[null,null,null,null,null,null,null,null,null,null,null,null,null,null,null,null,null,null,null,null,null,{"$f":"IF(AND(C454=\"Terminé\",COUNTIF(B454,\"*Virement*\")),\"VIR\"&COUNTIF($V$7:V453,\"VIR*\"),IF(COUNTIF(B454,\"*Virement*\"),\"\",IF(COUNTIF($B$8:B454,B454)=1,\"_\"&\"AUTO\"&COUNTIF($V$7:V453,\"*AUTO*\"),\"\")))","v":""},"",""]
[null,null,null,null,null,null,null,null,null,null,null,null,null,null,null,null,null,null,null,null,null,{"$f":"IF(AND(C455=\"Terminé\",COUNTIF(B455,\"*Virement*\")),\"VIR\"&COUNTIF($V$7:V454,\"VIR*\"),IF(COUNTIF(B455,\"*Virement*\"),\"\",IF(COUNTIF($B$8:B455,B455)=1,\"_\"&\"AUTO\"&COUNTIF($V$7:V454,\"*AUTO*\"),\"\")))","v":""},"",""]
[null,null,null,null,null,null,null,null,null,null,null,null,null,null,null,null,null,null,null,null,null,{"$f":"IF(AND(C456=\"Terminé\",COUNTIF(B456,\"*Virement*\")),\"VIR\"&COUNTIF($V$7:V455,\"VIR*\"),IF(COUNTIF(B456,\"*Virement*\"),\"\",IF(COUNTIF($B$8:B456,B456)=1,\"_\"&\"AUTO\"&COUNTIF($V$7:V455,\"*AUTO*\"),\"\")))","v":""},"",""]
[null,null,null,null,null,null,null,null,null,null,null,null,null,null,null,null,null,null,null,null,null,{"$f":"IF(AND(C457=\"Terminé\",COUNTIF(B457,\"*Virement*\")),\"VIR\"&COUNTIF($V$7:V456,\"VIR*\"),IF(COUNTIF(B457,\"*Virement*\"),\"\",IF(COUNTIF($B$8:B457,B457)=1,\"_\"&\"AUTO\"&COUNTIF($V$7:V456,\"*AUTO*\"),\"\")))","v":""},{"$f":"IFERROR(INDEX(B:B,MATCH(\"VIR\"&ROW()-8,V:V,0)),\"\")","v":""},{"$f":"IFERROR(INDEX($B:$B,MATCH(\"*AUTO*\"&ROW()-8,$V:$V,0)),\"\")","v":""}]
[null,null,null,null,null,null,null,null,null,null,null,null,null,null,null,null,null,null,null,null,null,{"$f":"IF(AND(C458=\"Terminé\",COUNTIF(B458,\"*Virement*\")),\"VIR\"&COUNTIF($V$7:V457,\"VIR*\"),IF(COUNTIF(B458,\"*Virement*\"),\"\",IF(COUNTIF($B$8:B458,B458)=1,\"_\"&\"AUTO\"&COUNTIF($V$7:V457,\"*AUTO*\"),\"\")))","v":""},"",""]
[null,null,null,null,null,null,null,null,null,null,null,null,null,null,null,null,null,null,null,null,null,{"$f":"IF(AND(C459=\"Terminé\",COUNTIF(B459,\"*Virement*\")),\"VIR\"&COUNTIF($V$7:V458,\"VIR*\"),IF(COUNTIF(B459,\"*Virement*\"),\"\",IF(COUNTIF($B$8:B459,B459)=1,\"_\"&\"AUTO\"&COUNTIF($V$7:V458,\"*AUTO*\"),\"\")))","v":""},"",""]
[null,null,null,null,null,null,null,null,null,null,null,null,null,null,null,null,null,null,null,null,null,{"$f":"IF(AND(C460=\"Terminé\",COUNTIF(B460,\"*Virement*\")),\"VIR\"&COUNTIF($V$7:V459,\"VIR*\"),IF(COUNTIF(B460,\"*Virement*\"),\"\",IF(COUNTIF($B$8:B460,B460)=1,\"_\"&\"AUTO\"&COUNTIF($V$7:V459,\"*AUTO*\"),\"\")))","v":""},"",""]
[null,null,null,null,null,null,null,null,null,null,null,null,null,null,null,null,null,null,null,null,null,{"$f":"IF(AND(C461=\"Terminé\",COUNTIF(B461,\"*Virement*\")),\"VIR\"&COUNTIF($V$7:V460,\"VIR*\"),IF(COUNTIF(B461,\"*Virement*\"),\"\",IF(COUNTIF($B$8:B461,B461)=1,\"_\"&\"AUTO\"&COUNTIF($V$7:V460,\"*AUTO*\"),\"\")))","v":""},"",""]
[null,null,null,null,null,null,null,null,null,null,null,null,null,null,null,null,null,null,null,null,null,{"$f":"IF(AND(C462=\"Terminé\",COUNTIF(B462,\"*Virement*\")),\"VIR\"&COUNTIF($V$7:V461,\"VIR*\"),IF(COUNTIF(B462,\"*Virement*\"),\"\",IF(COUNTIF($B$8:B462,B462)=1,\"_\"&\"AUTO\"&COUNTIF($V$7:V461,\"*AUTO*\"),\"\")))","v":""},"",""]
[null,null,null,null,null,null,null,null,null,null,null,null,null,null,null,null,null,null,null,null,null,{"$f":"IF(AND(C463=\"Terminé\",COUNTIF(B463,\"*Virement*\")),\"VIR\"&COUNTIF($V$7:V462,\"VIR*\"),IF(COUNTIF(B463,\"*Virement*\"),\"\",IF(COUNTIF($B$8:B463,B463)=1,\"_\"&\"AUTO\"&COUNTIF($V$7:V462,\"*AUTO*\"),\"\")))","v":""},"",""]
[null,null,null,null,null,null,null,null,null,null,null,null,null,null,null,null,null,null,null,null,null,{"$f":"IF(AND(C464=\"Terminé\",COUNTIF(B464,\"*Virement*\")),\"VIR\"&COUNTIF($V$7:V463,\"VIR*\"),IF(COUNTIF(B464,\"*Virement*\"),\"\",IF(COUNTIF($B$8:B464,B464)=1,\"_\"&\"AUTO\"&COUNTIF($V$7:V463,\"*AUTO*\"),\"\")))","v":""},"",""]
[null,null,null,null,null,null,null,null,null,null,null,null,null,null,null,null,null,null,null,null,null,{"$f":"IF(AND(C465=\"Terminé\",COUNTIF(B465,\"*Virement*\")),\"VIR\"&COUNTIF($V$7:V464,\"VIR*\"),IF(COUNTIF(B465,\"*Virement*\"),\"\",IF(COUNTIF($B$8:B465,B465)=1,\"_\"&\"AUTO\"&COUNTIF($V$7:V464,\"*AUTO*\"),\"\")))","v":""},"",""]
[null,null,null,null,null,null,null,null,null,null,null,null,null,null,null,null,null,null,null,null,null,{"$f":"IF(AND(C466=\"Terminé\",COUNTIF(B466,\"*Virement*\")),\"VIR\"&COUNTIF($V$7:V465,\"VIR*\"),IF(COUNTIF(B466,\"*Virement*\"),\"\",IF(COUNTIF($B$8:B466,B466)=1,\"_\"&\"AUTO\"&COUNTIF($V$7:V465,\"*AUTO*\"),\"\")))","v":""},"",""]
[null,null,null,null,null,null,null,null,null,null,null,null,null,null,null,null,null,null,null,null,null,{"$f":"IF(AND(C467=\"Terminé\",COUNTIF(B467,\"*Virement*\")),\"VIR\"&COUNTIF($V$7:V466,\"VIR*\"),IF(COUNTIF(B467,\"*Virement*\"),\"\",IF(COUNTIF($B$8:B467,B467)=1,\"_\"&\"AUTO\"&COUNTIF($V$7:V466,\"*AUTO*\"),\"\")))","v":""},"",""]
[null,null,null,null,null,null,null,null,null,null,null,null,null,null,null,null,null,null,null,null,null,{"$f":"IF(AND(C468=\"Terminé\",COUNTIF(B468,\"*Virement*\")),\"VIR\"&COUNTIF($V$7:V467,\"VIR*\"),IF(COUNTIF(B468,\"*Virement*\"),\"\",IF(COUNTIF($B$8:B468,B468)=1,\"_\"&\"AUTO\"&COUNTIF($V$7:V467,\"*AUTO*\"),\"\")))","v":""},"",""]
[null,null,null,null,null,null,null,null,null,null,null,null,null,null,null,null,null,null,null,null,null,{"$f":"IF(AND(C469=\"Terminé\",COUNTIF(B469,\"*Virement*\")),\"VIR\"&COUNTIF($V$7:V468,\"VIR*\"),IF(COUNTIF(B469,\"*Virement*\"),\"\",IF(COUNTIF($B$8:B469,B469)=1,\"_\"&\"AUTO\"&COUNTIF($V$7:V468,\"*AUTO*\"),\"\")))","v":""},"",""]
[null,null,null,null,null,null,null,null,null,null,null,null,null,null,null,null,null,null,null,null,null,{"$f":"IF(AND(C470=\"Terminé\",COUNTIF(B470,\"*Virement*\")),\"VIR\"&COUNTIF($V$7:V469,\"VIR*\"),IF(COUNTIF(B470,\"*Virement*\"),\"\",IF(COUNTIF($B$8:B470,B470)=1,\"_\"&\"AUTO\"&COUNTIF($V$7:V469,\"*AUTO*\"),\"\")))","v":""},"",""]
[null,null,null,null,null,null,null,null,null,null,null,null,null,null,null,null,null,null,null,null,null,{"$f":"IF(AND(C471=\"Terminé\",COUNTIF(B471,\"*Virement*\")),\"VIR\"&COUNTIF($V$7:V470,\"VIR*\"),IF(COUNTIF(B471,\"*Virement*\"),\"\",IF(COUNTIF($B$8:B471,B471)=1,\"_\"&\"AUTO\"&COUNTIF($V$7:V470,\"*AUTO*\"),\"\")))","v":""},"",""]
[null,null,null,null,null,null,null,null,null,null,null,null,null,null,null,null,null,null,null,null,null,{"$f":"IF(AND(C472=\"Terminé\",COUNTIF(B472,\"*Virement*\")),\"VIR\"&COUNTIF($V$7:V471,\"VIR*\"),IF(COUNTIF(B472,\"*Virement*\"),\"\",IF(COUNTIF($B$8:B472,B472)=1,\"_\"&\"AUTO\"&COUNTIF($V$7:V471,\"*AUTO*\"),\"\")))","v":""},"",""]
[null,null,null,null,null,null,null,null,null,null,null,null,null,null,null,null,null,null,null,null,null,{"$f":"IF(AND(C473=\"Terminé\",COUNTIF(B473,\"*Virement*\")),\"VIR\"&COUNTIF($V$7:V472,\"VIR*\"),IF(COUNTIF(B473,\"*Virement*\"),\"\",IF(COUNTIF($B$8:B473,B473)=1,\"_\"&\"AUTO\"&COUNTIF($V$7:V472,\"*AUTO*\"),\"\")))","v":""},"",""]
[null,null,null,null,null,null,null,null,null,null,null,null,null,null,null,null,null,null,null,null,null,{"$f":"IF(AND(C474=\"Terminé\",COUNTIF(B474,\"*Virement*\")),\"VIR\"&COUNTIF($V$7:V473,\"VIR*\"),IF(COUNTIF(B474,\"*Virement*\"),\"\",IF(COUNTIF($B$8:B474,B474)=1,\"_\"&\"AUTO\"&COUNTIF($V$7:V473,\"*AUTO*\"),\"\")))","v":""},"",""]
[null,null,null,null,null,null,null,null,null,null,null,null,null,null,null,null,null,null,null,null,null,{"$f":"IF(AND(C475=\"Terminé\",COUNTIF(B475,\"*Virement*\")),\"VIR\"&COUNTIF($V$7:V474,\"VIR*\"),IF(COUNTIF(B475,\"*Virement*\"),\"\",IF(COUNTIF($B$8:B475,B475)=1,\"_\"&\"AUTO\"&COUNTIF($V$7:V474,\"*AUTO*\"),\"\")))","v":""},"",""]
[null,null,null,null,null,null,null,null,null,null,null,null,null,null,null,null,null,null,null,null,null,{"$f":"IF(AND(C476=\"Terminé\",COUNTIF(B476,\"*Virement*\")),\"VIR\"&COUNTIF($V$7:V475,\"VIR*\"),IF(COUNTIF(B476,\"*Virement*\"),\"\",IF(COUNTIF($B$8:B476,B476)=1,\"_\"&\"AUTO\"&COUNTIF($V$7:V475,\"*AUTO*\"),\"\")))","v":""},"",""]
[null,null,null,null,null,null,null,null,null,null,null,null,null,null,null,null,null,null,null,null,null,{"$f":"IF(AND(C477=\"Terminé\",COUNTIF(B477,\"*Virement*\")),\"VIR\"&COUNTIF($V$7:V476,\"VIR*\"),IF(COUNTIF(B477,\"*Virement*\"),\"\",IF(COUNTIF($B$8:B477,B477)=1,\"_\"&\"AUTO\"&COUNTIF($V$7:V476,\"*AUTO*\"),\"\")))","v":""},"",""]
[null,null,null,null,null,null,null,null,null,null,null,null,null,null,null,null,null,null,null,null,null,{"$f":"IF(AND(C478=\"Terminé\",COUNTIF(B478,\"*Virement*\")),\"VIR\"&COUNTIF($V$7:V477,\"VIR*\"),IF(COUNTIF(B478,\"*Virement*\"),\"\",IF(COUNTIF($B$8:B478,B478)=1,\"_\"&\"AUTO\"&COUNTIF($V$7:V477,\"*AUTO*\"),\"\")))","v":""},"",""]
[null,null,null,null,null,null,null,null,null,null,null,null,null,null,null,null,null,null,null,null,null,{"$f":"IF(AND(C479=\"Terminé\",COUNTIF(B479,\"*Virement*\")),\"VIR\"&COUNTIF($V$7:V478,\"VIR*\"),IF(COUNTIF(B479,\"*Virement*\"),\"\",IF(COUNTIF($B$8:B479,B479)=1,\"_\"&\"AUTO\"&COUNTIF($V$7:V478,\"*AUTO*\"),\"\")))","v":""},"",""]
[null,null,null,null,null,null,null,null,null,null,null,null,null,null,null,null,null,null,null,null,null,{"$f":"IF(AND(C480=\"Terminé\",COUNTIF(B480,\"*Virement*\")),\"VIR\"&COUNTIF($V$7:V479,\"VIR*\"),IF(COUNTIF(B480,\"*Virement*\"),\"\",IF(COUNTIF($B$8:B480,B480)=1,\"_\"&\"AUTO\"&COUNTIF($V$7:V479,\"*AUTO*\"),\"\")))","v":""},"",""]
[null,null,null,null,null,null,null,null,null,null,null,null,null,null,null,null,null,null,null,null,null,{"$f":"IF(AND(C481=\"Terminé\",COUNTIF(B481,\"*Virement*\")),\"VIR\"&COUNTIF($V$7:V480,\"VIR*\"),IF(COUNTIF(B481,\"*Virement*\"),\"\",IF(COUNTIF($B$8:B481,B481)=1,\"_\"&\"AUTO\"&COUNTIF($V$7:V480,\"*AUTO*\"),\"\")))","v":""},"",""]
[null,null,null,null,null,null,null,null,null,null,null,null,null,null,null,null,null,null,null,null,null,{"$f":"IF(AND(C482=\"Terminé\",COUNTIF(B482,\"*Virement*\")),\"VIR\"&COUNTIF($V$7:V481,\"VIR*\"),IF(COUNTIF(B482,\"*Virement*\"),\"\",IF(COUNTIF($B$8:B482,B482)=1,\"_\"&\"AUTO\"&COUNTIF($V$7:V481,\"*AUTO*\"),\"\")))","v":""},"",""]
[null,null,null,null,null,null,null,null,null,null,null,null,null,null,null,null,null,null,null,null,null,{"$f":"IF(AND(C483=\"Terminé\",COUNTIF(B483,\"*Virement*\")),\"VIR\"&COUNTIF($V$7:V482,\"VIR*\"),IF(COUNTIF(B483,\"*Virement*\"),\"\",IF(COUNTIF($B$8:B483,B483)=1,\"_\"&\"AUTO\"&COUNTIF($V$7:V482,\"*AUTO*\"),\"\")))","v":""},"",""]
[null,null,null,null,null,null,null,null,null,null,null,null,null,null,null,null,null,null,null,null,null,{"$f":"IF(AND(C484=\"Terminé\",COUNTIF(B484,\"*Virement*\")),\"VIR\"&COUNTIF($V$7:V483,\"VIR*\"),IF(COUNTIF(B484,\"*Virement*\"),\"\",IF(COUNTIF($B$8:B484,B484)=1,\"_\"&\"AUTO\"&COUNTIF($V$7:V483,\"*AUTO*\"),\"\")))","v":""},"",""]
[null,null,null,null,null,null,null,null,null,null,null,null,null,null,null,null,null,null,null,null,null,{"$f":"IF(AND(C485=\"Terminé\",COUNTIF(B485,\"*Virement*\")),\"VIR\"&COUNTIF($V$7:V484,\"VIR*\"),IF(COUNTIF(B485,\"*Virement*\"),\"\",IF(COUNTIF($B$8:B485,B485)=1,\"_\"&\"AUTO\"&COUNTIF($V$7:V484,\"*AUTO*\"),\"\")))","v":""},"",""]
[null,null,null,null,null,null,null,null,null,null,null,null,null,null,null,null,null,null,null,null,null,{"$f":"IF(AND(C486=\"Terminé\",COUNTIF(B486,\"*Virement*\")),\"VIR\"&COUNTIF($V$7:V485,\"VIR*\"),IF(COUNTIF(B486,\"*Virement*\"),\"\",IF(COUNTIF($B$8:B486,B486)=1,\"_\"&\"AUTO\"&COUNTIF($V$7:V485,\"*AUTO*\"),\"\")))","v":""},"",""]
[null,null,null,null,null,null,null,null,null,null,null,null,null,null,null,null,null,null,null,null,null,{"$f":"IF(AND(C487=\"Terminé\",COUNTIF(B487,\"*Virement*\")),\"VIR\"&COUNTIF($V$7:V486,\"VIR*\"),IF(COUNTIF(B487,\"*Virement*\"),\"\",IF(COUNTIF($B$8:B487,B487)=1,\"_\"&\"AUTO\"&COUNTIF($V$7:V486,\"*AUTO*\"),\"\")))","v":""},"",""]
[null,null,null,null,null,null,null,null,null,null,null,null,null,null,null,null,null,null,null,null,null,{"$f":"IF(AND(C488=\"Terminé\",COUNTIF(B488,\"*Virement*\")),\"VIR\"&COUNTIF($V$7:V487,\"VIR*\"),IF(COUNTIF(B488,\"*Virement*\"),\"\",IF(COUNTIF($B$8:B488,B488)=1,\"_\"&\"AUTO\"&COUNTIF($V$7:V487,\"*AUTO*\"),\"\")))","v":""},"",""]
[null,null,null,null,null,null,null,null,null,null,null,null,null,null,null,null,null,null,null,null,null,{"$f":"IF(AND(C489=\"Terminé\",COUNTIF(B489,\"*Virement*\")),\"VIR\"&COUNTIF($V$7:V488,\"VIR*\"),IF(COUNTIF(B489,\"*Virement*\"),\"\",IF(COUNTIF($B$8:B489,B489)=1,\"_\"&\"AUTO\"&COUNTIF($V$7:V488,\"*AUTO*\"),\"\")))","v":""},"",""]
[null,null,null,null,null,null,null,null,null,null,null,null,null,null,null,null,null,null,null,null,null,{"$f":"IF(AND(C490=\"Terminé\",COUNTIF(B490,\"*Virement*\")),\"VIR\"&COUNTIF($V$7:V489,\"VIR*\"),IF(COUNTIF(B490,\"*Virement*\"),\"\",IF(COUNTIF($B$8:B490,B490)=1,\"_\"&\"AUTO\"&COUNTIF($V$7:V489,\"*AUTO*\"),\"\")))","v":""},"",""]
[null,null,null,null,null,null,null,null,null,null,null,null,null,null,null,null,null,null,null,null,null,{"$f":"IF(AND(C491=\"Terminé\",COUNTIF(B491,\"*Virement*\")),\"VIR\"&COUNTIF($V$7:V490,\"VIR*\"),IF(COUNTIF(B491,\"*Virement*\"),\"\",IF(COUNTIF($B$8:B491,B491)=1,\"_\"&\"AUTO\"&COUNTIF($V$7:V490,\"*AUTO*\"),\"\")))","v":""},"",""]
[null,null,null,null,null,null,null,null,null,null,null,null,null,null,null,null,null,null,null,null,null,{"$f":"IF(AND(C492=\"Terminé\",COUNTIF(B492,\"*Virement*\")),\"VIR\"&COUNTIF($V$7:V491,\"VIR*\"),IF(COUNTIF(B492,\"*Virement*\"),\"\",IF(COUNTIF($B$8:B492,B492)=1,\"_\"&\"AUTO\"&COUNTIF($V$7:V491,\"*AUTO*\"),\"\")))","v":""},"",""]
[null,null,null,null,null,null,null,null,null,null,null,null,null,null,null,null,null,null,null,null,null,{"$f":"IF(AND(C493=\"Terminé\",COUNTIF(B493,\"*Virement*\")),\"VIR\"&COUNTIF($V$7:V492,\"VIR*\"),IF(COUNTIF(B493,\"*Virement*\"),\"\",IF(COUNTIF($B$8:B493,B493)=1,\"_\"&\"AUTO\"&COUNTIF($V$7:V492,\"*AUTO*\"),\"\")))","v":""},"",""]
[null,null,null,null,null,null,null,null,null,null,null,null,null,null,null,null,null,null,null,null,null,{"$f":"IF(AND(C494=\"Terminé\",COUNTIF(B494,\"*Virement*\")),\"VIR\"&COUNTIF($V$7:V493,\"VIR*\"),IF(COUNTIF(B494,\"*Virement*\"),\"\",IF(COUNTIF($B$8:B494,B494)=1,\"_\"&\"AUTO\"&COUNTIF($V$7:V493,\"*AUTO*\"),\"\")))","v":""},"",""]
[null,null,null,null,null,null,null,null,null,null,null,null,null,null,null,null,null,null,null,null,null,{"$f":"IF(AND(C495=\"Terminé\",COUNTIF(B495,\"*Virement*\")),\"VIR\"&COUNTIF($V$7:V494,\"VIR*\"),IF(COUNTIF(B495,\"*Virement*\"),\"\",IF(COUNTIF($B$8:B495,B495)=1,\"_\"&\"AUTO\"&COUNTIF($V$7:V494,\"*AUTO*\"),\"\")))","v":""},"",""]
[null,null,null,null,null,null,null,null,null,null,null,null,null,null,null,null,null,null,null,null,null,{"$f":"IF(AND(C496=\"Terminé\",COUNTIF(B496,\"*Virement*\")),\"VIR\"&COUNTIF($V$7:V495,\"VIR*\"),IF(COUNTIF(B496,\"*Virement*\"),\"\",IF(COUNTIF($B$8:B496,B496)=1,\"_\"&\"AUTO\"&COUNTIF($V$7:V495,\"*AUTO*\"),\"\")))","v":""},"",""]
[null,null,null,null,null,null,null,null,null,null,null,null,null,null,null,null,null,null,null,null,null,{"$f":"IF(AND(C497=\"Terminé\",COUNTIF(B497,\"*Virement*\")),\"VIR\"&COUNTIF($V$7:V496,\"VIR*\"),IF(COUNTIF(B497,\"*Virement*\"),\"\",IF(COUNTIF($B$8:B497,B497)=1,\"_\"&\"AUTO\"&COUNTIF($V$7:V496,\"*AUTO*\"),\"\")))","v":""},"",""]
[null,null,null,null,null,null,null,null,null,null,null,null,null,null,null,null,null,null,null,null,null,{"$f":"IF(AND(C498=\"Terminé\",COUNTIF(B498,\"*Virement*\")),\"VIR\"&COUNTIF($V$7:V497,\"VIR*\"),IF(COUNTIF(B498,\"*Virement*\"),\"\",IF(COUNTIF($B$8:B498,B498)=1,\"_\"&\"AUTO\"&COUNTIF($V$7:V497,\"*AUTO*\"),\"\")))","v":""},"",""]
[null,null,null,null,null,null,null,null,null,null,null,null,null,null,null,null,null,null,null,null,null,{"$f":"IF(AND(C499=\"Terminé\",COUNTIF(B499,\"*Virement*\")),\"VIR\"&COUNTIF($V$7:V498,\"VIR*\"),IF(COUNTIF(B499,\"*Virement*\"),\"\",IF(COUNTIF($B$8:B499,B499)=1,\"_\"&\"AUTO\"&COUNTIF($V$7:V498,\"*AUTO*\"),\"\")))","v":""},"",""]
[null,null,null,null,null,null,null,null,null,null,null,null,null,null,null,null,null,null,null,null,null,{"$f":"IF(AND(C500=\"Terminé\",COUNTIF(B500,\"*Virement*\")),\"VIR\"&COUNTIF($V$7:V499,\"VIR*\"),IF(COUNTIF(B500,\"*Virement*\"),\"\",IF(COUNTIF($B$8:B500,B500)=1,\"_\"&\"AUTO\"&COUNTIF($V$7:V499,\"*AUTO*\"),\"\")))","v":""},"",""]
[null,null,null,null,null,null,null,null,null,null,null,null,null,null,null,null,null,null,null,null,null,{"$f":"IF(AND(C501=\"Terminé\",COUNTIF(B501,\"*Virement*\")),\"VIR\"&COUNTIF($V$7:V500,\"VIR*\"),IF(COUNTIF(B501,\"*Virement*\"),\"\",IF(COUNTIF($B$8:B501,B501)=1,\"_\"&\"AUTO\"&COUNTIF($V$7:V500,\"*AUTO*\"),\"\")))","v":""},"",""]
[null,null,null,null,null,null,null,null,null,null,null,null,null,null,null,null,null,null,null,null,null,{"$f":"IF(AND(C502=\"Terminé\",COUNTIF(B502,\"*Virement*\")),\"VIR\"&COUNTIF($V$7:V501,\"VIR*\"),IF(COUNTIF(B502,\"*Virement*\"),\"\",IF(COUNTIF($B$8:B502,B502)=1,\"_\"&\"AUTO\"&COUNTIF($V$7:V501,\"*AUTO*\"),\"\")))","v":""},"",""]
[null,null,null,null,null,null,null,null,null,null,null,null,null,null,null,null,null,null,null,null,null,{"$f":"IF(AND(C503=\"Terminé\",COUNTIF(B503,\"*Virement*\")),\"VIR\"&COUNTIF($V$7:V502,\"VIR*\"),IF(COUNTIF(B503,\"*Virement*\"),\"\",IF(COUNTIF($B$8:B503,B503)=1,\"_\"&\"AUTO\"&COUNTIF($V$7:V502,\"*AUTO*\"),\"\")))","v":""},"",""]
[null,null,null,null,null,null,null,null,null,null,null,null,null,null,null,null,null,null,null,null,null,{"$f":"IF(AND(C504=\"Terminé\",COUNTIF(B504,\"*Virement*\")),\"VIR\"&COUNTIF($V$7:V503,\"VIR*\"),IF(COUNTIF(B504,\"*Virement*\"),\"\",IF(COUNTIF($B$8:B504,B504)=1,\"_\"&\"AUTO\"&COUNTIF($V$7:V503,\"*AUTO*\"),\"\")))","v":""},"",""]
[null,null,null,null,null,null,null,null,null,null,null,null,null,null,null,null,null,null,null,null,null,{"$f":"IF(AND(C505=\"Terminé\",COUNTIF(B505,\"*Virement*\")),\"VIR\"&COUNTIF($V$7:V504,\"VIR*\"),IF(COUNTIF(B505,\"*Virement*\"),\"\",IF(COUNTIF($B$8:B505,B505)=1,\"_\"&\"AUTO\"&COUNTIF($V$7:V504,\"*AUTO*\"),\"\")))","v":""},"",""]
[null,null,null,null,null,null,null,null,null,null,null,null,null,null,null,null,null,null,null,null,null,{"$f":"IF(AND(C506=\"Terminé\",COUNTIF(B506,\"*Virement*\")),\"VIR\"&COUNTIF($V$7:V505,\"VIR*\"),IF(COUNTIF(B506,\"*Virement*\"),\"\",IF(COUNTIF($B$8:B506,B506)=1,\"_\"&\"AUTO\"&COUNTIF($V$7:V505,\"*AUTO*\"),\"\")))","v":""},"",""]
[null,null,null,null,null,null,null,null,null,null,null,null,null,null,null,null,null,null,null,null,null,{"$f":"IF(AND(C507=\"Terminé\",COUNTIF(B507,\"*Virement*\")),\"VIR\"&COUNTIF($V$7:V506,\"VIR*\"),IF(COUNTIF(B507,\"*Virement*\"),\"\",IF(COUNTIF($B$8:B507,B507)=1,\"_\"&\"AUTO\"&COUNTIF($V$7:V506,\"*AUTO*\"),\"\")))","v":""},"",""]
[null,null,null,null,null,null,null,null,null,null,null,null,null,null,null,null,null,null,null,null,null,{"$f":"IF(AND(C508=\"Terminé\",COUNTIF(B508,\"*Virement*\")),\"VIR\"&COUNTIF($V$7:V507,\"VIR*\"),IF(COUNTIF(B508,\"*Virement*\"),\"\",IF(COUNTIF($B$8:B508,B508)=1,\"_\"&\"AUTO\"&COUNTIF($V$7:V507,\"*AUTO*\"),\"\")))","v":""},"",""]
[null,null,null,null,null,null,null,null,null,null,null,null,null,null,null,null,null,null,null,null,null,{"$f":"IF(AND(C509=\"Terminé\",COUNTIF(B509,\"*Virement*\")),\"VIR\"&COUNTIF($V$7:V508,\"VIR*\"),IF(COUNTIF(B509,\"*Virement*\"),\"\",IF(COUNTIF($B$8:B509,B509)=1,\"_\"&\"AUTO\"&COUNTIF($V$7:V508,\"*AUTO*\"),\"\")))","v":""},"",""]
[null,null,null,null,null,null,null,null,null,null,null,null,null,null,null,null,null,null,null,null,null,{"$f":"IF(AND(C510=\"Terminé\",COUNTIF(B510,\"*Virement*\")),\"VIR\"&COUNTIF($V$7:V509,\"VIR*\"),IF(COUNTIF(B510,\"*Virement*\"),\"\",IF(COUNTIF($B$8:B510,B510)=1,\"_\"&\"AUTO\"&COUNTIF($V$7:V509,\"*AUTO*\"),\"\")))","v":""},"",""]
[null,null,null,null,null,null,null,null,null,null,null,null,null,null,null,null,null,null,null,null,null,{"$f":"IF(AND(C511=\"Terminé\",COUNTIF(B511,\"*Virement*\")),\"VIR\"&COUNTIF($V$7:V510,\"VIR*\"),IF(COUNTIF(B511,\"*Virement*\"),\"\",IF(COUNTIF($B$8:B511,B511)=1,\"_\"&\"AUTO\"&COUNTIF($V$7:V510,\"*AUTO*\"),\"\")))","v":""},"",""]
[null,null,null,null,null,null,null,null,null,null,null,null,null,null,null,null,null,null,null,null,null,{"$f":"IF(AND(C512=\"Terminé\",COUNTIF(B512,\"*Virement*\")),\"VIR\"&COUNTIF($V$7:V511,\"VIR*\"),IF(COUNTIF(B512,\"*Virement*\"),\"\",IF(COUNTIF($B$8:B512,B512)=1,\"_\"&\"AUTO\"&COUNTIF($V$7:V511,\"*AUTO*\"),\"\")))","v":""},"",""]
[null,null,null,null,null,null,null,null,null,null,null,null,null,null,null,null,null,null,null,null,null,{"$f":"IF(AND(C513=\"Terminé\",COUNTIF(B513,\"*Virement*\")),\"VIR\"&COUNTIF($V$7:V512,\"VIR*\"),IF(COUNTIF(B513,\"*Virement*\"),\"\",IF(COUNTIF($B$8:B513,B513)=1,\"_\"&\"AUTO\"&COUNTIF($V$7:V512,\"*AUTO*\"),\"\")))","v":""},"",""]
[null,null,null,null,null,null,null,null,null,null,null,null,null,null,null,null,null,null,null,null,null,{"$f":"IF(AND(C514=\"Terminé\",COUNTIF(B514,\"*Virement*\")),\"VIR\"&COUNTIF($V$7:V513,\"VIR*\"),IF(COUNTIF(B514,\"*Virement*\"),\"\",IF(COUNTIF($B$8:B514,B514)=1,\"_\"&\"AUTO\"&COUNTIF($V$7:V513,\"*AUTO*\"),\"\")))","v":""},"",""]
[null,null,null,null,null,null,null,null,null,null,null,null,null,null,null,null,null,null,null,null,null,{"$f":"IF(AND(C515=\"Terminé\",COUNTIF(B515,\"*Virement*\")),\"VIR\"&COUNTIF($V$7:V514,\"VIR*\"),IF(COUNTIF(B515,\"*Virement*\"),\"\",IF(COUNTIF($B$8:B515,B515)=1,\"_\"&\"AUTO\"&COUNTIF($V$7:V514,\"*AUTO*\"),\"\")))","v":""},"",""]
[null,null,null,null,null,null,null,null,null,null,null,null,null,null,null,null,null,null,null,null,null,{"$f":"IF(AND(C516=\"Terminé\",COUNTIF(B516,\"*Virement*\")),\"VIR\"&COUNTIF($V$7:V515,\"VIR*\"),IF(COUNTIF(B516,\"*Virement*\"),\"\",IF(COUNTIF($B$8:B516,B516)=1,\"_\"&\"AUTO\"&COUNTIF($V$7:V515,\"*AUTO*\"),\"\")))","v":""},"",""]
[null,null,null,null,null,null,null,null,null,null,null,null,null,null,null,null,null,null,null,null,null,{"$f":"IF(AND(C517=\"Terminé\",COUNTIF(B517,\"*Virement*\")),\"VIR\"&COUNTIF($V$7:V516,\"VIR*\"),IF(COUNTIF(B517,\"*Virement*\"),\"\",IF(COUNTIF($B$8:B517,B517)=1,\"_\"&\"AUTO\"&COUNTIF($V$7:V516,\"*AUTO*\"),\"\")))","v":""},"",""]
[null,null,null,null,null,null,null,null,null,null,null,null,null,null,null,null,null,null,null,null,null,{"$f":"IF(AND(C518=\"Terminé\",COUNTIF(B518,\"*Virement*\")),\"VIR\"&COUNTIF($V$7:V517,\"VIR*\"),IF(COUNTIF(B518,\"*Virement*\"),\"\",IF(COUNTIF($B$8:B518,B518)=1,\"_\"&\"AUTO\"&COUNTIF($V$7:V517,\"*AUTO*\"),\"\")))","v":""},"",""]
[null,null,null,null,null,null,null,null,null,null,null,null,null,null,null,null,null,null,null,null,null,{"$f":"IF(AND(C519=\"Terminé\",COUNTIF(B519,\"*Virement*\")),\"VIR\"&COUNTIF($V$7:V518,\"VIR*\"),IF(COUNTIF(B519,\"*Virement*\"),\"\",IF(COUNTIF($B$8:B519,B519)=1,\"_\"&\"AUTO\"&COUNTIF($V$7:V518,\"*AUTO*\"),\"\")))","v":""},"",""]
[null,null,null,null,null,null,null,null,null,null,null,null,null,null,null,null,null,null,null,null,null,{"$f":"IF(AND(C520=\"Terminé\",COUNTIF(B520,\"*Virement*\")),\"VIR\"&COUNTIF($V$7:V519,\"VIR*\"),IF(COUNTIF(B520,\"*Virement*\"),\"\",IF(COUNTIF($B$8:B520,B520)=1,\"_\"&\"AUTO\"&COUNTIF($V$7:V519,\"*AUTO*\"),\"\")))","v":""},"",""]
[null,null,null,null,null,null,null,null,null,null,null,null,null,null,null,null,null,null,null,null,null,{"$f":"IF(AND(C521=\"Terminé\",COUNTIF(B521,\"*Virement*\")),\"VIR\"&COUNTIF($V$7:V520,\"VIR*\"),IF(COUNTIF(B521,\"*Virement*\"),\"\",IF(COUNTIF($B$8:B521,B521)=1,\"_\"&\"AUTO\"&COUNTIF($V$7:V520,\"*AUTO*\"),\"\")))","v":""},{"$f":"IFERROR(INDEX(B:B,MATCH(\"VIR\"&ROW()-8,V:V,0)),\"\")","v":""},{"$f":"IFERROR(INDEX($B:$B,MATCH(\"*AUTO*\"&ROW()-8,$V:$V,0)),\"\")","v":""}]
[null,null,null,null,null,null,null,null,null,null,null,null,null,null,null,null,null,null,null,null,null,{"$f":"IF(AND(C522=\"Terminé\",COUNTIF(B522,\"*Virement*\")),\"VIR\"&COUNTIF($V$7:V521,\"VIR*\"),IF(COUNTIF(B522,\"*Virement*\"),\"\",IF(COUNTIF($B$8:B522,B522)=1,\"_\"&\"AUTO\"&COUNTIF($V$7:V521,\"*AUTO*\"),\"\")))","v":""},"",""]
[null,null,null,null,null,null,null,null,null,null,null,null,null,null,null,null,null,null,null,null,null,{"$f":"IF(AND(C523=\"Terminé\",COUNTIF(B523,\"*Virement*\")),\"VIR\"&COUNTIF($V$7:V522,\"VIR*\"),IF(COUNTIF(B523,\"*Virement*\"),\"\",IF(COUNTIF($B$8:B523,B523)=1,\"_\"&\"AUTO\"&COUNTIF($V$7:V522,\"*AUTO*\"),\"\")))","v":""},"",""]
[null,null,null,null,null,null,null,null,null,null,null,null,null,null,null,null,null,null,null,null,null,{"$f":"IF(AND(C524=\"Terminé\",COUNTIF(B524,\"*Virement*\")),\"VIR\"&COUNTIF($V$7:V523,\"VIR*\"),IF(COUNTIF(B524,\"*Virement*\"),\"\",IF(COUNTIF($B$8:B524,B524)=1,\"_\"&\"AUTO\"&COUNTIF($V$7:V523,\"*AUTO*\"),\"\")))","v":""},"",""]
[null,null,null,null,null,null,null,null,null,null,null,null,null,null,null,null,null,null,null,null,null,{"$f":"IF(AND(C525=\"Terminé\",COUNTIF(B525,\"*Virement*\")),\"VIR\"&COUNTIF($V$7:V524,\"VIR*\"),IF(COUNTIF(B525,\"*Virement*\"),\"\",IF(COUNTIF($B$8:B525,B525)=1,\"_\"&\"AUTO\"&COUNTIF($V$7:V524,\"*AUTO*\"),\"\")))","v":""},"",""]
[null,null,null,null,null,null,null,null,null,null,null,null,null,null,null,null,null,null,null,null,null,{"$f":"IF(AND(C526=\"Terminé\",COUNTIF(B526,\"*Virement*\")),\"VIR\"&COUNTIF($V$7:V525,\"VIR*\"),IF(COUNTIF(B526,\"*Virement*\"),\"\",IF(COUNTIF($B$8:B526,B526)=1,\"_\"&\"AUTO\"&COUNTIF($V$7:V525,\"*AUTO*\"),\"\")))","v":""},"",""]
[null,null,null,null,null,null,null,null,null,null,null,null,null,null,null,null,null,null,null,null,null,{"$f":"IF(AND(C527=\"Terminé\",COUNTIF(B527,\"*Virement*\")),\"VIR\"&COUNTIF($V$7:V526,\"VIR*\"),IF(COUNTIF(B527,\"*Virement*\"),\"\",IF(COUNTIF($B$8:B527,B527)=1,\"_\"&\"AUTO\"&COUNTIF($V$7:V526,\"*AUTO*\"),\"\")))","v":""},"",""]
[null,null,null,null,null,null,null,null,null,null,null,null,null,null,null,null,null,null,null,null,null,{"$f":"IF(AND(C528=\"Terminé\",COUNTIF(B528,\"*Virement*\")),\"VIR\"&COUNTIF($V$7:V527,\"VIR*\"),IF(COUNTIF(B528,\"*Virement*\"),\"\",IF(COUNTIF($B$8:B528,B528)=1,\"_\"&\"AUTO\"&COUNTIF($V$7:V527,\"*AUTO*\"),\"\")))","v":""},"",""]
[null,null,null,null,null,null,null,null,null,null,null,null,null,null,null,null,null,null,null,null,null,{"$f":"IF(AND(C529=\"Terminé\",COUNTIF(B529,\"*Virement*\")),\"VIR\"&COUNTIF($V$7:V528,\"VIR*\"),IF(COUNTIF(B529,\"*Virement*\"),\"\",IF(COUNTIF($B$8:B529,B529)=1,\"_\"&\"AUTO\"&COUNTIF($V$7:V528,\"*AUTO*\"),\"\")))","v":""},"",""]
[null,null,null,null,null,null,null,null,null,null,null,null,null,null,null,null,null,null,null,null,null,{"$f":"IF(AND(C530=\"Terminé\",COUNTIF(B530,\"*Virement*\")),\"VIR\"&COUNTIF($V$7:V529,\"VIR*\"),IF(COUNTIF(B530,\"*Virement*\"),\"\",IF(COUNTIF($B$8:B530,B530)=1,\"_\"&\"AUTO\"&COUNTIF($V$7:V529,\"*AUTO*\"),\"\")))","v":""},"",""]
[null,null,null,null,null,null,null,null,null,null,null,null,null,null,null,null,null,null,null,null,null,{"$f":"IF(AND(C531=\"Terminé\",COUNTIF(B531,\"*Virement*\")),\"VIR\"&COUNTIF($V$7:V530,\"VIR*\"),IF(COUNTIF(B531,\"*Virement*\"),\"\",IF(COUNTIF($B$8:B531,B531)=1,\"_\"&\"AUTO\"&COUNTIF($V$7:V530,\"*AUTO*\"),\"\")))","v":""},"",""]
[null,null,null,null,null,null,null,null,null,null,null,null,null,null,null,null,null,null,null,null,null,{"$f":"IF(AND(C532=\"Terminé\",COUNTIF(B532,\"*Virement*\")),\"VIR\"&COUNTIF($V$7:V531,\"VIR*\"),IF(COUNTIF(B532,\"*Virement*\"),\"\",IF(COUNTIF($B$8:B532,B532)=1,\"_\"&\"AUTO\"&COUNTIF($V$7:V531,\"*AUTO*\"),\"\")))","v":""},"",""]
[null,null,null,null,null,null,null,null,null,null,null,null,null,null,null,null,null,null,null,null,null,{"$f":"IF(AND(C533=\"Terminé\",COUNTIF(B533,\"*Virement*\")),\"VIR\"&COUNTIF($V$7:V532,\"VIR*\"),IF(COUNTIF(B533,\"*Virement*\"),\"\",IF(COUNTIF($B$8:B533,B533)=1,\"_\"&\"AUTO\"&COUNTIF($V$7:V532,\"*AUTO*\"),\"\")))","v":""},"",""]
[null,null,null,null,null,null,null,null,null,null,null,null,null,null,null,null,null,null,null,null,null,{"$f":"IF(AND(C534=\"Terminé\",COUNTIF(B534,\"*Virement*\")),\"VIR\"&COUNTIF($V$7:V533,\"VIR*\"),IF(COUNTIF(B534,\"*Virement*\"),\"\",IF(COUNTIF($B$8:B534,B534)=1,\"_\"&\"AUTO\"&COUNTIF($V$7:V533,\"*AUTO*\"),\"\")))","v":""},"",""]
[null,null,null,null,null,null,null,null,null,null,null,null,null,null,null,null,null,null,null,null,null,{"$f":"IF(AND(C535=\"Terminé\",COUNTIF(B535,\"*Virement*\")),\"VIR\"&COUNTIF($V$7:V534,\"VIR*\"),IF(COUNTIF(B535,\"*Virement*\"),\"\",IF(COUNTIF($B$8:B535,B535)=1,\"_\"&\"AUTO\"&COUNTIF($V$7:V534,\"*AUTO*\"),\"\")))","v":""},"",""]
[null,null,null,null,null,null,null,null,null,null,null,null,null,null,null,null,null,null,null,null,null,{"$f":"IF(AND(C536=\"Terminé\",COUNTIF(B536,\"*Virement*\")),\"VIR\"&COUNTIF($V$7:V535,\"VIR*\"),IF(COUNTIF(B536,\"*Virement*\"),\"\",IF(COUNTIF($B$8:B536,B536)=1,\"_\"&\"AUTO\"&COUNTIF($V$7:V535,\"*AUTO*\"),\"\")))","v":""},"",""]
[null,null,null,null,null,null,null,null,null,null,null,null,null,null,null,null,null,null,null,null,null,{"$f":"IF(AND(C537=\"Terminé\",COUNTIF(B537,\"*Virement*\")),\"VIR\"&COUNTIF($V$7:V536,\"VIR*\"),IF(COUNTIF(B537,\"*Virement*\"),\"\",IF(COUNTIF($B$8:B537,B537)=1,\"_\"&\"AUTO\"&COUNTIF($V$7:V536,\"*AUTO*\"),\"\")))","v":""},"",""]
[null,null,null,null,null,null,null,null,null,null,null,null,null,null,null,null,null,null,null,null,null,{"$f":"IF(AND(C538=\"Terminé\",COUNTIF(B538,\"*Virement*\")),\"VIR\"&COUNTIF($V$7:V537,\"VIR*\"),IF(COUNTIF(B538,\"*Virement*\"),\"\",IF(COUNTIF($B$8:B538,B538)=1,\"_\"&\"AUTO\"&COUNTIF($V$7:V537,\"*AUTO*\"),\"\")))","v":""},"",""]
[null,null,null,null,null,null,null,null,null,null,null,null,null,null,null,null,null,null,null,null,null,{"$f":"IF(AND(C539=\"Terminé\",COUNTIF(B539,\"*Virement*\")),\"VIR\"&COUNTIF($V$7:V538,\"VIR*\"),IF(COUNTIF(B539,\"*Virement*\"),\"\",IF(COUNTIF($B$8:B539,B539)=1,\"_\"&\"AUTO\"&COUNTIF($V$7:V538,\"*AUTO*\"),\"\")))","v":""},"",""]
[null,null,null,null,null,null,null,null,null,null,null,null,null,null,null,null,null,null,null,null,null,{"$f":"IF(AND(C540=\"Terminé\",COUNTIF(B540,\"*Virement*\")),\"VIR\"&COUNTIF($V$7:V539,\"VIR*\"),IF(COUNTIF(B540,\"*Virement*\"),\"\",IF(COUNTIF($B$8:B540,B540)=1,\"_\"&\"AUTO\"&COUNTIF($V$7:V539,\"*AUTO*\"),\"\")))","v":""},"",""]
[null,null,null,null,null,null,null,null,null,null,null,null,null,null,null,null,null,null,null,null,null,{"$f":"IF(AND(C541=\"Terminé\",COUNTIF(B541,\"*Virement*\")),\"VIR\"&COUNTIF($V$7:V540,\"VIR*\"),IF(COUNTIF(B541,\"*Virement*\"),\"\",IF(COUNTIF($B$8:B541,B541)=1,\"_\"&\"AUTO\"&COUNTIF($V$7:V540,\"*AUTO*\"),\"\")))","v":""},"",""]
[null,null,null,null,null,null,null,null,null,null,null,null,null,null,null,null,null,null,null,null,null,{"$f":"IF(AND(C542=\"Terminé\",COUNTIF(B542,\"*Virement*\")),\"VIR\"&COUNTIF($V$7:V541,\"VIR*\"),IF(COUNTIF(B542,\"*Virement*\"),\"\",IF(COUNTIF($B$8:B542,B542)=1,\"_\"&\"AUTO\"&COUNTIF($V$7:V541,\"*AUTO*\"),\"\")))","v":""},"",""]
[null,null,null,null,null,null,null,null,null,null,null,null,null,null,null,null,null,null,null,null,null,{"$f":"IF(AND(C543=\"Terminé\",COUNTIF(B543,\"*Virement*\")),\"VIR\"&COUNTIF($V$7:V542,\"VIR*\"),IF(COUNTIF(B543,\"*Virement*\"),\"\",IF(COUNTIF($B$8:B543,B543)=1,\"_\"&\"AUTO\"&COUNTIF($V$7:V542,\"*AUTO*\"),\"\")))","v":""},"",""]
[null,null,null,null,null,null,null,null,null,null,null,null,null,null,null,null,null,null,null,null,null,{"$f":"IF(AND(C544=\"Terminé\",COUNTIF(B544,\"*Virement*\")),\"VIR\"&COUNTIF($V$7:V543,\"VIR*\"),IF(COUNTIF(B544,\"*Virement*\"),\"\",IF(COUNTIF($B$8:B544,B544)=1,\"_\"&\"AUTO\"&COUNTIF($V$7:V543,\"*AUTO*\"),\"\")))","v":""},"",""]
[null,null,null,null,null,null,null,null,null,null,null,null,null,null,null,null,null,null,null,null,null,{"$f":"IF(AND(C545=\"Terminé\",COUNTIF(B545,\"*Virement*\")),\"VIR\"&COUNTIF($V$7:V544,\"VIR*\"),IF(COUNTIF(B545,\"*Virement*\"),\"\",IF(COUNTIF($B$8:B545,B545)=1,\"_\"&\"AUTO\"&COUNTIF($V$7:V544,\"*AUTO*\"),\"\")))","v":""},"",""]
[null,null,null,null,null,null,null,null,null,null,null,null,null,null,null,null,null,null,null,null,null,{"$f":"IF(AND(C546=\"Terminé\",COUNTIF(B546,\"*Virement*\")),\"VIR\"&COUNTIF($V$7:V545,\"VIR*\"),IF(COUNTIF(B546,\"*Virement*\"),\"\",IF(COUNTIF($B$8:B546,B546)=1,\"_\"&\"AUTO\"&COUNTIF($V$7:V545,\"*AUTO*\"),\"\")))","v":""},"",""]
[null,null,null,null,null,null,null,null,null,null,null,null,null,null,null,null,null,null,null,null,null,{"$f":"IF(AND(C547=\"Terminé\",COUNTIF(B547,\"*Virement*\")),\"VIR\"&COUNTIF($V$7:V546,\"VIR*\"),IF(COUNTIF(B547,\"*Virement*\"),\"\",IF(COUNTIF($B$8:B547,B547)=1,\"_\"&\"AUTO\"&COUNTIF($V$7:V546,\"*AUTO*\"),\"\")))","v":""},"",""]
[null,null,null,null,null,null,null,null,null,null,null,null,null,null,null,null,null,null,null,null,null,{"$f":"IF(AND(C548=\"Terminé\",COUNTIF(B548,\"*Virement*\")),\"VIR\"&COUNTIF($V$7:V547,\"VIR*\"),IF(COUNTIF(B548,\"*Virement*\"),\"\",IF(COUNTIF($B$8:B548,B548)=1,\"_\"&\"AUTO\"&COUNTIF($V$7:V547,\"*AUTO*\"),\"\")))","v":""},"",""]
[null,null,null,null,null,null,null,null,null,null,null,null,null,null,null,null,null,null,null,null,null,{"$f":"IF(AND(C549=\"Terminé\",COUNTIF(B549,\"*Virement*\")),\"VIR\"&COUNTIF($V$7:V548,\"VIR*\"),IF(COUNTIF(B549,\"*Virement*\"),\"\",IF(COUNTIF($B$8:B549,B549)=1,\"_\"&\"AUTO\"&COUNTIF($V$7:V548,\"*AUTO*\"),\"\")))","v":""},"",""]
[null,null,null,null,null,null,null,null,null,null,null,null,null,null,null,null,null,null,null,null,null,{"$f":"IF(AND(C550=\"Terminé\",COUNTIF(B550,\"*Virement*\")),\"VIR\"&COUNTIF($V$7:V549,\"VIR*\"),IF(COUNTIF(B550,\"*Virement*\"),\"\",IF(COUNTIF($B$8:B550,B550)=1,\"_\"&\"AUTO\"&COUNTIF($V$7:V549,\"*AUTO*\"),\"\")))","v":""},"",""]
[null,null,null,null,null,null,null,null,null,null,null,null,null,null,null,null,null,null,null,null,null,{"$f":"IF(AND(C551=\"Terminé\",COUNTIF(B551,\"*Virement*\")),\"VIR\"&COUNTIF($V$7:V550,\"VIR*\"),IF(COUNTIF(B551,\"*Virement*\"),\"\",IF(COUNTIF($B$8:B551,B551)=1,\"_\"&\"AUTO\"&COUNTIF($V$7:V550,\"*AUTO*\"),\"\")))","v":""},"",""]
[null,null,null,null,null,null,null,null,null,null,null,null,null,null,null,null,null,null,null,null,null,{"$f":"IF(AND(C552=\"Terminé\",COUNTIF(B552,\"*Virement*\")),\"VIR\"&COUNTIF($V$7:V551,\"VIR*\"),IF(COUNTIF(B552,\"*Virement*\"),\"\",IF(COUNTIF($B$8:B552,B552)=1,\"_\"&\"AUTO\"&COUNTIF($V$7:V551,\"*AUTO*\"),\"\")))","v":""},"",""]
[null,null,null,null,null,null,null,null,null,null,null,null,null,null,null,null,null,null,null,null,null,{"$f":"IF(AND(C553=\"Terminé\",COUNTIF(B553,\"*Virement*\")),\"VIR\"&COUNTIF($V$7:V552,\"VIR*\"),IF(COUNTIF(B553,\"*Virement*\"),\"\",IF(COUNTIF($B$8:B553,B553)=1,\"_\"&\"AUTO\"&COUNTIF($V$7:V552,\"*AUTO*\"),\"\")))","v":""},"",""]
[null,null,null,null,null,null,null,null,null,null,null,null,null,null,null,null,null,null,null,null,null,{"$f":"IF(AND(C554=\"Terminé\",COUNTIF(B554,\"*Virement*\")),\"VIR\"&COUNTIF($V$7:V553,\"VIR*\"),IF(COUNTIF(B554,\"*Virement*\"),\"\",IF(COUNTIF($B$8:B554,B554)=1,\"_\"&\"AUTO\"&COUNTIF($V$7:V553,\"*AUTO*\"),\"\")))","v":""},"",""]
[null,null,null,null,null,null,null,null,null,null,null,null,null,null,null,null,null,null,null,null,null,{"$f":"IF(AND(C555=\"Terminé\",COUNTIF(B555,\"*Virement*\")),\"VIR\"&COUNTIF($V$7:V554,\"VIR*\"),IF(COUNTIF(B555,\"*Virement*\"),\"\",IF(COUNTIF($B$8:B555,B555)=1,\"_\"&\"AUTO\"&COUNTIF($V$7:V554,\"*AUTO*\"),\"\")))","v":""},"",""]
[null,null,null,null,null,null,null,null,null,null,null,null,null,null,null,null,null,null,null,null,null,{"$f":"IF(AND(C556=\"Terminé\",COUNTIF(B556,\"*Virement*\")),\"VIR\"&COUNTIF($V$7:V555,\"VIR*\"),IF(COUNTIF(B556,\"*Virement*\"),\"\",IF(COUNTIF($B$8:B556,B556)=1,\"_\"&\"AUTO\"&COUNTIF($V$7:V555,\"*AUTO*\"),\"\")))","v":""},"",""]
[null,null,null,null,null,null,null,null,null,null,null,null,null,null,null,null,null,null,null,null,null,{"$f":"IF(AND(C557=\"Terminé\",COUNTIF(B557,\"*Virement*\")),\"VIR\"&COUNTIF($V$7:V556,\"VIR*\"),IF(COUNTIF(B557,\"*Virement*\"),\"\",IF(COUNTIF($B$8:B557,B557)=1,\"_\"&\"AUTO\"&COUNTIF($V$7:V556,\"*AUTO*\"),\"\")))","v":""},"",""]
[null,null,null,null,null,null,null,null,null,null,null,null,null,null,null,null,null,null,null,null,null,{"$f":"IF(AND(C558=\"Terminé\",COUNTIF(B558,\"*Virement*\")),\"VIR\"&COUNTIF($V$7:V557,\"VIR*\"),IF(COUNTIF(B558,\"*Virement*\"),\"\",IF(COUNTIF($B$8:B558,B558)=1,\"_\"&\"AUTO\"&COUNTIF($V$7:V557,\"*AUTO*\"),\"\")))","v":""},"",""]
[null,null,null,null,null,null,null,null,null,null,null,null,null,null,null,null,null,null,null,null,null,{"$f":"IF(AND(C559=\"Terminé\",COUNTIF(B559,\"*Virement*\")),\"VIR\"&COUNTIF($V$7:V558,\"VIR*\"),IF(COUNTIF(B559,\"*Virement*\"),\"\",IF(COUNTIF($B$8:B559,B559)=1,\"_\"&\"AUTO\"&COUNTIF($V$7:V558,\"*AUTO*\"),\"\")))","v":""},"",""]
[null,null,null,null,null,null,null,null,null,null,null,null,null,null,null,null,null,null,null,null,null,{"$f":"IF(AND(C560=\"Terminé\",COUNTIF(B560,\"*Virement*\")),\"VIR\"&COUNTIF($V$7:V559,\"VIR*\"),IF(COUNTIF(B560,\"*Virement*\"),\"\",IF(COUNTIF($B$8:B560,B560)=1,\"_\"&\"AUTO\"&COUNTIF($V$7:V559,\"*AUTO*\"),\"\")))","v":""},"",""]
[null,null,null,null,null,null,null,null,null,null,null,null,null,null,null,null,null,null,null,null,null,{"$f":"IF(AND(C561=\"Terminé\",COUNTIF(B561,\"*Virement*\")),\"VIR\"&COUNTIF($V$7:V560,\"VIR*\"),IF(COUNTIF(B561,\"*Virement*\"),\"\",IF(COUNTIF($B$8:B561,B561)=1,\"_\"&\"AUTO\"&COUNTIF($V$7:V560,\"*AUTO*\"),\"\")))","v":""},"",""]
[null,null,null,null,null,null,null,null,null,null,null,null,null,null,null,null,null,null,null,null,null,{"$f":"IF(AND(C562=\"Terminé\",COUNTIF(B562,\"*Virement*\")),\"VIR\"&COUNTIF($V$7:V561,\"VIR*\"),IF(COUNTIF(B562,\"*Virement*\"),\"\",IF(COUNTIF($B$8:B562,B562)=1,\"_\"&\"AUTO\"&COUNTIF($V$7:V561,\"*AUTO*\"),\"\")))","v":""},"",""]
[null,null,null,null,null,null,null,null,null,null,null,null,null,null,null,null,null,null,null,null,null,{"$f":"IF(AND(C563=\"Terminé\",COUNTIF(B563,\"*Virement*\")),\"VIR\"&COUNTIF($V$7:V562,\"VIR*\"),IF(COUNTIF(B563,\"*Virement*\"),\"\",IF(COUNTIF($B$8:B563,B563)=1,\"_\"&\"AUTO\"&COUNTIF($V$7:V562,\"*AUTO*\"),\"\")))","v":""},"",""]
[null,null,null,null,null,null,null,null,null,null,null,null,null,null,null,null,null,null,null,null,null,{"$f":"IF(AND(C564=\"Terminé\",COUNTIF(B564,\"*Virement*\")),\"VIR\"&COUNTIF($V$7:V563,\"VIR*\"),IF(COUNTIF(B564,\"*Virement*\"),\"\",IF(COUNTIF($B$8:B564,B564)=1,\"_\"&\"AUTO\"&COUNTIF($V$7:V563,\"*AUTO*\"),\"\")))","v":""},"",""]
[null,null,null,null,null,null,null,null,null,null,null,null,null,null,null,null,null,null,null,null,null,{"$f":"IF(AND(C565=\"Terminé\",COUNTIF(B565,\"*Virement*\")),\"VIR\"&COUNTIF($V$7:V564,\"VIR*\"),IF(COUNTIF(B565,\"*Virement*\"),\"\",IF(COUNTIF($B$8:B565,B565)=1,\"_\"&\"AUTO\"&COUNTIF($V$7:V564,\"*AUTO*\"),\"\")))","v":""},"",""]
[null,null,null,null,null,null,null,null,null,null,null,null,null,null,null,null,null,null,null,null,null,{"$f":"IF(AND(C566=\"Terminé\",COUNTIF(B566,\"*Virement*\")),\"VIR\"&COUNTIF($V$7:V565,\"VIR*\"),IF(COUNTIF(B566,\"*Virement*\"),\"\",IF(COUNTIF($B$8:B566,B566)=1,\"_\"&\"AUTO\"&COUNTIF($V$7:V565,\"*AUTO*\"),\"\")))","v":""},"",""]
[null,null,null,null,null,null,null,null,null,null,null,null,null,null,null,null,null,null,null,null,null,{"$f":"IF(AND(C567=\"Terminé\",COUNTIF(B567,\"*Virement*\")),\"VIR\"&COUNTIF($V$7:V566,\"VIR*\"),IF(COUNTIF(B567,\"*Virement*\"),\"\",IF(COUNTIF($B$8:B567,B567)=1,\"_\"&\"AUTO\"&COUNTIF($V$7:V566,\"*AUTO*\"),\"\")))","v":""},"",""]
[null,null,null,null,null,null,null,null,null,null,null,null,null,null,null,null,null,null,null,null,null,{"$f":"IF(AND(C568=\"Terminé\",COUNTIF(B568,\"*Virement*\")),\"VIR\"&COUNTIF($V$7:V567,\"VIR*\"),IF(COUNTIF(B568,\"*Virement*\"),\"\",IF(COUNTIF($B$8:B568,B568)=1,\"_\"&\"AUTO\"&COUNTIF($V$7:V567,\"*AUTO*\"),\"\")))","v":""},"",""]
[null,null,null,null,null,null,null,null,null,null,null,null,null,null,null,null,null,null,null,null,null,{"$f":"IF(AND(C569=\"Terminé\",COUNTIF(B569,\"*Virement*\")),\"VIR\"&COUNTIF($V$7:V568,\"VIR*\"),IF(COUNTIF(B569,\"*Virement*\"),\"\",IF(COUNTIF($B$8:B569,B569)=1,\"_\"&\"AUTO\"&COUNTIF($V$7:V568,\"*AUTO*\"),\"\")))","v":""},"",""]
[null,null,null,null,null,null,null,null,null,null,null,null,null,null,null,null,null,null,null,null,null,{"$f":"IF(AND(C570=\"Terminé\",COUNTIF(B570,\"*Virement*\")),\"VIR\"&COUNTIF($V$7:V569,\"VIR*\"),IF(COUNTIF(B570,\"*Virement*\"),\"\",IF(COUNTIF($B$8:B570,B570)=1,\"_\"&\"AUTO\"&COUNTIF($V$7:V569,\"*AUTO*\"),\"\")))","v":""},"",""]
[null,null,null,null,null,null,null,null,null,null,null,null,null,null,null,null,null,null,null,null,null,{"$f":"IF(AND(C571=\"Terminé\",COUNTIF(B571,\"*Virement*\")),\"VIR\"&COUNTIF($V$7:V570,\"VIR*\"),IF(COUNTIF(B571,\"*Virement*\"),\"\",IF(COUNTIF($B$8:B571,B571)=1,\"_\"&\"AUTO\"&COUNTIF($V$7:V570,\"*AUTO*\"),\"\")))","v":""},"",""]
[null,null,null,null,null,null,null,null,null,null,null,null,null,null,null,null,null,null,null,null,null,{"$f":"IF(AND(C572=\"Terminé\",COUNTIF(B572,\"*Virement*\")),\"VIR\"&COUNTIF($V$7:V571,\"VIR*\"),IF(COUNTIF(B572,\"*Virement*\"),\"\",IF(COUNTIF($B$8:B572,B572)=1,\"_\"&\"AUTO\"&COUNTIF($V$7:V571,\"*AUTO*\"),\"\")))","v":""},"",""]
[null,null,null,null,null,null,null,null,null,null,null,null,null,null,null,null,null,null,null,null,null,{"$f":"IF(AND(C573=\"Terminé\",COUNTIF(B573,\"*Virement*\")),\"VIR\"&COUNTIF($V$7:V572,\"VIR*\"),IF(COUNTIF(B573,\"*Virement*\"),\"\",IF(COUNTIF($B$8:B573,B573)=1,\"_\"&\"AUTO\"&COUNTIF($V$7:V572,\"*AUTO*\"),\"\")))","v":""},"",""]
[null,null,null,null,null,null,null,null,null,null,null,null,null,null,null,null,null,null,null,null,null,{"$f":"IF(AND(C574=\"Terminé\",COUNTIF(B574,\"*Virement*\")),\"VIR\"&COUNTIF($V$7:V573,\"VIR*\"),IF(COUNTIF(B574,\"*Virement*\"),\"\",IF(COUNTIF($B$8:B574,B574)=1,\"_\"&\"AUTO\"&COUNTIF($V$7:V573,\"*AUTO*\"),\"\")))","v":""},"",""]
[null,null,null,null,null,null,null,null,null,null,null,null,null,null,null,null,null,null,null,null,null,{"$f":"IF(AND(C575=\"Terminé\",COUNTIF(B575,\"*Virement*\")),\"VIR\"&COUNTIF($V$7:V574,\"VIR*\"),IF(COUNTIF(B575,\"*Virement*\"),\"\",IF(COUNTIF($B$8:B575,B575)=1,\"_\"&\"AUTO\"&COUNTIF($V$7:V574,\"*AUTO*\"),\"\")))","v":""},"",""]
[null,null,null,null,null,null,null,null,null,null,null,null,null,null,null,null,null,null,null,null,null,{"$f":"IF(AND(C576=\"Terminé\",COUNTIF(B576,\"*Virement*\")),\"VIR\"&COUNTIF($V$7:V575,\"VIR*\"),IF(COUNTIF(B576,\"*Virement*\"),\"\",IF(COUNTIF($B$8:B576,B576)=1,\"_\"&\"AUTO\"&COUNTIF($V$7:V575,\"*AUTO*\"),\"\")))","v":""},"",""]
[null,null,null,null,null,null,null,null,null,null,null,null,null,null,null,null,null,null,null,null,null,{"$f":"IF(AND(C577=\"Terminé\",COUNTIF(B577,\"*Virement*\")),\"VIR\"&COUNTIF($V$7:V576,\"VIR*\"),IF(COUNTIF(B577,\"*Virement*\"),\"\",IF(COUNTIF($B$8:B577,B577)=1,\"_\"&\"AUTO\"&COUNTIF($V$7:V576,\"*AUTO*\"),\"\")))","v":""},"",""]
[null,null,null,null,null,null,null,null,null,null,null,null,null,null,null,null,null,null,null,null,null,{"$f":"IF(AND(C578=\"Terminé\",COUNTIF(B578,\"*Virement*\")),\"VIR\"&COUNTIF($V$7:V577,\"VIR*\"),IF(COUNTIF(B578,\"*Virement*\"),\"\",IF(COUNTIF($B$8:B578,B578)=1,\"_\"&\"AUTO\"&COUNTIF($V$7:V577,\"*AUTO*\"),\"\")))","v":""},"",""]
[null,null,null,null,null,null,null,null,null,null,null,null,null,null,null,null,null,null,null,null,null,{"$f":"IF(AND(C579=\"Terminé\",COUNTIF(B579,\"*Virement*\")),\"VIR\"&COUNTIF($V$7:V578,\"VIR*\"),IF(COUNTIF(B579,\"*Virement*\"),\"\",IF(COUNTIF($B$8:B579,B579)=1,\"_\"&\"AUTO\"&COUNTIF($V$7:V578,\"*AUTO*\"),\"\")))","v":""},"",""]
[null,null,null,null,null,null,null,null,null,null,null,null,null,null,null,null,null,null,null,null,null,{"$f":"IF(AND(C580=\"Terminé\",COUNTIF(B580,\"*Virement*\")),\"VIR\"&COUNTIF($V$7:V579,\"VIR*\"),IF(COUNTIF(B580,\"*Virement*\"),\"\",IF(COUNTIF($B$8:B580,B580)=1,\"_\"&\"AUTO\"&COUNTIF($V$7:V579,\"*AUTO*\"),\"\")))","v":""},"",""]
[null,null,null,null,null,null,null,null,null,null,null,null,null,null,null,null,null,null,null,null,null,{"$f":"IF(AND(C581=\"Terminé\",COUNTIF(B581,\"*Virement*\")),\"VIR\"&COUNTIF($V$7:V580,\"VIR*\"),IF(COUNTIF(B581,\"*Virement*\"),\"\",IF(COUNTIF($B$8:B581,B581)=1,\"_\"&\"AUTO\"&COUNTIF($V$7:V580,\"*AUTO*\"),\"\")))","v":""},"",""]
[null,null,null,null,null,null,null,null,null,null,null,null,null,null,null,null,null,null,null,null,null,{"$f":"IF(AND(C582=\"Terminé\",COUNTIF(B582,\"*Virement*\")),\"VIR\"&COUNTIF($V$7:V581,\"VIR*\"),IF(COUNTIF(B582,\"*Virement*\"),\"\",IF(COUNTIF($B$8:B582,B582)=1,\"_\"&\"AUTO\"&COUNTIF($V$7:V581,\"*AUTO*\"),\"\")))","v":""},"",""]
[null,null,null,null,null,null,null,null,null,null,null,null,null,null,null,null,null,null,null,null,null,{"$f":"IF(AND(C583=\"Terminé\",COUNTIF(B583,\"*Virement*\")),\"VIR\"&COUNTIF($V$7:V582,\"VIR*\"),IF(COUNTIF(B583,\"*Virement*\"),\"\",IF(COUNTIF($B$8:B583,B583)=1,\"_\"&\"AUTO\"&COUNTIF($V$7:V582,\"*AUTO*\"),\"\")))","v":""},"",""]
[null,null,null,null,null,null,null,null,null,null,null,null,null,null,null,null,null,null,null,null,null,{"$f":"IF(AND(C584=\"Terminé\",COUNTIF(B584,\"*Virement*\")),\"VIR\"&COUNTIF($V$7:V583,\"VIR*\"),IF(COUNTIF(B584,\"*Virement*\"),\"\",IF(COUNTIF($B$8:B584,B584)=1,\"_\"&\"AUTO\"&COUNTIF($V$7:V583,\"*AUTO*\"),\"\")))","v":""},"",""]
[null,null,null,null,null,null,null,null,null,null,null,null,null,null,null,null,null,null,null,null,null,{"$f":"IF(AND(C585=\"Terminé\",COUNTIF(B585,\"*Virement*\")),\"VIR\"&COUNTIF($V$7:V584,\"VIR*\"),IF(COUNTIF(B585,\"*Virement*\"),\"\",IF(COUNTIF($B$8:B585,B585)=1,\"_\"&\"AUTO\"&COUNTIF($V$7:V584,\"*AUTO*\"),\"\")))","v":""},{"$f":"IFERROR(INDEX(B:B,MATCH(\"VIR\"&ROW()-8,V:V,0)),\"\")","v":""},{"$f":"IFERROR(INDEX($B:$B,MATCH(\"*AUTO*\"&ROW()-8,$V:$V,0)),\"\")","v":""}]
[null,null,null,null,null,null,null,null,null,null,null,null,null,null,null,null,null,null,null,null,null,{"$f":"IF(AND(C586=\"Terminé\",COUNTIF(B586,\"*Virement*\")),\"VIR\"&COUNTIF($V$7:V585,\"VIR*\"),IF(COUNTIF(B586,\"*Virement*\"),\"\",IF(COUNTIF($B$8:B586,B586)=1,\"_\"&\"AUTO\"&COUNTIF($V$7:V585,\"*AUTO*\"),\"\")))","v":""},"",""]
[null,null,null,null,null,null,null,null,null,null,null,null,null,null,null,null,null,null,null,null,null,{"$f":"IF(AND(C587=\"Terminé\",COUNTIF(B587,\"*Virement*\")),\"VIR\"&COUNTIF($V$7:V586,\"VIR*\"),IF(COUNTIF(B587,\"*Virement*\"),\"\",IF(COUNTIF($B$8:B587,B587)=1,\"_\"&\"AUTO\"&COUNTIF($V$7:V586,\"*AUTO*\"),\"\")))","v":""},"",""]
[null,null,null,null,null,null,null,null,null,null,null,null,null,null,null,null,null,null,null,null,null,{"$f":"IF(AND(C588=\"Terminé\",COUNTIF(B588,\"*Virement*\")),\"VIR\"&COUNTIF($V$7:V587,\"VIR*\"),IF(COUNTIF(B588,\"*Virement*\"),\"\",IF(COUNTIF($B$8:B588,B588)=1,\"_\"&\"AUTO\"&COUNTIF($V$7:V587,\"*AUTO*\"),\"\")))","v":""},"",""]
[null,null,null,null,null,null,null,null,null,null,null,null,null,null,null,null,null,null,null,null,null,{"$f":"IF(AND(C589=\"Terminé\",COUNTIF(B589,\"*Virement*\")),\"VIR\"&COUNTIF($V$7:V588,\"VIR*\"),IF(COUNTIF(B589,\"*Virement*\"),\"\",IF(COUNTIF($B$8:B589,B589)=1,\"_\"&\"AUTO\"&COUNTIF($V$7:V588,\"*AUTO*\"),\"\")))","v":""},"",""]
[null,null,null,null,null,null,null,null,null,null,null,null,null,null,null,null,null,null,null,null,null,{"$f":"IF(AND(C590=\"Terminé\",COUNTIF(B590,\"*Virement*\")),\"VIR\"&COUNTIF($V$7:V589,\"VIR*\"),IF(COUNTIF(B590,\"*Virement*\"),\"\",IF(COUNTIF($B$8:B590,B590)=1,\"_\"&\"AUTO\"&COUNTIF($V$7:V589,\"*AUTO*\"),\"\")))","v":""},"",""]
[null,null,null,null,null,null,null,null,null,null,null,null,null,null,null,null,null,null,null,null,null,{"$f":"IF(AND(C591=\"Terminé\",COUNTIF(B591,\"*Virement*\")),\"VIR\"&COUNTIF($V$7:V590,\"VIR*\"),IF(COUNTIF(B591,\"*Virement*\"),\"\",IF(COUNTIF($B$8:B591,B591)=1,\"_\"&\"AUTO\"&COUNTIF($V$7:V590,\"*AUTO*\"),\"\")))","v":""},"",""]
[null,null,null,null,null,null,null,null,null,null,null,null,null,null,null,null,null,null,null,null,null,{"$f":"IF(AND(C592=\"Terminé\",COUNTIF(B592,\"*Virement*\")),\"VIR\"&COUNTIF($V$7:V591,\"VIR*\"),IF(COUNTIF(B592,\"*Virement*\"),\"\",IF(COUNTIF($B$8:B592,B592)=1,\"_\"&\"AUTO\"&COUNTIF($V$7:V591,\"*AUTO*\"),\"\")))","v":""},"",""]
[null,null,null,null,null,null,null,null,null,null,null,null,null,null,null,null,null,null,null,null,null,{"$f":"IF(AND(C593=\"Terminé\",COUNTIF(B593,\"*Virement*\")),\"VIR\"&COUNTIF($V$7:V592,\"VIR*\"),IF(COUNTIF(B593,\"*Virement*\"),\"\",IF(COUNTIF($B$8:B593,B593)=1,\"_\"&\"AUTO\"&COUNTIF($V$7:V592,\"*AUTO*\"),\"\")))","v":""},"",""]
[null,null,null,null,null,null,null,null,null,null,null,null,null,null,null,null,null,null,null,null,null,{"$f":"IF(AND(C594=\"Terminé\",COUNTIF(B594,\"*Virement*\")),\"VIR\"&COUNTIF($V$7:V593,\"VIR*\"),IF(COUNTIF(B594,\"*Virement*\"),\"\",IF(COUNTIF($B$8:B594,B594)=1,\"_\"&\"AUTO\"&COUNTIF($V$7:V593,\"*AUTO*\"),\"\")))","v":""},"",""]
[null,null,null,null,null,null,null,null,null,null,null,null,null,null,null,null,null,null,null,null,null,{"$f":"IF(AND(C595=\"Terminé\",COUNTIF(B595,\"*Virement*\")),\"VIR\"&COUNTIF($V$7:V594,\"VIR*\"),IF(COUNTIF(B595,\"*Virement*\"),\"\",IF(COUNTIF($B$8:B595,B595)=1,\"_\"&\"AUTO\"&COUNTIF($V$7:V594,\"*AUTO*\"),\"\")))","v":""},"",""]
[null,null,null,null,null,null,null,null,null,null,null,null,null,null,null,null,null,null,null,null,null,{"$f":"IF(AND(C596=\"Terminé\",COUNTIF(B596,\"*Virement*\")),\"VIR\"&COUNTIF($V$7:V595,\"VIR*\"),IF(COUNTIF(B596,\"*Virement*\"),\"\",IF(COUNTIF($B$8:B596,B596)=1,\"_\"&\"AUTO\"&COUNTIF($V$7:V595,\"*AUTO*\"),\"\")))","v":""},"",""]
[null,null,null,null,null,null,null,null,null,null,null,null,null,null,null,null,null,null,null,null,null,{"$f":"IF(AND(C597=\"Terminé\",COUNTIF(B597,\"*Virement*\")),\"VIR\"&COUNTIF($V$7:V596,\"VIR*\"),IF(COUNTIF(B597,\"*Virement*\"),\"\",IF(COUNTIF($B$8:B597,B597)=1,\"_\"&\"AUTO\"&COUNTIF($V$7:V596,\"*AUTO*\"),\"\")))","v":""},"",""]
[null,null,null,null,null,null,null,null,null,null,null,null,null,null,null,null,null,null,null,null,null,{"$f":"IF(AND(C598=\"Terminé\",COUNTIF(B598,\"*Virement*\")),\"VIR\"&COUNTIF($V$7:V597,\"VIR*\"),IF(COUNTIF(B598,\"*Virement*\"),\"\",IF(COUNTIF($B$8:B598,B598)=1,\"_\"&\"AUTO\"&COUNTIF($V$7:V597,\"*AUTO*\"),\"\")))","v":""},"",""]
[null,null,null,null,null,null,null,null,null,null,null,null,null,null,null,null,null,null,null,null,null,{"$f":"IF(AND(C599=\"Terminé\",COUNTIF(B599,\"*Virement*\")),\"VIR\"&COUNTIF($V$7:V598,\"VIR*\"),IF(COUNTIF(B599,\"*Virement*\"),\"\",IF(COUNTIF($B$8:B599,B599)=1,\"_\"&\"AUTO\"&COUNTIF($V$7:V598,\"*AUTO*\"),\"\")))","v":""},"",""]
[null,null,null,null,null,null,null,null,null,null,null,null,null,null,null,null,null,null,null,null,null,{"$f":"IF(AND(C600=\"Terminé\",COUNTIF(B600,\"*Virement*\")),\"VIR\"&COUNTIF($V$7:V599,\"VIR*\"),IF(COUNTIF(B600,\"*Virement*\"),\"\",IF(COUNTIF($B$8:B600,B600)=1,\"_\"&\"AUTO\"&COUNTIF($V$7:V599,\"*AUTO*\"),\"\")))","v":""},"",""]
[null,null,null,null,null,null,null,null,null,null,null,null,null,null,null,null,null,null,null,null,null,{"$f":"IF(AND(C601=\"Terminé\",COUNTIF(B601,\"*Virement*\")),\"VIR\"&COUNTIF($V$7:V600,\"VIR*\"),IF(COUNTIF(B601,\"*Virement*\"),\"\",IF(COUNTIF($B$8:B601,B601)=1,\"_\"&\"AUTO\"&COUNTIF($V$7:V600,\"*AUTO*\"),\"\")))","v":""},"",""]
[null,null,null,null,null,null,null,null,null,null,null,null,null,null,null,null,null,null,null,null,null,{"$f":"IF(AND(C602=\"Terminé\",COUNTIF(B602,\"*Virement*\")),\"VIR\"&COUNTIF($V$7:V601,\"VIR*\"),IF(COUNTIF(B602,\"*Virement*\"),\"\",IF(COUNTIF($B$8:B602,B602)=1,\"_\"&\"AUTO\"&COUNTIF($V$7:V601,\"*AUTO*\"),\"\")))","v":""},"",""]
[null,null,null,null,null,null,null,null,null,null,null,null,null,null,null,null,null,null,null,null,null,{"$f":"IF(AND(C603=\"Terminé\",COUNTIF(B603,\"*Virement*\")),\"VIR\"&COUNTIF($V$7:V602,\"VIR*\"),IF(COUNTIF(B603,\"*Virement*\"),\"\",IF(COUNTIF($B$8:B603,B603)=1,\"_\"&\"AUTO\"&COUNTIF($V$7:V602,\"*AUTO*\"),\"\")))","v":""},"",""]
[null,null,null,null,null,null,null,null,null,null,null,null,null,null,null,null,null,null,null,null,null,{"$f":"IF(AND(C604=\"Terminé\",COUNTIF(B604,\"*Virement*\")),\"VIR\"&COUNTIF($V$7:V603,\"VIR*\"),IF(COUNTIF(B604,\"*Virement*\"),\"\",IF(COUNTIF($B$8:B604,B604)=1,\"_\"&\"AUTO\"&COUNTIF($V$7:V603,\"*AUTO*\"),\"\")))","v":""},"",""]
[null,null,null,null,null,null,null,null,null,null,null,null,null,null,null,null,null,null,null,null,null,{"$f":"IF(AND(C605=\"Terminé\",COUNTIF(B605,\"*Virement*\")),\"VIR\"&COUNTIF($V$7:V604,\"VIR*\"),IF(COUNTIF(B605,\"*Virement*\"),\"\",IF(COUNTIF($B$8:B605,B605)=1,\"_\"&\"AUTO\"&COUNTIF($V$7:V604,\"*AUTO*\"),\"\")))","v":""},"",""]
[null,null,null,null,null,null,null,null,null,null,null,null,null,null,null,null,null,null,null,null,null,{"$f":"IF(AND(C606=\"Terminé\",COUNTIF(B606,\"*Virement*\")),\"VIR\"&COUNTIF($V$7:V605,\"VIR*\"),IF(COUNTIF(B606,\"*Virement*\"),\"\",IF(COUNTIF($B$8:B606,B606)=1,\"_\"&\"AUTO\"&COUNTIF($V$7:V605,\"*AUTO*\"),\"\")))","v":""},"",""]
[null,null,null,null,null,null,null,null,null,null,null,null,null,null,null,null,null,null,null,null,null,{"$f":"IF(AND(C607=\"Terminé\",COUNTIF(B607,\"*Virement*\")),\"VIR\"&COUNTIF($V$7:V606,\"VIR*\"),IF(COUNTIF(B607,\"*Virement*\"),\"\",IF(COUNTIF($B$8:B607,B607)=1,\"_\"&\"AUTO\"&COUNTIF($V$7:V606,\"*AUTO*\"),\"\")))","v":""},"",""]
[null,null,null,null,null,null,null,null,null,null,null,null,null,null,null,null,null,null,null,null,null,{"$f":"IF(AND(C608=\"Terminé\",COUNTIF(B608,\"*Virement*\")),\"VIR\"&COUNTIF($V$7:V607,\"VIR*\"),IF(COUNTIF(B608,\"*Virement*\"),\"\",IF(COUNTIF($B$8:B608,B608)=1,\"_\"&\"AUTO\"&COUNTIF($V$7:V607,\"*AUTO*\"),\"\")))","v":""},"",""]
[null,null,null,null,null,null,null,null,null,null,null,null,null,null,null,null,null,null,null,null,null,{"$f":"IF(AND(C609=\"Terminé\",COUNTIF(B609,\"*Virement*\")),\"VIR\"&COUNTIF($V$7:V608,\"VIR*\"),IF(COUNTIF(B609,\"*Virement*\"),\"\",IF(COUNTIF($B$8:B609,B609)=1,\"_\"&\"AUTO\"&COUNTIF($V$7:V608,\"*AUTO*\"),\"\")))","v":""},"",""]
[null,null,null,null,null,null,null,null,null,null,null,null,null,null,null,null,null,null,null,null,null,{"$f":"IF(AND(C610=\"Terminé\",COUNTIF(B610,\"*Virement*\")),\"VIR\"&COUNTIF($V$7:V609,\"VIR*\"),IF(COUNTIF(B610,\"*Virement*\"),\"\",IF(COUNTIF($B$8:B610,B610)=1,\"_\"&\"AUTO\"&COUNTIF($V$7:V609,\"*AUTO*\"),\"\")))","v":""},"",""]
[null,null,null,null,null,null,null,null,null,null,null,null,null,null,null,null,null,null,null,null,null,{"$f":"IF(AND(C611=\"Terminé\",COUNTIF(B611,\"*Virement*\")),\"VIR\"&COUNTIF($V$7:V610,\"VIR*\"),IF(COUNTIF(B611,\"*Virement*\"),\"\",IF(COUNTIF($B$8:B611,B611)=1,\"_\"&\"AUTO\"&COUNTIF($V$7:V610,\"*AUTO*\"),\"\")))","v":""},"",""]
[null,null,null,null,null,null,null,null,null,null,null,null,null,null,null,null,null,null,null,null,null,{"$f":"IF(AND(C612=\"Terminé\",COUNTIF(B612,\"*Virement*\")),\"VIR\"&COUNTIF($V$7:V611,\"VIR*\"),IF(COUNTIF(B612,\"*Virement*\"),\"\",IF(COUNTIF($B$8:B612,B612)=1,\"_\"&\"AUTO\"&COUNTIF($V$7:V611,\"*AUTO*\"),\"\")))","v":""},"",""]
[null,null,null,null,null,null,null,null,null,null,null,null,null,null,null,null,null,null,null,null,null,{"$f":"IF(AND(C613=\"Terminé\",COUNTIF(B613,\"*Virement*\")),\"VIR\"&COUNTIF($V$7:V612,\"VIR*\"),IF(COUNTIF(B613,\"*Virement*\"),\"\",IF(COUNTIF($B$8:B613,B613)=1,\"_\"&\"AUTO\"&COUNTIF($V$7:V612,\"*AUTO*\"),\"\")))","v":""},"",""]
[null,null,null,null,null,null,null,null,null,null,null,null,null,null,null,null,null,null,null,null,null,{"$f":"IF(AND(C614=\"Terminé\",COUNTIF(B614,\"*Virement*\")),\"VIR\"&COUNTIF($V$7:V613,\"VIR*\"),IF(COUNTIF(B614,\"*Virement*\"),\"\",IF(COUNTIF($B$8:B614,B614)=1,\"_\"&\"AUTO\"&COUNTIF($V$7:V613,\"*AUTO*\"),\"\")))","v":""},"",""]
[null,null,null,null,null,null,null,null,null,null,null,null,null,null,null,null,null,null,null,null,null,{"$f":"IF(AND(C615=\"Terminé\",COUNTIF(B615,\"*Virement*\")),\"VIR\"&COUNTIF($V$7:V614,\"VIR*\"),IF(COUNTIF(B615,\"*Virement*\"),\"\",IF(COUNTIF($B$8:B615,B615)=1,\"_\"&\"AUTO\"&COUNTIF($V$7:V614,\"*AUTO*\"),\"\")))","v":""},"",""]
[null,null,null,null,null,null,null,null,null,null,null,null,null,null,null,null,null,null,null,null,null,{"$f":"IF(AND(C616=\"Terminé\",COUNTIF(B616,\"*Virement*\")),\"VIR\"&COUNTIF($V$7:V615,\"VIR*\"),IF(COUNTIF(B616,\"*Virement*\"),\"\",IF(COUNTIF($B$8:B616,B616)=1,\"_\"&\"AUTO\"&COUNTIF($V$7:V615,\"*AUTO*\"),\"\")))","v":""},"",""]
[null,null,null,null,null,null,null,null,null,null,null,null,null,null,null,null,null,null,null,null,null,{"$f":"IF(AND(C617=\"Terminé\",COUNTIF(B617,\"*Virement*\")),\"VIR\"&COUNTIF($V$7:V616,\"VIR*\"),IF(COUNTIF(B617,\"*Virement*\"),\"\",IF(COUNTIF($B$8:B617,B617)=1,\"_\"&\"AUTO\"&COUNTIF($V$7:V616,\"*AUTO*\"),\"\")))","v":""},"",""]
[null,null,null,null,null,null,null,null,null,null,null,null,null,null,null,null,null,null,null,null,null,{"$f":"IF(AND(C618=\"Terminé\",COUNTIF(B618,\"*Virement*\")),\"VIR\"&COUNTIF($V$7:V617,\"VIR*\"),IF(COUNTIF(B618,\"*Virement*\"),\"\",IF(COUNTIF($B$8:B618,B618)=1,\"_\"&\"AUTO\"&COUNTIF($V$7:V617,\"*AUTO*\"),\"\")))","v":""},"",""]
[null,null,null,null,null,null,null,null,null,null,null,null,null,null,null,null,null,null,null,null,null,{"$f":"IF(AND(C619=\"Terminé\",COUNTIF(B619,\"*Virement*\")),\"VIR\"&COUNTIF($V$7:V618,\"VIR*\"),IF(COUNTIF(B619,\"*Virement*\"),\"\",IF(COUNTIF($B$8:B619,B619)=1,\"_\"&\"AUTO\"&COUNTIF($V$7:V618,\"*AUTO*\"),\"\")))","v":""},"",""]
[null,null,null,null,null,null,null,null,null,null,null,null,null,null,null,null,null,null,null,null,null,{"$f":"IF(AND(C620=\"Terminé\",COUNTIF(B620,\"*Virement*\")),\"VIR\"&COUNTIF($V$7:V619,\"VIR*\"),IF(COUNTIF(B620,\"*Virement*\"),\"\",IF(COUNTIF($B$8:B620,B620)=1,\"_\"&\"AUTO\"&COUNTIF($V$7:V619,\"*AUTO*\"),\"\")))","v":""},"",""]
[null,null,null,null,null,null,null,null,null,null,null,null,null,null,null,null,null,null,null,null,null,{"$f":"IF(AND(C621=\"Terminé\",COUNTIF(B621,\"*Virement*\")),\"VIR\"&COUNTIF($V$7:V620,\"VIR*\"),IF(COUNTIF(B621,\"*Virement*\"),\"\",IF(COUNTIF($B$8:B621,B621)=1,\"_\"&\"AUTO\"&COUNTIF($V$7:V620,\"*AUTO*\"),\"\")))","v":""},"",""]
[null,null,null,null,null,null,null,null,null,null,null,null,null,null,null,null,null,null,null,null,null,{"$f":"IF(AND(C622=\"Terminé\",COUNTIF(B622,\"*Virement*\")),\"VIR\"&COUNTIF($V$7:V621,\"VIR*\"),IF(COUNTIF(B622,\"*Virement*\"),\"\",IF(COUNTIF($B$8:B622,B622)=1,\"_\"&\"AUTO\"&COUNTIF($V$7:V621,\"*AUTO*\"),\"\")))","v":""},"",""]
[null,null,null,null,null,null,null,null,null,null,null,null,null,null,null,null,null,null,null,null,null,{"$f":"IF(AND(C623=\"Terminé\",COUNTIF(B623,\"*Virement*\")),\"VIR\"&COUNTIF($V$7:V622,\"VIR*\"),IF(COUNTIF(B623,\"*Virement*\"),\"\",IF(COUNTIF($B$8:B623,B623)=1,\"_\"&\"AUTO\"&COUNTIF($V$7:V622,\"*AUTO*\"),\"\")))","v":""},"",""]
[null,null,null,null,null,null,null,null,null,null,null,null,null,null,null,null,null,null,null,null,null,{"$f":"IF(AND(C624=\"Terminé\",COUNTIF(B624,\"*Virement*\")),\"VIR\"&COUNTIF($V$7:V623,\"VIR*\"),IF(COUNTIF(B624,\"*Virement*\"),\"\",IF(COUNTIF($B$8:B624,B624)=1,\"_\"&\"AUTO\"&COUNTIF($V$7:V623,\"*AUTO*\"),\"\")))","v":""},"",""]
[null,null,null,null,null,null,null,null,null,null,null,null,null,null,null,null,null,null,null,null,null,{"$f":"IF(AND(C625=\"Terminé\",COUNTIF(B625,\"*Virement*\")),\"VIR\"&COUNTIF($V$7:V624,\"VIR*\"),IF(COUNTIF(B625,\"*Virement*\"),\"\",IF(COUNTIF($B$8:B625,B625)=1,\"_\"&\"AUTO\"&COUNTIF($V$7:V624,\"*AUTO*\"),\"\")))","v":""},"",""]
[null,null,null,null,null,null,null,null,null,null,null,null,null,null,null,null,null,null,null,null,null,{"$f":"IF(AND(C626=\"Terminé\",COUNTIF(B626,\"*Virement*\")),\"VIR\"&COUNTIF($V$7:V625,\"VIR*\"),IF(COUNTIF(B626,\"*Virement*\"),\"\",IF(COUNTIF($B$8:B626,B626)=1,\"_\"&\"AUTO\"&COUNTIF($V$7:V625,\"*AUTO*\"),\"\")))","v":""},"",""]
[null,null,null,null,null,null,null,null,null,null,null,null,null,null,null,null,null,null,null,null,null,{"$f":"IF(AND(C627=\"Terminé\",COUNTIF(B627,\"*Virement*\")),\"VIR\"&COUNTIF($V$7:V626,\"VIR*\"),IF(COUNTIF(B627,\"*Virement*\"),\"\",IF(COUNTIF($B$8:B627,B627)=1,\"_\"&\"AUTO\"&COUNTIF($V$7:V626,\"*AUTO*\"),\"\")))","v":""},"",""]
[null,null,null,null,null,null,null,null,null,null,null,null,null,null,null,null,null,null,null,null,null,{"$f":"IF(AND(C628=\"Terminé\",COUNTIF(B628,\"*Virement*\")),\"VIR\"&COUNTIF($V$7:V627,\"VIR*\"),IF(COUNTIF(B628,\"*Virement*\"),\"\",IF(COUNTIF($B$8:B628,B628)=1,\"_\"&\"AUTO\"&COUNTIF($V$7:V627,\"*AUTO*\"),\"\")))","v":""},"",""]
[null,null,null,null,null,null,null,null,null,null,null,null,null,null,null,null,null,null,null,null,null,{"$f":"IF(AND(C629=\"Terminé\",COUNTIF(B629,\"*Virement*\")),\"VIR\"&COUNTIF($V$7:V628,\"VIR*\"),IF(COUNTIF(B629,\"*Virement*\"),\"\",IF(COUNTIF($B$8:B629,B629)=1,\"_\"&\"AUTO\"&COUNTIF($V$7:V628,\"*AUTO*\"),\"\")))","v":""},"",""]
[null,null,null,null,null,null,null,null,null,null,null,null,null,null,null,null,null,null,null,null,null,{"$f":"IF(AND(C630=\"Terminé\",COUNTIF(B630,\"*Virement*\")),\"VIR\"&COUNTIF($V$7:V629,\"VIR*\"),IF(COUNTIF(B630,\"*Virement*\"),\"\",IF(COUNTIF($B$8:B630,B630)=1,\"_\"&\"AUTO\"&COUNTIF($V$7:V629,\"*AUTO*\"),\"\")))","v":""},"",""]
[null,null,null,null,null,null,null,null,null,null,null,null,null,null,null,null,null,null,null,null,null,{"$f":"IF(AND(C631=\"Terminé\",COUNTIF(B631,\"*Virement*\")),\"VIR\"&COUNTIF($V$7:V630,\"VIR*\"),IF(COUNTIF(B631,\"*Virement*\"),\"\",IF(COUNTIF($B$8:B631,B631)=1,\"_\"&\"AUTO\"&COUNTIF($V$7:V630,\"*AUTO*\"),\"\")))","v":""},"",""]
[null,null,null,null,null,null,null,null,null,null,null,null,null,null,null,null,null,null,null,null,null,{"$f":"IF(AND(C632=\"Terminé\",COUNTIF(B632,\"*Virement*\")),\"VIR\"&COUNTIF($V$7:V631,\"VIR*\"),IF(COUNTIF(B632,\"*Virement*\"),\"\",IF(COUNTIF($B$8:B632,B632)=1,\"_\"&\"AUTO\"&COUNTIF($V$7:V631,\"*AUTO*\"),\"\")))","v":""},"",""]
[null,null,null,null,null,null,null,null,null,null,null,null,null,null,null,null,null,null,null,null,null,{"$f":"IF(AND(C633=\"Terminé\",COUNTIF(B633,\"*Virement*\")),\"VIR\"&COUNTIF($V$7:V632,\"VIR*\"),IF(COUNTIF(B633,\"*Virement*\"),\"\",IF(COUNTIF($B$8:B633,B633)=1,\"_\"&\"AUTO\"&COUNTIF($V$7:V632,\"*AUTO*\"),\"\")))","v":""},"",""]
[null,null,null,null,null,null,null,null,null,null,null,null,null,null,null,null,null,null,null,null,null,{"$f":"IF(AND(C634=\"Terminé\",COUNTIF(B634,\"*Virement*\")),\"VIR\"&COUNTIF($V$7:V633,\"VIR*\"),IF(COUNTIF(B634,\"*Virement*\"),\"\",IF(COUNTIF($B$8:B634,B634)=1,\"_\"&\"AUTO\"&COUNTIF($V$7:V633,\"*AUTO*\"),\"\")))","v":""},"",""]
[null,null,null,null,null,null,null,null,null,null,null,null,null,null,null,null,null,null,null,null,null,{"$f":"IF(AND(C635=\"Terminé\",COUNTIF(B635,\"*Virement*\")),\"VIR\"&COUNTIF($V$7:V634,\"VIR*\"),IF(COUNTIF(B635,\"*Virement*\"),\"\",IF(COUNTIF($B$8:B635,B635)=1,\"_\"&\"AUTO\"&COUNTIF($V$7:V634,\"*AUTO*\"),\"\")))","v":""},"",""]
[null,null,null,null,null,null,null,null,null,null,null,null,null,null,null,null,null,null,null,null,null,{"$f":"IF(AND(C636=\"Terminé\",COUNTIF(B636,\"*Virement*\")),\"VIR\"&COUNTIF($V$7:V635,\"VIR*\"),IF(COUNTIF(B636,\"*Virement*\"),\"\",IF(COUNTIF($B$8:B636,B636)=1,\"_\"&\"AUTO\"&COUNTIF($V$7:V635,\"*AUTO*\"),\"\")))","v":""},"",""]
[null,null,null,null,null,null,null,null,null,null,null,null,null,null,null,null,null,null,null,null,null,{"$f":"IF(AND(C637=\"Terminé\",COUNTIF(B637,\"*Virement*\")),\"VIR\"&COUNTIF($V$7:V636,\"VIR*\"),IF(COUNTIF(B637,\"*Virement*\"),\"\",IF(COUNTIF($B$8:B637,B637)=1,\"_\"&\"AUTO\"&COUNTIF($V$7:V636,\"*AUTO*\"),\"\")))","v":""},"",""]
[null,null,null,null,null,null,null,null,null,null,null,null,null,null,null,null,null,null,null,null,null,{"$f":"IF(AND(C638=\"Terminé\",COUNTIF(B638,\"*Virement*\")),\"VIR\"&COUNTIF($V$7:V637,\"VIR*\"),IF(COUNTIF(B638,\"*Virement*\"),\"\",IF(COUNTIF($B$8:B638,B638)=1,\"_\"&\"AUTO\"&COUNTIF($V$7:V637,\"*AUTO*\"),\"\")))","v":""},"",""]
[null,null,null,null,null,null,null,null,null,null,null,null,null,null,null,null,null,null,null,null,null,{"$f":"IF(AND(C639=\"Terminé\",COUNTIF(B639,\"*Virement*\")),\"VIR\"&COUNTIF($V$7:V638,\"VIR*\"),IF(COUNTIF(B639,\"*Virement*\"),\"\",IF(COUNTIF($B$8:B639,B639)=1,\"_\"&\"AUTO\"&COUNTIF($V$7:V638,\"*AUTO*\"),\"\")))","v":""},"",""]
[null,null,null,null,null,null,null,null,null,null,null,null,null,null,null,null,null,null,null,null,null,{"$f":"IF(AND(C640=\"Terminé\",COUNTIF(B640,\"*Virement*\")),\"VIR\"&COUNTIF($V$7:V639,\"VIR*\"),IF(COUNTIF(B640,\"*Virement*\"),\"\",IF(COUNTIF($B$8:B640,B640)=1,\"_\"&\"AUTO\"&COUNTIF($V$7:V639,\"*AUTO*\"),\"\")))","v":""},"",""]
[null,null,null,null,null,null,null,null,null,null,null,null,null,null,null,null,null,null,null,null,null,{"$f":"IF(AND(C641=\"Terminé\",COUNTIF(B641,\"*Virement*\")),\"VIR\"&COUNTIF($V$7:V640,\"VIR*\"),IF(COUNTIF(B641,\"*Virement*\"),\"\",IF(COUNTIF($B$8:B641,B641)=1,\"_\"&\"AUTO\"&COUNTIF($V$7:V640,\"*AUTO*\"),\"\")))","v":""},"",""]
[null,null,null,null,null,null,null,null,null,null,null,null,null,null,null,null,null,null,null,null,null,{"$f":"IF(AND(C642=\"Terminé\",COUNTIF(B642,\"*Virement*\")),\"VIR\"&COUNTIF($V$7:V641,\"VIR*\"),IF(COUNTIF(B642,\"*Virement*\"),\"\",IF(COUNTIF($B$8:B642,B642)=1,\"_\"&\"AUTO\"&COUNTIF($V$7:V641,\"*AUTO*\"),\"\")))","v":""},"",""]
[null,null,null,null,null,null,null,null,null,null,null,null,null,null,null,null,null,null,null,null,null,{"$f":"IF(AND(C643=\"Terminé\",COUNTIF(B643,\"*Virement*\")),\"VIR\"&COUNTIF($V$7:V642,\"VIR*\"),IF(COUNTIF(B643,\"*Virement*\"),\"\",IF(COUNTIF($B$8:B643,B643)=1,\"_\"&\"AUTO\"&COUNTIF($V$7:V642,\"*AUTO*\"),\"\")))","v":""},"",""]
[null,null,null,null,null,null,null,null,null,null,null,null,null,null,null,null,null,null,null,null,null,{"$f":"IF(AND(C644=\"Terminé\",COUNTIF(B644,\"*Virement*\")),\"VIR\"&COUNTIF($V$7:V643,\"VIR*\"),IF(COUNTIF(B644,\"*Virement*\"),\"\",IF(COUNTIF($B$8:B644,B644)=1,\"_\"&\"AUTO\"&COUNTIF($V$7:V643,\"*AUTO*\"),\"\")))","v":""},"",""]
[null,null,null,null,null,null,null,null,null,null,null,null,null,null,null,null,null,null,null,null,null,{"$f":"IF(AND(C645=\"Terminé\",COUNTIF(B645,\"*Virement*\")),\"VIR\"&COUNTIF($V$7:V644,\"VIR*\"),IF(COUNTIF(B645,\"*Virement*\"),\"\",IF(COUNTIF($B$8:B645,B645)=1,\"_\"&\"AUTO\"&COUNTIF($V$7:V644,\"*AUTO*\"),\"\")))","v":""},"",""]
[null,null,null,null,null,null,null,null,null,null,null,null,null,null,null,null,null,null,null,null,null,{"$f":"IF(AND(C646=\"Terminé\",COUNTIF(B646,\"*Virement*\")),\"VIR\"&COUNTIF($V$7:V645,\"VIR*\"),IF(COUNTIF(B646,\"*Virement*\"),\"\",IF(COUNTIF($B$8:B646,B646)=1,\"_\"&\"AUTO\"&COUNTIF($V$7:V645,\"*AUTO*\"),\"\")))","v":""},"",""]
[null,null,null,null,null,null,null,null,null,null,null,null,null,null,null,null,null,null,null,null,null,{"$f":"IF(AND(C647=\"Terminé\",COUNTIF(B647,\"*Virement*\")),\"VIR\"&COUNTIF($V$7:V646,\"VIR*\"),IF(COUNTIF(B647,\"*Virement*\"),\"\",IF(COUNTIF($B$8:B647,B647)=1,\"_\"&\"AUTO\"&COUNTIF($V$7:V646,\"*AUTO*\"),\"\")))","v":""},"",""]
[null,null,null,null,null,null,null,null,null,null,null,null,null,null,null,null,null,null,null,null,null,{"$f":"IF(AND(C648=\"Terminé\",COUNTIF(B648,\"*Virement*\")),\"VIR\"&COUNTIF($V$7:V647,\"VIR*\"),IF(COUNTIF(B648,\"*Virement*\"),\"\",IF(COUNTIF($B$8:B648,B648)=1,\"_\"&\"AUTO\"&COUNTIF($V$7:V647,\"*AUTO*\"),\"\")))","v":""},"",""]
[null,null,null,null,null,null,null,null,null,null,null,null,null,null,null,null,null,null,null,null,null,{"$f":"IF(AND(C649=\"Terminé\",COUNTIF(B649,\"*Virement*\")),\"VIR\"&COUNTIF($V$7:V648,\"VIR*\"),IF(COUNTIF(B649,\"*Virement*\"),\"\",IF(COUNTIF($B$8:B649,B649)=1,\"_\"&\"AUTO\"&COUNTIF($V$7:V648,\"*AUTO*\"),\"\")))","v":""},{"$f":"IFERROR(INDEX(B:B,MATCH(\"VIR\"&ROW()-8,V:V,0)),\"\")","v":""},{"$f":"IFERROR(INDEX($B:$B,MATCH(\"*AUTO*\"&ROW()-8,$V:$V,0)),\"\")","v":""}]
[null,null,null,null,null,null,null,null,null,null,null,null,null,null,null,null,null,null,null,null,null,{"$f":"IF(AND(C650=\"Terminé\",COUNTIF(B650,\"*Virement*\")),\"VIR\"&COUNTIF($V$7:V649,\"VIR*\"),IF(COUNTIF(B650,\"*Virement*\"),\"\",IF(COUNTIF($B$8:B650,B650)=1,\"_\"&\"AUTO\"&COUNTIF($V$7:V649,\"*AUTO*\"),\"\")))","v":""},"",""]
[null,null,null,null,null,null,null,null,null,null,null,null,null,null,null,null,null,null,null,null,null,{"$f":"IF(AND(C651=\"Terminé\",COUNTIF(B651,\"*Virement*\")),\"VIR\"&COUNTIF($V$7:V650,\"VIR*\"),IF(COUNTIF(B651,\"*Virement*\"),\"\",IF(COUNTIF($B$8:B651,B651)=1,\"_\"&\"AUTO\"&COUNTIF($V$7:V650,\"*AUTO*\"),\"\")))","v":""},"",""]
[null,null,null,null,null,null,null,null,null,null,null,null,null,null,null,null,null,null,null,null,null,{"$f":"IF(AND(C652=\"Terminé\",COUNTIF(B652,\"*Virement*\")),\"VIR\"&COUNTIF($V$7:V651,\"VIR*\"),IF(COUNTIF(B652,\"*Virement*\"),\"\",IF(COUNTIF($B$8:B652,B652)=1,\"_\"&\"AUTO\"&COUNTIF($V$7:V651,\"*AUTO*\"),\"\")))","v":""},"",""]
[null,null,null,null,null,null,null,null,null,null,null,null,null,null,null,null,null,null,null,null,null,{"$f":"IF(AND(C653=\"Terminé\",COUNTIF(B653,\"*Virement*\")),\"VIR\"&COUNTIF($V$7:V652,\"VIR*\"),IF(COUNTIF(B653,\"*Virement*\"),\"\",IF(COUNTIF($B$8:B653,B653)=1,\"_\"&\"AUTO\"&COUNTIF($V$7:V652,\"*AUTO*\"),\"\")))","v":""},"",""]
[null,null,null,null,null,null,null,null,null,null,null,null,null,null,null,null,null,null,null,null,null,{"$f":"IF(AND(C654=\"Terminé\",COUNTIF(B654,\"*Virement*\")),\"VIR\"&COUNTIF($V$7:V653,\"VIR*\"),IF(COUNTIF(B654,\"*Virement*\"),\"\",IF(COUNTIF($B$8:B654,B654)=1,\"_\"&\"AUTO\"&COUNTIF($V$7:V653,\"*AUTO*\"),\"\")))","v":""},"",""]
[null,null,null,null,null,null,null,null,null,null,null,null,null,null,null,null,null,null,null,null,null,{"$f":"IF(AND(C655=\"Terminé\",COUNTIF(B655,\"*Virement*\")),\"VIR\"&COUNTIF($V$7:V654,\"VIR*\"),IF(COUNTIF(B655,\"*Virement*\"),\"\",IF(COUNTIF($B$8:B655,B655)=1,\"_\"&\"AUTO\"&COUNTIF($V$7:V654,\"*AUTO*\"),\"\")))","v":""},"",""]
[null,null,null,null,null,null,null,null,null,null,null,null,null,null,null,null,null,null,null,null,null,{"$f":"IF(AND(C656=\"Terminé\",COUNTIF(B656,\"*Virement*\")),\"VIR\"&COUNTIF($V$7:V655,\"VIR*\"),IF(COUNTIF(B656,\"*Virement*\"),\"\",IF(COUNTIF($B$8:B656,B656)=1,\"_\"&\"AUTO\"&COUNTIF($V$7:V655,\"*AUTO*\"),\"\")))","v":""},"",""]
[null,null,null,null,null,null,null,null,null,null,null,null,null,null,null,null,null,null,null,null,null,{"$f":"IF(AND(C657=\"Terminé\",COUNTIF(B657,\"*Virement*\")),\"VIR\"&COUNTIF($V$7:V656,\"VIR*\"),IF(COUNTIF(B657,\"*Virement*\"),\"\",IF(COUNTIF($B$8:B657,B657)=1,\"_\"&\"AUTO\"&COUNTIF($V$7:V656,\"*AUTO*\"),\"\")))","v":""},"",""]
[null,null,null,null,null,null,null,null,null,null,null,null,null,null,null,null,null,null,null,null,null,{"$f":"IF(AND(C658=\"Terminé\",COUNTIF(B658,\"*Virement*\")),\"VIR\"&COUNTIF($V$7:V657,\"VIR*\"),IF(COUNTIF(B658,\"*Virement*\"),\"\",IF(COUNTIF($B$8:B658,B658)=1,\"_\"&\"AUTO\"&COUNTIF($V$7:V657,\"*AUTO*\"),\"\")))","v":""},"",""]
[null,null,null,null,null,null,null,null,null,null,null,null,null,null,null,null,null,null,null,null,null,{"$f":"IF(AND(C659=\"Terminé\",COUNTIF(B659,\"*Virement*\")),\"VIR\"&COUNTIF($V$7:V658,\"VIR*\"),IF(COUNTIF(B659,\"*Virement*\"),\"\",IF(COUNTIF($B$8:B659,B659)=1,\"_\"&\"AUTO\"&COUNTIF($V$7:V658,\"*AUTO*\"),\"\")))","v":""},"",""]
[null,null,null,null,null,null,null,null,null,null,null,null,null,null,null,null,null,null,null,null,null,{"$f":"IF(AND(C660=\"Terminé\",COUNTIF(B660,\"*Virement*\")),\"VIR\"&COUNTIF($V$7:V659,\"VIR*\"),IF(COUNTIF(B660,\"*Virement*\"),\"\",IF(COUNTIF($B$8:B660,B660)=1,\"_\"&\"AUTO\"&COUNTIF($V$7:V659,\"*AUTO*\"),\"\")))","v":""},"",""]
[null,null,null,null,null,null,null,null,null,null,null,null,null,null,null,null,null,null,null,null,null,{"$f":"IF(AND(C661=\"Terminé\",COUNTIF(B661,\"*Virement*\")),\"VIR\"&COUNTIF($V$7:V660,\"VIR*\"),IF(COUNTIF(B661,\"*Virement*\"),\"\",IF(COUNTIF($B$8:B661,B661)=1,\"_\"&\"AUTO\"&COUNTIF($V$7:V660,\"*AUTO*\"),\"\")))","v":""},"",""]
[null,null,null,null,null,null,null,null,null,null,null,null,null,null,null,null,null,null,null,null,null,{"$f":"IF(AND(C662=\"Terminé\",COUNTIF(B662,\"*Virement*\")),\"VIR\"&COUNTIF($V$7:V661,\"VIR*\"),IF(COUNTIF(B662,\"*Virement*\"),\"\",IF(COUNTIF($B$8:B662,B662)=1,\"_\"&\"AUTO\"&COUNTIF($V$7:V661,\"*AUTO*\"),\"\")))","v":""},"",""]
[null,null,null,null,null,null,null,null,null,null,null,null,null,null,null,null,null,null,null,null,null,{"$f":"IF(AND(C663=\"Terminé\",COUNTIF(B663,\"*Virement*\")),\"VIR\"&COUNTIF($V$7:V662,\"VIR*\"),IF(COUNTIF(B663,\"*Virement*\"),\"\",IF(COUNTIF($B$8:B663,B663)=1,\"_\"&\"AUTO\"&COUNTIF($V$7:V662,\"*AUTO*\"),\"\")))","v":""},"",""]
[null,null,null,null,null,null,null,null,null,null,null,null,null,null,null,null,null,null,null,null,null,{"$f":"IF(AND(C664=\"Terminé\",COUNTIF(B664,\"*Virement*\")),\"VIR\"&COUNTIF($V$7:V663,\"VIR*\"),IF(COUNTIF(B664,\"*Virement*\"),\"\",IF(COUNTIF($B$8:B664,B664)=1,\"_\"&\"AUTO\"&COUNTIF($V$7:V663,\"*AUTO*\"),\"\")))","v":""},"",""]
[null,null,null,null,null,null,null,null,null,null,null,null,null,null,null,null,null,null,null,null,null,{"$f":"IF(AND(C665=\"Terminé\",COUNTIF(B665,\"*Virement*\")),\"VIR\"&COUNTIF($V$7:V664,\"VIR*\"),IF(COUNTIF(B665,\"*Virement*\"),\"\",IF(COUNTIF($B$8:B665,B665)=1,\"_\"&\"AUTO\"&COUNTIF($V$7:V664,\"*AUTO*\"),\"\")))","v":""},"",""]
[null,null,null,null,null,null,null,null,null,null,null,null,null,null,null,null,null,null,null,null,null,{"$f":"IF(AND(C666=\"Terminé\",COUNTIF(B666,\"*Virement*\")),\"VIR\"&COUNTIF($V$7:V665,\"VIR*\"),IF(COUNTIF(B666,\"*Virement*\"),\"\",IF(COUNTIF($B$8:B666,B666)=1,\"_\"&\"AUTO\"&COUNTIF($V$7:V665,\"*AUTO*\"),\"\")))","v":""},"",""]
[null,null,null,null,null,null,null,null,null,null,null,null,null,null,null,null,null,null,null,null,null,{"$f":"IF(AND(C667=\"Terminé\",COUNTIF(B667,\"*Virement*\")),\"VIR\"&COUNTIF($V$7:V666,\"VIR*\"),IF(COUNTIF(B667,\"*Virement*\"),\"\",IF(COUNTIF($B$8:B667,B667)=1,\"_\"&\"AUTO\"&COUNTIF($V$7:V666,\"*AUTO*\"),\"\")))","v":""},"",""]
[null,null,null,null,null,null,null,null,null,null,null,null,null,null,null,null,null,null,null,null,null,{"$f":"IF(AND(C668=\"Terminé\",COUNTIF(B668,\"*Virement*\")),\"VIR\"&COUNTIF($V$7:V667,\"VIR*\"),IF(COUNTIF(B668,\"*Virement*\"),\"\",IF(COUNTIF($B$8:B668,B668)=1,\"_\"&\"AUTO\"&COUNTIF($V$7:V667,\"*AUTO*\"),\"\")))","v":""},"",""]
[null,null,null,null,null,null,null,null,null,null,null,null,null,null,null,null,null,null,null,null,null,{"$f":"IF(AND(C669=\"Terminé\",COUNTIF(B669,\"*Virement*\")),\"VIR\"&COUNTIF($V$7:V668,\"VIR*\"),IF(COUNTIF(B669,\"*Virement*\"),\"\",IF(COUNTIF($B$8:B669,B669)=1,\"_\"&\"AUTO\"&COUNTIF($V$7:V668,\"*AUTO*\"),\"\")))","v":""},"",""]
[null,null,null,null,null,null,null,null,null,null,null,null,null,null,null,null,null,null,null,null,null,{"$f":"IF(AND(C670=\"Terminé\",COUNTIF(B670,\"*Virement*\")),\"VIR\"&COUNTIF($V$7:V669,\"VIR*\"),IF(COUNTIF(B670,\"*Virement*\"),\"\",IF(COUNTIF($B$8:B670,B670)=1,\"_\"&\"AUTO\"&COUNTIF($V$7:V669,\"*AUTO*\"),\"\")))","v":""},"",""]
[null,null,null,null,null,null,null,null,null,null,null,null,null,null,null,null,null,null,null,null,null,{"$f":"IF(AND(C671=\"Terminé\",COUNTIF(B671,\"*Virement*\")),\"VIR\"&COUNTIF($V$7:V670,\"VIR*\"),IF(COUNTIF(B671,\"*Virement*\"),\"\",IF(COUNTIF($B$8:B671,B671)=1,\"_\"&\"AUTO\"&COUNTIF($V$7:V670,\"*AUTO*\"),\"\")))","v":""},"",""]
[null,null,null,null,null,null,null,null,null,null,null,null,null,null,null,null,null,null,null,null,null,{"$f":"IF(AND(C672=\"Terminé\",COUNTIF(B672,\"*Virement*\")),\"VIR\"&COUNTIF($V$7:V671,\"VIR*\"),IF(COUNTIF(B672,\"*Virement*\"),\"\",IF(COUNTIF($B$8:B672,B672)=1,\"_\"&\"AUTO\"&COUNTIF($V$7:V671,\"*AUTO*\"),\"\")))","v":""},"",""]
[null,null,null,null,null,null,null,null,null,null,null,null,null,null,null,null,null,null,null,null,null,{"$f":"IF(AND(C673=\"Terminé\",COUNTIF(B673,\"*Virement*\")),\"VIR\"&COUNTIF($V$7:V672,\"VIR*\"),IF(COUNTIF(B673,\"*Virement*\"),\"\",IF(COUNTIF($B$8:B673,B673)=1,\"_\"&\"AUTO\"&COUNTIF($V$7:V672,\"*AUTO*\"),\"\")))","v":""},"",""]
[null,null,null,null,null,null,null,null,null,null,null,null,null,null,null,null,null,null,null,null,null,{"$f":"IF(AND(C674=\"Terminé\",COUNTIF(B674,\"*Virement*\")),\"VIR\"&COUNTIF($V$7:V673,\"VIR*\"),IF(COUNTIF(B674,\"*Virement*\"),\"\",IF(COUNTIF($B$8:B674,B674)=1,\"_\"&\"AUTO\"&COUNTIF($V$7:V673,\"*AUTO*\"),\"\")))","v":""},"",""]
[null,null,null,null,null,null,null,null,null,null,null,null,null,null,null,null,null,null,null,null,null,{"$f":"IF(AND(C675=\"Terminé\",COUNTIF(B675,\"*Virement*\")),\"VIR\"&COUNTIF($V$7:V674,\"VIR*\"),IF(COUNTIF(B675,\"*Virement*\"),\"\",IF(COUNTIF($B$8:B675,B675)=1,\"_\"&\"AUTO\"&COUNTIF($V$7:V674,\"*AUTO*\"),\"\")))","v":""},"",""]
[null,null,null,null,null,null,null,null,null,null,null,null,null,null,null,null,null,null,null,null,null,{"$f":"IF(AND(C676=\"Terminé\",COUNTIF(B676,\"*Virement*\")),\"VIR\"&COUNTIF($V$7:V675,\"VIR*\"),IF(COUNTIF(B676,\"*Virement*\"),\"\",IF(COUNTIF($B$8:B676,B676)=1,\"_\"&\"AUTO\"&COUNTIF($V$7:V675,\"*AUTO*\"),\"\")))","v":""},"",""]
[null,null,null,null,null,null,null,null,null,null,null,null,null,null,null,null,null,null,null,null,null,{"$f":"IF(AND(C677=\"Terminé\",COUNTIF(B677,\"*Virement*\")),\"VIR\"&COUNTIF($V$7:V676,\"VIR*\"),IF(COUNTIF(B677,\"*Virement*\"),\"\",IF(COUNTIF($B$8:B677,B677)=1,\"_\"&\"AUTO\"&COUNTIF($V$7:V676,\"*AUTO*\"),\"\")))","v":""},"",""]
[null,null,null,null,null,null,null,null,null,null,null,null,null,null,null,null,null,null,null,null,null,{"$f":"IF(AND(C678=\"Terminé\",COUNTIF(B678,\"*Virement*\")),\"VIR\"&COUNTIF($V$7:V677,\"VIR*\"),IF(COUNTIF(B678,\"*Virement*\"),\"\",IF(COUNTIF($B$8:B678,B678)=1,\"_\"&\"AUTO\"&COUNTIF($V$7:V677,\"*AUTO*\"),\"\")))","v":""},"",""]
[null,null,null,null,null,null,null,null,null,null,null,null,null,null,null,null,null,null,null,null,null,{"$f":"IF(AND(C679=\"Terminé\",COUNTIF(B679,\"*Virement*\")),\"VIR\"&COUNTIF($V$7:V678,\"VIR*\"),IF(COUNTIF(B679,\"*Virement*\"),\"\",IF(COUNTIF($B$8:B679,B679)=1,\"_\"&\"AUTO\"&COUNTIF($V$7:V678,\"*AUTO*\"),\"\")))","v":""},"",""]
[null,null,null,null,null,null,null,null,null,null,null,null,null,null,null,null,null,null,null,null,null,{"$f":"IF(AND(C680=\"Terminé\",COUNTIF(B680,\"*Virement*\")),\"VIR\"&COUNTIF($V$7:V679,\"VIR*\"),IF(COUNTIF(B680,\"*Virement*\"),\"\",IF(COUNTIF($B$8:B680,B680)=1,\"_\"&\"AUTO\"&COUNTIF($V$7:V679,\"*AUTO*\"),\"\")))","v":""},"",""]
[null,null,null,null,null,null,null,null,null,null,null,null,null,null,null,null,null,null,null,null,null,{"$f":"IF(AND(C681=\"Terminé\",COUNTIF(B681,\"*Virement*\")),\"VIR\"&COUNTIF($V$7:V680,\"VIR*\"),IF(COUNTIF(B681,\"*Virement*\"),\"\",IF(COUNTIF($B$8:B681,B681)=1,\"_\"&\"AUTO\"&COUNTIF($V$7:V680,\"*AUTO*\"),\"\")))","v":""},"",""]
[null,null,null,null,null,null,null,null,null,null,null,null,null,null,null,null,null,null,null,null,null,{"$f":"IF(AND(C682=\"Terminé\",COUNTIF(B682,\"*Virement*\")),\"VIR\"&COUNTIF($V$7:V681,\"VIR*\"),IF(COUNTIF(B682,\"*Virement*\"),\"\",IF(COUNTIF($B$8:B682,B682)=1,\"_\"&\"AUTO\"&COUNTIF($V$7:V681,\"*AUTO*\"),\"\")))","v":""},"",""]
[null,null,null,null,null,null,null,null,null,null,null,null,null,null,null,null,null,null,null,null,null,{"$f":"IF(AND(C683=\"Terminé\",COUNTIF(B683,\"*Virement*\")),\"VIR\"&COUNTIF($V$7:V682,\"VIR*\"),IF(COUNTIF(B683,\"*Virement*\"),\"\",IF(COUNTIF($B$8:B683,B683)=1,\"_\"&\"AUTO\"&COUNTIF($V$7:V682,\"*AUTO*\"),\"\")))","v":""},"",""]
[null,null,null,null,null,null,null,null,null,null,null,null,null,null,null,null,null,null,null,null,null,{"$f":"IF(AND(C684=\"Terminé\",COUNTIF(B684,\"*Virement*\")),\"VIR\"&COUNTIF($V$7:V683,\"VIR*\"),IF(COUNTIF(B684,\"*Virement*\"),\"\",IF(COUNTIF($B$8:B684,B684)=1,\"_\"&\"AUTO\"&COUNTIF($V$7:V683,\"*AUTO*\"),\"\")))","v":""},"",""]
[null,null,null,null,null,null,null,null,null,null,null,null,null,null,null,null,null,null,null,null,null,{"$f":"IF(AND(C685=\"Terminé\",COUNTIF(B685,\"*Virement*\")),\"VIR\"&COUNTIF($V$7:V684,\"VIR*\"),IF(COUNTIF(B685,\"*Virement*\"),\"\",IF(COUNTIF($B$8:B685,B685)=1,\"_\"&\"AUTO\"&COUNTIF($V$7:V684,\"*AUTO*\"),\"\")))","v":""},"",""]
[null,null,null,null,null,null,null,null,null,null,null,null,null,null,null,null,null,null,null,null,null,{"$f":"IF(AND(C686=\"Terminé\",COUNTIF(B686,\"*Virement*\")),\"VIR\"&COUNTIF($V$7:V685,\"VIR*\"),IF(COUNTIF(B686,\"*Virement*\"),\"\",IF(COUNTIF($B$8:B686,B686)=1,\"_\"&\"AUTO\"&COUNTIF($V$7:V685,\"*AUTO*\"),\"\")))","v":""},"",""]
[null,null,null,null,null,null,null,null,null,null,null,null,null,null,null,null,null,null,null,null,null,{"$f":"IF(AND(C687=\"Terminé\",COUNTIF(B687,\"*Virement*\")),\"VIR\"&COUNTIF($V$7:V686,\"VIR*\"),IF(COUNTIF(B687,\"*Virement*\"),\"\",IF(COUNTIF($B$8:B687,B687)=1,\"_\"&\"AUTO\"&COUNTIF($V$7:V686,\"*AUTO*\"),\"\")))","v":""},"",""]
[null,null,null,null,null,null,null,null,null,null,null,null,null,null,null,null,null,null,null,null,null,{"$f":"IF(AND(C688=\"Terminé\",COUNTIF(B688,\"*Virement*\")),\"VIR\"&COUNTIF($V$7:V687,\"VIR*\"),IF(COUNTIF(B688,\"*Virement*\"),\"\",IF(COUNTIF($B$8:B688,B688)=1,\"_\"&\"AUTO\"&COUNTIF($V$7:V687,\"*AUTO*\"),\"\")))","v":""},"",""]
[null,null,null,null,null,null,null,null,null,null,null,null,null,null,null,null,null,null,null,null,null,{"$f":"IF(AND(C689=\"Terminé\",COUNTIF(B689,\"*Virement*\")),\"VIR\"&COUNTIF($V$7:V688,\"VIR*\"),IF(COUNTIF(B689,\"*Virement*\"),\"\",IF(COUNTIF($B$8:B689,B689)=1,\"_\"&\"AUTO\"&COUNTIF($V$7:V688,\"*AUTO*\"),\"\")))","v":""},"",""]
[null,null,null,null,null,null,null,null,null,null,null,null,null,null,null,null,null,null,null,null,null,{"$f":"IF(AND(C690=\"Terminé\",COUNTIF(B690,\"*Virement*\")),\"VIR\"&COUNTIF($V$7:V689,\"VIR*\"),IF(COUNTIF(B690,\"*Virement*\"),\"\",IF(COUNTIF($B$8:B690,B690)=1,\"_\"&\"AUTO\"&COUNTIF($V$7:V689,\"*AUTO*\"),\"\")))","v":""},"",""]
[null,null,null,null,null,null,null,null,null,null,null,null,null,null,null,null,null,null,null,null,null,{"$f":"IF(AND(C691=\"Terminé\",COUNTIF(B691,\"*Virement*\")),\"VIR\"&COUNTIF($V$7:V690,\"VIR*\"),IF(COUNTIF(B691,\"*Virement*\"),\"\",IF(COUNTIF($B$8:B691,B691)=1,\"_\"&\"AUTO\"&COUNTIF($V$7:V690,\"*AUTO*\"),\"\")))","v":""},"",""]
[null,null,null,null,null,null,null,null,null,null,null,null,null,null,null,null,null,null,null,null,null,{"$f":"IF(AND(C692=\"Terminé\",COUNTIF(B692,\"*Virement*\")),\"VIR\"&COUNTIF($V$7:V691,\"VIR*\"),IF(COUNTIF(B692,\"*Virement*\"),\"\",IF(COUNTIF($B$8:B692,B692)=1,\"_\"&\"AUTO\"&COUNTIF($V$7:V691,\"*AUTO*\"),\"\")))","v":""},"",""]
[null,null,null,null,null,null,null,null,null,null,null,null,null,null,null,null,null,null,null,null,null,{"$f":"IF(AND(C693=\"Terminé\",COUNTIF(B693,\"*Virement*\")),\"VIR\"&COUNTIF($V$7:V692,\"VIR*\"),IF(COUNTIF(B693,\"*Virement*\"),\"\",IF(COUNTIF($B$8:B693,B693)=1,\"_\"&\"AUTO\"&COUNTIF($V$7:V692,\"*AUTO*\"),\"\")))","v":""},"",""]
[null,null,null,null,null,null,null,null,null,null,null,null,null,null,null,null,null,null,null,null,null,{"$f":"IF(AND(C694=\"Terminé\",COUNTIF(B694,\"*Virement*\")),\"VIR\"&COUNTIF($V$7:V693,\"VIR*\"),IF(COUNTIF(B694,\"*Virement*\"),\"\",IF(COUNTIF($B$8:B694,B694)=1,\"_\"&\"AUTO\"&COUNTIF($V$7:V693,\"*AUTO*\"),\"\")))","v":""},"",""]
[null,null,null,null,null,null,null,null,null,null,null,null,null,null,null,null,null,null,null,null,null,{"$f":"IF(AND(C695=\"Terminé\",COUNTIF(B695,\"*Virement*\")),\"VIR\"&COUNTIF($V$7:V694,\"VIR*\"),IF(COUNTIF(B695,\"*Virement*\"),\"\",IF(COUNTIF($B$8:B695,B695)=1,\"_\"&\"AUTO\"&COUNTIF($V$7:V694,\"*AUTO*\"),\"\")))","v":""},"",""]
[null,null,null,null,null,null,null,null,null,null,null,null,null,null,null,null,null,null,null,null,null,{"$f":"IF(AND(C696=\"Terminé\",COUNTIF(B696,\"*Virement*\")),\"VIR\"&COUNTIF($V$7:V695,\"VIR*\"),IF(COUNTIF(B696,\"*Virement*\"),\"\",IF(COUNTIF($B$8:B696,B696)=1,\"_\"&\"AUTO\"&COUNTIF($V$7:V695,\"*AUTO*\"),\"\")))","v":""},"",""]
[null,null,null,null,null,null,null,null,null,null,null,null,null,null,null,null,null,null,null,null,null,{"$f":"IF(AND(C697=\"Terminé\",COUNTIF(B697,\"*Virement*\")),\"VIR\"&COUNTIF($V$7:V696,\"VIR*\"),IF(COUNTIF(B697,\"*Virement*\"),\"\",IF(COUNTIF($B$8:B697,B697)=1,\"_\"&\"AUTO\"&COUNTIF($V$7:V696,\"*AUTO*\"),\"\")))","v":""},"",""]
[null,null,null,null,null,null,null,null,null,null,null,null,null,null,null,null,null,null,null,null,null,{"$f":"IF(AND(C698=\"Terminé\",COUNTIF(B698,\"*Virement*\")),\"VIR\"&COUNTIF($V$7:V697,\"VIR*\"),IF(COUNTIF(B698,\"*Virement*\"),\"\",IF(COUNTIF($B$8:B698,B698)=1,\"_\"&\"AUTO\"&COUNTIF($V$7:V697,\"*AUTO*\"),\"\")))","v":""},"",""]
[null,null,null,null,null,null,null,null,null,null,null,null,null,null,null,null,null,null,null,null,null,{"$f":"IF(AND(C699=\"Terminé\",COUNTIF(B699,\"*Virement*\")),\"VIR\"&COUNTIF($V$7:V698,\"VIR*\"),IF(COUNTIF(B699,\"*Virement*\"),\"\",IF(COUNTIF($B$8:B699,B699)=1,\"_\"&\"AUTO\"&COUNTIF($V$7:V698,\"*AUTO*\"),\"\")))","v":""},"",""]
[null,null,null,null,null,null,null,null,null,null,null,null,null,null,null,null,null,null,null,null,null,{"$f":"IF(AND(C700=\"Terminé\",COUNTIF(B700,\"*Virement*\")),\"VIR\"&COUNTIF($V$7:V699,\"VIR*\"),IF(COUNTIF(B700,\"*Virement*\"),\"\",IF(COUNTIF($B$8:B700,B700)=1,\"_\"&\"AUTO\"&COUNTIF($V$7:V699,\"*AUTO*\"),\"\")))","v":""},"",""]
[null,null,null,null,null,null,null,null,null,null,null,null,null,null,null,null,null,null,null,null,null,{"$f":"IF(AND(C701=\"Terminé\",COUNTIF(B701,\"*Virement*\")),\"VIR\"&COUNTIF($V$7:V700,\"VIR*\"),IF(COUNTIF(B701,\"*Virement*\"),\"\",IF(COUNTIF($B$8:B701,B701)=1,\"_\"&\"AUTO\"&COUNTIF($V$7:V700,\"*AUTO*\"),\"\")))","v":""},"",""]
[null,null,null,null,null,null,null,null,null,null,null,null,null,null,null,null,null,null,null,null,null,{"$f":"IF(AND(C702=\"Terminé\",COUNTIF(B702,\"*Virement*\")),\"VIR\"&COUNTIF($V$7:V701,\"VIR*\"),IF(COUNTIF(B702,\"*Virement*\"),\"\",IF(COUNTIF($B$8:B702,B702)=1,\"_\"&\"AUTO\"&COUNTIF($V$7:V701,\"*AUTO*\"),\"\")))","v":""},"",""]
[null,null,null,null,null,null,null,null,null,null,null,null,null,null,null,null,null,null,null,null,null,{"$f":"IF(AND(C703=\"Terminé\",COUNTIF(B703,\"*Virement*\")),\"VIR\"&COUNTIF($V$7:V702,\"VIR*\"),IF(COUNTIF(B703,\"*Virement*\"),\"\",IF(COUNTIF($B$8:B703,B703)=1,\"_\"&\"AUTO\"&COUNTIF($V$7:V702,\"*AUTO*\"),\"\")))","v":""},"",""]
[null,null,null,null,null,null,null,null,null,null,null,null,null,null,null,null,null,null,null,null,null,{"$f":"IF(AND(C704=\"Terminé\",COUNTIF(B704,\"*Virement*\")),\"VIR\"&COUNTIF($V$7:V703,\"VIR*\"),IF(COUNTIF(B704,\"*Virement*\"),\"\",IF(COUNTIF($B$8:B704,B704)=1,\"_\"&\"AUTO\"&COUNTIF($V$7:V703,\"*AUTO*\"),\"\")))","v":""},"",""]
[null,null,null,null,null,null,null,null,null,null,null,null,null,null,null,null,null,null,null,null,null,{"$f":"IF(AND(C705=\"Terminé\",COUNTIF(B705,\"*Virement*\")),\"VIR\"&COUNTIF($V$7:V704,\"VIR*\"),IF(COUNTIF(B705,\"*Virement*\"),\"\",IF(COUNTIF($B$8:B705,B705)=1,\"_\"&\"AUTO\"&COUNTIF($V$7:V704,\"*AUTO*\"),\"\")))","v":""},"",""]
[null,null,null,null,null,null,null,null,null,null,null,null,null,null,null,null,null,null,null,null,null,{"$f":"IF(AND(C706=\"Terminé\",COUNTIF(B706,\"*Virement*\")),\"VIR\"&COUNTIF($V$7:V705,\"VIR*\"),IF(COUNTIF(B706,\"*Virement*\"),\"\",IF(COUNTIF($B$8:B706,B706)=1,\"_\"&\"AUTO\"&COUNTIF($V$7:V705,\"*AUTO*\"),\"\")))","v":""},"",""]
[null,null,null,null,null,null,null,null,null,null,null,null,null,null,null,null,null,null,null,null,null,{"$f":"IF(AND(C707=\"Terminé\",COUNTIF(B707,\"*Virement*\")),\"VIR\"&COUNTIF($V$7:V706,\"VIR*\"),IF(COUNTIF(B707,\"*Virement*\"),\"\",IF(COUNTIF($B$8:B707,B707)=1,\"_\"&\"AUTO\"&COUNTIF($V$7:V706,\"*AUTO*\"),\"\")))","v":""},"",""]
[null,null,null,null,null,null,null,null,null,null,null,null,null,null,null,null,null,null,null,null,null,{"$f":"IF(AND(C708=\"Terminé\",COUNTIF(B708,\"*Virement*\")),\"VIR\"&COUNTIF($V$7:V707,\"VIR*\"),IF(COUNTIF(B708,\"*Virement*\"),\"\",IF(COUNTIF($B$8:B708,B708)=1,\"_\"&\"AUTO\"&COUNTIF($V$7:V707,\"*AUTO*\"),\"\")))","v":""},"",""]
[null,null,null,null,null,null,null,null,null,null,null,null,null,null,null,null,null,null,null,null,null,{"$f":"IF(AND(C709=\"Terminé\",COUNTIF(B709,\"*Virement*\")),\"VIR\"&COUNTIF($V$7:V708,\"VIR*\"),IF(COUNTIF(B709,\"*Virement*\"),\"\",IF(COUNTIF($B$8:B709,B709)=1,\"_\"&\"AUTO\"&COUNTIF($V$7:V708,\"*AUTO*\"),\"\")))","v":""},"",""]
[null,null,null,null,null,null,null,null,null,null,null,null,null,null,null,null,null,null,null,null,null,{"$f":"IF(AND(C710=\"Terminé\",COUNTIF(B710,\"*Virement*\")),\"VIR\"&COUNTIF($V$7:V709,\"VIR*\"),IF(COUNTIF(B710,\"*Virement*\"),\"\",IF(COUNTIF($B$8:B710,B710)=1,\"_\"&\"AUTO\"&COUNTIF($V$7:V709,\"*AUTO*\"),\"\")))","v":""},"",""]
[null,null,null,null,null,null,null,null,null,null,null,null,null,null,null,null,null,null,null,null,null,{"$f":"IF(AND(C711=\"Terminé\",COUNTIF(B711,\"*Virement*\")),\"VIR\"&COUNTIF($V$7:V710,\"VIR*\"),IF(COUNTIF(B711,\"*Virement*\"),\"\",IF(COUNTIF($B$8:B711,B711)=1,\"_\"&\"AUTO\"&COUNTIF($V$7:V710,\"*AUTO*\"),\"\")))","v":""},"",""]
[null,null,null,null,null,null,null,null,null,null,null,null,null,null,null,null,null,null,null,null,null,{"$f":"IF(AND(C712=\"Terminé\",COUNTIF(B712,\"*Virement*\")),\"VIR\"&COUNTIF($V$7:V711,\"VIR*\"),IF(COUNTIF(B712,\"*Virement*\"),\"\",IF(COUNTIF($B$8:B712,B712)=1,\"_\"&\"AUTO\"&COUNTIF($V$7:V711,\"*AUTO*\"),\"\")))","v":""},"",""]
[null,null,null,null,null,null,null,null,null,null,null,null,null,null,null,null,null,null,null,null,null,{"$f":"IF(AND(C713=\"Terminé\",COUNTIF(B713,\"*Virement*\")),\"VIR\"&COUNTIF($V$7:V712,\"VIR*\"),IF(COUNTIF(B713,\"*Virement*\"),\"\",IF(COUNTIF($B$8:B713,B713)=1,\"_\"&\"AUTO\"&COUNTIF($V$7:V712,\"*AUTO*\"),\"\")))","v":""},{"$f":"IFERROR(INDEX(B:B,MATCH(\"VIR\"&ROW()-8,V:V,0)),\"\")","v":""},{"$f":"IFERROR(INDEX($B:$B,MATCH(\"*AUTO*\"&ROW()-8,$V:$V,0)),\"\")","v":""}]
[null,null,null,null,null,null,null,null,null,null,null,null,null,null,null,null,null,null,null,null,null,{"$f":"IF(AND(C714=\"Terminé\",COUNTIF(B714,\"*Virement*\")),\"VIR\"&COUNTIF($V$7:V713,\"VIR*\"),IF(COUNTIF(B714,\"*Virement*\"),\"\",IF(COUNTIF($B$8:B714,B714)=1,\"_\"&\"AUTO\"&COUNTIF($V$7:V713,\"*AUTO*\"),\"\")))","v":""},"",""]
[null,null,null,null,null,null,null,null,null,null,null,null,null,null,null,null,null,null,null,null,null,{"$f":"IF(AND(C715=\"Terminé\",COUNTIF(B715,\"*Virement*\")),\"VIR\"&COUNTIF($V$7:V714,\"VIR*\"),IF(COUNTIF(B715,\"*Virement*\"),\"\",IF(COUNTIF($B$8:B715,B715)=1,\"_\"&\"AUTO\"&COUNTIF($V$7:V714,\"*AUTO*\"),\"\")))","v":""},"",""]
[null,null,null,null,null,null,null,null,null,null,null,null,null,null,null,null,null,null,null,null,null,{"$f":"IF(AND(C716=\"Terminé\",COUNTIF(B716,\"*Virement*\")),\"VIR\"&COUNTIF($V$7:V715,\"VIR*\"),IF(COUNTIF(B716,\"*Virement*\"),\"\",IF(COUNTIF($B$8:B716,B716)=1,\"_\"&\"AUTO\"&COUNTIF($V$7:V715,\"*AUTO*\"),\"\")))","v":""},"",""]
[null,null,null,null,null,null,null,null,null,null,null,null,null,null,null,null,null,null,null,null,null,{"$f":"IF(AND(C717=\"Terminé\",COUNTIF(B717,\"*Virement*\")),\"VIR\"&COUNTIF($V$7:V716,\"VIR*\"),IF(COUNTIF(B717,\"*Virement*\"),\"\",IF(COUNTIF($B$8:B717,B717)=1,\"_\"&\"AUTO\"&COUNTIF($V$7:V716,\"*AUTO*\"),\"\")))","v":""},"",""]
[null,null,null,null,null,null,null,null,null,null,null,null,null,null,null,null,null,null,null,null,null,{"$f":"IF(AND(C718=\"Terminé\",COUNTIF(B718,\"*Virement*\")),\"VIR\"&COUNTIF($V$7:V717,\"VIR*\"),IF(COUNTIF(B718,\"*Virement*\"),\"\",IF(COUNTIF($B$8:B718,B718)=1,\"_\"&\"AUTO\"&COUNTIF($V$7:V717,\"*AUTO*\"),\"\")))","v":""},"",""]
[null,null,null,null,null,null,null,null,null,null,null,null,null,null,null,null,null,null,null,null,null,{"$f":"IF(AND(C719=\"Terminé\",COUNTIF(B719,\"*Virement*\")),\"VIR\"&COUNTIF($V$7:V718,\"VIR*\"),IF(COUNTIF(B719,\"*Virement*\"),\"\",IF(COUNTIF($B$8:B719,B719)=1,\"_\"&\"AUTO\"&COUNTIF($V$7:V718,\"*AUTO*\"),\"\")))","v":""},"",""]
[null,null,null,null,null,null,null,null,null,null,null,null,null,null,null,null,null,null,null,null,null,{"$f":"IF(AND(C720=\"Terminé\",COUNTIF(B720,\"*Virement*\")),\"VIR\"&COUNTIF($V$7:V719,\"VIR*\"),IF(COUNTIF(B720,\"*Virement*\"),\"\",IF(COUNTIF($B$8:B720,B720)=1,\"_\"&\"AUTO\"&COUNTIF($V$7:V719,\"*AUTO*\"),\"\")))","v":""},"",""]
[null,null,null,null,null,null,null,null,null,null,null,null,null,null,null,null,null,null,null,null,null,{"$f":"IF(AND(C721=\"Terminé\",COUNTIF(B721,\"*Virement*\")),\"VIR\"&COUNTIF($V$7:V720,\"VIR*\"),IF(COUNTIF(B721,\"*Virement*\"),\"\",IF(COUNTIF($B$8:B721,B721)=1,\"_\"&\"AUTO\"&COUNTIF($V$7:V720,\"*AUTO*\"),\"\")))","v":""},"",""]
[null,null,null,null,null,null,null,null,null,null,null,null,null,null,null,null,null,null,null,null,null,{"$f":"IF(AND(C722=\"Terminé\",COUNTIF(B722,\"*Virement*\")),\"VIR\"&COUNTIF($V$7:V721,\"VIR*\"),IF(COUNTIF(B722,\"*Virement*\"),\"\",IF(COUNTIF($B$8:B722,B722)=1,\"_\"&\"AUTO\"&COUNTIF($V$7:V721,\"*AUTO*\"),\"\")))","v":""},"",""]
[null,null,null,null,null,null,null,null,null,null,null,null,null,null,null,null,null,null,null,null,null,{"$f":"IF(AND(C723=\"Terminé\",COUNTIF(B723,\"*Virement*\")),\"VIR\"&COUNTIF($V$7:V722,\"VIR*\"),IF(COUNTIF(B723,\"*Virement*\"),\"\",IF(COUNTIF($B$8:B723,B723)=1,\"_\"&\"AUTO\"&COUNTIF($V$7:V722,\"*AUTO*\"),\"\")))","v":""},"",""]
[null,null,null,null,null,null,null,null,null,null,null,null,null,null,null,null,null,null,null,null,null,{"$f":"IF(AND(C724=\"Terminé\",COUNTIF(B724,\"*Virement*\")),\"VIR\"&COUNTIF($V$7:V723,\"VIR*\"),IF(COUNTIF(B724,\"*Virement*\"),\"\",IF(COUNTIF($B$8:B724,B724)=1,\"_\"&\"AUTO\"&COUNTIF($V$7:V723,\"*AUTO*\"),\"\")))","v":""},"",""]
[null,null,null,null,null,null,null,null,null,null,null,null,null,null,null,null,null,null,null,null,null,{"$f":"IF(AND(C725=\"Terminé\",COUNTIF(B725,\"*Virement*\")),\"VIR\"&COUNTIF($V$7:V724,\"VIR*\"),IF(COUNTIF(B725,\"*Virement*\"),\"\",IF(COUNTIF($B$8:B725,B725)=1,\"_\"&\"AUTO\"&COUNTIF($V$7:V724,\"*AUTO*\"),\"\")))","v":""},"",""]
[null,null,null,null,null,null,null,null,null,null,null,null,null,null,null,null,null,null,null,null,null,{"$f":"IF(AND(C726=\"Terminé\",COUNTIF(B726,\"*Virement*\")),\"VIR\"&COUNTIF($V$7:V725,\"VIR*\"),IF(COUNTIF(B726,\"*Virement*\"),\"\",IF(COUNTIF($B$8:B726,B726)=1,\"_\"&\"AUTO\"&COUNTIF($V$7:V725,\"*AUTO*\"),\"\")))","v":""},"",""]
[null,null,null,null,null,null,null,null,null,null,null,null,null,null,null,null,null,null,null,null,null,{"$f":"IF(AND(C727=\"Terminé\",COUNTIF(B727,\"*Virement*\")),\"VIR\"&COUNTIF($V$7:V726,\"VIR*\"),IF(COUNTIF(B727,\"*Virement*\"),\"\",IF(COUNTIF($B$8:B727,B727)=1,\"_\"&\"AUTO\"&COUNTIF($V$7:V726,\"*AUTO*\"),\"\")))","v":""},"",""]
[null,null,null,null,null,null,null,null,null,null,null,null,null,null,null,null,null,null,null,null,null,{"$f":"IF(AND(C728=\"Terminé\",COUNTIF(B728,\"*Virement*\")),\"VIR\"&COUNTIF($V$7:V727,\"VIR*\"),IF(COUNTIF(B728,\"*Virement*\"),\"\",IF(COUNTIF($B$8:B728,B728)=1,\"_\"&\"AUTO\"&COUNTIF($V$7:V727,\"*AUTO*\"),\"\")))","v":""},"",""]
[null,null,null,null,null,null,null,null,null,null,null,null,null,null,null,null,null,null,null,null,null,{"$f":"IF(AND(C729=\"Terminé\",COUNTIF(B729,\"*Virement*\")),\"VIR\"&COUNTIF($V$7:V728,\"VIR*\"),IF(COUNTIF(B729,\"*Virement*\"),\"\",IF(COUNTIF($B$8:B729,B729)=1,\"_\"&\"AUTO\"&COUNTIF($V$7:V728,\"*AUTO*\"),\"\")))","v":""},"",""]
[null,null,null,null,null,null,null,null,null,null,null,null,null,null,null,null,null,null,null,null,null,{"$f":"IF(AND(C730=\"Terminé\",COUNTIF(B730,\"*Virement*\")),\"VIR\"&COUNTIF($V$7:V729,\"VIR*\"),IF(COUNTIF(B730,\"*Virement*\"),\"\",IF(COUNTIF($B$8:B730,B730)=1,\"_\"&\"AUTO\"&COUNTIF($V$7:V729,\"*AUTO*\"),\"\")))","v":""},"",""]
[null,null,null,null,null,null,null,null,null,null,null,null,null,null,null,null,null,null,null,null,null,{"$f":"IF(AND(C731=\"Terminé\",COUNTIF(B731,\"*Virement*\")),\"VIR\"&COUNTIF($V$7:V730,\"VIR*\"),IF(COUNTIF(B731,\"*Virement*\"),\"\",IF(COUNTIF($B$8:B731,B731)=1,\"_\"&\"AUTO\"&COUNTIF($V$7:V730,\"*AUTO*\"),\"\")))","v":""},"",""]
[null,null,null,null,null,null,null,null,null,null,null,null,null,null,null,null,null,null,null,null,null,{"$f":"IF(AND(C732=\"Terminé\",COUNTIF(B732,\"*Virement*\")),\"VIR\"&COUNTIF($V$7:V731,\"VIR*\"),IF(COUNTIF(B732,\"*Virement*\"),\"\",IF(COUNTIF($B$8:B732,B732)=1,\"_\"&\"AUTO\"&COUNTIF($V$7:V731,\"*AUTO*\"),\"\")))","v":""},"",""]
[null,null,null,null,null,null,null,null,null,null,null,null,null,null,null,null,null,null,null,null,null,{"$f":"IF(AND(C733=\"Terminé\",COUNTIF(B733,\"*Virement*\")),\"VIR\"&COUNTIF($V$7:V732,\"VIR*\"),IF(COUNTIF(B733,\"*Virement*\"),\"\",IF(COUNTIF($B$8:B733,B733)=1,\"_\"&\"AUTO\"&COUNTIF($V$7:V732,\"*AUTO*\"),\"\")))","v":""},"",""]
[null,null,null,null,null,null,null,null,null,null,null,null,null,null,null,null,null,null,null,null,null,{"$f":"IF(AND(C734=\"Terminé\",COUNTIF(B734,\"*Virement*\")),\"VIR\"&COUNTIF($V$7:V733,\"VIR*\"),IF(COUNTIF(B734,\"*Virement*\"),\"\",IF(COUNTIF($B$8:B734,B734)=1,\"_\"&\"AUTO\"&COUNTIF($V$7:V733,\"*AUTO*\"),\"\")))","v":""},"",""]
[null,null,null,null,null,null,null,null,null,null,null,null,null,null,null,null,null,null,null,null,null,{"$f":"IF(AND(C735=\"Terminé\",COUNTIF(B735,\"*Virement*\")),\"VIR\"&COUNTIF($V$7:V734,\"VIR*\"),IF(COUNTIF(B735,\"*Virement*\"),\"\",IF(COUNTIF($B$8:B735,B735)=1,\"_\"&\"AUTO\"&COUNTIF($V$7:V734,\"*AUTO*\"),\"\")))","v":""},"",""]
[null,null,null,null,null,null,null,null,null,null,null,null,null,null,null,null,null,null,null,null,null,{"$f":"IF(AND(C736=\"Terminé\",COUNTIF(B736,\"*Virement*\")),\"VIR\"&COUNTIF($V$7:V735,\"VIR*\"),IF(COUNTIF(B736,\"*Virement*\"),\"\",IF(COUNTIF($B$8:B736,B736)=1,\"_\"&\"AUTO\"&COUNTIF($V$7:V735,\"*AUTO*\"),\"\")))","v":""},"",""]
[null,null,null,null,null,null,null,null,null,null,null,null,null,null,null,null,null,null,null,null,null,{"$f":"IF(AND(C737=\"Terminé\",COUNTIF(B737,\"*Virement*\")),\"VIR\"&COUNTIF($V$7:V736,\"VIR*\"),IF(COUNTIF(B737,\"*Virement*\"),\"\",IF(COUNTIF($B$8:B737,B737)=1,\"_\"&\"AUTO\"&COUNTIF($V$7:V736,\"*AUTO*\"),\"\")))","v":""},"",""]
[null,null,null,null,null,null,null,null,null,null,null,null,null,null,null,null,null,null,null,null,null,{"$f":"IF(AND(C738=\"Terminé\",COUNTIF(B738,\"*Virement*\")),\"VIR\"&COUNTIF($V$7:V737,\"VIR*\"),IF(COUNTIF(B738,\"*Virement*\"),\"\",IF(COUNTIF($B$8:B738,B738)=1,\"_\"&\"AUTO\"&COUNTIF($V$7:V737,\"*AUTO*\"),\"\")))","v":""},"",""]
[null,null,null,null,null,null,null,null,null,null,null,null,null,null,null,null,null,null,null,null,null,{"$f":"IF(AND(C739=\"Terminé\",COUNTIF(B739,\"*Virement*\")),\"VIR\"&COUNTIF($V$7:V738,\"VIR*\"),IF(COUNTIF(B739,\"*Virement*\"),\"\",IF(COUNTIF($B$8:B739,B739)=1,\"_\"&\"AUTO\"&COUNTIF($V$7:V738,\"*AUTO*\"),\"\")))","v":""},"",""]
[null,null,null,null,null,null,null,null,null,null,null,null,null,null,null,null,null,null,null,null,null,{"$f":"IF(AND(C740=\"Terminé\",COUNTIF(B740,\"*Virement*\")),\"VIR\"&COUNTIF($V$7:V739,\"VIR*\"),IF(COUNTIF(B740,\"*Virement*\"),\"\",IF(COUNTIF($B$8:B740,B740)=1,\"_\"&\"AUTO\"&COUNTIF($V$7:V739,\"*AUTO*\"),\"\")))","v":""},"",""]
[null,null,null,null,null,null,null,null,null,null,null,null,null,null,null,null,null,null,null,null,null,{"$f":"IF(AND(C741=\"Terminé\",COUNTIF(B741,\"*Virement*\")),\"VIR\"&COUNTIF($V$7:V740,\"VIR*\"),IF(COUNTIF(B741,\"*Virement*\"),\"\",IF(COUNTIF($B$8:B741,B741)=1,\"_\"&\"AUTO\"&COUNTIF($V$7:V740,\"*AUTO*\"),\"\")))","v":""},"",""]
[null,null,null,null,null,null,null,null,null,null,null,null,null,null,null,null,null,null,null,null,null,{"$f":"IF(AND(C742=\"Terminé\",COUNTIF(B742,\"*Virement*\")),\"VIR\"&COUNTIF($V$7:V741,\"VIR*\"),IF(COUNTIF(B742,\"*Virement*\"),\"\",IF(COUNTIF($B$8:B742,B742)=1,\"_\"&\"AUTO\"&COUNTIF($V$7:V741,\"*AUTO*\"),\"\")))","v":""},"",""]
[null,null,null,null,null,null,null,null,null,null,null,null,null,null,null,null,null,null,null,null,null,{"$f":"IF(AND(C743=\"Terminé\",COUNTIF(B743,\"*Virement*\")),\"VIR\"&COUNTIF($V$7:V742,\"VIR*\"),IF(COUNTIF(B743,\"*Virement*\"),\"\",IF(COUNTIF($B$8:B743,B743)=1,\"_\"&\"AUTO\"&COUNTIF($V$7:V742,\"*AUTO*\"),\"\")))","v":""},"",""]
[null,null,null,null,null,null,null,null,null,null,null,null,null,null,null,null,null,null,null,null,null,{"$f":"IF(AND(C744=\"Terminé\",COUNTIF(B744,\"*Virement*\")),\"VIR\"&COUNTIF($V$7:V743,\"VIR*\"),IF(COUNTIF(B744,\"*Virement*\"),\"\",IF(COUNTIF($B$8:B744,B744)=1,\"_\"&\"AUTO\"&COUNTIF($V$7:V743,\"*AUTO*\"),\"\")))","v":""},"",""]
[null,null,null,null,null,null,null,null,null,null,null,null,null,null,null,null,null,null,null,null,null,{"$f":"IF(AND(C745=\"Terminé\",COUNTIF(B745,\"*Virement*\")),\"VIR\"&COUNTIF($V$7:V744,\"VIR*\"),IF(COUNTIF(B745,\"*Virement*\"),\"\",IF(COUNTIF($B$8:B745,B745)=1,\"_\"&\"AUTO\"&COUNTIF($V$7:V744,\"*AUTO*\"),\"\")))","v":""},"",""]
[null,null,null,null,null,null,null,null,null,null,null,null,null,null,null,null,null,null,null,null,null,{"$f":"IF(AND(C746=\"Terminé\",COUNTIF(B746,\"*Virement*\")),\"VIR\"&COUNTIF($V$7:V745,\"VIR*\"),IF(COUNTIF(B746,\"*Virement*\"),\"\",IF(COUNTIF($B$8:B746,B746)=1,\"_\"&\"AUTO\"&COUNTIF($V$7:V745,\"*AUTO*\"),\"\")))","v":""},"",""]
[null,null,null,null,null,null,null,null,null,null,null,null,null,null,null,null,null,null,null,null,null,{"$f":"IF(AND(C747=\"Terminé\",COUNTIF(B747,\"*Virement*\")),\"VIR\"&COUNTIF($V$7:V746,\"VIR*\"),IF(COUNTIF(B747,\"*Virement*\"),\"\",IF(COUNTIF($B$8:B747,B747)=1,\"_\"&\"AUTO\"&COUNTIF($V$7:V746,\"*AUTO*\"),\"\")))","v":""},"",""]
[null,null,null,null,null,null,null,null,null,null,null,null,null,null,null,null,null,null,null,null,null,{"$f":"IF(AND(C748=\"Terminé\",COUNTIF(B748,\"*Virement*\")),\"VIR\"&COUNTIF($V$7:V747,\"VIR*\"),IF(COUNTIF(B748,\"*Virement*\"),\"\",IF(COUNTIF($B$8:B748,B748)=1,\"_\"&\"AUTO\"&COUNTIF($V$7:V747,\"*AUTO*\"),\"\")))","v":""},"",""]
[null,null,null,null,null,null,null,null,null,null,null,null,null,null,null,null,null,null,null,null,null,{"$f":"IF(AND(C749=\"Terminé\",COUNTIF(B749,\"*Virement*\")),\"VIR\"&COUNTIF($V$7:V748,\"VIR*\"),IF(COUNTIF(B749,\"*Virement*\"),\"\",IF(COUNTIF($B$8:B749,B749)=1,\"_\"&\"AUTO\"&COUNTIF($V$7:V748,\"*AUTO*\"),\"\")))","v":""},"",""]
[null,null,null,null,null,null,null,null,null,null,null,null,null,null,null,null,null,null,null,null,null,{"$f":"IF(AND(C750=\"Terminé\",COUNTIF(B750,\"*Virement*\")),\"VIR\"&COUNTIF($V$7:V749,\"VIR*\"),IF(COUNTIF(B750,\"*Virement*\"),\"\",IF(COUNTIF($B$8:B750,B750)=1,\"_\"&\"AUTO\"&COUNTIF($V$7:V749,\"*AUTO*\"),\"\")))","v":""},"",""]
[null,null,null,null,null,null,null,null,null,null,null,null,null,null,null,null,null,null,null,null,null,{"$f":"IF(AND(C751=\"Terminé\",COUNTIF(B751,\"*Virement*\")),\"VIR\"&COUNTIF($V$7:V750,\"VIR*\"),IF(COUNTIF(B751,\"*Virement*\"),\"\",IF(COUNTIF($B$8:B751,B751)=1,\"_\"&\"AUTO\"&COUNTIF($V$7:V750,\"*AUTO*\"),\"\")))","v":""},"",""]
[null,null,null,null,null,null,null,null,null,null,null,null,null,null,null,null,null,null,null,null,null,{"$f":"IF(AND(C752=\"Terminé\",COUNTIF(B752,\"*Virement*\")),\"VIR\"&COUNTIF($V$7:V751,\"VIR*\"),IF(COUNTIF(B752,\"*Virement*\"),\"\",IF(COUNTIF($B$8:B752,B752)=1,\"_\"&\"AUTO\"&COUNTIF($V$7:V751,\"*AUTO*\"),\"\")))","v":""},"",""]
[null,null,null,null,null,null,null,null,null,null,null,null,null,null,null,null,null,null,null,null,null,{"$f":"IF(AND(C753=\"Terminé\",COUNTIF(B753,\"*Virement*\")),\"VIR\"&COUNTIF($V$7:V752,\"VIR*\"),IF(COUNTIF(B753,\"*Virement*\"),\"\",IF(COUNTIF($B$8:B753,B753)=1,\"_\"&\"AUTO\"&COUNTIF($V$7:V752,\"*AUTO*\"),\"\")))","v":""},"",""]
[null,null,null,null,null,null,null,null,null,null,null,null,null,null,null,null,null,null,null,null,null,{"$f":"IF(AND(C754=\"Terminé\",COUNTIF(B754,\"*Virement*\")),\"VIR\"&COUNTIF($V$7:V753,\"VIR*\"),IF(COUNTIF(B754,\"*Virement*\"),\"\",IF(COUNTIF($B$8:B754,B754)=1,\"_\"&\"AUTO\"&COUNTIF($V$7:V753,\"*AUTO*\"),\"\")))","v":""},"",""]
[null,null,null,null,null,null,null,null,null,null,null,null,null,null,null,null,null,null,null,null,null,{"$f":"IF(AND(C755=\"Terminé\",COUNTIF(B755,\"*Virement*\")),\"VIR\"&COUNTIF($V$7:V754,\"VIR*\"),IF(COUNTIF(B755,\"*Virement*\"),\"\",IF(COUNTIF($B$8:B755,B755)=1,\"_\"&\"AUTO\"&COUNTIF($V$7:V754,\"*AUTO*\"),\"\")))","v":""},"",""]
[null,null,null,null,null,null,null,null,null,null,null,null,null,null,null,null,null,null,null,null,null,{"$f":"IF(AND(C756=\"Terminé\",COUNTIF(B756,\"*Virement*\")),\"VIR\"&COUNTIF($V$7:V755,\"VIR*\"),IF(COUNTIF(B756,\"*Virement*\"),\"\",IF(COUNTIF($B$8:B756,B756)=1,\"_\"&\"AUTO\"&COUNTIF($V$7:V755,\"*AUTO*\"),\"\")))","v":""},"",""]
[null,null,null,null,null,null,null,null,null,null,null,null,null,null,null,null,null,null,null,null,null,{"$f":"IF(AND(C757=\"Terminé\",COUNTIF(B757,\"*Virement*\")),\"VIR\"&COUNTIF($V$7:V756,\"VIR*\"),IF(COUNTIF(B757,\"*Virement*\"),\"\",IF(COUNTIF($B$8:B757,B757)=1,\"_\"&\"AUTO\"&COUNTIF($V$7:V756,\"*AUTO*\"),\"\")))","v":""},"",""]
[null,null,null,null,null,null,null,null,null,null,null,null,null,null,null,null,null,null,null,null,null,{"$f":"IF(AND(C758=\"Terminé\",COUNTIF(B758,\"*Virement*\")),\"VIR\"&COUNTIF($V$7:V757,\"VIR*\"),IF(COUNTIF(B758,\"*Virement*\"),\"\",IF(COUNTIF($B$8:B758,B758)=1,\"_\"&\"AUTO\"&COUNTIF($V$7:V757,\"*AUTO*\"),\"\")))","v":""},"",""]
[null,null,null,null,null,null,null,null,null,null,null,null,null,null,null,null,null,null,null,null,null,{"$f":"IF(AND(C759=\"Terminé\",COUNTIF(B759,\"*Virement*\")),\"VIR\"&COUNTIF($V$7:V758,\"VIR*\"),IF(COUNTIF(B759,\"*Virement*\"),\"\",IF(COUNTIF($B$8:B759,B759)=1,\"_\"&\"AUTO\"&COUNTIF($V$7:V758,\"*AUTO*\"),\"\")))","v":""},"",""]
[null,null,null,null,null,null,null,null,null,null,null,null,null,null,null,null,null,null,null,null,null,{"$f":"IF(AND(C760=\"Terminé\",COUNTIF(B760,\"*Virement*\")),\"VIR\"&COUNTIF($V$7:V759,\"VIR*\"),IF(COUNTIF(B760,\"*Virement*\"),\"\",IF(COUNTIF($B$8:B760,B760)=1,\"_\"&\"AUTO\"&COUNTIF($V$7:V759,\"*AUTO*\"),\"\")))","v":""},"",""]
[null,null,null,null,null,null,null,null,null,null,null,null,null,null,null,null,null,null,null,null,null,{"$f":"IF(AND(C761=\"Terminé\",COUNTIF(B761,\"*Virement*\")),\"VIR\"&COUNTIF($V$7:V760,\"VIR*\"),IF(COUNTIF(B761,\"*Virement*\"),\"\",IF(COUNTIF($B$8:B761,B761)=1,\"_\"&\"AUTO\"&COUNTIF($V$7:V760,\"*AUTO*\"),\"\")))","v":""},"",""]
[null,null,null,null,null,null,null,null,null,null,null,null,null,null,null,null,null,null,null,null,null,{"$f":"IF(AND(C762=\"Terminé\",COUNTIF(B762,\"*Virement*\")),\"VIR\"&COUNTIF($V$7:V761,\"VIR*\"),IF(COUNTIF(B762,\"*Virement*\"),\"\",IF(COUNTIF($B$8:B762,B762)=1,\"_\"&\"AUTO\"&COUNTIF($V$7:V761,\"*AUTO*\"),\"\")))","v":""},"",""]
[null,null,null,null,null,null,null,null,null,null,null,null,null,null,null,null,null,null,null,null,null,{"$f":"IF(AND(C763=\"Terminé\",COUNTIF(B763,\"*Virement*\")),\"VIR\"&COUNTIF($V$7:V762,\"VIR*\"),IF(COUNTIF(B763,\"*Virement*\"),\"\",IF(COUNTIF($B$8:B763,B763)=1,\"_\"&\"AUTO\"&COUNTIF($V$7:V762,\"*AUTO*\"),\"\")))","v":""},"",""]
[null,null,null,null,null,null,null,null,null,null,null,null,null,null,null,null,null,null,null,null,null,{"$f":"IF(AND(C764=\"Terminé\",COUNTIF(B764,\"*Virement*\")),\"VIR\"&COUNTIF($V$7:V763,\"VIR*\"),IF(COUNTIF(B764,\"*Virement*\"),\"\",IF(COUNTIF($B$8:B764,B764)=1,\"_\"&\"AUTO\"&COUNTIF($V$7:V763,\"*AUTO*\"),\"\")))","v":""},"",""]
[null,null,null,null,null,null,null,null,null,null,null,null,null,null,null,null,null,null,null,null,null,{"$f":"IF(AND(C765=\"Terminé\",COUNTIF(B765,\"*Virement*\")),\"VIR\"&COUNTIF($V$7:V764,\"VIR*\"),IF(COUNTIF(B765,\"*Virement*\"),\"\",IF(COUNTIF($B$8:B765,B765)=1,\"_\"&\"AUTO\"&COUNTIF($V$7:V764,\"*AUTO*\"),\"\")))","v":""},"",""]
[null,null,null,null,null,null,null,null,null,null,null,null,null,null,null,null,null,null,null,null,null,{"$f":"IF(AND(C766=\"Terminé\",COUNTIF(B766,\"*Virement*\")),\"VIR\"&COUNTIF($V$7:V765,\"VIR*\"),IF(COUNTIF(B766,\"*Virement*\"),\"\",IF(COUNTIF($B$8:B766,B766)=1,\"_\"&\"AUTO\"&COUNTIF($V$7:V765,\"*AUTO*\"),\"\")))","v":""},"",""]
[null,null,null,null,null,null,null,null,null,null,null,null,null,null,null,null,null,null,null,null,null,{"$f":"IF(AND(C767=\"Terminé\",COUNTIF(B767,\"*Virement*\")),\"VIR\"&COUNTIF($V$7:V766,\"VIR*\"),IF(COUNTIF(B767,\"*Virement*\"),\"\",IF(COUNTIF($B$8:B767,B767)=1,\"_\"&\"AUTO\"&COUNTIF($V$7:V766,\"*AUTO*\"),\"\")))","v":""},"",""]
[null,null,null,null,null,null,null,null,null,null,null,null,null,null,null,null,null,null,null,null,null,{"$f":"IF(AND(C768=\"Terminé\",COUNTIF(B768,\"*Virement*\")),\"VIR\"&COUNTIF($V$7:V767,\"VIR*\"),IF(COUNTIF(B768,\"*Virement*\"),\"\",IF(COUNTIF($B$8:B768,B768)=1,\"_\"&\"AUTO\"&COUNTIF($V$7:V767,\"*AUTO*\"),\"\")))","v":""},"",""]
[null,null,null,null,null,null,null,null,null,null,null,null,null,null,null,null,null,null,null,null,null,{"$f":"IF(AND(C769=\"Terminé\",COUNTIF(B769,\"*Virement*\")),\"VIR\"&COUNTIF($V$7:V768,\"VIR*\"),IF(COUNTIF(B769,\"*Virement*\"),\"\",IF(COUNTIF($B$8:B769,B769)=1,\"_\"&\"AUTO\"&COUNTIF($V$7:V768,\"*AUTO*\"),\"\")))","v":""},"",""]
[null,null,null,null,null,null,null,null,null,null,null,null,null,null,null,null,null,null,null,null,null,{"$f":"IF(AND(C770=\"Terminé\",COUNTIF(B770,\"*Virement*\")),\"VIR\"&COUNTIF($V$7:V769,\"VIR*\"),IF(COUNTIF(B770,\"*Virement*\"),\"\",IF(COUNTIF($B$8:B770,B770)=1,\"_\"&\"AUTO\"&COUNTIF($V$7:V769,\"*AUTO*\"),\"\")))","v":""},"",""]
[null,null,null,null,null,null,null,null,null,null,null,null,null,null,null,null,null,null,null,null,null,{"$f":"IF(AND(C771=\"Terminé\",COUNTIF(B771,\"*Virement*\")),\"VIR\"&COUNTIF($V$7:V770,\"VIR*\"),IF(COUNTIF(B771,\"*Virement*\"),\"\",IF(COUNTIF($B$8:B771,B771)=1,\"_\"&\"AUTO\"&COUNTIF($V$7:V770,\"*AUTO*\"),\"\")))","v":""},"",""]
[null,null,null,null,null,null,null,null,null,null,null,null,null,null,null,null,null,null,null,null,null,{"$f":"IF(AND(C772=\"Terminé\",COUNTIF(B772,\"*Virement*\")),\"VIR\"&COUNTIF($V$7:V771,\"VIR*\"),IF(COUNTIF(B772,\"*Virement*\"),\"\",IF(COUNTIF($B$8:B772,B772)=1,\"_\"&\"AUTO\"&COUNTIF($V$7:V771,\"*AUTO*\"),\"\")))","v":""},"",""]
[null,null,null,null,null,null,null,null,null,null,null,null,null,null,null,null,null,null,null,null,null,{"$f":"IF(AND(C773=\"Terminé\",COUNTIF(B773,\"*Virement*\")),\"VIR\"&COUNTIF($V$7:V772,\"VIR*\"),IF(COUNTIF(B773,\"*Virement*\"),\"\",IF(COUNTIF($B$8:B773,B773)=1,\"_\"&\"AUTO\"&COUNTIF($V$7:V772,\"*AUTO*\"),\"\")))","v":""},"",""]
[null,null,null,null,null,null,null,null,null,null,null,null,null,null,null,null,null,null,null,null,null,{"$f":"IF(AND(C774=\"Terminé\",COUNTIF(B774,\"*Virement*\")),\"VIR\"&COUNTIF($V$7:V773,\"VIR*\"),IF(COUNTIF(B774,\"*Virement*\"),\"\",IF(COUNTIF($B$8:B774,B774)=1,\"_\"&\"AUTO\"&COUNTIF($V$7:V773,\"*AUTO*\"),\"\")))","v":""},"",""]
[null,null,null,null,null,null,null,null,null,null,null,null,null,null,null,null,null,null,null,null,null,{"$f":"IF(AND(C775=\"Terminé\",COUNTIF(B775,\"*Virement*\")),\"VIR\"&COUNTIF($V$7:V774,\"VIR*\"),IF(COUNTIF(B775,\"*Virement*\"),\"\",IF(COUNTIF($B$8:B775,B775)=1,\"_\"&\"AUTO\"&COUNTIF($V$7:V774,\"*AUTO*\"),\"\")))","v":""},"",""]
[null,null,null,null,null,null,null,null,null,null,null,null,null,null,null,null,null,null,null,null,null,{"$f":"IF(AND(C776=\"Terminé\",COUNTIF(B776,\"*Virement*\")),\"VIR\"&COUNTIF($V$7:V775,\"VIR*\"),IF(COUNTIF(B776,\"*Virement*\"),\"\",IF(COUNTIF($B$8:B776,B776)=1,\"_\"&\"AUTO\"&COUNTIF($V$7:V775,\"*AUTO*\"),\"\")))","v":""},"",""]
[null,null,null,null,null,null,null,null,null,null,null,null,null,null,null,null,null,null,null,null,null,{"$f":"IF(AND(C777=\"Terminé\",COUNTIF(B777,\"*Virement*\")),\"VIR\"&COUNTIF($V$7:V776,\"VIR*\"),IF(COUNTIF(B777,\"*Virement*\"),\"\",IF(COUNTIF($B$8:B777,B777)=1,\"_\"&\"AUTO\"&COUNTIF($V$7:V776,\"*AUTO*\"),\"\")))","v":""},{"$f":"IFERROR(INDEX(B:B,MATCH(\"VIR\"&ROW()-8,V:V,0)),\"\")","v":""},{"$f":"IFERROR(INDEX($B:$B,MATCH(\"*AUTO*\"&ROW()-8,$V:$V,0)),\"\")","v":""}]
[null,null,null,null,null,null,null,null,null,null,null,null,null,null,null,null,null,null,null,null,null,{"$f":"IF(AND(C778=\"Terminé\",COUNTIF(B778,\"*Virement*\")),\"VIR\"&COUNTIF($V$7:V777,\"VIR*\"),IF(COUNTIF(B778,\"*Virement*\"),\"\",IF(COUNTIF($B$8:B778,B778)=1,\"_\"&\"AUTO\"&COUNTIF($V$7:V777,\"*AUTO*\"),\"\")))","v":""},"",""]
[null,null,null,null,null,null,null,null,null,null,null,null,null,null,null,null,null,null,null,null,null,{"$f":"IF(AND(C779=\"Terminé\",COUNTIF(B779,\"*Virement*\")),\"VIR\"&COUNTIF($V$7:V778,\"VIR*\"),IF(COUNTIF(B779,\"*Virement*\"),\"\",IF(COUNTIF($B$8:B779,B779)=1,\"_\"&\"AUTO\"&COUNTIF($V$7:V778,\"*AUTO*\"),\"\")))","v":""},"",""]
[null,null,null,null,null,null,null,null,null,null,null,null,null,null,null,null,null,null,null,null,null,{"$f":"IF(AND(C780=\"Terminé\",COUNTIF(B780,\"*Virement*\")),\"VIR\"&COUNTIF($V$7:V779,\"VIR*\"),IF(COUNTIF(B780,\"*Virement*\"),\"\",IF(COUNTIF($B$8:B780,B780)=1,\"_\"&\"AUTO\"&COUNTIF($V$7:V779,\"*AUTO*\"),\"\")))","v":""},"",""]
[null,null,null,null,null,null,null,null,null,null,null,null,null,null,null,null,null,null,null,null,null,{"$f":"IF(AND(C781=\"Terminé\",COUNTIF(B781,\"*Virement*\")),\"VIR\"&COUNTIF($V$7:V780,\"VIR*\"),IF(COUNTIF(B781,\"*Virement*\"),\"\",IF(COUNTIF($B$8:B781,B781)=1,\"_\"&\"AUTO\"&COUNTIF($V$7:V780,\"*AUTO*\"),\"\")))","v":""},"",""]
[null,null,null,null,null,null,null,null,null,null,null,null,null,null,null,null,null,null,null,null,null,{"$f":"IF(AND(C782=\"Terminé\",COUNTIF(B782,\"*Virement*\")),\"VIR\"&COUNTIF($V$7:V781,\"VIR*\"),IF(COUNTIF(B782,\"*Virement*\"),\"\",IF(COUNTIF($B$8:B782,B782)=1,\"_\"&\"AUTO\"&COUNTIF($V$7:V781,\"*AUTO*\"),\"\")))","v":""},"",""]
[null,null,null,null,null,null,null,null,null,null,null,null,null,null,null,null,null,null,null,null,null,{"$f":"IF(AND(C783=\"Terminé\",COUNTIF(B783,\"*Virement*\")),\"VIR\"&COUNTIF($V$7:V782,\"VIR*\"),IF(COUNTIF(B783,\"*Virement*\"),\"\",IF(COUNTIF($B$8:B783,B783)=1,\"_\"&\"AUTO\"&COUNTIF($V$7:V782,\"*AUTO*\"),\"\")))","v":""},"",""]
[null,null,null,null,null,null,null,null,null,null,null,null,null,null,null,null,null,null,null,null,null,{"$f":"IF(AND(C784=\"Terminé\",COUNTIF(B784,\"*Virement*\")),\"VIR\"&COUNTIF($V$7:V783,\"VIR*\"),IF(COUNTIF(B784,\"*Virement*\"),\"\",IF(COUNTIF($B$8:B784,B784)=1,\"_\"&\"AUTO\"&COUNTIF($V$7:V783,\"*AUTO*\"),\"\")))","v":""},"",""]
[null,null,null,null,null,null,null,null,null,null,null,null,null,null,null,null,null,null,null,null,null,{"$f":"IF(AND(C785=\"Terminé\",COUNTIF(B785,\"*Virement*\")),\"VIR\"&COUNTIF($V$7:V784,\"VIR*\"),IF(COUNTIF(B785,\"*Virement*\"),\"\",IF(COUNTIF($B$8:B785,B785)=1,\"_\"&\"AUTO\"&COUNTIF($V$7:V784,\"*AUTO*\"),\"\")))","v":""},"",""]
[null,null,null,null,null,null,null,null,null,null,null,null,null,null,null,null,null,null,null,null,null,{"$f":"IF(AND(C786=\"Terminé\",COUNTIF(B786,\"*Virement*\")),\"VIR\"&COUNTIF($V$7:V785,\"VIR*\"),IF(COUNTIF(B786,\"*Virement*\"),\"\",IF(COUNTIF($B$8:B786,B786)=1,\"_\"&\"AUTO\"&COUNTIF($V$7:V785,\"*AUTO*\"),\"\")))","v":""},"",""]
[null,null,null,null,null,null,null,null,null,null,null,null,null,null,null,null,null,null,null,null,null,{"$f":"IF(AND(C787=\"Terminé\",COUNTIF(B787,\"*Virement*\")),\"VIR\"&COUNTIF($V$7:V786,\"VIR*\"),IF(COUNTIF(B787,\"*Virement*\"),\"\",IF(COUNTIF($B$8:B787,B787)=1,\"_\"&\"AUTO\"&COUNTIF($V$7:V786,\"*AUTO*\"),\"\")))","v":""},"",""]
[null,null,null,null,null,null,null,null,null,null,null,null,null,null,null,null,null,null,null,null,null,{"$f":"IF(AND(C788=\"Terminé\",COUNTIF(B788,\"*Virement*\")),\"VIR\"&COUNTIF($V$7:V787,\"VIR*\"),IF(COUNTIF(B788,\"*Virement*\"),\"\",IF(COUNTIF($B$8:B788,B788)=1,\"_\"&\"AUTO\"&COUNTIF($V$7:V787,\"*AUTO*\"),\"\")))","v":""},"",""]
[null,null,null,null,null,null,null,null,null,null,null,null,null,null,null,null,null,null,null,null,null,{"$f":"IF(AND(C789=\"Terminé\",COUNTIF(B789,\"*Virement*\")),\"VIR\"&COUNTIF($V$7:V788,\"VIR*\"),IF(COUNTIF(B789,\"*Virement*\"),\"\",IF(COUNTIF($B$8:B789,B789)=1,\"_\"&\"AUTO\"&COUNTIF($V$7:V788,\"*AUTO*\"),\"\")))","v":""},"",""]
[null,null,null,null,null,null,null,null,null,null,null,null,null,null,null,null,null,null,null,null,null,{"$f":"IF(AND(C790=\"Terminé\",COUNTIF(B790,\"*Virement*\")),\"VIR\"&COUNTIF($V$7:V789,\"VIR*\"),IF(COUNTIF(B790,\"*Virement*\"),\"\",IF(COUNTIF($B$8:B790,B790)=1,\"_\"&\"AUTO\"&COUNTIF($V$7:V789,\"*AUTO*\"),\"\")))","v":""},"",""]
[null,null,null,null,null,null,null,null,null,null,null,null,null,null,null,null,null,null,null,null,null,{"$f":"IF(AND(C791=\"Terminé\",COUNTIF(B791,\"*Virement*\")),\"VIR\"&COUNTIF($V$7:V790,\"VIR*\"),IF(COUNTIF(B791,\"*Virement*\"),\"\",IF(COUNTIF($B$8:B791,B791)=1,\"_\"&\"AUTO\"&COUNTIF($V$7:V790,\"*AUTO*\"),\"\")))","v":""},"",""]
[null,null,null,null,null,null,null,null,null,null,null,null,null,null,null,null,null,null,null,null,null,{"$f":"IF(AND(C792=\"Terminé\",COUNTIF(B792,\"*Virement*\")),\"VIR\"&COUNTIF($V$7:V791,\"VIR*\"),IF(COUNTIF(B792,\"*Virement*\"),\"\",IF(COUNTIF($B$8:B792,B792)=1,\"_\"&\"AUTO\"&COUNTIF($V$7:V791,\"*AUTO*\"),\"\")))","v":""},"",""]
[null,null,null,null,null,null,null,null,null,null,null,null,null,null,null,null,null,null,null,null,null,{"$f":"IF(AND(C793=\"Terminé\",COUNTIF(B793,\"*Virement*\")),\"VIR\"&COUNTIF($V$7:V792,\"VIR*\"),IF(COUNTIF(B793,\"*Virement*\"),\"\",IF(COUNTIF($B$8:B793,B793)=1,\"_\"&\"AUTO\"&COUNTIF($V$7:V792,\"*AUTO*\"),\"\")))","v":""},"",""]
[null,null,null,null,null,null,null,null,null,null,null,null,null,null,null,null,null,null,null,null,null,{"$f":"IF(AND(C794=\"Terminé\",COUNTIF(B794,\"*Virement*\")),\"VIR\"&COUNTIF($V$7:V793,\"VIR*\"),IF(COUNTIF(B794,\"*Virement*\"),\"\",IF(COUNTIF($B$8:B794,B794)=1,\"_\"&\"AUTO\"&COUNTIF($V$7:V793,\"*AUTO*\"),\"\")))","v":""},"",""]
[null,null,null,null,null,null,null,null,null,null,null,null,null,null,null,null,null,null,null,null,null,{"$f":"IF(AND(C795=\"Terminé\",COUNTIF(B795,\"*Virement*\")),\"VIR\"&COUNTIF($V$7:V794,\"VIR*\"),IF(COUNTIF(B795,\"*Virement*\"),\"\",IF(COUNTIF($B$8:B795,B795)=1,\"_\"&\"AUTO\"&COUNTIF($V$7:V794,\"*AUTO*\"),\"\")))","v":""},"",""]
[null,null,null,null,null,null,null,null,null,null,null,null,null,null,null,null,null,null,null,null,null,{"$f":"IF(AND(C796=\"Terminé\",COUNTIF(B796,\"*Virement*\")),\"VIR\"&COUNTIF($V$7:V795,\"VIR*\"),IF(COUNTIF(B796,\"*Virement*\"),\"\",IF(COUNTIF($B$8:B796,B796)=1,\"_\"&\"AUTO\"&COUNTIF($V$7:V795,\"*AUTO*\"),\"\")))","v":""},"",""]
[null,null,null,null,null,null,null,null,null,null,null,null,null,null,null,null,null,null,null,null,null,{"$f":"IF(AND(C797=\"Terminé\",COUNTIF(B797,\"*Virement*\")),\"VIR\"&COUNTIF($V$7:V796,\"VIR*\"),IF(COUNTIF(B797,\"*Virement*\"),\"\",IF(COUNTIF($B$8:B797,B797)=1,\"_\"&\"AUTO\"&COUNTIF($V$7:V796,\"*AUTO*\"),\"\")))","v":""},"",""]
[null,null,null,null,null,null,null,null,null,null,null,null,null,null,null,null,null,null,null,null,null,{"$f":"IF(AND(C798=\"Terminé\",COUNTIF(B798,\"*Virement*\")),\"VIR\"&COUNTIF($V$7:V797,\"VIR*\"),IF(COUNTIF(B798,\"*Virement*\"),\"\",IF(COUNTIF($B$8:B798,B798)=1,\"_\"&\"AUTO\"&COUNTIF($V$7:V797,\"*AUTO*\"),\"\")))","v":""},"",""]
[null,null,null,null,null,null,null,null,null,null,null,null,null,null,null,null,null,null,null,null,null,{"$f":"IF(AND(C799=\"Terminé\",COUNTIF(B799,\"*Virement*\")),\"VIR\"&COUNTIF($V$7:V798,\"VIR*\"),IF(COUNTIF(B799,\"*Virement*\"),\"\",IF(COUNTIF($B$8:B799,B799)=1,\"_\"&\"AUTO\"&COUNTIF($V$7:V798,\"*AUTO*\"),\"\")))","v":""},"",""]
[null,null,null,null,null,null,null,null,null,null,null,null,null,null,null,null,null,null,null,null,null,{"$f":"IF(AND(C800=\"Terminé\",COUNTIF(B800,\"*Virement*\")),\"VIR\"&COUNTIF($V$7:V799,\"VIR*\"),IF(COUNTIF(B800,\"*Virement*\"),\"\",IF(COUNTIF($B$8:B800,B800)=1,\"_\"&\"AUTO\"&COUNTIF($V$7:V799,\"*AUTO*\"),\"\")))","v":""},"",""]
[null,null,null,null,null,null,null,null,null,null,null,null,null,null,null,null,null,null,null,null,null,{"$f":"IF(AND(C801=\"Terminé\",COUNTIF(B801,\"*Virement*\")),\"VIR\"&COUNTIF($V$7:V800,\"VIR*\"),IF(COUNTIF(B801,\"*Virement*\"),\"\",IF(COUNTIF($B$8:B801,B801)=1,\"_\"&\"AUTO\"&COUNTIF($V$7:V800,\"*AUTO*\"),\"\")))","v":""},"",""]
[null,null,null,null,null,null,null,null,null,null,null,null,null,null,null,null,null,null,null,null,null,{"$f":"IF(AND(C802=\"Terminé\",COUNTIF(B802,\"*Virement*\")),\"VIR\"&COUNTIF($V$7:V801,\"VIR*\"),IF(COUNTIF(B802,\"*Virement*\"),\"\",IF(COUNTIF($B$8:B802,B802)=1,\"_\"&\"AUTO\"&COUNTIF($V$7:V801,\"*AUTO*\"),\"\")))","v":""},"",""]
[null,null,null,null,null,null,null,null,null,null,null,null,null,null,null,null,null,null,null,null,null,{"$f":"IF(AND(C803=\"Terminé\",COUNTIF(B803,\"*Virement*\")),\"VIR\"&COUNTIF($V$7:V802,\"VIR*\"),IF(COUNTIF(B803,\"*Virement*\"),\"\",IF(COUNTIF($B$8:B803,B803)=1,\"_\"&\"AUTO\"&COUNTIF($V$7:V802,\"*AUTO*\"),\"\")))","v":""},"",""]
[null,null,null,null,null,null,null,null,null,null,null,null,null,null,null,null,null,null,null,null,null,{"$f":"IF(AND(C804=\"Terminé\",COUNTIF(B804,\"*Virement*\")),\"VIR\"&COUNTIF($V$7:V803,\"VIR*\"),IF(COUNTIF(B804,\"*Virement*\"),\"\",IF(COUNTIF($B$8:B804,B804)=1,\"_\"&\"AUTO\"&COUNTIF($V$7:V803,\"*AUTO*\"),\"\")))","v":""},"",""]
[null,null,null,null,null,null,null,null,null,null,null,null,null,null,null,null,null,null,null,null,null,{"$f":"IF(AND(C805=\"Terminé\",COUNTIF(B805,\"*Virement*\")),\"VIR\"&COUNTIF($V$7:V804,\"VIR*\"),IF(COUNTIF(B805,\"*Virement*\"),\"\",IF(COUNTIF($B$8:B805,B805)=1,\"_\"&\"AUTO\"&COUNTIF($V$7:V804,\"*AUTO*\"),\"\")))","v":""},"",""]
[null,null,null,null,null,null,null,null,null,null,null,null,null,null,null,null,null,null,null,null,null,{"$f":"IF(AND(C806=\"Terminé\",COUNTIF(B806,\"*Virement*\")),\"VIR\"&COUNTIF($V$7:V805,\"VIR*\"),IF(COUNTIF(B806,\"*Virement*\"),\"\",IF(COUNTIF($B$8:B806,B806)=1,\"_\"&\"AUTO\"&COUNTIF($V$7:V805,\"*AUTO*\"),\"\")))","v":""},"",""]
[null,null,null,null,null,null,null,null,null,null,null,null,null,null,null,null,null,null,null,null,null,{"$f":"IF(AND(C807=\"Terminé\",COUNTIF(B807,\"*Virement*\")),\"VIR\"&COUNTIF($V$7:V806,\"VIR*\"),IF(COUNTIF(B807,\"*Virement*\"),\"\",IF(COUNTIF($B$8:B807,B807)=1,\"_\"&\"AUTO\"&COUNTIF($V$7:V806,\"*AUTO*\"),\"\")))","v":""},"",""]
[null,null,null,null,null,null,null,null,null,null,null,null,null,null,null,null,null,null,null,null,null,{"$f":"IF(AND(C808=\"Terminé\",COUNTIF(B808,\"*Virement*\")),\"VIR\"&COUNTIF($V$7:V807,\"VIR*\"),IF(COUNTIF(B808,\"*Virement*\"),\"\",IF(COUNTIF($B$8:B808,B808)=1,\"_\"&\"AUTO\"&COUNTIF($V$7:V807,\"*AUTO*\"),\"\")))","v":""},"",""]
[null,null,null,null,null,null,null,null,null,null,null,null,null,null,null,null,null,null,null,null,null,{"$f":"IF(AND(C809=\"Terminé\",COUNTIF(B809,\"*Virement*\")),\"VIR\"&COUNTIF($V$7:V808,\"VIR*\"),IF(COUNTIF(B809,\"*Virement*\"),\"\",IF(COUNTIF($B$8:B809,B809)=1,\"_\"&\"AUTO\"&COUNTIF($V$7:V808,\"*AUTO*\"),\"\")))","v":""},"",""]
[null,null,null,null,null,null,null,null,null,null,null,null,null,null,null,null,null,null,null,null,null,{"$f":"IF(AND(C810=\"Terminé\",COUNTIF(B810,\"*Virement*\")),\"VIR\"&COUNTIF($V$7:V809,\"VIR*\"),IF(COUNTIF(B810,\"*Virement*\"),\"\",IF(COUNTIF($B$8:B810,B810)=1,\"_\"&\"AUTO\"&COUNTIF($V$7:V809,\"*AUTO*\"),\"\")))","v":""},"",""]
[null,null,null,null,null,null,null,null,null,null,null,null,null,null,null,null,null,null,null,null,null,{"$f":"IF(AND(C811=\"Terminé\",COUNTIF(B811,\"*Virement*\")),\"VIR\"&COUNTIF($V$7:V810,\"VIR*\"),IF(COUNTIF(B811,\"*Virement*\"),\"\",IF(COUNTIF($B$8:B811,B811)=1,\"_\"&\"AUTO\"&COUNTIF($V$7:V810,\"*AUTO*\"),\"\")))","v":""},"",""]
[null,null,null,null,null,null,null,null,null,null,null,null,null,null,null,null,null,null,null,null,null,{"$f":"IF(AND(C812=\"Terminé\",COUNTIF(B812,\"*Virement*\")),\"VIR\"&COUNTIF($V$7:V811,\"VIR*\"),IF(COUNTIF(B812,\"*Virement*\"),\"\",IF(COUNTIF($B$8:B812,B812)=1,\"_\"&\"AUTO\"&COUNTIF($V$7:V811,\"*AUTO*\"),\"\")))","v":""},"",""]
[null,null,null,null,null,null,null,null,null,null,null,null,null,null,null,null,null,null,null,null,null,{"$f":"IF(AND(C813=\"Terminé\",COUNTIF(B813,\"*Virement*\")),\"VIR\"&COUNTIF($V$7:V812,\"VIR*\"),IF(COUNTIF(B813,\"*Virement*\"),\"\",IF(COUNTIF($B$8:B813,B813)=1,\"_\"&\"AUTO\"&COUNTIF($V$7:V812,\"*AUTO*\"),\"\")))","v":""},"",""]
[null,null,null,null,null,null,null,null,null,null,null,null,null,null,null,null,null,null,null,null,null,{"$f":"IF(AND(C814=\"Terminé\",COUNTIF(B814,\"*Virement*\")),\"VIR\"&COUNTIF($V$7:V813,\"VIR*\"),IF(COUNTIF(B814,\"*Virement*\"),\"\",IF(COUNTIF($B$8:B814,B814)=1,\"_\"&\"AUTO\"&COUNTIF($V$7:V813,\"*AUTO*\"),\"\")))","v":""},"",""]
[null,null,null,null,null,null,null,null,null,null,null,null,null,null,null,null,null,null,null,null,null,{"$f":"IF(AND(C815=\"Terminé\",COUNTIF(B815,\"*Virement*\")),\"VIR\"&COUNTIF($V$7:V814,\"VIR*\"),IF(COUNTIF(B815,\"*Virement*\"),\"\",IF(COUNTIF($B$8:B815,B815)=1,\"_\"&\"AUTO\"&COUNTIF($V$7:V814,\"*AUTO*\"),\"\")))","v":""},"",""]
[null,null,null,null,null,null,null,null,null,null,null,null,null,null,null,null,null,null,null,null,null,{"$f":"IF(AND(C816=\"Terminé\",COUNTIF(B816,\"*Virement*\")),\"VIR\"&COUNTIF($V$7:V815,\"VIR*\"),IF(COUNTIF(B816,\"*Virement*\"),\"\",IF(COUNTIF($B$8:B816,B816)=1,\"_\"&\"AUTO\"&COUNTIF($V$7:V815,\"*AUTO*\"),\"\")))","v":""},"",""]
[null,null,null,null,null,null,null,null,null,null,null,null,null,null,null,null,null,null,null,null,null,{"$f":"IF(AND(C817=\"Terminé\",COUNTIF(B817,\"*Virement*\")),\"VIR\"&COUNTIF($V$7:V816,\"VIR*\"),IF(COUNTIF(B817,\"*Virement*\"),\"\",IF(COUNTIF($B$8:B817,B817)=1,\"_\"&\"AUTO\"&COUNTIF($V$7:V816,\"*AUTO*\"),\"\")))","v":""},"",""]
[null,null,null,null,null,null,null,null,null,null,null,null,null,null,null,null,null,null,null,null,null,{"$f":"IF(AND(C818=\"Terminé\",COUNTIF(B818,\"*Virement*\")),\"VIR\"&COUNTIF($V$7:V817,\"VIR*\"),IF(COUNTIF(B818,\"*Virement*\"),\"\",IF(COUNTIF($B$8:B818,B818)=1,\"_\"&\"AUTO\"&COUNTIF($V$7:V817,\"*AUTO*\"),\"\")))","v":""},"",""]
[null,null,null,null,null,null,null,null,null,null,null,null,null,null,null,null,null,null,null,null,null,{"$f":"IF(AND(C819=\"Terminé\",COUNTIF(B819,\"*Virement*\")),\"VIR\"&COUNTIF($V$7:V818,\"VIR*\"),IF(COUNTIF(B819,\"*Virement*\"),\"\",IF(COUNTIF($B$8:B819,B819)=1,\"_\"&\"AUTO\"&COUNTIF($V$7:V818,\"*AUTO*\"),\"\")))","v":""},"",""]
[null,null,null,null,null,null,null,null,null,null,null,null,null,null,null,null,null,null,null,null,null,{"$f":"IF(AND(C820=\"Terminé\",COUNTIF(B820,\"*Virement*\")),\"VIR\"&COUNTIF($V$7:V819,\"VIR*\"),IF(COUNTIF(B820,\"*Virement*\"),\"\",IF(COUNTIF($B$8:B820,B820)=1,\"_\"&\"AUTO\"&COUNTIF($V$7:V819,\"*AUTO*\"),\"\")))","v":""},"",""]
[null,null,null,null,null,null,null,null,null,null,null,null,null,null,null,null,null,null,null,null,null,{"$f":"IF(AND(C821=\"Terminé\",COUNTIF(B821,\"*Virement*\")),\"VIR\"&COUNTIF($V$7:V820,\"VIR*\"),IF(COUNTIF(B821,\"*Virement*\"),\"\",IF(COUNTIF($B$8:B821,B821)=1,\"_\"&\"AUTO\"&COUNTIF($V$7:V820,\"*AUTO*\"),\"\")))","v":""},"",""]
[null,null,null,null,null,null,null,null,null,null,null,null,null,null,null,null,null,null,null,null,null,{"$f":"IF(AND(C822=\"Terminé\",COUNTIF(B822,\"*Virement*\")),\"VIR\"&COUNTIF($V$7:V821,\"VIR*\"),IF(COUNTIF(B822,\"*Virement*\"),\"\",IF(COUNTIF($B$8:B822,B822)=1,\"_\"&\"AUTO\"&COUNTIF($V$7:V821,\"*AUTO*\"),\"\")))","v":""},"",""]
[null,null,null,null,null,null,null,null,null,null,null,null,null,null,null,null,null,null,null,null,null,{"$f":"IF(AND(C823=\"Terminé\",COUNTIF(B823,\"*Virement*\")),\"VIR\"&COUNTIF($V$7:V822,\"VIR*\"),IF(COUNTIF(B823,\"*Virement*\"),\"\",IF(COUNTIF($B$8:B823,B823)=1,\"_\"&\"AUTO\"&COUNTIF($V$7:V822,\"*AUTO*\"),\"\")))","v":""},"",""]
[null,null,null,null,null,null,null,null,null,null,null,null,null,null,null,null,null,null,null,null,null,{"$f":"IF(AND(C824=\"Terminé\",COUNTIF(B824,\"*Virement*\")),\"VIR\"&COUNTIF($V$7:V823,\"VIR*\"),IF(COUNTIF(B824,\"*Virement*\"),\"\",IF(COUNTIF($B$8:B824,B824)=1,\"_\"&\"AUTO\"&COUNTIF($V$7:V823,\"*AUTO*\"),\"\")))","v":""},"",""]
[null,null,null,null,null,null,null,null,null,null,null,null,null,null,null,null,null,null,null,null,null,{"$f":"IF(AND(C825=\"Terminé\",COUNTIF(B825,\"*Virement*\")),\"VIR\"&COUNTIF($V$7:V824,\"VIR*\"),IF(COUNTIF(B825,\"*Virement*\"),\"\",IF(COUNTIF($B$8:B825,B825)=1,\"_\"&\"AUTO\"&COUNTIF($V$7:V824,\"*AUTO*\"),\"\")))","v":""},"",""]
[null,null,null,null,null,null,null,null,null,null,null,null,null,null,null,null,null,null,null,null,null,{"$f":"IF(AND(C826=\"Terminé\",COUNTIF(B826,\"*Virement*\")),\"VIR\"&COUNTIF($V$7:V825,\"VIR*\"),IF(COUNTIF(B826,\"*Virement*\"),\"\",IF(COUNTIF($B$8:B826,B826)=1,\"_\"&\"AUTO\"&COUNTIF($V$7:V825,\"*AUTO*\"),\"\")))","v":""},"",""]
[null,null,null,null,null,null,null,null,null,null,null,null,null,null,null,null,null,null,null,null,null,{"$f":"IF(AND(C827=\"Terminé\",COUNTIF(B827,\"*Virement*\")),\"VIR\"&COUNTIF($V$7:V826,\"VIR*\"),IF(COUNTIF(B827,\"*Virement*\"),\"\",IF(COUNTIF($B$8:B827,B827)=1,\"_\"&\"AUTO\"&COUNTIF($V$7:V826,\"*AUTO*\"),\"\")))","v":""},"",""]
[null,null,null,null,null,null,null,null,null,null,null,null,null,null,null,null,null,null,null,null,null,{"$f":"IF(AND(C828=\"Terminé\",COUNTIF(B828,\"*Virement*\")),\"VIR\"&COUNTIF($V$7:V827,\"VIR*\"),IF(COUNTIF(B828,\"*Virement*\"),\"\",IF(COUNTIF($B$8:B828,B828)=1,\"_\"&\"AUTO\"&COUNTIF($V$7:V827,\"*AUTO*\"),\"\")))","v":""},"",""]
[null,null,null,null,null,null,null,null,null,null,null,null,null,null,null,null,null,null,null,null,null,{"$f":"IF(AND(C829=\"Terminé\",COUNTIF(B829,\"*Virement*\")),\"VIR\"&COUNTIF($V$7:V828,\"VIR*\"),IF(COUNTIF(B829,\"*Virement*\"),\"\",IF(COUNTIF($B$8:B829,B829)=1,\"_\"&\"AUTO\"&COUNTIF($V$7:V828,\"*AUTO*\"),\"\")))","v":""},"",""]
[null,null,null,null,null,null,null,null,null,null,null,null,null,null,null,null,null,null,null,null,null,{"$f":"IF(AND(C830=\"Terminé\",COUNTIF(B830,\"*Virement*\")),\"VIR\"&COUNTIF($V$7:V829,\"VIR*\"),IF(COUNTIF(B830,\"*Virement*\"),\"\",IF(COUNTIF($B$8:B830,B830)=1,\"_\"&\"AUTO\"&COUNTIF($V$7:V829,\"*AUTO*\"),\"\")))","v":""},"",""]
[null,null,null,null,null,null,null,null,null,null,null,null,null,null,null,null,null,null,null,null,null,{"$f":"IF(AND(C831=\"Terminé\",COUNTIF(B831,\"*Virement*\")),\"VIR\"&COUNTIF($V$7:V830,\"VIR*\"),IF(COUNTIF(B831,\"*Virement*\"),\"\",IF(COUNTIF($B$8:B831,B831)=1,\"_\"&\"AUTO\"&COUNTIF($V$7:V830,\"*AUTO*\"),\"\")))","v":""},"",""]
[null,null,null,null,null,null,null,null,null,null,null,null,null,null,null,null,null,null,null,null,null,{"$f":"IF(AND(C832=\"Terminé\",COUNTIF(B832,\"*Virement*\")),\"VIR\"&COUNTIF($V$7:V831,\"VIR*\"),IF(COUNTIF(B832,\"*Virement*\"),\"\",IF(COUNTIF($B$8:B832,B832)=1,\"_\"&\"AUTO\"&COUNTIF($V$7:V831,\"*AUTO*\"),\"\")))","v":""},"",""]
[null,null,null,null,null,null,null,null,null,null,null,null,null,null,null,null,null,null,null,null,null,{"$f":"IF(AND(C833=\"Terminé\",COUNTIF(B833,\"*Virement*\")),\"VIR\"&COUNTIF($V$7:V832,\"VIR*\"),IF(COUNTIF(B833,\"*Virement*\"),\"\",IF(COUNTIF($B$8:B833,B833)=1,\"_\"&\"AUTO\"&COUNTIF($V$7:V832,\"*AUTO*\"),\"\")))","v":""},"",""]
[null,null,null,null,null,null,null,null,null,null,null,null,null,null,null,null,null,null,null,null,null,{"$f":"IF(AND(C834=\"Terminé\",COUNTIF(B834,\"*Virement*\")),\"VIR\"&COUNTIF($V$7:V833,\"VIR*\"),IF(COUNTIF(B834,\"*Virement*\"),\"\",IF(COUNTIF($B$8:B834,B834)=1,\"_\"&\"AUTO\"&COUNTIF($V$7:V833,\"*AUTO*\"),\"\")))","v":""},"",""]
[null,null,null,null,null,null,null,null,null,null,null,null,null,null,null,null,null,null,null,null,null,{"$f":"IF(AND(C835=\"Terminé\",COUNTIF(B835,\"*Virement*\")),\"VIR\"&COUNTIF($V$7:V834,\"VIR*\"),IF(COUNTIF(B835,\"*Virement*\"),\"\",IF(COUNTIF($B$8:B835,B835)=1,\"_\"&\"AUTO\"&COUNTIF($V$7:V834,\"*AUTO*\"),\"\")))","v":""},"",""]
[null,null,null,null,null,null,null,null,null,null,null,null,null,null,null,null,null,null,null,null,null,{"$f":"IF(AND(C836=\"Terminé\",COUNTIF(B836,\"*Virement*\")),\"VIR\"&COUNTIF($V$7:V835,\"VIR*\"),IF(COUNTIF(B836,\"*Virement*\"),\"\",IF(COUNTIF($B$8:B836,B836)=1,\"_\"&\"AUTO\"&COUNTIF($V$7:V835,\"*AUTO*\"),\"\")))","v":""},"",""]
[null,null,null,null,null,null,null,null,null,null,null,null,null,null,null,null,null,null,null,null,null,{"$f":"IF(AND(C837=\"Terminé\",COUNTIF(B837,\"*Virement*\")),\"VIR\"&COUNTIF($V$7:V836,\"VIR*\"),IF(COUNTIF(B837,\"*Virement*\"),\"\",IF(COUNTIF($B$8:B837,B837)=1,\"_\"&\"AUTO\"&COUNTIF($V$7:V836,\"*AUTO*\"),\"\")))","v":""},"",""]
[null,null,null,null,null,null,null,null,null,null,null,null,null,null,null,null,null,null,null,null,null,{"$f":"IF(AND(C838=\"Terminé\",COUNTIF(B838,\"*Virement*\")),\"VIR\"&COUNTIF($V$7:V837,\"VIR*\"),IF(COUNTIF(B838,\"*Virement*\"),\"\",IF(COUNTIF($B$8:B838,B838)=1,\"_\"&\"AUTO\"&COUNTIF($V$7:V837,\"*AUTO*\"),\"\")))","v":""},"",""]
[null,null,null,null,null,null,null,null,null,null,null,null,null,null,null,null,null,null,null,null,null,{"$f":"IF(AND(C839=\"Terminé\",COUNTIF(B839,\"*Virement*\")),\"VIR\"&COUNTIF($V$7:V838,\"VIR*\"),IF(COUNTIF(B839,\"*Virement*\"),\"\",IF(COUNTIF($B$8:B839,B839)=1,\"_\"&\"AUTO\"&COUNTIF($V$7:V838,\"*AUTO*\"),\"\")))","v":""},"",""]
[null,null,null,null,null,null,null,null,null,null,null,null,null,null,null,null,null,null,null,null,null,{"$f":"IF(AND(C840=\"Terminé\",COUNTIF(B840,\"*Virement*\")),\"VIR\"&COUNTIF($V$7:V839,\"VIR*\"),IF(COUNTIF(B840,\"*Virement*\"),\"\",IF(COUNTIF($B$8:B840,B840)=1,\"_\"&\"AUTO\"&COUNTIF($V$7:V839,\"*AUTO*\"),\"\")))","v":""},"",""]
[null,null,null,null,null,null,null,null,null,null,null,null,null,null,null,null,null,null,null,null,null,{"$f":"IF(AND(C841=\"Terminé\",COUNTIF(B841,\"*Virement*\")),\"VIR\"&COUNTIF($V$7:V840,\"VIR*\"),IF(COUNTIF(B841,\"*Virement*\"),\"\",IF(COUNTIF($B$8:B841,B841)=1,\"_\"&\"AUTO\"&COUNTIF($V$7:V840,\"*AUTO*\"),\"\")))","v":""},{"$f":"IFERROR(INDEX(B:B,MATCH(\"VIR\"&ROW()-8,V:V,0)),\"\")","v":""},{"$f":"IFERROR(INDEX($B:$B,MATCH(\"*AUTO*\"&ROW()-8,$V:$V,0)),\"\")","v":""}]
[null,null,null,null,null,null,null,null,null,null,null,null,null,null,null,null,null,null,null,null,null,{"$f":"IF(AND(C842=\"Terminé\",COUNTIF(B842,\"*Virement*\")),\"VIR\"&COUNTIF($V$7:V841,\"VIR*\"),IF(COUNTIF(B842,\"*Virement*\"),\"\",IF(COUNTIF($B$8:B842,B842)=1,\"_\"&\"AUTO\"&COUNTIF($V$7:V841,\"*AUTO*\"),\"\")))","v":""},"",""]
[null,null,null,null,null,null,null,null,null,null,null,null,null,null,null,null,null,null,null,null,null,{"$f":"IF(AND(C843=\"Terminé\",COUNTIF(B843,\"*Virement*\")),\"VIR\"&COUNTIF($V$7:V842,\"VIR*\"),IF(COUNTIF(B843,\"*Virement*\"),\"\",IF(COUNTIF($B$8:B843,B843)=1,\"_\"&\"AUTO\"&COUNTIF($V$7:V842,\"*AUTO*\"),\"\")))","v":""},"",""]
[null,null,null,null,null,null,null,null,null,null,null,null,null,null,null,null,null,null,null,null,null,{"$f":"IF(AND(C844=\"Terminé\",COUNTIF(B844,\"*Virement*\")),\"VIR\"&COUNTIF($V$7:V843,\"VIR*\"),IF(COUNTIF(B844,\"*Virement*\"),\"\",IF(COUNTIF($B$8:B844,B844)=1,\"_\"&\"AUTO\"&COUNTIF($V$7:V843,\"*AUTO*\"),\"\")))","v":""},"",""]
[null,null,null,null,null,null,null,null,null,null,null,null,null,null,null,null,null,null,null,null,null,{"$f":"IF(AND(C845=\"Terminé\",COUNTIF(B845,\"*Virement*\")),\"VIR\"&COUNTIF($V$7:V844,\"VIR*\"),IF(COUNTIF(B845,\"*Virement*\"),\"\",IF(COUNTIF($B$8:B845,B845)=1,\"_\"&\"AUTO\"&COUNTIF($V$7:V844,\"*AUTO*\"),\"\")))","v":""},"",""]
[null,null,null,null,null,null,null,null,null,null,null,null,null,null,null,null,null,null,null,null,null,{"$f":"IF(AND(C846=\"Terminé\",COUNTIF(B846,\"*Virement*\")),\"VIR\"&COUNTIF($V$7:V845,\"VIR*\"),IF(COUNTIF(B846,\"*Virement*\"),\"\",IF(COUNTIF($B$8:B846,B846)=1,\"_\"&\"AUTO\"&COUNTIF($V$7:V845,\"*AUTO*\"),\"\")))","v":""},"",""]
[null,null,null,null,null,null,null,null,null,null,null,null,null,null,null,null,null,null,null,null,null,{"$f":"IF(AND(C847=\"Terminé\",COUNTIF(B847,\"*Virement*\")),\"VIR\"&COUNTIF($V$7:V846,\"VIR*\"),IF(COUNTIF(B847,\"*Virement*\"),\"\",IF(COUNTIF($B$8:B847,B847)=1,\"_\"&\"AUTO\"&COUNTIF($V$7:V846,\"*AUTO*\"),\"\")))","v":""},"",""]
[null,null,null,null,null,null,null,null,null,null,null,null,null,null,null,null,null,null,null,null,null,{"$f":"IF(AND(C848=\"Terminé\",COUNTIF(B848,\"*Virement*\")),\"VIR\"&COUNTIF($V$7:V847,\"VIR*\"),IF(COUNTIF(B848,\"*Virement*\"),\"\",IF(COUNTIF($B$8:B848,B848)=1,\"_\"&\"AUTO\"&COUNTIF($V$7:V847,\"*AUTO*\"),\"\")))","v":""},"",""]
[null,null,null,null,null,null,null,null,null,null,null,null,null,null,null,null,null,null,null,null,null,{"$f":"IF(AND(C849=\"Terminé\",COUNTIF(B849,\"*Virement*\")),\"VIR\"&COUNTIF($V$7:V848,\"VIR*\"),IF(COUNTIF(B849,\"*Virement*\"),\"\",IF(COUNTIF($B$8:B849,B849)=1,\"_\"&\"AUTO\"&COUNTIF($V$7:V848,\"*AUTO*\"),\"\")))","v":""},"",""]
[null,null,null,null,null,null,null,null,null,null,null,null,null,null,null,null,null,null,null,null,null,{"$f":"IF(AND(C850=\"Terminé\",COUNTIF(B850,\"*Virement*\")),\"VIR\"&COUNTIF($V$7:V849,\"VIR*\"),IF(COUNTIF(B850,\"*Virement*\"),\"\",IF(COUNTIF($B$8:B850,B850)=1,\"_\"&\"AUTO\"&COUNTIF($V$7:V849,\"*AUTO*\"),\"\")))","v":""},"",""]
[null,null,null,null,null,null,null,null,null,null,null,null,null,null,null,null,null,null,null,null,null,{"$f":"IF(AND(C851=\"Terminé\",COUNTIF(B851,\"*Virement*\")),\"VIR\"&COUNTIF($V$7:V850,\"VIR*\"),IF(COUNTIF(B851,\"*Virement*\"),\"\",IF(COUNTIF($B$8:B851,B851)=1,\"_\"&\"AUTO\"&COUNTIF($V$7:V850,\"*AUTO*\"),\"\")))","v":""},"",""]
[null,null,null,null,null,null,null,null,null,null,null,null,null,null,null,null,null,null,null,null,null,{"$f":"IF(AND(C852=\"Terminé\",COUNTIF(B852,\"*Virement*\")),\"VIR\"&COUNTIF($V$7:V851,\"VIR*\"),IF(COUNTIF(B852,\"*Virement*\"),\"\",IF(COUNTIF($B$8:B852,B852)=1,\"_\"&\"AUTO\"&COUNTIF($V$7:V851,\"*AUTO*\"),\"\")))","v":""},"",""]
[null,null,null,null,null,null,null,null,null,null,null,null,null,null,null,null,null,null,null,null,null,{"$f":"IF(AND(C853=\"Terminé\",COUNTIF(B853,\"*Virement*\")),\"VIR\"&COUNTIF($V$7:V852,\"VIR*\"),IF(COUNTIF(B853,\"*Virement*\"),\"\",IF(COUNTIF($B$8:B853,B853)=1,\"_\"&\"AUTO\"&COUNTIF($V$7:V852,\"*AUTO*\"),\"\")))","v":""},"",""]
[null,null,null,null,null,null,null,null,null,null,null,null,null,null,null,null,null,null,null,null,null,{"$f":"IF(AND(C854=\"Terminé\",COUNTIF(B854,\"*Virement*\")),\"VIR\"&COUNTIF($V$7:V853,\"VIR*\"),IF(COUNTIF(B854,\"*Virement*\"),\"\",IF(COUNTIF($B$8:B854,B854)=1,\"_\"&\"AUTO\"&COUNTIF($V$7:V853,\"*AUTO*\"),\"\")))","v":""},"",""]
[null,null,null,null,null,null,null,null,null,null,null,null,null,null,null,null,null,null,null,null,null,{"$f":"IF(AND(C855=\"Terminé\",COUNTIF(B855,\"*Virement*\")),\"VIR\"&COUNTIF($V$7:V854,\"VIR*\"),IF(COUNTIF(B855,\"*Virement*\"),\"\",IF(COUNTIF($B$8:B855,B855)=1,\"_\"&\"AUTO\"&COUNTIF($V$7:V854,\"*AUTO*\"),\"\")))","v":""},"",""]
[null,null,null,null,null,null,null,null,null,null,null,null,null,null,null,null,null,null,null,null,null,{"$f":"IF(AND(C856=\"Terminé\",COUNTIF(B856,\"*Virement*\")),\"VIR\"&COUNTIF($V$7:V855,\"VIR*\"),IF(COUNTIF(B856,\"*Virement*\"),\"\",IF(COUNTIF($B$8:B856,B856)=1,\"_\"&\"AUTO\"&COUNTIF($V$7:V855,\"*AUTO*\"),\"\")))","v":""},"",""]
[null,null,null,null,null,null,null,null,null,null,null,null,null,null,null,null,null,null,null,null,null,{"$f":"IF(AND(C857=\"Terminé\",COUNTIF(B857,\"*Virement*\")),\"VIR\"&COUNTIF($V$7:V856,\"VIR*\"),IF(COUNTIF(B857,\"*Virement*\"),\"\",IF(COUNTIF($B$8:B857,B857)=1,\"_\"&\"AUTO\"&COUNTIF($V$7:V856,\"*AUTO*\"),\"\")))","v":""},"",""]
[null,null,null,null,null,null,null,null,null,null,null,null,null,null,null,null,null,null,null,null,null,{"$f":"IF(AND(C858=\"Terminé\",COUNTIF(B858,\"*Virement*\")),\"VIR\"&COUNTIF($V$7:V857,\"VIR*\"),IF(COUNTIF(B858,\"*Virement*\"),\"\",IF(COUNTIF($B$8:B858,B858)=1,\"_\"&\"AUTO\"&COUNTIF($V$7:V857,\"*AUTO*\"),\"\")))","v":""},"",""]
[null,null,null,null,null,null,null,null,null,null,null,null,null,null,null,null,null,null,null,null,null,{"$f":"IF(AND(C859=\"Terminé\",COUNTIF(B859,\"*Virement*\")),\"VIR\"&COUNTIF($V$7:V858,\"VIR*\"),IF(COUNTIF(B859,\"*Virement*\"),\"\",IF(COUNTIF($B$8:B859,B859)=1,\"_\"&\"AUTO\"&COUNTIF($V$7:V858,\"*AUTO*\"),\"\")))","v":""},"",""]
[null,null,null,null,null,null,null,null,null,null,null,null,null,null,null,null,null,null,null,null,null,{"$f":"IF(AND(C860=\"Terminé\",COUNTIF(B860,\"*Virement*\")),\"VIR\"&COUNTIF($V$7:V859,\"VIR*\"),IF(COUNTIF(B860,\"*Virement*\"),\"\",IF(COUNTIF($B$8:B860,B860)=1,\"_\"&\"AUTO\"&COUNTIF($V$7:V859,\"*AUTO*\"),\"\")))","v":""},"",""]
[null,null,null,null,null,null,null,null,null,null,null,null,null,null,null,null,null,null,null,null,null,{"$f":"IF(AND(C861=\"Terminé\",COUNTIF(B861,\"*Virement*\")),\"VIR\"&COUNTIF($V$7:V860,\"VIR*\"),IF(COUNTIF(B861,\"*Virement*\"),\"\",IF(COUNTIF($B$8:B861,B861)=1,\"_\"&\"AUTO\"&COUNTIF($V$7:V860,\"*AUTO*\"),\"\")))","v":""},"",""]
[null,null,null,null,null,null,null,null,null,null,null,null,null,null,null,null,null,null,null,null,null,{"$f":"IF(AND(C862=\"Terminé\",COUNTIF(B862,\"*Virement*\")),\"VIR\"&COUNTIF($V$7:V861,\"VIR*\"),IF(COUNTIF(B862,\"*Virement*\"),\"\",IF(COUNTIF($B$8:B862,B862)=1,\"_\"&\"AUTO\"&COUNTIF($V$7:V861,\"*AUTO*\"),\"\")))","v":""},"",""]
[null,null,null,null,null,null,null,null,null,null,null,null,null,null,null,null,null,null,null,null,null,{"$f":"IF(AND(C863=\"Terminé\",COUNTIF(B863,\"*Virement*\")),\"VIR\"&COUNTIF($V$7:V862,\"VIR*\"),IF(COUNTIF(B863,\"*Virement*\"),\"\",IF(COUNTIF($B$8:B863,B863)=1,\"_\"&\"AUTO\"&COUNTIF($V$7:V862,\"*AUTO*\"),\"\")))","v":""},"",""]
[null,null,null,null,null,null,null,null,null,null,null,null,null,null,null,null,null,null,null,null,null,{"$f":"IF(AND(C864=\"Terminé\",COUNTIF(B864,\"*Virement*\")),\"VIR\"&COUNTIF($V$7:V863,\"VIR*\"),IF(COUNTIF(B864,\"*Virement*\"),\"\",IF(COUNTIF($B$8:B864,B864)=1,\"_\"&\"AUTO\"&COUNTIF($V$7:V863,\"*AUTO*\"),\"\")))","v":""},"",""]
[null,null,null,null,null,null,null,null,null,null,null,null,null,null,null,null,null,null,null,null,null,{"$f":"IF(AND(C865=\"Terminé\",COUNTIF(B865,\"*Virement*\")),\"VIR\"&COUNTIF($V$7:V864,\"VIR*\"),IF(COUNTIF(B865,\"*Virement*\"),\"\",IF(COUNTIF($B$8:B865,B865)=1,\"_\"&\"AUTO\"&COUNTIF($V$7:V864,\"*AUTO*\"),\"\")))","v":""},"",""]
[null,null,null,null,null,null,null,null,null,null,null,null,null,null,null,null,null,null,null,null,null,{"$f":"IF(AND(C866=\"Terminé\",COUNTIF(B866,\"*Virement*\")),\"VIR\"&COUNTIF($V$7:V865,\"VIR*\"),IF(COUNTIF(B866,\"*Virement*\"),\"\",IF(COUNTIF($B$8:B866,B866)=1,\"_\"&\"AUTO\"&COUNTIF($V$7:V865,\"*AUTO*\"),\"\")))","v":""},"",""]
[null,null,null,null,null,null,null,null,null,null,null,null,null,null,null,null,null,null,null,null,null,{"$f":"IF(AND(C867=\"Terminé\",COUNTIF(B867,\"*Virement*\")),\"VIR\"&COUNTIF($V$7:V866,\"VIR*\"),IF(COUNTIF(B867,\"*Virement*\"),\"\",IF(COUNTIF($B$8:B867,B867)=1,\"_\"&\"AUTO\"&COUNTIF($V$7:V866,\"*AUTO*\"),\"\")))","v":""},"",""]
[null,null,null,null,null,null,null,null,null,null,null,null,null,null,null,null,null,null,null,null,null,{"$f":"IF(AND(C868=\"Terminé\",COUNTIF(B868,\"*Virement*\")),\"VIR\"&COUNTIF($V$7:V867,\"VIR*\"),IF(COUNTIF(B868,\"*Virement*\"),\"\",IF(COUNTIF($B$8:B868,B868)=1,\"_\"&\"AUTO\"&COUNTIF($V$7:V867,\"*AUTO*\"),\"\")))","v":""},"",""]
[null,null,null,null,null,null,null,null,null,null,null,null,null,null,null,null,null,null,null,null,null,{"$f":"IF(AND(C869=\"Terminé\",COUNTIF(B869,\"*Virement*\")),\"VIR\"&COUNTIF($V$7:V868,\"VIR*\"),IF(COUNTIF(B869,\"*Virement*\"),\"\",IF(COUNTIF($B$8:B869,B869)=1,\"_\"&\"AUTO\"&COUNTIF($V$7:V868,\"*AUTO*\"),\"\")))","v":""},"",""]
[null,null,null,null,null,null,null,null,null,null,null,null,null,null,null,null,null,null,null,null,null,{"$f":"IF(AND(C870=\"Terminé\",COUNTIF(B870,\"*Virement*\")),\"VIR\"&COUNTIF($V$7:V869,\"VIR*\"),IF(COUNTIF(B870,\"*Virement*\"),\"\",IF(COUNTIF($B$8:B870,B870)=1,\"_\"&\"AUTO\"&COUNTIF($V$7:V869,\"*AUTO*\"),\"\")))","v":""},"",""]
[null,null,null,null,null,null,null,null,null,null,null,null,null,null,null,null,null,null,null,null,null,{"$f":"IF(AND(C871=\"Terminé\",COUNTIF(B871,\"*Virement*\")),\"VIR\"&COUNTIF($V$7:V870,\"VIR*\"),IF(COUNTIF(B871,\"*Virement*\"),\"\",IF(COUNTIF($B$8:B871,B871)=1,\"_\"&\"AUTO\"&COUNTIF($V$7:V870,\"*AUTO*\"),\"\")))","v":""},"",""]
[null,null,null,null,null,null,null,null,null,null,null,null,null,null,null,null,null,null,null,null,null,{"$f":"IF(AND(C872=\"Terminé\",COUNTIF(B872,\"*Virement*\")),\"VIR\"&COUNTIF($V$7:V871,\"VIR*\"),IF(COUNTIF(B872,\"*Virement*\"),\"\",IF(COUNTIF($B$8:B872,B872)=1,\"_\"&\"AUTO\"&COUNTIF($V$7:V871,\"*AUTO*\"),\"\")))","v":""},"",""]
[null,null,null,null,null,null,null,null,null,null,null,null,null,null,null,null,null,null,null,null,null,{"$f":"IF(AND(C873=\"Terminé\",COUNTIF(B873,\"*Virement*\")),\"VIR\"&COUNTIF($V$7:V872,\"VIR*\"),IF(COUNTIF(B873,\"*Virement*\"),\"\",IF(COUNTIF($B$8:B873,B873)=1,\"_\"&\"AUTO\"&COUNTIF($V$7:V872,\"*AUTO*\"),\"\")))","v":""},"",""]
[null,null,null,null,null,null,null,null,null,null,null,null,null,null,null,null,null,null,null,null,null,{"$f":"IF(AND(C874=\"Terminé\",COUNTIF(B874,\"*Virement*\")),\"VIR\"&COUNTIF($V$7:V873,\"VIR*\"),IF(COUNTIF(B874,\"*Virement*\"),\"\",IF(COUNTIF($B$8:B874,B874)=1,\"_\"&\"AUTO\"&COUNTIF($V$7:V873,\"*AUTO*\"),\"\")))","v":""},"",""]
[null,null,null,null,null,null,null,null,null,null,null,null,null,null,null,null,null,null,null,null,null,{"$f":"IF(AND(C875=\"Terminé\",COUNTIF(B875,\"*Virement*\")),\"VIR\"&COUNTIF($V$7:V874,\"VIR*\"),IF(COUNTIF(B875,\"*Virement*\"),\"\",IF(COUNTIF($B$8:B875,B875)=1,\"_\"&\"AUTO\"&COUNTIF($V$7:V874,\"*AUTO*\"),\"\")))","v":""},"",""]
[null,null,null,null,null,null,null,null,null,null,null,null,null,null,null,null,null,null,null,null,null,{"$f":"IF(AND(C876=\"Terminé\",COUNTIF(B876,\"*Virement*\")),\"VIR\"&COUNTIF($V$7:V875,\"VIR*\"),IF(COUNTIF(B876,\"*Virement*\"),\"\",IF(COUNTIF($B$8:B876,B876)=1,\"_\"&\"AUTO\"&COUNTIF($V$7:V875,\"*AUTO*\"),\"\")))","v":""},"",""]
[null,null,null,null,null,null,null,null,null,null,null,null,null,null,null,null,null,null,null,null,null,{"$f":"IF(AND(C877=\"Terminé\",COUNTIF(B877,\"*Virement*\")),\"VIR\"&COUNTIF($V$7:V876,\"VIR*\"),IF(COUNTIF(B877,\"*Virement*\"),\"\",IF(COUNTIF($B$8:B877,B877)=1,\"_\"&\"AUTO\"&COUNTIF($V$7:V876,\"*AUTO*\"),\"\")))","v":""},"",""]
[null,null,null,null,null,null,null,null,null,null,null,null,null,null,null,null,null,null,null,null,null,{"$f":"IF(AND(C878=\"Terminé\",COUNTIF(B878,\"*Virement*\")),\"VIR\"&COUNTIF($V$7:V877,\"VIR*\"),IF(COUNTIF(B878,\"*Virement*\"),\"\",IF(COUNTIF($B$8:B878,B878)=1,\"_\"&\"AUTO\"&COUNTIF($V$7:V877,\"*AUTO*\"),\"\")))","v":""},"",""]
[null,null,null,null,null,null,null,null,null,null,null,null,null,null,null,null,null,null,null,null,null,{"$f":"IF(AND(C879=\"Terminé\",COUNTIF(B879,\"*Virement*\")),\"VIR\"&COUNTIF($V$7:V878,\"VIR*\"),IF(COUNTIF(B879,\"*Virement*\"),\"\",IF(COUNTIF($B$8:B879,B879)=1,\"_\"&\"AUTO\"&COUNTIF($V$7:V878,\"*AUTO*\"),\"\")))","v":""},"",""]
[null,null,null,null,null,null,null,null,null,null,null,null,null,null,null,null,null,null,null,null,null,{"$f":"IF(AND(C880=\"Terminé\",COUNTIF(B880,\"*Virement*\")),\"VIR\"&COUNTIF($V$7:V879,\"VIR*\"),IF(COUNTIF(B880,\"*Virement*\"),\"\",IF(COUNTIF($B$8:B880,B880)=1,\"_\"&\"AUTO\"&COUNTIF($V$7:V879,\"*AUTO*\"),\"\")))","v":""},"",""]
[null,null,null,null,null,null,null,null,null,null,null,null,null,null,null,null,null,null,null,null,null,{"$f":"IF(AND(C881=\"Terminé\",COUNTIF(B881,\"*Virement*\")),\"VIR\"&COUNTIF($V$7:V880,\"VIR*\"),IF(COUNTIF(B881,\"*Virement*\"),\"\",IF(COUNTIF($B$8:B881,B881)=1,\"_\"&\"AUTO\"&COUNTIF($V$7:V880,\"*AUTO*\"),\"\")))","v":""},"",""]
[null,null,null,null,null,null,null,null,null,null,null,null,null,null,null,null,null,null,null,null,null,{"$f":"IF(AND(C882=\"Terminé\",COUNTIF(B882,\"*Virement*\")),\"VIR\"&COUNTIF($V$7:V881,\"VIR*\"),IF(COUNTIF(B882,\"*Virement*\"),\"\",IF(COUNTIF($B$8:B882,B882)=1,\"_\"&\"AUTO\"&COUNTIF($V$7:V881,\"*AUTO*\"),\"\")))","v":""},"",""]
[null,null,null,null,null,null,null,null,null,null,null,null,null,null,null,null,null,null,null,null,null,{"$f":"IF(AND(C883=\"Terminé\",COUNTIF(B883,\"*Virement*\")),\"VIR\"&COUNTIF($V$7:V882,\"VIR*\"),IF(COUNTIF(B883,\"*Virement*\"),\"\",IF(COUNTIF($B$8:B883,B883)=1,\"_\"&\"AUTO\"&COUNTIF($V$7:V882,\"*AUTO*\"),\"\")))","v":""},"",""]
[null,null,null,null,null,null,null,null,null,null,null,null,null,null,null,null,null,null,null,null,null,{"$f":"IF(AND(C884=\"Terminé\",COUNTIF(B884,\"*Virement*\")),\"VIR\"&COUNTIF($V$7:V883,\"VIR*\"),IF(COUNTIF(B884,\"*Virement*\"),\"\",IF(COUNTIF($B$8:B884,B884)=1,\"_\"&\"AUTO\"&COUNTIF($V$7:V883,\"*AUTO*\"),\"\")))","v":""},"",""]
[null,null,null,null,null,null,null,null,null,null,null,null,null,null,null,null,null,null,null,null,null,{"$f":"IF(AND(C885=\"Terminé\",COUNTIF(B885,\"*Virement*\")),\"VIR\"&COUNTIF($V$7:V884,\"VIR*\"),IF(COUNTIF(B885,\"*Virement*\"),\"\",IF(COUNTIF($B$8:B885,B885)=1,\"_\"&\"AUTO\"&COUNTIF($V$7:V884,\"*AUTO*\"),\"\")))","v":""},"",""]
[null,null,null,null,null,null,null,null,null,null,null,null,null,null,null,null,null,null,null,null,null,{"$f":"IF(AND(C886=\"Terminé\",COUNTIF(B886,\"*Virement*\")),\"VIR\"&COUNTIF($V$7:V885,\"VIR*\"),IF(COUNTIF(B886,\"*Virement*\"),\"\",IF(COUNTIF($B$8:B886,B886)=1,\"_\"&\"AUTO\"&COUNTIF($V$7:V885,\"*AUTO*\"),\"\")))","v":""},"",""]
[null,null,null,null,null,null,null,null,null,null,null,null,null,null,null,null,null,null,null,null,null,{"$f":"IF(AND(C887=\"Terminé\",COUNTIF(B887,\"*Virement*\")),\"VIR\"&COUNTIF($V$7:V886,\"VIR*\"),IF(COUNTIF(B887,\"*Virement*\"),\"\",IF(COUNTIF($B$8:B887,B887)=1,\"_\"&\"AUTO\"&COUNTIF($V$7:V886,\"*AUTO*\"),\"\")))","v":""},"",""]
[null,null,null,null,null,null,null,null,null,null,null,null,null,null,null,null,null,null,null,null,null,{"$f":"IF(AND(C888=\"Terminé\",COUNTIF(B888,\"*Virement*\")),\"VIR\"&COUNTIF($V$7:V887,\"VIR*\"),IF(COUNTIF(B888,\"*Virement*\"),\"\",IF(COUNTIF($B$8:B888,B888)=1,\"_\"&\"AUTO\"&COUNTIF($V$7:V887,\"*AUTO*\"),\"\")))","v":""},"",""]
[null,null,null,null,null,null,null,null,null,null,null,null,null,null,null,null,null,null,null,null,null,{"$f":"IF(AND(C889=\"Terminé\",COUNTIF(B889,\"*Virement*\")),\"VIR\"&COUNTIF($V$7:V888,\"VIR*\"),IF(COUNTIF(B889,\"*Virement*\"),\"\",IF(COUNTIF($B$8:B889,B889)=1,\"_\"&\"AUTO\"&COUNTIF($V$7:V888,\"*AUTO*\"),\"\")))","v":""},"",""]
[null,null,null,null,null,null,null,null,null,null,null,null,null,null,null,null,null,null,null,null,null,{"$f":"IF(AND(C890=\"Terminé\",COUNTIF(B890,\"*Virement*\")),\"VIR\"&COUNTIF($V$7:V889,\"VIR*\"),IF(COUNTIF(B890,\"*Virement*\"),\"\",IF(COUNTIF($B$8:B890,B890)=1,\"_\"&\"AUTO\"&COUNTIF($V$7:V889,\"*AUTO*\"),\"\")))","v":""},"",""]
[null,null,null,null,null,null,null,null,null,null,null,null,null,null,null,null,null,null,null,null,null,{"$f":"IF(AND(C891=\"Terminé\",COUNTIF(B891,\"*Virement*\")),\"VIR\"&COUNTIF($V$7:V890,\"VIR*\"),IF(COUNTIF(B891,\"*Virement*\"),\"\",IF(COUNTIF($B$8:B891,B891)=1,\"_\"&\"AUTO\"&COUNTIF($V$7:V890,\"*AUTO*\"),\"\")))","v":""},"",""]
[null,null,null,null,null,null,null,null,null,null,null,null,null,null,null,null,null,null,null,null,null,{"$f":"IF(AND(C892=\"Terminé\",COUNTIF(B892,\"*Virement*\")),\"VIR\"&COUNTIF($V$7:V891,\"VIR*\"),IF(COUNTIF(B892,\"*Virement*\"),\"\",IF(COUNTIF($B$8:B892,B892)=1,\"_\"&\"AUTO\"&COUNTIF($V$7:V891,\"*AUTO*\"),\"\")))","v":""},"",""]
[null,null,null,null,null,null,null,null,null,null,null,null,null,null,null,null,null,null,null,null,null,{"$f":"IF(AND(C893=\"Terminé\",COUNTIF(B893,\"*Virement*\")),\"VIR\"&COUNTIF($V$7:V892,\"VIR*\"),IF(COUNTIF(B893,\"*Virement*\"),\"\",IF(COUNTIF($B$8:B893,B893)=1,\"_\"&\"AUTO\"&COUNTIF($V$7:V892,\"*AUTO*\"),\"\")))","v":""},"",""]
[null,null,null,null,null,null,null,null,null,null,null,null,null,null,null,null,null,null,null,null,null,{"$f":"IF(AND(C894=\"Terminé\",COUNTIF(B894,\"*Virement*\")),\"VIR\"&COUNTIF($V$7:V893,\"VIR*\"),IF(COUNTIF(B894,\"*Virement*\"),\"\",IF(COUNTIF($B$8:B894,B894)=1,\"_\"&\"AUTO\"&COUNTIF($V$7:V893,\"*AUTO*\"),\"\")))","v":""},"",""]
[null,null,null,null,null,null,null,null,null,null,null,null,null,null,null,null,null,null,null,null,null,{"$f":"IF(AND(C895=\"Terminé\",COUNTIF(B895,\"*Virement*\")),\"VIR\"&COUNTIF($V$7:V894,\"VIR*\"),IF(COUNTIF(B895,\"*Virement*\"),\"\",IF(COUNTIF($B$8:B895,B895)=1,\"_\"&\"AUTO\"&COUNTIF($V$7:V894,\"*AUTO*\"),\"\")))","v":""},"",""]
[null,null,null,null,null,null,null,null,null,null,null,null,null,null,null,null,null,null,null,null,null,{"$f":"IF(AND(C896=\"Terminé\",COUNTIF(B896,\"*Virement*\")),\"VIR\"&COUNTIF($V$7:V895,\"VIR*\"),IF(COUNTIF(B896,\"*Virement*\"),\"\",IF(COUNTIF($B$8:B896,B896)=1,\"_\"&\"AUTO\"&COUNTIF($V$7:V895,\"*AUTO*\"),\"\")))","v":""},"",""]
[null,null,null,null,null,null,null,null,null,null,null,null,null,null,null,null,null,null,null,null,null,{"$f":"IF(AND(C897=\"Terminé\",COUNTIF(B897,\"*Virement*\")),\"VIR\"&COUNTIF($V$7:V896,\"VIR*\"),IF(COUNTIF(B897,\"*Virement*\"),\"\",IF(COUNTIF($B$8:B897,B897)=1,\"_\"&\"AUTO\"&COUNTIF($V$7:V896,\"*AUTO*\"),\"\")))","v":""},"",""]
[null,null,null,null,null,null,null,null,null,null,null,null,null,null,null,null,null,null,null,null,null,{"$f":"IF(AND(C898=\"Terminé\",COUNTIF(B898,\"*Virement*\")),\"VIR\"&COUNTIF($V$7:V897,\"VIR*\"),IF(COUNTIF(B898,\"*Virement*\"),\"\",IF(COUNTIF($B$8:B898,B898)=1,\"_\"&\"AUTO\"&COUNTIF($V$7:V897,\"*AUTO*\"),\"\")))","v":""},"",""]
[null,null,null,null,null,null,null,null,null,null,null,null,null,null,null,null,null,null,null,null,null,{"$f":"IF(AND(C899=\"Terminé\",COUNTIF(B899,\"*Virement*\")),\"VIR\"&COUNTIF($V$7:V898,\"VIR*\"),IF(COUNTIF(B899,\"*Virement*\"),\"\",IF(COUNTIF($B$8:B899,B899)=1,\"_\"&\"AUTO\"&COUNTIF($V$7:V898,\"*AUTO*\"),\"\")))","v":""},"",""]
[null,null,null,null,null,null,null,null,null,null,null,null,null,null,null,null,null,null,null,null,null,{"$f":"IF(AND(C900=\"Terminé\",COUNTIF(B900,\"*Virement*\")),\"VIR\"&COUNTIF($V$7:V899,\"VIR*\"),IF(COUNTIF(B900,\"*Virement*\"),\"\",IF(COUNTIF($B$8:B900,B900)=1,\"_\"&\"AUTO\"&COUNTIF($V$7:V899,\"*AUTO*\"),\"\")))","v":""},"",""]
[null,null,null,null,null,null,null,null,null,null,null,null,null,null,null,null,null,null,null,null,null,{"$f":"IF(AND(C901=\"Terminé\",COUNTIF(B901,\"*Virement*\")),\"VIR\"&COUNTIF($V$7:V900,\"VIR*\"),IF(COUNTIF(B901,\"*Virement*\"),\"\",IF(COUNTIF($B$8:B901,B901)=1,\"_\"&\"AUTO\"&COUNTIF($V$7:V900,\"*AUTO*\"),\"\")))","v":""},"",""]
[null,null,null,null,null,null,null,null,null,null,null,null,null,null,null,null,null,null,null,null,null,{"$f":"IF(AND(C902=\"Terminé\",COUNTIF(B902,\"*Virement*\")),\"VIR\"&COUNTIF($V$7:V901,\"VIR*\"),IF(COUNTIF(B902,\"*Virement*\"),\"\",IF(COUNTIF($B$8:B902,B902)=1,\"_\"&\"AUTO\"&COUNTIF($V$7:V901,\"*AUTO*\"),\"\")))","v":""},"",""]
[null,null,null,null,null,null,null,null,null,null,null,null,null,null,null,null,null,null,null,null,null,{"$f":"IF(AND(C903=\"Terminé\",COUNTIF(B903,\"*Virement*\")),\"VIR\"&COUNTIF($V$7:V902,\"VIR*\"),IF(COUNTIF(B903,\"*Virement*\"),\"\",IF(COUNTIF($B$8:B903,B903)=1,\"_\"&\"AUTO\"&COUNTIF($V$7:V902,\"*AUTO*\"),\"\")))","v":""},"",""]
[null,null,null,null,null,null,null,null,null,null,null,null,null,null,null,null,null,null,null,null,null,{"$f":"IF(AND(C904=\"Terminé\",COUNTIF(B904,\"*Virement*\")),\"VIR\"&COUNTIF($V$7:V903,\"VIR*\"),IF(COUNTIF(B904,\"*Virement*\"),\"\",IF(COUNTIF($B$8:B904,B904)=1,\"_\"&\"AUTO\"&COUNTIF($V$7:V903,\"*AUTO*\"),\"\")))","v":""},"",""]
[null,null,null,null,null,null,null,null,null,null,null,null,null,null,null,null,null,null,null,null,null,{"$f":"IF(AND(C905=\"Terminé\",COUNTIF(B905,\"*Virement*\")),\"VIR\"&COUNTIF($V$7:V904,\"VIR*\"),IF(COUNTIF(B905,\"*Virement*\"),\"\",IF(COUNTIF($B$8:B905,B905)=1,\"_\"&\"AUTO\"&COUNTIF($V$7:V904,\"*AUTO*\"),\"\")))","v":""},{"$f":"IFERROR(INDEX(B:B,MATCH(\"VIR\"&ROW()-8,V:V,0)),\"\")","v":""},{"$f":"IFERROR(INDEX($B:$B,MATCH(\"*AUTO*\"&ROW()-8,$V:$V,0)),\"\")","v":""}]
[null,null,null,null,null,null,null,null,null,null,null,null,null,null,null,null,null,null,null,null,null,{"$f":"IF(AND(C906=\"Terminé\",COUNTIF(B906,\"*Virement*\")),\"VIR\"&COUNTIF($V$7:V905,\"VIR*\"),IF(COUNTIF(B906,\"*Virement*\"),\"\",IF(COUNTIF($B$8:B906,B906)=1,\"_\"&\"AUTO\"&COUNTIF($V$7:V905,\"*AUTO*\"),\"\")))","v":""},"",""]
[null,null,null,null,null,null,null,null,null,null,null,null,null,null,null,null,null,null,null,null,null,{"$f":"IF(AND(C907=\"Terminé\",COUNTIF(B907,\"*Virement*\")),\"VIR\"&COUNTIF($V$7:V906,\"VIR*\"),IF(COUNTIF(B907,\"*Virement*\"),\"\",IF(COUNTIF($B$8:B907,B907)=1,\"_\"&\"AUTO\"&COUNTIF($V$7:V906,\"*AUTO*\"),\"\")))","v":""},"",""]
[null,null,null,null,null,null,null,null,null,null,null,null,null,null,null,null,null,null,null,null,null,{"$f":"IF(AND(C908=\"Terminé\",COUNTIF(B908,\"*Virement*\")),\"VIR\"&COUNTIF($V$7:V907,\"VIR*\"),IF(COUNTIF(B908,\"*Virement*\"),\"\",IF(COUNTIF($B$8:B908,B908)=1,\"_\"&\"AUTO\"&COUNTIF($V$7:V907,\"*AUTO*\"),\"\")))","v":""},"",""]
[null,null,null,null,null,null,null,null,null,null,null,null,null,null,null,null,null,null,null,null,null,{"$f":"IF(AND(C909=\"Terminé\",COUNTIF(B909,\"*Virement*\")),\"VIR\"&COUNTIF($V$7:V908,\"VIR*\"),IF(COUNTIF(B909,\"*Virement*\"),\"\",IF(COUNTIF($B$8:B909,B909)=1,\"_\"&\"AUTO\"&COUNTIF($V$7:V908,\"*AUTO*\"),\"\")))","v":""},"",""]
[null,null,null,null,null,null,null,null,null,null,null,null,null,null,null,null,null,null,null,null,null,{"$f":"IF(AND(C910=\"Terminé\",COUNTIF(B910,\"*Virement*\")),\"VIR\"&COUNTIF($V$7:V909,\"VIR*\"),IF(COUNTIF(B910,\"*Virement*\"),\"\",IF(COUNTIF($B$8:B910,B910)=1,\"_\"&\"AUTO\"&COUNTIF($V$7:V909,\"*AUTO*\"),\"\")))","v":""},"",""]
[null,null,null,null,null,null,null,null,null,null,null,null,null,null,null,null,null,null,null,null,null,{"$f":"IF(AND(C911=\"Terminé\",COUNTIF(B911,\"*Virement*\")),\"VIR\"&COUNTIF($V$7:V910,\"VIR*\"),IF(COUNTIF(B911,\"*Virement*\"),\"\",IF(COUNTIF($B$8:B911,B911)=1,\"_\"&\"AUTO\"&COUNTIF($V$7:V910,\"*AUTO*\"),\"\")))","v":""},"",""]
[null,null,null,null,null,null,null,null,null,null,null,null,null,null,null,null,null,null,null,null,null,{"$f":"IF(AND(C912=\"Terminé\",COUNTIF(B912,\"*Virement*\")),\"VIR\"&COUNTIF($V$7:V911,\"VIR*\"),IF(COUNTIF(B912,\"*Virement*\"),\"\",IF(COUNTIF($B$8:B912,B912)=1,\"_\"&\"AUTO\"&COUNTIF($V$7:V911,\"*AUTO*\"),\"\")))","v":""},"",""]
[null,null,null,null,null,null,null,null,null,null,null,null,null,null,null,null,null,null,null,null,null,{"$f":"IF(AND(C913=\"Terminé\",COUNTIF(B913,\"*Virement*\")),\"VIR\"&COUNTIF($V$7:V912,\"VIR*\"),IF(COUNTIF(B913,\"*Virement*\"),\"\",IF(COUNTIF($B$8:B913,B913)=1,\"_\"&\"AUTO\"&COUNTIF($V$7:V912,\"*AUTO*\"),\"\")))","v":""},"",""]
[null,null,null,null,null,null,null,null,null,null,null,null,null,null,null,null,null,null,null,null,null,{"$f":"IF(AND(C914=\"Terminé\",COUNTIF(B914,\"*Virement*\")),\"VIR\"&COUNTIF($V$7:V913,\"VIR*\"),IF(COUNTIF(B914,\"*Virement*\"),\"\",IF(COUNTIF($B$8:B914,B914)=1,\"_\"&\"AUTO\"&COUNTIF($V$7:V913,\"*AUTO*\"),\"\")))","v":""},"",""]
[null,null,null,null,null,null,null,null,null,null,null,null,null,null,null,null,null,null,null,null,null,{"$f":"IF(AND(C915=\"Terminé\",COUNTIF(B915,\"*Virement*\")),\"VIR\"&COUNTIF($V$7:V914,\"VIR*\"),IF(COUNTIF(B915,\"*Virement*\"),\"\",IF(COUNTIF($B$8:B915,B915)=1,\"_\"&\"AUTO\"&COUNTIF($V$7:V914,\"*AUTO*\"),\"\")))","v":""},"",""]
[null,null,null,null,null,null,null,null,null,null,null,null,null,null,null,null,null,null,null,null,null,{"$f":"IF(AND(C916=\"Terminé\",COUNTIF(B916,\"*Virement*\")),\"VIR\"&COUNTIF($V$7:V915,\"VIR*\"),IF(COUNTIF(B916,\"*Virement*\"),\"\",IF(COUNTIF($B$8:B916,B916)=1,\"_\"&\"AUTO\"&COUNTIF($V$7:V915,\"*AUTO*\"),\"\")))","v":""},"",""]
[null,null,null,null,null,null,null,null,null,null,null,null,null,null,null,null,null,null,null,null,null,{"$f":"IF(AND(C917=\"Terminé\",COUNTIF(B917,\"*Virement*\")),\"VIR\"&COUNTIF($V$7:V916,\"VIR*\"),IF(COUNTIF(B917,\"*Virement*\"),\"\",IF(COUNTIF($B$8:B917,B917)=1,\"_\"&\"AUTO\"&COUNTIF($V$7:V916,\"*AUTO*\"),\"\")))","v":""},"",""]
[null,null,null,null,null,null,null,null,null,null,null,null,null,null,null,null,null,null,null,null,null,{"$f":"IF(AND(C918=\"Terminé\",COUNTIF(B918,\"*Virement*\")),\"VIR\"&COUNTIF($V$7:V917,\"VIR*\"),IF(COUNTIF(B918,\"*Virement*\"),\"\",IF(COUNTIF($B$8:B918,B918)=1,\"_\"&\"AUTO\"&COUNTIF($V$7:V917,\"*AUTO*\"),\"\")))","v":""},"",""]
[null,null,null,null,null,null,null,null,null,null,null,null,null,null,null,null,null,null,null,null,null,{"$f":"IF(AND(C919=\"Terminé\",COUNTIF(B919,\"*Virement*\")),\"VIR\"&COUNTIF($V$7:V918,\"VIR*\"),IF(COUNTIF(B919,\"*Virement*\"),\"\",IF(COUNTIF($B$8:B919,B919)=1,\"_\"&\"AUTO\"&COUNTIF($V$7:V918,\"*AUTO*\"),\"\")))","v":""},"",""]
[null,null,null,null,null,null,null,null,null,null,null,null,null,null,null,null,null,null,null,null,null,{"$f":"IF(AND(C920=\"Terminé\",COUNTIF(B920,\"*Virement*\")),\"VIR\"&COUNTIF($V$7:V919,\"VIR*\"),IF(COUNTIF(B920,\"*Virement*\"),\"\",IF(COUNTIF($B$8:B920,B920)=1,\"_\"&\"AUTO\"&COUNTIF($V$7:V919,\"*AUTO*\"),\"\")))","v":""},"",""]
[null,null,null,null,null,null,null,null,null,null,null,null,null,null,null,null,null,null,null,null,null,{"$f":"IF(AND(C921=\"Terminé\",COUNTIF(B921,\"*Virement*\")),\"VIR\"&COUNTIF($V$7:V920,\"VIR*\"),IF(COUNTIF(B921,\"*Virement*\"),\"\",IF(COUNTIF($B$8:B921,B921)=1,\"_\"&\"AUTO\"&COUNTIF($V$7:V920,\"*AUTO*\"),\"\")))","v":""},"",""]
[null,null,null,null,null,null,null,null,null,null,null,null,null,null,null,null,null,null,null,null,null,{"$f":"IF(AND(C922=\"Terminé\",COUNTIF(B922,\"*Virement*\")),\"VIR\"&COUNTIF($V$7:V921,\"VIR*\"),IF(COUNTIF(B922,\"*Virement*\"),\"\",IF(COUNTIF($B$8:B922,B922)=1,\"_\"&\"AUTO\"&COUNTIF($V$7:V921,\"*AUTO*\"),\"\")))","v":""},"",""]
[null,null,null,null,null,null,null,null,null,null,null,null,null,null,null,null,null,null,null,null,null,{"$f":"IF(AND(C923=\"Terminé\",COUNTIF(B923,\"*Virement*\")),\"VIR\"&COUNTIF($V$7:V922,\"VIR*\"),IF(COUNTIF(B923,\"*Virement*\"),\"\",IF(COUNTIF($B$8:B923,B923)=1,\"_\"&\"AUTO\"&COUNTIF($V$7:V922,\"*AUTO*\"),\"\")))","v":""},"",""]
[null,null,null,null,null,null,null,null,null,null,null,null,null,null,null,null,null,null,null,null,null,{"$f":"IF(AND(C924=\"Terminé\",COUNTIF(B924,\"*Virement*\")),\"VIR\"&COUNTIF($V$7:V923,\"VIR*\"),IF(COUNTIF(B924,\"*Virement*\"),\"\",IF(COUNTIF($B$8:B924,B924)=1,\"_\"&\"AUTO\"&COUNTIF($V$7:V923,\"*AUTO*\"),\"\")))","v":""},"",""]
[null,null,null,null,null,null,null,null,null,null,null,null,null,null,null,null,null,null,null,null,null,{"$f":"IF(AND(C925=\"Terminé\",COUNTIF(B925,\"*Virement*\")),\"VIR\"&COUNTIF($V$7:V924,\"VIR*\"),IF(COUNTIF(B925,\"*Virement*\"),\"\",IF(COUNTIF($B$8:B925,B925)=1,\"_\"&\"AUTO\"&COUNTIF($V$7:V924,\"*AUTO*\"),\"\")))","v":""},"",""]
[null,null,null,null,null,null,null,null,null,null,null,null,null,null,null,null,null,null,null,null,null,{"$f":"IF(AND(C926=\"Terminé\",COUNTIF(B926,\"*Virement*\")),\"VIR\"&COUNTIF($V$7:V925,\"VIR*\"),IF(COUNTIF(B926,\"*Virement*\"),\"\",IF(COUNTIF($B$8:B926,B926)=1,\"_\"&\"AUTO\"&COUNTIF($V$7:V925,\"*AUTO*\"),\"\")))","v":""},"",""]
[null,null,null,null,null,null,null,null,null,null,null,null,null,null,null,null,null,null,null,null,null,{"$f":"IF(AND(C927=\"Terminé\",COUNTIF(B927,\"*Virement*\")),\"VIR\"&COUNTIF($V$7:V926,\"VIR*\"),IF(COUNTIF(B927,\"*Virement*\"),\"\",IF(COUNTIF($B$8:B927,B927)=1,\"_\"&\"AUTO\"&COUNTIF($V$7:V926,\"*AUTO*\"),\"\")))","v":""},"",""]
[null,null,null,null,null,null,null,null,null,null,null,null,null,null,null,null,null,null,null,null,null,{"$f":"IF(AND(C928=\"Terminé\",COUNTIF(B928,\"*Virement*\")),\"VIR\"&COUNTIF($V$7:V927,\"VIR*\"),IF(COUNTIF(B928,\"*Virement*\"),\"\",IF(COUNTIF($B$8:B928,B928)=1,\"_\"&\"AUTO\"&COUNTIF($V$7:V927,\"*AUTO*\"),\"\")))","v":""},"",""]
[null,null,null,null,null,null,null,null,null,null,null,null,null,null,null,null,null,null,null,null,null,{"$f":"IF(AND(C929=\"Terminé\",COUNTIF(B929,\"*Virement*\")),\"VIR\"&COUNTIF($V$7:V928,\"VIR*\"),IF(COUNTIF(B929,\"*Virement*\"),\"\",IF(COUNTIF($B$8:B929,B929)=1,\"_\"&\"AUTO\"&COUNTIF($V$7:V928,\"*AUTO*\"),\"\")))","v":""},"",""]
[null,null,null,null,null,null,null,null,null,null,null,null,null,null,null,null,null,null,null,null,null,{"$f":"IF(AND(C930=\"Terminé\",COUNTIF(B930,\"*Virement*\")),\"VIR\"&COUNTIF($V$7:V929,\"VIR*\"),IF(COUNTIF(B930,\"*Virement*\"),\"\",IF(COUNTIF($B$8:B930,B930)=1,\"_\"&\"AUTO\"&COUNTIF($V$7:V929,\"*AUTO*\"),\"\")))","v":""},"",""]
[null,null,null,null,null,null,null,null,null,null,null,null,null,null,null,null,null,null,null,null,null,{"$f":"IF(AND(C931=\"Terminé\",COUNTIF(B931,\"*Virement*\")),\"VIR\"&COUNTIF($V$7:V930,\"VIR*\"),IF(COUNTIF(B931,\"*Virement*\"),\"\",IF(COUNTIF($B$8:B931,B931)=1,\"_\"&\"AUTO\"&COUNTIF($V$7:V930,\"*AUTO*\"),\"\")))","v":""},"",""]
[null,null,null,null,null,null,null,null,null,null,null,null,null,null,null,null,null,null,null,null,null,{"$f":"IF(AND(C932=\"Terminé\",COUNTIF(B932,\"*Virement*\")),\"VIR\"&COUNTIF($V$7:V931,\"VIR*\"),IF(COUNTIF(B932,\"*Virement*\"),\"\",IF(COUNTIF($B$8:B932,B932)=1,\"_\"&\"AUTO\"&COUNTIF($V$7:V931,\"*AUTO*\"),\"\")))","v":""},"",""]
[null,null,null,null,null,null,null,null,null,null,null,null,null,null,null,null,null,null,null,null,null,{"$f":"IF(AND(C933=\"Terminé\",COUNTIF(B933,\"*Virement*\")),\"VIR\"&COUNTIF($V$7:V932,\"VIR*\"),IF(COUNTIF(B933,\"*Virement*\"),\"\",IF(COUNTIF($B$8:B933,B933)=1,\"_\"&\"AUTO\"&COUNTIF($V$7:V932,\"*AUTO*\"),\"\")))","v":""},"",""]
[null,null,null,null,null,null,null,null,null,null,null,null,null,null,null,null,null,null,null,null,null,{"$f":"IF(AND(C934=\"Terminé\",COUNTIF(B934,\"*Virement*\")),\"VIR\"&COUNTIF($V$7:V933,\"VIR*\"),IF(COUNTIF(B934,\"*Virement*\"),\"\",IF(COUNTIF($B$8:B934,B934)=1,\"_\"&\"AUTO\"&COUNTIF($V$7:V933,\"*AUTO*\"),\"\")))","v":""},"",""]
[null,null,null,null,null,null,null,null,null,null,null,null,null,null,null,null,null,null,null,null,null,{"$f":"IF(AND(C935=\"Terminé\",COUNTIF(B935,\"*Virement*\")),\"VIR\"&COUNTIF($V$7:V934,\"VIR*\"),IF(COUNTIF(B935,\"*Virement*\"),\"\",IF(COUNTIF($B$8:B935,B935)=1,\"_\"&\"AUTO\"&COUNTIF($V$7:V934,\"*AUTO*\"),\"\")))","v":""},"",""]
[null,null,null,null,null,null,null,null,null,null,null,null,null,null,null,null,null,null,null,null,null,{"$f":"IF(AND(C936=\"Terminé\",COUNTIF(B936,\"*Virement*\")),\"VIR\"&COUNTIF($V$7:V935,\"VIR*\"),IF(COUNTIF(B936,\"*Virement*\"),\"\",IF(COUNTIF($B$8:B936,B936)=1,\"_\"&\"AUTO\"&COUNTIF($V$7:V935,\"*AUTO*\"),\"\")))","v":""},"",""]
[null,null,null,null,null,null,null,null,null,null,null,null,null,null,null,null,null,null,null,null,null,{"$f":"IF(AND(C937=\"Terminé\",COUNTIF(B937,\"*Virement*\")),\"VIR\"&COUNTIF($V$7:V936,\"VIR*\"),IF(COUNTIF(B937,\"*Virement*\"),\"\",IF(COUNTIF($B$8:B937,B937)=1,\"_\"&\"AUTO\"&COUNTIF($V$7:V936,\"*AUTO*\"),\"\")))","v":""},"",""]
[null,null,null,null,null,null,null,null,null,null,null,null,null,null,null,null,null,null,null,null,null,{"$f":"IF(AND(C938=\"Terminé\",COUNTIF(B938,\"*Virement*\")),\"VIR\"&COUNTIF($V$7:V937,\"VIR*\"),IF(COUNTIF(B938,\"*Virement*\"),\"\",IF(COUNTIF($B$8:B938,B938)=1,\"_\"&\"AUTO\"&COUNTIF($V$7:V937,\"*AUTO*\"),\"\")))","v":""},"",""]
[null,null,null,null,null,null,null,null,null,null,null,null,null,null,null,null,null,null,null,null,null,{"$f":"IF(AND(C939=\"Terminé\",COUNTIF(B939,\"*Virement*\")),\"VIR\"&COUNTIF($V$7:V938,\"VIR*\"),IF(COUNTIF(B939,\"*Virement*\"),\"\",IF(COUNTIF($B$8:B939,B939)=1,\"_\"&\"AUTO\"&COUNTIF($V$7:V938,\"*AUTO*\"),\"\")))","v":""},"",""]
[null,null,null,null,null,null,null,null,null,null,null,null,null,null,null,null,null,null,null,null,null,{"$f":"IF(AND(C940=\"Terminé\",COUNTIF(B940,\"*Virement*\")),\"VIR\"&COUNTIF($V$7:V939,\"VIR*\"),IF(COUNTIF(B940,\"*Virement*\"),\"\",IF(COUNTIF($B$8:B940,B940)=1,\"_\"&\"AUTO\"&COUNTIF($V$7:V939,\"*AUTO*\"),\"\")))","v":""},"",""]
[null,null,null,null,null,null,null,null,null,null,null,null,null,null,null,null,null,null,null,null,null,{"$f":"IF(AND(C941=\"Terminé\",COUNTIF(B941,\"*Virement*\")),\"VIR\"&COUNTIF($V$7:V940,\"VIR*\"),IF(COUNTIF(B941,\"*Virement*\"),\"\",IF(COUNTIF($B$8:B941,B941)=1,\"_\"&\"AUTO\"&COUNTIF($V$7:V940,\"*AUTO*\"),\"\")))","v":""},"",""]
[null,null,null,null,null,null,null,null,null,null,null,null,null,null,null,null,null,null,null,null,null,{"$f":"IF(AND(C942=\"Terminé\",COUNTIF(B942,\"*Virement*\")),\"VIR\"&COUNTIF($V$7:V941,\"VIR*\"),IF(COUNTIF(B942,\"*Virement*\"),\"\",IF(COUNTIF($B$8:B942,B942)=1,\"_\"&\"AUTO\"&COUNTIF($V$7:V941,\"*AUTO*\"),\"\")))","v":""},"",""]
[null,null,null,null,null,null,null,null,null,null,null,null,null,null,null,null,null,null,null,null,null,{"$f":"IF(AND(C943=\"Terminé\",COUNTIF(B943,\"*Virement*\")),\"VIR\"&COUNTIF($V$7:V942,\"VIR*\"),IF(COUNTIF(B943,\"*Virement*\"),\"\",IF(COUNTIF($B$8:B943,B943)=1,\"_\"&\"AUTO\"&COUNTIF($V$7:V942,\"*AUTO*\"),\"\")))","v":""},"",""]
[null,null,null,null,null,null,null,null,null,null,null,null,null,null,null,null,null,null,null,null,null,{"$f":"IF(AND(C944=\"Terminé\",COUNTIF(B944,\"*Virement*\")),\"VIR\"&COUNTIF($V$7:V943,\"VIR*\"),IF(COUNTIF(B944,\"*Virement*\"),\"\",IF(COUNTIF($B$8:B944,B944)=1,\"_\"&\"AUTO\"&COUNTIF($V$7:V943,\"*AUTO*\"),\"\")))","v":""},"",""]
[null,null,null,null,null,null,null,null,null,null,null,null,null,null,null,null,null,null,null,null,null,{"$f":"IF(AND(C945=\"Terminé\",COUNTIF(B945,\"*Virement*\")),\"VIR\"&COUNTIF($V$7:V944,\"VIR*\"),IF(COUNTIF(B945,\"*Virement*\"),\"\",IF(COUNTIF($B$8:B945,B945)=1,\"_\"&\"AUTO\"&COUNTIF($V$7:V944,\"*AUTO*\"),\"\")))","v":""},"",""]
[null,null,null,null,null,null,null,null,null,null,null,null,null,null,null,null,null,null,null,null,null,{"$f":"IF(AND(C946=\"Terminé\",COUNTIF(B946,\"*Virement*\")),\"VIR\"&COUNTIF($V$7:V945,\"VIR*\"),IF(COUNTIF(B946,\"*Virement*\"),\"\",IF(COUNTIF($B$8:B946,B946)=1,\"_\"&\"AUTO\"&COUNTIF($V$7:V945,\"*AUTO*\"),\"\")))","v":""},"",""]
[null,null,null,null,null,null,null,null,null,null,null,null,null,null,null,null,null,null,null,null,null,{"$f":"IF(AND(C947=\"Terminé\",COUNTIF(B947,\"*Virement*\")),\"VIR\"&COUNTIF($V$7:V946,\"VIR*\"),IF(COUNTIF(B947,\"*Virement*\"),\"\",IF(COUNTIF($B$8:B947,B947)=1,\"_\"&\"AUTO\"&COUNTIF($V$7:V946,\"*AUTO*\"),\"\")))","v":""},"",""]
[null,null,null,null,null,null,null,null,null,null,null,null,null,null,null,null,null,null,null,null,null,{"$f":"IF(AND(C948=\"Terminé\",COUNTIF(B948,\"*Virement*\")),\"VIR\"&COUNTIF($V$7:V947,\"VIR*\"),IF(COUNTIF(B948,\"*Virement*\"),\"\",IF(COUNTIF($B$8:B948,B948)=1,\"_\"&\"AUTO\"&COUNTIF($V$7:V947,\"*AUTO*\"),\"\")))","v":""},"",""]
[null,null,null,null,null,null,null,null,null,null,null,null,null,null,null,null,null,null,null,null,null,{"$f":"IF(AND(C949=\"Terminé\",COUNTIF(B949,\"*Virement*\")),\"VIR\"&COUNTIF($V$7:V948,\"VIR*\"),IF(COUNTIF(B949,\"*Virement*\"),\"\",IF(COUNTIF($B$8:B949,B949)=1,\"_\"&\"AUTO\"&COUNTIF($V$7:V948,\"*AUTO*\"),\"\")))","v":""},"",""]
[null,null,null,null,null,null,null,null,null,null,null,null,null,null,null,null,null,null,null,null,null,{"$f":"IF(AND(C950=\"Terminé\",COUNTIF(B950,\"*Virement*\")),\"VIR\"&COUNTIF($V$7:V949,\"VIR*\"),IF(COUNTIF(B950,\"*Virement*\"),\"\",IF(COUNTIF($B$8:B950,B950)=1,\"_\"&\"AUTO\"&COUNTIF($V$7:V949,\"*AUTO*\"),\"\")))","v":""},"",""]
[null,null,null,null,null,null,null,null,null,null,null,null,null,null,null,null,null,null,null,null,null,{"$f":"IF(AND(C951=\"Terminé\",COUNTIF(B951,\"*Virement*\")),\"VIR\"&COUNTIF($V$7:V950,\"VIR*\"),IF(COUNTIF(B951,\"*Virement*\"),\"\",IF(COUNTIF($B$8:B951,B951)=1,\"_\"&\"AUTO\"&COUNTIF($V$7:V950,\"*AUTO*\"),\"\")))","v":""},"",""]
[null,null,null,null,null,null,null,null,null,null,null,null,null,null,null,null,null,null,null,null,null,{"$f":"IF(AND(C952=\"Terminé\",COUNTIF(B952,\"*Virement*\")),\"VIR\"&COUNTIF($V$7:V951,\"VIR*\"),IF(COUNTIF(B952,\"*Virement*\"),\"\",IF(COUNTIF($B$8:B952,B952)=1,\"_\"&\"AUTO\"&COUNTIF($V$7:V951,\"*AUTO*\"),\"\")))","v":""},"",""]
[null,null,null,null,null,null,null,null,null,null,null,null,null,null,null,null,null,null,null,null,null,{"$f":"IF(AND(C953=\"Terminé\",COUNTIF(B953,\"*Virement*\")),\"VIR\"&COUNTIF($V$7:V952,\"VIR*\"),IF(COUNTIF(B953,\"*Virement*\"),\"\",IF(COUNTIF($B$8:B953,B953)=1,\"_\"&\"AUTO\"&COUNTIF($V$7:V952,\"*AUTO*\"),\"\")))","v":""},"",""]
[null,null,null,null,null,null,null,null,null,null,null,null,null,null,null,null,null,null,null,null,null,{"$f":"IF(AND(C954=\"Terminé\",COUNTIF(B954,\"*Virement*\")),\"VIR\"&COUNTIF($V$7:V953,\"VIR*\"),IF(COUNTIF(B954,\"*Virement*\"),\"\",IF(COUNTIF($B$8:B954,B954)=1,\"_\"&\"AUTO\"&COUNTIF($V$7:V953,\"*AUTO*\"),\"\")))","v":""},"",""]
[null,null,null,null,null,null,null,null,null,null,null,null,null,null,null,null,null,null,null,null,null,{"$f":"IF(AND(C955=\"Terminé\",COUNTIF(B955,\"*Virement*\")),\"VIR\"&COUNTIF($V$7:V954,\"VIR*\"),IF(COUNTIF(B955,\"*Virement*\"),\"\",IF(COUNTIF($B$8:B955,B955)=1,\"_\"&\"AUTO\"&COUNTIF($V$7:V954,\"*AUTO*\"),\"\")))","v":""},"",""]
[null,null,null,null,null,null,null,null,null,null,null,null,null,null,null,null,null,null,null,null,null,{"$f":"IF(AND(C956=\"Terminé\",COUNTIF(B956,\"*Virement*\")),\"VIR\"&COUNTIF($V$7:V955,\"VIR*\"),IF(COUNTIF(B956,\"*Virement*\"),\"\",IF(COUNTIF($B$8:B956,B956)=1,\"_\"&\"AUTO\"&COUNTIF($V$7:V955,\"*AUTO*\"),\"\")))","v":""},"",""]
[null,null,null,null,null,null,null,null,null,null,null,null,null,null,null,null,null,null,null,null,null,{"$f":"IF(AND(C957=\"Terminé\",COUNTIF(B957,\"*Virement*\")),\"VIR\"&COUNTIF($V$7:V956,\"VIR*\"),IF(COUNTIF(B957,\"*Virement*\"),\"\",IF(COUNTIF($B$8:B957,B957)=1,\"_\"&\"AUTO\"&COUNTIF($V$7:V956,\"*AUTO*\"),\"\")))","v":""},"",""]
[null,null,null,null,null,null,null,null,null,null,null,null,null,null,null,null,null,null,null,null,null,{"$f":"IF(AND(C958=\"Terminé\",COUNTIF(B958,\"*Virement*\")),\"VIR\"&COUNTIF($V$7:V957,\"VIR*\"),IF(COUNTIF(B958,\"*Virement*\"),\"\",IF(COUNTIF($B$8:B958,B958)=1,\"_\"&\"AUTO\"&COUNTIF($V$7:V957,\"*AUTO*\"),\"\")))","v":""},"",""]
[null,null,null,null,null,null,null,null,null,null,null,null,null,null,null,null,null,null,null,null,null,{"$f":"IF(AND(C959=\"Terminé\",COUNTIF(B959,\"*Virement*\")),\"VIR\"&COUNTIF($V$7:V958,\"VIR*\"),IF(COUNTIF(B959,\"*Virement*\"),\"\",IF(COUNTIF($B$8:B959,B959)=1,\"_\"&\"AUTO\"&COUNTIF($V$7:V958,\"*AUTO*\"),\"\")))","v":""},"",""]
[null,null,null,null,null,null,null,null,null,null,null,null,null,null,null,null,null,null,null,null,null,{"$f":"IF(AND(C960=\"Terminé\",COUNTIF(B960,\"*Virement*\")),\"VIR\"&COUNTIF($V$7:V959,\"VIR*\"),IF(COUNTIF(B960,\"*Virement*\"),\"\",IF(COUNTIF($B$8:B960,B960)=1,\"_\"&\"AUTO\"&COUNTIF($V$7:V959,\"*AUTO*\"),\"\")))","v":""},"",""]
[null,null,null,null,null,null,null,null,null,null,null,null,null,null,null,null,null,null,null,null,null,{"$f":"IF(AND(C961=\"Terminé\",COUNTIF(B961,\"*Virement*\")),\"VIR\"&COUNTIF($V$7:V960,\"VIR*\"),IF(COUNTIF(B961,\"*Virement*\"),\"\",IF(COUNTIF($B$8:B961,B961)=1,\"_\"&\"AUTO\"&COUNTIF($V$7:V960,\"*AUTO*\"),\"\")))","v":""},"",""]
[null,null,null,null,null,null,null,null,null,null,null,null,null,null,null,null,null,null,null,null,null,{"$f":"IF(AND(C962=\"Terminé\",COUNTIF(B962,\"*Virement*\")),\"VIR\"&COUNTIF($V$7:V961,\"VIR*\"),IF(COUNTIF(B962,\"*Virement*\"),\"\",IF(COUNTIF($B$8:B962,B962)=1,\"_\"&\"AUTO\"&COUNTIF($V$7:V961,\"*AUTO*\"),\"\")))","v":""},"",""]
[null,null,null,null,null,null,null,null,null,null,null,null,null,null,null,null,null,null,null,null,null,{"$f":"IF(AND(C963=\"Terminé\",COUNTIF(B963,\"*Virement*\")),\"VIR\"&COUNTIF($V$7:V962,\"VIR*\"),IF(COUNTIF(B963,\"*Virement*\"),\"\",IF(COUNTIF($B$8:B963,B963)=1,\"_\"&\"AUTO\"&COUNTIF($V$7:V962,\"*AUTO*\"),\"\")))","v":""},"",""]
[null,null,null,null,null,null,null,null,null,null,null,null,null,null,null,null,null,null,null,null,null,{"$f":"IF(AND(C964=\"Terminé\",COUNTIF(B964,\"*Virement*\")),\"VIR\"&COUNTIF($V$7:V963,\"VIR*\"),IF(COUNTIF(B964,\"*Virement*\"),\"\",IF(COUNTIF($B$8:B964,B964)=1,\"_\"&\"AUTO\"&COUNTIF($V$7:V963,\"*AUTO*\"),\"\")))","v":""},"",""]
[null,null,null,null,null,null,null,null,null,null,null,null,null,null,null,null,null,null,null,null,null,{"$f":"IF(AND(C965=\"Terminé\",COUNTIF(B965,\"*Virement*\")),\"VIR\"&COUNTIF($V$7:V964,\"VIR*\"),IF(COUNTIF(B965,\"*Virement*\"),\"\",IF(COUNTIF($B$8:B965,B965)=1,\"_\"&\"AUTO\"&COUNTIF($V$7:V964,\"*AUTO*\"),\"\")))","v":""},"",""]
[null,null,null,null,null,null,null,null,null,null,null,null,null,null,null,null,null,null,null,null,null,{"$f":"IF(AND(C966=\"Terminé\",COUNTIF(B966,\"*Virement*\")),\"VIR\"&COUNTIF($V$7:V965,\"VIR*\"),IF(COUNTIF(B966,\"*Virement*\"),\"\",IF(COUNTIF($B$8:B966,B966)=1,\"_\"&\"AUTO\"&COUNTIF($V$7:V965,\"*AUTO*\"),\"\")))","v":""},"",""]
[null,null,null,null,null,null,null,null,null,null,null,null,null,null,null,null,null,null,null,null,null,{"$f":"IF(AND(C967=\"Terminé\",COUNTIF(B967,\"*Virement*\")),\"VIR\"&COUNTIF($V$7:V966,\"VIR*\"),IF(COUNTIF(B967,\"*Virement*\"),\"\",IF(COUNTIF($B$8:B967,B967)=1,\"_\"&\"AUTO\"&COUNTIF($V$7:V966,\"*AUTO*\"),\"\")))","v":""},"",""]
[null,null,null,null,null,null,null,null,null,null,null,null,null,null,null,null,null,null,null,null,null,{"$f":"IF(AND(C968=\"Terminé\",COUNTIF(B968,\"*Virement*\")),\"VIR\"&COUNTIF($V$7:V967,\"VIR*\"),IF(COUNTIF(B968,\"*Virement*\"),\"\",IF(COUNTIF($B$8:B968,B968)=1,\"_\"&\"AUTO\"&COUNTIF($V$7:V967,\"*AUTO*\"),\"\")))","v":""},"",""]
[null,null,null,null,null,null,null,null,null,null,null,null,null,null,null,null,null,null,null,null,null,{"$f":"IF(AND(C969=\"Terminé\",COUNTIF(B969,\"*Virement*\")),\"VIR\"&COUNTIF($V$7:V968,\"VIR*\"),IF(COUNTIF(B969,\"*Virement*\"),\"\",IF(COUNTIF($B$8:B969,B969)=1,\"_\"&\"AUTO\"&COUNTIF($V$7:V968,\"*AUTO*\"),\"\")))","v":""},{"$f":"IFERROR(INDEX(B:B,MATCH(\"VIR\"&ROW()-8,V:V,0)),\"\")","v":""},{"$f":"IFERROR(INDEX($B:$B,MATCH(\"*AUTO*\"&ROW()-8,$V:$V,0)),\"\")","v":""}]
[null,null,null,null,null,null,null,null,null,null,null,null,null,null,null,null,null,null,null,null,null,{"$f":"IF(AND(C970=\"Terminé\",COUNTIF(B970,\"*Virement*\")),\"VIR\"&COUNTIF($V$7:V969,\"VIR*\"),IF(COUNTIF(B970,\"*Virement*\"),\"\",IF(COUNTIF($B$8:B970,B970)=1,\"_\"&\"AUTO\"&COUNTIF($V$7:V969,\"*AUTO*\"),\"\")))","v":""},"",""]
[null,null,null,null,null,null,null,null,null,null,null,null,null,null,null,null,null,null,null,null,null,{"$f":"IF(AND(C971=\"Terminé\",COUNTIF(B971,\"*Virement*\")),\"VIR\"&COUNTIF($V$7:V970,\"VIR*\"),IF(COUNTIF(B971,\"*Virement*\"),\"\",IF(COUNTIF($B$8:B971,B971)=1,\"_\"&\"AUTO\"&COUNTIF($V$7:V970,\"*AUTO*\"),\"\")))","v":""},"",""]
[null,null,null,null,null,null,null,null,null,null,null,null,null,null,null,null,null,null,null,null,null,{"$f":"IF(AND(C972=\"Terminé\",COUNTIF(B972,\"*Virement*\")),\"VIR\"&COUNTIF($V$7:V971,\"VIR*\"),IF(COUNTIF(B972,\"*Virement*\"),\"\",IF(COUNTIF($B$8:B972,B972)=1,\"_\"&\"AUTO\"&COUNTIF($V$7:V971,\"*AUTO*\"),\"\")))","v":""},"",""]
[null,null,null,null,null,null,null,null,null,null,null,null,null,null,null,null,null,null,null,null,null,{"$f":"IF(AND(C973=\"Terminé\",COUNTIF(B973,\"*Virement*\")),\"VIR\"&COUNTIF($V$7:V972,\"VIR*\"),IF(COUNTIF(B973,\"*Virement*\"),\"\",IF(COUNTIF($B$8:B973,B973)=1,\"_\"&\"AUTO\"&COUNTIF($V$7:V972,\"*AUTO*\"),\"\")))","v":""},"",""]
[null,null,null,null,null,null,null,null,null,null,null,null,null,null,null,null,null,null,null,null,null,{"$f":"IF(AND(C974=\"Terminé\",COUNTIF(B974,\"*Virement*\")),\"VIR\"&COUNTIF($V$7:V973,\"VIR*\"),IF(COUNTIF(B974,\"*Virement*\"),\"\",IF(COUNTIF($B$8:B974,B974)=1,\"_\"&\"AUTO\"&COUNTIF($V$7:V973,\"*AUTO*\"),\"\")))","v":""},"",""]
[null,null,null,null,null,null,null,null,null,null,null,null,null,null,null,null,null,null,null,null,null,{"$f":"IF(AND(C975=\"Terminé\",COUNTIF(B975,\"*Virement*\")),\"VIR\"&COUNTIF($V$7:V974,\"VIR*\"),IF(COUNTIF(B975,\"*Virement*\"),\"\",IF(COUNTIF($B$8:B975,B975)=1,\"_\"&\"AUTO\"&COUNTIF($V$7:V974,\"*AUTO*\"),\"\")))","v":""},"",""]
[null,null,null,null,null,null,null,null,null,null,null,null,null,null,null,null,null,null,null,null,null,{"$f":"IF(AND(C976=\"Terminé\",COUNTIF(B976,\"*Virement*\")),\"VIR\"&COUNTIF($V$7:V975,\"VIR*\"),IF(COUNTIF(B976,\"*Virement*\"),\"\",IF(COUNTIF($B$8:B976,B976)=1,\"_\"&\"AUTO\"&COUNTIF($V$7:V975,\"*AUTO*\"),\"\")))","v":""},"",""]
[null,null,null,null,null,null,null,null,null,null,null,null,null,null,null,null,null,null,null,null,null,{"$f":"IF(AND(C977=\"Terminé\",COUNTIF(B977,\"*Virement*\")),\"VIR\"&COUNTIF($V$7:V976,\"VIR*\"),IF(COUNTIF(B977,\"*Virement*\"),\"\",IF(COUNTIF($B$8:B977,B977)=1,\"_\"&\"AUTO\"&COUNTIF($V$7:V976,\"*AUTO*\"),\"\")))","v":""},"",""]
[null,null,null,null,null,null,null,null,null,null,null,null,null,null,null,null,null,null,null,null,null,{"$f":"IF(AND(C978=\"Terminé\",COUNTIF(B978,\"*Virement*\")),\"VIR\"&COUNTIF($V$7:V977,\"VIR*\"),IF(COUNTIF(B978,\"*Virement*\"),\"\",IF(COUNTIF($B$8:B978,B978)=1,\"_\"&\"AUTO\"&COUNTIF($V$7:V977,\"*AUTO*\"),\"\")))","v":""},"",""]
[null,null,null,null,null,null,null,null,null,null,null,null,null,null,null,null,null,null,null,null,null,{"$f":"IF(AND(C979=\"Terminé\",COUNTIF(B979,\"*Virement*\")),\"VIR\"&COUNTIF($V$7:V978,\"VIR*\"),IF(COUNTIF(B979,\"*Virement*\"),\"\",IF(COUNTIF($B$8:B979,B979)=1,\"_\"&\"AUTO\"&COUNTIF($V$7:V978,\"*AUTO*\"),\"\")))","v":""},"",""]
[null,null,null,null,null,null,null,null,null,null,null,null,null,null,null,null,null,null,null,null,null,{"$f":"IF(AND(C980=\"Terminé\",COUNTIF(B980,\"*Virement*\")),\"VIR\"&COUNTIF($V$7:V979,\"VIR*\"),IF(COUNTIF(B980,\"*Virement*\"),\"\",IF(COUNTIF($B$8:B980,B980)=1,\"_\"&\"AUTO\"&COUNTIF($V$7:V979,\"*AUTO*\"),\"\")))","v":""},"",""]
[null,null,null,null,null,null,null,null,null,null,null,null,null,null,null,null,null,null,null,null,null,{"$f":"IF(AND(C981=\"Terminé\",COUNTIF(B981,\"*Virement*\")),\"VIR\"&COUNTIF($V$7:V980,\"VIR*\"),IF(COUNTIF(B981,\"*Virement*\"),\"\",IF(COUNTIF($B$8:B981,B981)=1,\"_\"&\"AUTO\"&COUNTIF($V$7:V980,\"*AUTO*\"),\"\")))","v":""},"",""]
[null,null,null,null,null,null,null,null,null,null,null,null,null,null,null,null,null,null,null,null,null,{"$f":"IF(AND(C982=\"Terminé\",COUNTIF(B982,\"*Virement*\")),\"VIR\"&COUNTIF($V$7:V981,\"VIR*\"),IF(COUNTIF(B982,\"*Virement*\"),\"\",IF(COUNTIF($B$8:B982,B982)=1,\"_\"&\"AUTO\"&COUNTIF($V$7:V981,\"*AUTO*\"),\"\")))","v":""},"",""]
[null,null,null,null,null,null,null,null,null,null,null,null,null,null,null,null,null,null,null,null,null,{"$f":"IF(AND(C983=\"Terminé\",COUNTIF(B983,\"*Virement*\")),\"VIR\"&COUNTIF($V$7:V982,\"VIR*\"),IF(COUNTIF(B983,\"*Virement*\"),\"\",IF(COUNTIF($B$8:B983,B983)=1,\"_\"&\"AUTO\"&COUNTIF($V$7:V982,\"*AUTO*\"),\"\")))","v":""},"",""]
[null,null,null,null,null,null,null,null,null,null,null,null,null,null,null,null,null,null,null,null,null,{"$f":"IF(AND(C984=\"Terminé\",COUNTIF(B984,\"*Virement*\")),\"VIR\"&COUNTIF($V$7:V983,\"VIR*\"),IF(COUNTIF(B984,\"*Virement*\"),\"\",IF(COUNTIF($B$8:B984,B984)=1,\"_\"&\"AUTO\"&COUNTIF($V$7:V983,\"*AUTO*\"),\"\")))","v":""},"",""]
[null,null,null,null,null,null,null,null,null,null,null,null,null,null,null,null,null,null,null,null,null,{"$f":"IF(AND(C985=\"Terminé\",COUNTIF(B985,\"*Virement*\")),\"VIR\"&COUNTIF($V$7:V984,\"VIR*\"),IF(COUNTIF(B985,\"*Virement*\"),\"\",IF(COUNTIF($B$8:B985,B985)=1,\"_\"&\"AUTO\"&COUNTIF($V$7:V984,\"*AUTO*\"),\"\")))","v":""},"",""]
[null,null,null,null,null,null,null,null,null,null,null,null,null,null,null,null,null,null,null,null,null,{"$f":"IF(AND(C986=\"Terminé\",COUNTIF(B986,\"*Virement*\")),\"VIR\"&COUNTIF($V$7:V985,\"VIR*\"),IF(COUNTIF(B986,\"*Virement*\"),\"\",IF(COUNTIF($B$8:B986,B986)=1,\"_\"&\"AUTO\"&COUNTIF($V$7:V985,\"*AUTO*\"),\"\")))","v":""},"",""]
[null,null,null,null,null,null,null,null,null,null,null,null,null,null,null,null,null,null,null,null,null,{"$f":"IF(AND(C987=\"Terminé\",COUNTIF(B987,\"*Virement*\")),\"VIR\"&COUNTIF($V$7:V986,\"VIR*\"),IF(COUNTIF(B987,\"*Virement*\"),\"\",IF(COUNTIF($B$8:B987,B987)=1,\"_\"&\"AUTO\"&COUNTIF($V$7:V986,\"*AUTO*\"),\"\")))","v":""},"",""]
[null,null,null,null,null,null,null,null,null,null,null,null,null,null,null,null,null,null,null,null,null,{"$f":"IF(AND(C988=\"Terminé\",COUNTIF(B988,\"*Virement*\")),\"VIR\"&COUNTIF($V$7:V987,\"VIR*\"),IF(COUNTIF(B988,\"*Virement*\"),\"\",IF(COUNTIF($B$8:B988,B988)=1,\"_\"&\"AUTO\"&COUNTIF($V$7:V987,\"*AUTO*\"),\"\")))","v":""},"",""]
[null,null,null,null,null,null,null,null,null,null,null,null,null,null,null,null,null,null,null,null,null,{"$f":"IF(AND(C989=\"Terminé\",COUNTIF(B989,\"*Virement*\")),\"VIR\"&COUNTIF($V$7:V988,\"VIR*\"),IF(COUNTIF(B989,\"*Virement*\"),\"\",IF(COUNTIF($B$8:B989,B989)=1,\"_\"&\"AUTO\"&COUNTIF($V$7:V988,\"*AUTO*\"),\"\")))","v":""},"",""]
[null,null,null,null,null,null,null,null,null,null,null,null,null,null,null,null,null,null,null,null,null,{"$f":"IF(AND(C990=\"Terminé\",COUNTIF(B990,\"*Virement*\")),\"VIR\"&COUNTIF($V$7:V989,\"VIR*\"),IF(COUNTIF(B990,\"*Virement*\"),\"\",IF(COUNTIF($B$8:B990,B990)=1,\"_\"&\"AUTO\"&COUNTIF($V$7:V989,\"*AUTO*\"),\"\")))","v":""},"",""]
[null,null,null,null,null,null,null,null,null,null,null,null,null,null,null,null,null,null,null,null,null,{"$f":"IF(AND(C991=\"Terminé\",COUNTIF(B991,\"*Virement*\")),\"VIR\"&COUNTIF($V$7:V990,\"VIR*\"),IF(COUNTIF(B991,\"*Virement*\"),\"\",IF(COUNTIF($B$8:B991,B991)=1,\"_\"&\"AUTO\"&COUNTIF($V$7:V990,\"*AUTO*\"),\"\")))","v":""},"",""]
[null,null,null,null,null,null,null,null,null,null,null,null,null,null,null,null,null,null,null,null,null,{"$f":"IF(AND(C992=\"Terminé\",COUNTIF(B992,\"*Virement*\")),\"VIR\"&COUNTIF($V$7:V991,\"VIR*\"),IF(COUNTIF(B992,\"*Virement*\"),\"\",IF(COUNTIF($B$8:B992,B992)=1,\"_\"&\"AUTO\"&COUNTIF($V$7:V991,\"*AUTO*\"),\"\")))","v":""},"",""]
[null,null,null,null,null,null,null,null,null,null,null,null,null,null,null,null,null,null,null,null,null,{"$f":"IF(AND(C993=\"Terminé\",COUNTIF(B993,\"*Virement*\")),\"VIR\"&COUNTIF($V$7:V992,\"VIR*\"),IF(COUNTIF(B993,\"*Virement*\"),\"\",IF(COUNTIF($B$8:B993,B993)=1,\"_\"&\"AUTO\"&COUNTIF($V$7:V992,\"*AUTO*\"),\"\")))","v":""},"",""]
[null,null,null,null,null,null,null,null,null,null,null,null,null,null,null,null,null,null,null,null,null,{"$f":"IF(AND(C994=\"Terminé\",COUNTIF(B994,\"*Virement*\")),\"VIR\"&COUNTIF($V$7:V993,\"VIR*\"),IF(COUNTIF(B994,\"*Virement*\"),\"\",IF(COUNTIF($B$8:B994,B994)=1,\"_\"&\"AUTO\"&COUNTIF($V$7:V993,\"*AUTO*\"),\"\")))","v":""},"",""]
[null,null,null,null,null,null,null,null,null,null,null,null,null,null,null,null,null,null,null,null,null,{"$f":"IF(AND(C995=\"Terminé\",COUNTIF(B995,\"*Virement*\")),\"VIR\"&COUNTIF($V$7:V994,\"VIR*\"),IF(COUNTIF(B995,\"*Virement*\"),\"\",IF(COUNTIF($B$8:B995,B995)=1,\"_\"&\"AUTO\"&COUNTIF($V$7:V994,\"*AUTO*\"),\"\")))","v":""},"",""]
[null,null,null,null,null,null,null,null,null,null,null,null,null,null,null,null,null,null,null,null,null,{"$f":"IF(AND(C996=\"Terminé\",COUNTIF(B996,\"*Virement*\")),\"VIR\"&COUNTIF($V$7:V995,\"VIR*\"),IF(COUNTIF(B996,\"*Virement*\"),\"\",IF(COUNTIF($B$8:B996,B996)=1,\"_\"&\"AUTO\"&COUNTIF($V$7:V995,\"*AUTO*\"),\"\")))","v":""},"",""]
[null,null,null,null,null,null,null,null,null,null,null,null,null,null,null,null,null,null,null,null,null,{"$f":"IF(AND(C997=\"Terminé\",COUNTIF(B997,\"*Virement*\")),\"VIR\"&COUNTIF($V$7:V996,\"VIR*\"),IF(COUNTIF(B997,\"*Virement*\"),\"\",IF(COUNTIF($B$8:B997,B997)=1,\"_\"&\"AUTO\"&COUNTIF($V$7:V996,\"*AUTO*\"),\"\")))","v":""},"",""]
[null,null,null,null,null,null,null,null,null,null,null,null,null,null,null,null,null,null,null,null,null,{"$f":"IF(AND(C998=\"Terminé\",COUNTIF(B998,\"*Virement*\")),\"VIR\"&COUNTIF($V$7:V997,\"VIR*\"),IF(COUNTIF(B998,\"*Virement*\"),\"\",IF(COUNTIF($B$8:B998,B998)=1,\"_\"&\"AUTO\"&COUNTIF($V$7:V997,\"*AUTO*\"),\"\")))","v":""},"",""]
[null,null,null,null,null,null,null,null,null,null,null,null,null,null,null,null,null,null,null,null,null,{"$f":"IF(AND(C999=\"Terminé\",COUNTIF(B999,\"*Virement*\")),\"VIR\"&COUNTIF($V$7:V998,\"VIR*\"),IF(COUNTIF(B999,\"*Virement*\"),\"\",IF(COUNTIF($B$8:B999,B999)=1,\"_\"&\"AUTO\"&COUNTIF($V$7:V998,\"*AUTO*\"),\"\")))","v":""},"",""]
[null,null,null,null,null,null,null,null,null,null,null,null,null,null,null,null,null,null,null,null,null,{"$f":"IF(AND(C1000=\"Terminé\",COUNTIF(B1000,\"*Virement*\")),\"VIR\"&COUNTIF($V$7:V999,\"VIR*\"),IF(COUNTIF(B1000,\"*Virement*\"),\"\",IF(COUNTIF($B$8:B1000,B1000)=1,\"_\"&\"AUTO\"&COUNTIF($V$7:V999,\"*AUTO*\"),\"\")))","v":""},"",""]
[]
[]
[]
[]
[]
[]
[]
[]
[]
[]
[]
[]
[]
[]
[]
[]
[]
[]
[]
[]
[]
[]
[]
[]
[]
[]
[]
[]
[]
[]
[]
[]
[]
[]
[]
[]
[]
[]
[]
[]
[]
[]
[]
[]
[]
[]
[]
[]
[]
[]
[]
[]
[]
[]
[]
[]
[]
[]
[]
[]
[]
[]
[]
[]
[]
[]
[]
[]
[]
[]
[]
[]
[]
[]
[]
[]
[]
[]
[]
[]
[]
[]
[]
[]
[null,null,null,null,null,null,null,null,null,null,null,null,null,null,null,null,null,null,null,null,null,{"$f":"IF(COUNTIF(B1085,\"*Virement*\"),\"VIR\"&COUNTIF($V$7:V1084,\"VIR*\"),IF(COUNTIF($B$8:B1085,B1085)=1,\"AUT\"&COUNTIF($V$7:V1084,\"AUT*\"),\"\"))","v":""},{"$f":"IFERROR(INDEX(B:B,MATCH(\"VIR\"&ROW()-8,V:V,0)),\"\")","v":""},{"$f":"IFERROR(INDEX($B:$B,MATCH(\"AUT\"&ROW()-8,$V:$V,0)),\"\")","v":""}]
[null,null,null,null,null,null,null,null,null,null,null,null,null,null,null,null,null,null,null,null,null,{"$f":"IF(COUNTIF(B1086,\"*Virement*\"),\"VIR\"&COUNTIF($V$7:V1085,\"VIR*\"),IF(COUNTIF($B$8:B1086,B1086)=1,\"AUT\"&COUNTIF($V$7:V1085,\"AUT*\"),\"\"))","v":""},""]
[null,null,null,null,null,null,null,null,null,null,null,null,null,null,null,null,null,null,null,null,null,{"$f":"IF(COUNTIF(B1087,\"*Virement*\"),\"VIR\"&COUNTIF($V$7:V1086,\"VIR*\"),IF(COUNTIF($B$8:B1087,B1087)=1,\"AUT\"&COUNTIF($V$7:V1086,\"AUT*\"),\"\"))","v":""},""]
[null,null,null,null,null,null,null,null,null,null,null,null,null,null,null,null,null,null,null,null,null,{"$f":"IF(COUNTIF(B1088,\"*Virement*\"),\"VIR\"&COUNTIF($V$7:V1087,\"VIR*\"),IF(COUNTIF($B$8:B1088,B1088)=1,\"AUT\"&COUNTIF($V$7:V1087,\"AUT*\"),\"\"))","v":""},""]
[null,null,null,null,null,null,null,null,null,null,null,null,null,null,null,null,null,null,null,null,null,{"$f":"IF(COUNTIF(B1089,\"*Virement*\"),\"VIR\"&COUNTIF($V$7:V1088,\"VIR*\"),IF(COUNTIF($B$8:B1089,B1089)=1,\"AUT\"&COUNTIF($V$7:V1088,\"AUT*\"),\"\"))","v":""},""]
[null,null,null,null,null,null,null,null,null,null,null,null,null,null,null,null,null,null,null,null,null,{"$f":"IF(COUNTIF(B1090,\"*Virement*\"),\"VIR\"&COUNTIF($V$7:V1089,\"VIR*\"),IF(COUNTIF($B$8:B1090,B1090)=1,\"AUT\"&COUNTIF($V$7:V1089,\"AUT*\"),\"\"))","v":""},""]
[null,null,null,null,null,null,null,null,null,null,null,null,null,null,null,null,null,null,null,null,null,{"$f":"IF(COUNTIF(B1091,\"*Virement*\"),\"VIR\"&COUNTIF($V$7:V1090,\"VIR*\"),IF(COUNTIF($B$8:B1091,B1091)=1,\"AUT\"&COUNTIF($V$7:V1090,\"AUT*\"),\"\"))","v":""},""]
[null,null,null,null,null,null,null,null,null,null,null,null,null,null,null,null,null,null,null,null,null,{"$f":"IF(COUNTIF(B1092,\"*Virement*\"),\"VIR\"&COUNTIF($V$7:V1091,\"VIR*\"),IF(COUNTIF($B$8:B1092,B1092)=1,\"AUT\"&COUNTIF($V$7:V1091,\"AUT*\"),\"\"))","v":""}]
[null,null,null,null,null,null,null,null,null,null,null,null,null,null,null,null,null,null,null,null,null,{"$f":"IF(COUNTIF(B1093,\"*Virement*\"),\"VIR\"&COUNTIF($V$7:V1092,\"VIR*\"),IF(COUNTIF($B$8:B1093,B1093)=1,\"AUT\"&COUNTIF($V$7:V1092,\"AUT*\"),\"\"))","v":""}]

{"sheet":"Virement","index":1,"n_rows":10,"n_cols":4,"rows_kept":10,"cut":false,"hidden":false,"merged":[]}
[null,null,null,"B5:B1000 nommé \"date\""]
[null,null,null,"A4:A1000 nommé  \"noms\""]
["Validation (liste = VIR)","Date"]
["Virement__AA66",{"$f":"IFERROR(INDEX(BdD!$A:$A,MATCH(A4,BdD!$B:$B,0)),\"\")","v":"2015-12-03"}]
["Virement__AA43",{"$f":"IFERROR(INDEX(BdD!$A:$A,MATCH(A5,BdD!$B:$B,0)),\"\")","v":"2015-10-11"}]
["Virement__AA48",{"$f":"IFERROR(INDEX(BdD!$A:$A,MATCH(A6,BdD!$B:$B,0)),\"\")","v":"2015-05-23"}]
[null,{"$f":"IFERROR(INDEX(BdD!$A:$A,MATCH(A7,BdD!$B:$B,0)),\"\")","v":""}]
[null,{"$f":"IFERROR(INDEX(BdD!$A:$A,MATCH(A8,BdD!$B:$B,0)),\"\")","v":""}]
[null,{"$f":"IFERROR(INDEX(BdD!$A:$A,MATCH(A9,BdD!$B:$B,0)),\"\")","v":""}]
[null,{"$f":"IFERROR(INDEX(BdD!$A:$A,MATCH(A10,BdD!$B:$B,0)),\"\")","v":""}]

{"sheet":"Autres","index":2,"n_rows":12,"n_cols":3,"rows_kept":12,"cut":false,"hidden":false,"merged":[]}
[null,null,"B5:B1000 nommé \"dates\""]
[null,null,"A5:A1000 nommé  \"noms\""]
[null,null,"la cellule C4 sert à la confirmation de l'enregsitrement"]
["Simone",{"$f":"IF(A4=\"\",\"\",MAX(IF(BdD!B:B=A4,BdD!A:A)))","v":"2015-12-29"},{"$f":"IF(OR(A4=\"\",MAX(IF(noms=A4,dates))=B4),\"KO\",\"OK\")","v":"KO"}]
["Michel","2016-01-03"]
["Jaqueline","2015-11-15"]
["Paul","2016-01-10"]
["Anne-Marie","2016-01-21"]
["Jaqueline","2015-11-15"]
["Philippe","2015-12-07"]
["Patrick","2015-11-24"]
["Simone","2015-12-29"]